Workbook

Sheet Ark3
B3: Udgiver: | C3: SEGES Innovation P/S
B5: Udgivelsesdato: | C5: 2023-04-27
B6: Forfatter: | C6: Michael Højholdt / Jacob Krog ("Økonomi i afgrøder og sædskifter" 1.0 af Søren Kolind Hvid)
B7: Version: | C7: 2.45 (tilpasset til specifik modellering af tab ved oversvømmelser)
B8: Datagrundlag og opdateringsfrekvens: | C8: Opdateres efterår, senest grundlag er kalkuler for 2023. Giv agt på prisudvikling i forhold til normtal mv.
B9: Dokument: | C9: Se artikel
B10: Ansvar: | C10: Se vilkår
B13: Introduktion til regnearket
B14: Angiv formål og målgruppe | C14: Formålet med regnearket er at understøtte planlægning og modellering i markbruget af f.eks. nye afgrøder, afgrødesammensætninger og dyrkningsmetoder. Målgruppen er primært landmænd og landbrugsrådgivere.
B15: Anbefalet anvendelse af værktøjet | C15: Økonomi i afgrøder og sædskifter: Værktøjet kan anvendes til at give et bud på økonomien ved dyrkning af forskellige afgrøder og sædskifter under forskellige vilkår. Udbytter og omkostninger er estimeret med basis i afgrødekalkuler og kan tilpasses forhold og dyrkningsmetoder på bedriften. Forfrugtsværdi, husdyrgødning, om man er kornkøber eller -sælger, halmnedmuldning, tørring og lagring kan indregnes i de økonomiske konkurrenceforhold. Der findes uddybede forslag til anvendelse i den faglige vejledning nedenfor. Sædskifteplan: Dette regneark kan anvendes til at opstille en sædskifteplan med op til 3 delsædskifter på en bedrift. Placering af efterafgrøder i sædskiftet kan angives. Endvidere beregnes produktionen af korn til svinefoder. Svinebesætningens foderbehov (korn) kan beregnes. Sædskifteplan er ikke sammenkædet med Økonomi i afgrøder og sædskifter.
B16: Begrænsninger i værktøjet | C16: Værktøjet er baseret på normtal, og derfor vil resultaterne for hvert scenarie ikke nødvendigvis matche bedriftens egne tal. Forskellen mellem scenarier forventes dog give et godt bud på den konsekvens, man vil opleve i driften. I vejledning til anvendelse af værktøjet ses forslag til, hvordan normværdier kan tilpasses individuelle forhold. Vær opmærksom på, at der ingen kontrol er af, at det indtastede afgrødevalg og efterafgrødevalg kan lade sig gøre, om der er risiko for opformering af sygdomme eller ukrudt, om gældende efterafgrødekrav og lovgivning overholdes etc.
B17: Vejledning | C17: Udfyld "bedriftsspecifikke oplysninger" (JB, håndtering af halm, husdyrgødning mv.) og justér evt. "standardforudsætninger" (forhold omkring næringsstoffer mv.). Opret evt. egen afgrøde, og definer afgrødevalg/sædskifter til sammenligning. Anvend de givne forslag til udbytter og priser eller justér efter behov. Ved modellering af ændring ved f.eks. nyt dyrkningssystem, er der mulighed for at støtte sig til faglige vejledninger,se nedenfor.
B18: Funktion og makroer | C18: Husk at aktivere makroer i Excel
B21: Faglig vejledning til økonomi i afgrøder og sædskifter
B22: Hvis du vil… | C22: ...kan du gøre følgende
B23: … estimere økonomi ved en ændring i afgrødesammensætning, f.eks. supplere korndyrkning med dyrkning af specialafgrøde | C23: Definere eksisterende afgrødesammensætning i sædskifte 1. Definere alternativ afgrødesammensætning i sædskifte 2. Justere diverse forudsætninger til bedriftens forhold og forventninger. Huske at dyrkning af mange specialafgrøder kræver kontrakt, muligheden for at få en sådan skal undersøges. Vurdere dyrkningssikkerheden på de to afgrødesammensætninger i forhold til hinanden. Vurdere sandsynligheden for prisudsving i de to afgrødesammensætninger; lav en følsomhedanalyse med høje/lave priser - du kan gemme regneark med forskellige valg af forudsætninger under passende forskellige navne og dermed hurtigt sammenligne ændringer i dine forudsætninger efter behov. Inddragelse af efterafgrøder beregnes kun som omkostninger til etablering og gevinst ved sparet N. Regnearket kan ikke anvendes til optimering af efterafgrødevalg mv. Hvis der mangler plads til flere afgrøder, kan efterafgrøder evt. kan puljes i én samlet efterafgrøde og dermed spare plads i den økonomiske beregning. Anvend sædskifteplanerne i funktionen "sædskifteplan" for at vise den samlede afgrødefølge; her er plads til flere afgrøder i sædskifterne og dermed god plads til at vise efterafgrøder efter hovedafgrøder.
B24: … estimere økonomi for en afgrøde, der ikke findes norm eller afgrødekalkule for | C24: Oprette egen afgrøde i værktøjet umiddelbart efter indtastning af bedriftsspecifikke oplysninger og standardforudsætninger. Angive afgrødens navn, forventet udbytte, afgrødepris, og evt. sekundært udbytte (halm), forfrugtsværdi, stykomkostninger, N,P og K mængde, omkostninger til planteværn, diverse, maskiner og arbejde samt tørring. Finde hjælp til at anslå disse niveauer ved eventuelt sammenlignelige afgrøder via afgrødekalkulerne på farmtal.dk. Undersøge om der findes udenlandske erfaringer som med fordel kan inddrages i overvejelserne. Huske det kan være vigtigt at foretage vurdering af risici ved dyrkning af "nye" afgrøder, herunder dyrkningssikkerhed og sikkerhed for afsætning.
B25: ... regne på at ændre din maskinpark og sælge maskinstationsydelser til andre | C25: Analysere nuværende maskinomkostninger med en maskinanalyse, kan foretages i planlægningsværktøjet FMS. Opstille forventet "ny maskinpark" og beregne tidsforbrug og økonomi i denne - igen i FMS. Husk egen anvendelse og opstille salgsmål på basis af maskinanalysen og lave en vurdering af totaløkonomi i forhold til indtjening og risiko. Inddrag en vurdering af behov for arbejdskraft. Brug evt. "Maskintid" (se link nedenfor) til at vurdere arbejdskraftbehov og spidsbelastninger.
B26: …regne på at ændre dyrkning fra pløjning til reduceret jordbearbejdning eller til no till / conservation agriculture | C26: Definere eksisterende afgrødesammensætning i sædskifte 1. Definere alternativ afgrødesammensætning i sædskifte 2, herunder ændret forhold mellem vintersæd og vårsæd, og behov for efterafgrøder. Se kommentar om efterafgrøder ved beregning af sædskifteøkonomi ovenfor. Justere diverse forudsætninger til bedriftens forhold og forventninger, herunder udbytteniveau og indkøringstab. Bemærk ved anvendelse af beregning af tidsforbrug at tilpasse de udførte maskinopgaver til forventede forhold, herunder med fokus på jordbearbejdning og planteværn. Maskin- og arbejdsomkostninger bør være i fokus. Hvis ikke der er udarbejdet maskinanalyse og maskinstrategi for omlægning med FMS, bør det gøres. Brug evt. tal fra din driftsgrensanalyse eller lav en grovanalyse med Din Bundlinje Mark som udgangspunkt. I mange tilfælde vil en sådan omlægning medføre investeringer i nye maskiner, der de første år kan påvirke de samlede maskin- og arbejdsomkostninger i opadgående retning. På lidt længere sigt bør det være muligt at realisere et lavere niveau for maskin- og arbejdsomkostninger end før omlægning hvis jordbearbejdning reduceres eller helt fjernes. Vær opmærksom på, om frigjorte arbejdstimer fra marken kan aflønnes af andet værdiskabende arbejde eller bliver ufordelt omkostning som alligevel skal aflønnes.
B27: … vurdere økonomien ved økologisk produktion | C27: Der findes særskilte værktøjer og metoder til omlægningstjek indenfor økologi. Kontakt din lokale økologirådgiver eller ICOEL (Innovationscenter for Økologisk Landbrug) for at høre mere. Hvis du ønsker at anvende nærværende værktøj til groft at estimere konsekvenser i en sådan situation, kan du anvende de økologiske afgrøder der er udarbejdet kalkuler for i værktøjet, under hensyntagen til management og f.eks. fokus på bekæmpelse af rodukrudt. Ønsker du at anvende beregning af forfrugtsværdi, så husk at tilrette værdien heraf til økologisk. Et alternativ er selv at estimere udbytterne inkl. forfrugtsværdi for den enkelte afgrøde. Ved modellering af økologiske sædskifter er der behov for at være ekstra opmærksom på næringsstoftilførslen, da økologiske bedrifter ikke har samme muligheder for at øge tildelingen af N som konventionelle bedrifter. Kendskabet til nuværende næringsstofforsyning og dennes effekt på udbytteniveauer er afgørende for om udbytteniveau og gødningsomkostning i værktøjet stemmer overens med virkeligheden. Såfremt der er behov for at øge tildeling af P og K, giver gødningsværktøjet til økologer (link nedenfor) et overblik over mulige produkter og priser. Husk at næringsstoffer betyder meget for udbytter, omkostninger og tilskud. Hvis der ikke fuldgødskes med gylle, indregner værktøjet køb af N til den pris, der opgives i standardforudsætninger. Hvis der indkøbes gødning så husk at tilrette pris. Indkøbes der ikke gødning så husk at sætte omkostning = 0. Husk, at der findes en række tilskudsmuligheder for økologisk produktion. Se den opdaterede liste på www.farmtal.dk > støtteordninger: - økologitilskud 870 kr. pr. ha - omlægningstilskud 1.200 pr. år - reduceret N tildeling tilskud 500 kr. pr. ha - frugt og bær tilllæg kr. 4.000 pr. ha
B28: …vurdere økonomien i en forpagtning | C28: Anvend nedenstående regneark vedrørende økonomi i forpagtninger, hvori der findes oplysninger om niveauer for forpagtningsafgift og mulighed for at beregne økonomi med inddragelse af øndring i dyrket areal også i form af forpagtninger. Tilpas evt. værktøjet med oplysninger om indtjening i marken fra nærværende "Økonomi i afgrøder og sædskifter".
B29: …inddrage transportomkostninger i din beregning | C29: Anvende tommelfingerregler eller egne beregninger fra værktøj til beregning af transportomkostninger. De beregnede årlige omkostninger kan indarbejdes i maskin- og arbejdsomkostninger i nærværende program. Se link til beregning af bedrifts- og afgrødespecifikke transportomkostninger nedenfor. Tommelfingerreglerne er: Dyrkning af korn med handelsgødning og nedmuldning af halm koster ca. 100 kr. pr. km pr. ha pr. år Dyrkning af korn med gylle og bjærgning af halm eller majs til helsæd koster ca. 200 kr. pr. km pr. ha pr. år Dyrkning af græs til slæt med gylle koster ca. 300 kr. pr. km pr. ha pr. år
B30: …sammenholde normtal med din egen præstation | C30: Find inspiration i Business Check hvor der findes gennemsnitstal og fraktilanalyser for indtægter og omkostninger for både salgsafgrøder og grovfoder. Få lavet egen driftsgrensanalyse hos din rådgivningsvirksomhed, og start eventuelt med at lave egen grovanalyse med værktøjet "Din Bundlinje Mark".
B32: Links til viden og værktøjer
B33: Emne | C33: Links
B34: Afgrødekalkuler på farmtal.dk | C34: https://farmtalonline.dlbr.dk/Navigation/NavigationTree.aspx
B35: Økonomi ved forpagtning | C35: https://www.landbrugsinfo.dk/basis/f/e/a/produktionsokonomi_regneark_okonomi_ved_forpagtning_opdateret
B36: Maskintid - sæsonbelastning i marken | C36: https://www.landbrugsinfo.dk/basis/8/7/1/oekonomi_saet_fokus_paa_de_travle_perioder_markdriften
B37: Transportomkostninger mark-lagre t/r | C37: https://www.landbrugsinfo.dk/public/3/1/6/produktionsokonomi_hvor_meget_koster_transportopgaverne
B38: Markstørrelse, markform, kapacitet | C38: https://www.landbrugsinfo.dk/public/9/0/e/planter_beregn_arbejdsbehovet_ved_markarbejde
B39: FMS - maskinanalyse | C39: https://www.landbrugsinfo.dk/public/e/e/7/produktionsokonomi_planlag_arbejdet_med_vaerktojet_fms
B40: Investeringsberegning maskiner mv. | C40: https://www.landbrugsinfo.dk/public/6/b/5/oekonomi_investeringsberegning_grafisk_foelsomhedsanalyse
B41: Økonomi ved lagring af korn | C41: https://www.landbrugsinfo.dk/public/6/d/3/oekonomi_ved_lagring_af_korn
B42: Conservation agriculture | C42: https://www.landbrugsinfo.dk/basis/1/a/a/jord_bearbejdning_conservation_agriculture
B43: Gødning økologi | C43: https://oko-godning.dk/
B44: Sammenligningstal - Din Bundlinje Mark | C44: https://www.landbrugsinfo.dk/basis/2/7/3/planter_regnearket_din_bundlinje_mark_klar_til_brug
B45: Sammenligningstal - Business Check | C45: https://www.landbrugsinfo.dk/basis/b/8/8/produktionsokonomi_nyeste_version_business_check

Sheet Ark1
B1: Økonomi i afgrøder og sædskifter 2023
B3: Bedriftsoplysninger
CV4: JB_rækkenr. | CW4: Udbytte | CX4: N-gødning | CY4: Lager_rækkenr | CZ4: Lagernr | DH4: Husdyrgødning | DI4: 100 kg N pr. ha
B5: Jordtype | G5: Lager til korn | CV5: 4 | CW5: =IF(CV5=1,5,IF(CV5=2,6,IF(CV5=3,7,IF(CV5=4,8,IF(CV5=5,9,""))))) -> 8 | CX5: =IF(CV5=1,25,IF(CV5=2,26,IF(CV5=3,27,IF(CV5=4,28,IF(CV5=5,29,""))))) -> 28 | CY5: 2 | CZ5: =IF(CY5=1,1,IF(CY5=2,BQ285,IF(CY5=3,BR285,BS285))) -> 52 | DI5: (DE/ha) | DJ5: N | DK5: P | DL5: K
CV6: Halm | CW6: Halm_rækkenr. | CX6: Maskinomkostninger | CY6: Tørring_rækkenr. | CZ6: Tørrenr | DG6: 1 | DH6: Ingen | DI6: 0 | DJ6: 0 | DK6: 0 | DL6: 0 | DN6: ton gylle pr. DE | DO6: 22.2
B7: Halm bjærges/nedmuldes | G7: Tørring af korn | CV7: 1 | CW7: =IF($CV$7=1,IF($CV$5=1,10,IF($CV$5=2,11,IF($CV$5=3,12,IF($CV$5=4,13,IF($CV$5=5,14,"")))))) -> 13 | CX7: =IF($CV$7=1,IF($CV$5=1,39,IF($CV$5=2,40,IF($CV$5=3,41,IF($CV$5=4,42,IF($CV$5=5,43,""))))),IF($CV$5=1,44,IF($CV$5=2,45,IF($CV$5=3,46,IF($CV$5=4,47,IF($CV$5=5,48,"")))))) -> 42 | CY7: 1 | CZ7: =IF(Tørringnr=1,BN285,BO285) -> 49 | DG7: 2 | DH7: 10 kg N svin | DI7: 0.1 | DJ7: =DI7*$D$298*UdnytNsvin*0.01 -> 8 | DK7: =DI7*$D$300 -> 2.5 | DL7: =DI7*$D$302 -> 5 | DN7: DE/ha (100 kg N pr. ha) | DO7: =VLOOKUP(Hdgnr,_Hdg2,3) -> 0.3
CV8: Kornkøber | CW8: Kornkøber / - sælger | CY8: Foderenheder | DG8: 3 | DH8: 10 kg N kvæg | DI8: 0.1 | DJ8: =DI8*$D$304*UdnytNkvæg*0.01 -> 7.5 | DK8: =DI8*$D$306 -> 1.7 | DL8: =DI8*$D$308 -> 6.7 | DN8: Tildelt ton gylle pr. ha | DO8: =ton_DE*DE_ha -> 6.66
B9: Kornsælger eller kornkøber | G9: Foderenheder | CV9: 1 | CW9: =IF(CV9=2,IF(CV5=1,5,IF(CV5=2,6,IF(CV5=3,7,IF(CV5=4,8,IF(CV5=5,9,""))))),"") ->  | CY9: 2 | DG9: 4 | DH9: 30 kg N svin | DI9: 0.3 | DJ9: =DI9*$D$298*UdnytNsvin*0.01 -> 24 | DK9: =DI9*$D$300 -> 7.5 | DL9: =DI9*$D$302 -> 15
CV10: Hdg_rækkenr | CW10: Styk uden eller med husdyrgødning | DG10: 5 | DH10: 30 kg N kvæg | DI10: 0.3 | DJ10: =DI10*$D$304*UdnytNkvæg*0.01 -> 22.5 | DK10: =DI10*$D$306 -> 5.1 | DL10: =DI10*$D$308 -> 20.1
B11: Husdyrgødning | CV11: 5 | CW11: =IF(CV11=1,IF($CV$5=1,21,IF($CV$5=2,22,IF($CV$5=3,23,IF($CV$5=4,24,IF($CV$5=5,25,""))))),IF($CV$5=1,26,IF($CV$5=2,27,IF($CV$5=3,28,IF($CV$5=4,29,IF($CV$5=5,30,"")))))) -> 29 | DG11: 6 | DH11: 50 kg N svin | DI11: 0.5 | DJ11: =DI11*$D$298*UdnytNsvin*0.01 -> 40 | DK11: =DI11*$D$300 -> 12.5 | DL11: =DI11*$D$302 -> 25
CW12: Forfrugtsværdi | DG12: 7 | DH12: 50 kg N kvæg | DI12: 0.5 | DJ12: =DI12*$D$304*UdnytNkvæg*0.01 -> 37.5 | DK12: =DI12*$D$306 -> 8.5 | DL12: =DI12*$D$308 -> 33.5
B13: Forfrugtsværdi til forfrugten | CV13: 2 | CW13: =IF(CV13=1,IF($CV$5=1,15,IF($CV$5=2,16,IF($CV$5=3,17,IF($CV$5=4,18,IF($CV$5=5,19,"")))))) -> FALSE | DG13: 8 | DH13: 70 kg N svin | DI13: 0.7 | DJ13: =DI13*$D$298*UdnytNsvin*0.01 -> 56 | DK13: =DI13*$D$300 -> 17.5 | DL13: =DI13*$D$302 -> 35
DG14: 9 | DH14: 70 kg N kvæg | DI14: 0.7 | DJ14: =DI14*$D$304*UdnytNkvæg*0.01 -> 52.5 | DK14: =DI14*$D$306 -> 11.9 | DL14: =DI14*$D$308 -> 46.9
DG15: 10 | DH15: 80 kg N svin | DI15: 0.8 | DJ15: =DI15*$D$298*UdnytNsvin*0.01 -> 64 | DK15: =DI15*$D$300 -> 20 | DL15: =DI15*$D$302 -> 40
B16: Standardforudsætninger | DG16: 11 | DH16: 80 kg N kvæg | DI16: 0.8 | DJ16: =DI16*$D$304*UdnytNkvæg*0.01 -> 60 | DK16: =DI16*$D$306 -> 13.6 | DL16: =DI16*$D$308 -> 53.6
DG17: 12 | DH17: 90 kg N svin | DI17: 0.9 | DJ17: =DI17*$D$298*UdnytNsvin*0.01 -> 72 | DK17: =DI17*$D$300 -> 22.5 | DL17: =DI17*$D$302 -> 45
B18: Kvælstofpris | D18: 12 | F18: pr. kg | DG18: 13 | DH18: 90 kg N kvæg | DI18: 0.9 | DJ18: =DI18*$D$304*UdnytNkvæg*0.01 -> 67.5 | DK18: =DI18*$D$306 -> 15.3 | DL18: =DI18*$D$308 -> 60.3
DG19: 14 | DH19: 100 kg N svin | DI19: 1 | DJ19: =DI19*$D$298*UdnytNsvin*0.01 -> 80 | DK19: =DI19*$D$300 -> 25 | DL19: =DI19*$D$302 -> 50
B20: Fosforpris | D20: 17 | F20: pr. kg | DG20: 15 | DH20: 100 kg N kvæg | DI20: 1 | DJ20: =DI20*$D$304*UdnytNkvæg*0.01 -> 75 | DK20: =DI20*$D$306 -> 17 | DL20: =DI20*$D$308 -> 67
DG21: 16 | DH21: 110 kg N svin | DI21: 1.1 | DJ21: =DI21*$D$298*UdnytNsvin*0.01 -> 88 | DK21: =DI21*$D$300 -> 27.5 | DL21: =DI21*$D$302 -> 55
B22: Kaliumpris | D22: 12 | F22: pr. kg | DG22: 17 | DH22: 110 kg N kvæg | DI22: 1.1 | DJ22: =DI22*$D$304*UdnytNkvæg*0.01 -> 82.5 | DK22: =DI22*$D$306 -> 18.7 | DL22: =DI22*$D$308 -> 73.7
DG23: 18 | DH23: 120 kg N svin | DI23: 1.2 | DJ23: =DI23*$D$298*UdnytNsvin*0.01 -> 96 | DK23: =DI23*$D$300 -> 30 | DL23: =DI23*$D$302 -> 60
B24: Meromkostning til erstatningskorn | D24: 15 | F24: pr. hkg | DG24: 19 | DH24: 120 kg N kvæg | DI24: 1.2 | DJ24: =DI24*$D$304*UdnytNkvæg*0.01 -> 90 | DK24: =DI24*$D$306 -> 20.4 | DL24: =DI24*$D$308 -> 80.4
DG25: 20 | DH25: 130 kg N svin | DI25: 1.3 | DJ25: =DI25*$D$298*UdnytNsvin*0.01 -> 104 | DK25: =DI25*$D$300 -> 32.5 | DL25: =DI25*$D$302 -> 65
B26: Kornpris, forfrugtsværdi | D26: 170 | F26: pr. hkg | DG26: 21 | DH26: 130 kg N kvæg | DI26: 1.3 | DJ26: =DI26*$D$304*UdnytNkvæg*0.01 -> 97.5 | DK26: =DI26*$D$306 -> 22.1 | DL26: =DI26*$D$308 -> 87.1
DG27: 22 | DH27: 140 kg N svin | DI27: 1.4 | DJ27: =DI27*$D$298*UdnytNsvin*0.01 -> 112 | DK27: =DI27*$D$300 -> 35 | DL27: =DI27*$D$302 -> 70
B28: Udnyttelse af N i svinegødning | D28: 80 | F28: % | DG28: 23 | DH28: 140 kg N kvæg | DI28: 1.4 | DJ28: =DI28*$D$304*UdnytNkvæg*0.01 -> 105 | DK28: =DI28*$D$306 -> 23.8 | DL28: =DI28*$D$308 -> 93.8
DG29: 24 | DH29: 150 kg N svin | DI29: 1.5 | DJ29: =DI29*$D$298*UdnytNsvin*0.01 -> 120 | DK29: =DI29*$D$300 -> 37.5 | DL29: =DI29*$D$302 -> 75
B30: Udnyttelse af N i kvæggødning | D30: 75 | F30: % | DG30: 25 | DH30: 150 kg N kvæg | DI30: 1.5 | DJ30: =DI30*$D$304*UdnytNkvæg*0.01 -> 112.5 | DK30: =DI30*$D$306 -> 25.5 | DL30: =DI30*$D$308 -> 100.5
DG31: 26 | DH31: 160 kg N svin | DI31: 1.6 | DJ31: =DI31*$D$298*UdnytNsvin*0.01 -> 128 | DK31: =DI31*$D$300 -> 40 | DL31: =DI31*$D$302 -> 80
B32: Halmpris | D32: 0.65 | F32: kr. pr. kg | DG32: 27 | DH32: 160 kg N kvæg | DI32: 1.6 | DJ32: =DI32*$D$304*UdnytNkvæg*0.01 -> 120 | DK32: =DI32*$D$306 -> 27.2 | DL32: =DI32*$D$308 -> 107.2
DG33: 28 | DH33: 170 kg N svin | DI33: 1.7 | DJ33: =DI33*$D$298*UdnytNsvin*0.01 -> 136 | DK33: =DI33*$D$300 -> 42.5 | DL33: =DI33*$D$302 -> 85
B34: Årstal på udskrift | D34: 2023 | DG34: 29 | DH34: 170 kg N kvæg | DI34: 1.7 | DJ34: =DI34*$D$304*UdnytNkvæg*0.01 -> 127.5 | DK34: =DI34*$D$306 -> 28.9 | DL34: =DI34*$D$308 -> 113.9
DG35: 30 | DH35: 180 kg N kvæg | DI35: 1.8 | DJ35: =DI35*$D$304*UdnytNkvæg*0.01 -> 135 | DK35: =DI35*$D$306 -> 30.6 | DL35: =DI35*$D$308 -> 120.6
DG36: 31 | DH36: 190 kg N kvæg | DI36: 1.9 | DJ36: =DI36*$D$304*UdnytNkvæg*0.01 -> 142.5 | DK36: =DI36*$D$306 -> 32.3 | DL36: =DI36*$D$308 -> 127.3
DG37: 32 | DH37: 200 kg N kvæg | DI37: 2 | DJ37: =DI37*$D$304*UdnytNkvæg*0.01 -> 150 | DK37: =DI37*$D$306 -> 34 | DL37: =DI37*$D$308 -> 134
DG38: 33 | DH38: 210 kg N kvæg | DI38: 2.1 | DJ38: 157.5 | DK38: 35.7 | DL38: 140.7
DG39: 34 | DH39: 220 kg N kvæg | DI39: 2.2 | DJ39: 165 | DK39: 37.4 | DL39: 147.4
B40: Opret eventuelt egen afgrøde | S40: Her har du mulighed for at oprette egen afgrøde. Efter indtastningen af oplysningerne kan du vælge "Anden afgrøde" i rulleteksten under Sædskifte 1 og Sædskifte 2. | DG40: 35 | DH40: 230 kg N kvæg | DI40: 2.3 | DJ40: 172.5 | DK40: 39.1 | DL40: 154.1
DG41: 36 | DI41: 2.1 | DJ41: 157.5 | DK41: 35.7 | DL41: 140.7
DG42: 37 | DI42: 2.2 | DJ42: 165 | DK42: 37.4 | DL42: 147.4
B43: Indtast afgrødenavn | DG43: 38 | DI43: 2.3 | DJ43: 172.5 | DK43: 39.1 | DL43: 154.1
B45: Indtast forventet udbytte og pris | F45: Indtast stykomkostninger
B46: Udbytte, hkg / ae pr. ha | F46: Udsæd, kr. pr ha | K46: Hvis N behovet dækkes med NPK 21-3-10, så svarer | P46: =IF(OR($I$46>0),"Husk minus foran","") -> 
B47: Pris pr. hkg / ae | F47: Gødning beregnes ud fra mængde
G48: N-behov, kg pr. ha | K48: =I48 -> 0 | L48: kg N til
B49: Halmudbytte, kg pr. ha | G49: P-behov, kg pr. ha | K49: Kg P | L49: =K48/0.21*0.03 -> 0
G50: K-behov, kg pr. ha | K50: Kg K | L50: =K48/0.21*0.1 -> 0
F51: Planteværn | L51: =IF(OR($I$51>0),"Husk minus foran","") -> 
F52: Diverse | L52: =IF(OR($I$52>0),"Husk minus foran","") -> 
B54: Beregning af forfrugtsværdi | F54: Indtast maskin- og arbejdsomkostninger
B55: Forfrugtsværdi | D55: hkg pr. ha | F55: Maskiner og arbejde | J55: kr. pr. ha | L55: =IF(OR($I$55>0),"Husk minus foran","") -> 
B56: Sparet N til næste afgrøde | D56: kg pr. ha | F56: Tørring | J56: kr. pr. hkg | L56: =IF(OR($I$56>0),"Husk minus foran","") -> 
B63: Angiv sædskifte 1 og 2
B64: Her kan du angive, hvilke afgrøder der skal indgå i sædskifte 1 samt arealer, udbytter og priser.
B65: Sædskifte 1 | D65: Antal | F65: Eget | G65: Udbytte- | I65: Egen | K65: Standard | S65: Her kan du angive, hvilke afgrøder der skal indgå i sædskifte 1 samt arealer, udbytter og priser. For at få sædskifte 1 vist på udskriften skal det vælges i rullelisterne nedenfor til venstre.
D66: ha | F66: udbytte | G66: norm | I66: pris | K66: pris
G68: =IF(F68<>"","",IF(VLOOKUP($CV159,_Afg07,$CW$5)=0,"",VLOOKUP($CV159,_Afg07,$CW$5))) ->  | H68: =IF($CV159>1,IF(VLOOKUP($CV159,_Afg07,3)<>"",VLOOKUP($CV159,_Afg07,3),""),"") ->  | K68: =IF(I68<>"","",IF(VLOOKUP($CV159,_Afg07,$U$285)=0,"",VLOOKUP($CV159,_Afg07,$U$285))) ->  | L68: =IF($CV159>1,"kr.","") ->  | R68: =IF(AND(CV159>1,VLOOKUP(CV159,_Afg07,3)=""),"Areal med efterafgrøder tælles ikke med i dyrket areal i alt","") -> 
G70: =IF(F70<>"","",IF(VLOOKUP(CV161,_Afg07,$CW$5)=0,"",VLOOKUP(CV161,_Afg07,$CW$5))) ->  | H70: =IF($CV161>1,IF(VLOOKUP($CV161,_Afg07,3)<>"",VLOOKUP($CV161,_Afg07,3),""),"") ->  | K70: =IF(I70<>"","",IF(VLOOKUP($CV161,_Afg07,$U$285)=0,"",VLOOKUP($CV161,_Afg07,$U$285))) ->  | L70: =IF($CV161>1,"kr.","") ->  | R70: =IF(AND(CV161>1,VLOOKUP(CV161,_Afg07,3)=""),"Areal med efterafgrøder tælles ikke med i dyrket areal i alt","") -> 
G72: =IF(F72<>"","",IF(VLOOKUP(CV163,_Afg07,$CW$5)=0,"",VLOOKUP(CV163,_Afg07,$CW$5))) ->  | H72: =IF($CV163>1,IF(VLOOKUP($CV163,_Afg07,3)<>"",VLOOKUP($CV163,_Afg07,3),""),"") ->  | K72: =IF(I72<>"","",IF(VLOOKUP($CV163,_Afg07,$U$285)=0,"",VLOOKUP($CV163,_Afg07,$U$285))) ->  | L72: =IF($CV163>1,"kr.","") ->  | R72: =IF(AND(CV163>1,VLOOKUP(CV163,_Afg07,3)=""),"Areal med efterafgrøder tælles ikke med i dyrket areal i alt","") -> 
G74: =IF(F74<>"","",IF(VLOOKUP(CV165,_Afg07,$CW$5)=0,"",VLOOKUP(CV165,_Afg07,$CW$5))) ->  | H74: =IF($CV165>1,IF(VLOOKUP($CV165,_Afg07,3)<>"",VLOOKUP($CV165,_Afg07,3),""),"") ->  | K74: =IF(I74<>"","",IF(VLOOKUP($CV165,_Afg07,$U$285)=0,"",VLOOKUP($CV165,_Afg07,$U$285))) ->  | L74: =IF($CV165>1,"kr.","") ->  | R74: =IF(AND(CV165>1,VLOOKUP(CV165,_Afg07,3)=""),"Areal med efterafgrøder tælles ikke med i dyrket areal i alt","") -> 
G76: =IF(F76<>"","",IF(VLOOKUP(CV167,_Afg07,$CW$5)=0,"",VLOOKUP(CV167,_Afg07,$CW$5))) ->  | H76: =IF($CV167>1,IF(VLOOKUP($CV167,_Afg07,3)<>"",VLOOKUP($CV167,_Afg07,3),""),"") ->  | K76: =IF(I76<>"","",IF(VLOOKUP($CV167,_Afg07,$U$285)=0,"",VLOOKUP($CV167,_Afg07,$U$285))) ->  | L76: =IF($CV167>1,"kr.","") ->  | R76: =IF(AND(CV167>1,VLOOKUP(CV167,_Afg07,3)=""),"Areal med efterafgrøder tælles ikke med i dyrket areal i alt","") -> 
G78: =IF(F78<>"","",IF(VLOOKUP(CV169,_Afg07,$CW$5)=0,"",VLOOKUP(CV169,_Afg07,$CW$5))) ->  | H78: =IF($CV169>1,IF(VLOOKUP($CV169,_Afg07,3)<>"",VLOOKUP($CV169,_Afg07,3),""),"") ->  | K78: =IF(I78<>"","",IF(VLOOKUP($CV169,_Afg07,$U$285)=0,"",VLOOKUP($CV169,_Afg07,$U$285))) ->  | L78: =IF($CV169>1,"kr.","") ->  | R78: =IF(AND(CV169>1,VLOOKUP(CV169,_Afg07,3)=""),"Areal med efterafgrøder tælles ikke med i dyrket areal i alt","") -> 
G80: =IF(F80<>"","",IF(VLOOKUP(CV171,_Afg07,$CW$5)=0,"",VLOOKUP(CV171,_Afg07,$CW$5))) ->  | H80: =IF($CV171>1,IF(VLOOKUP($CV171,_Afg07,3)<>"",VLOOKUP($CV171,_Afg07,3),""),"") ->  | K80: =IF(I80<>"","",IF(VLOOKUP($CV171,_Afg07,$U$285)=0,"",VLOOKUP($CV171,_Afg07,$U$285))) ->  | L80: =IF($CV171>1,"kr.","") ->  | R80: =IF(AND(CV171>1,VLOOKUP(CV171,_Afg07,3)=""),"Areal med efterafgrøder tælles ikke med i dyrket areal i alt","") -> 
B82: Dyrket areal i alt | D82: =IF(AND(CV159>1,VLOOKUP(CV159,_Afg07,3)<>""),D68,0)+IF(AND(CV161>1,VLOOKUP(CV161,_Afg07,3)<>""),D70,0)+IF(AND(CV163>1,VLOOKUP(CV163,_Afg07,3)<>""),D72,0)+IF(AND(CV165>1,VLOOKUP(CV165,_Afg07,3)<>""),D74,0)+IF(AND(CV167>1,VLOOKUP(CV167,_Afg07,3)<>""),D76,0)+IF(AND(CV169>1,VLOOKUP(CV169,_Afg07,3)<>""),D78,0)+IF(AND(CV171>1,VLOOKUP(CV171,_Afg07,3)<>""),D80,0) -> 0
B85: Her kan du angive, hvilke afgrøder der skal indgå i sædskifte 2 samt arealer, udbytter og priser.
B86: Sædskifte 2 | D86: Antal | F86: Eget | G86: Udbytte- | I86: Egen | K86: Standard | S86: Her kan du angive, hvilke afgrøder der skal indgå i sædskifte 2 samt arealer, udbytter og priser. For at få sædskifte 2 vist på udskriften skal det vælges i rullelisterne nedenfor til venstre.
D87: ha | F87: udbytte | G87: norm | I87: pris | K87: pris
G89: =IF(F89<>"","",IF(VLOOKUP(CV160,_Afg07,$CW$5)=0,"",VLOOKUP(CV160,_Afg07,$CW$5))) ->  | H89: =IF(CV160>1,IF(VLOOKUP(CV160,_Afg07,3)<>"",VLOOKUP(CV160,_Afg07,3),""),"") ->  | K89: =IF(I89<>"","",IF(VLOOKUP($CV160,_Afg07,$U$285)=0,"",VLOOKUP($CV160,_Afg07,$U$285))) ->  | L89: =IF($CV160>1,"kr.","") ->  | R89: =IF(AND(CV160>1,VLOOKUP(CV160,_Afg07,3)=""),"Areal med efterafgrøder tælles ikke med i dyrket areal i alt","") -> 
G91: =IF(F91<>"","",IF(VLOOKUP(CV162,_Afg07,$CW$5)=0,"",VLOOKUP(CV162,_Afg07,$CW$5))) ->  | H91: =IF(CV162>1,IF(VLOOKUP(CV162,_Afg07,3)<>"",VLOOKUP(CV162,_Afg07,3),""),"") ->  | K91: =IF(I91<>"","",IF(VLOOKUP($CV162,_Afg07,$U$285)=0,"",VLOOKUP($CV162,_Afg07,$U$285))) ->  | L91: =IF($CV162>1,"kr.","") ->  | R91: =IF(AND(CV162>1,VLOOKUP(CV162,_Afg07,3)=""),"Areal med efterafgrøder tælles ikke med i dyrket areal i alt","") -> 
G93: =IF(F93<>"","",IF(VLOOKUP(CV164,_Afg07,$CW$5)=0,"",VLOOKUP(CV164,_Afg07,$CW$5))) ->  | H93: =IF(CV164>1,IF(VLOOKUP(CV164,_Afg07,3)<>"",VLOOKUP(CV164,_Afg07,3),""),"") ->  | K93: =IF(I93<>"","",IF(VLOOKUP($CV164,_Afg07,$U$285)=0,"",VLOOKUP($CV164,_Afg07,$U$285))) ->  | L93: =IF($CV164>1,"kr.","") ->  | R93: =IF(AND(CV164>1,VLOOKUP(CV164,_Afg07,3)=""),"Areal med efterafgrøder tælles ikke med i dyrket areal i alt","") ->  | AC93: =IF(LEFT(F151,11)="Vinterhvede","Vinterhvede",IF(LEFT(F151,6)="Vårbyg","Vårbyg",IF(LEFT(F151,10)="Vinterraps","Vinterraps",IF(LEFT(F151,9)="Vinterbyg","Vinterbyg",IF(LEFT(F151,9)="Vinterrug","Vinterhvede",IF(LEFT(F151,9)="Hybridrug","Vinterhvede")))))) -> Vinterraps | AE93: =AO93&AN93&" "&AM93 -> 1Slut februar | AM93: =VLOOKUP(MONTH(V136),'Ark7'!$C$1:$D$12,2,FALSE) -> februar | AN93: =IF(DAY(V136)<=15,"Start","Slut") -> Slut | AO93: =YEAR(V136)-2023 -> 1 | BH93: Rækkenummer i fanen "Fordeling af arbejdsopgaver" | BI93: Vinterraps | BJ93: Vinterbyg | BK93: Vinterhvede | BL93: Vårbyg | BM93: 1
AE94: andel af omkostninger der er afholdt på tidspunktet | AG94: Indikator for halmbjergning | BM94: 2
G95: =IF(F95<>"","",IF(VLOOKUP(CV166,_Afg07,$CW$5)=0,"",VLOOKUP(CV166,_Afg07,$CW$5))) ->  | H95: =IF(CV166>1,IF(VLOOKUP(CV166,_Afg07,3)<>"",VLOOKUP(CV166,_Afg07,3),""),"") ->  | K95: =IF(I95<>"","",IF(VLOOKUP($CV166,_Afg07,$U$285)=0,"",VLOOKUP($CV166,_Afg07,$U$285))) ->  | L95: =IF($CV166>1,"kr.","") ->  | R95: =IF(AND(CV166>1,VLOOKUP(CV166,_Afg07,3)=""),"Areal med efterafgrøder tælles ikke med i dyrket areal i alt","") ->  | AD95: Maskinomkostninger (uden presning) | AE95: =HLOOKUP($AE$93,'Fordeling af arbejdsopgaver'!$A$1:$AN$154,AF95,FALSE) -> 0.464902507 | AF95: =HLOOKUP($AC$93,$BI$93:$BL$101,BM95,FALSE) -> 87 | AG95: =IF(CV7=2,1,0) -> 0 | AM95: =IF(L173<0,H173,H173-L173)*V138 ->  | AN95: Tab = Bruttoudbyttevinterafgrøde – (ikke afholdte omkostningervinterafgrøde) - DBIIvårafgrøde | BH95: Maskinomkostninger (uden presning) | BI95: 87 | BJ95: 103 | BK95: 123 | BL95: 143 | BM95: 3
AD96: Maskinomkostninger (med presning) | AE96: =HLOOKUP($AE$93,'Fordeling af arbejdsopgaver'!$A$1:$AN$154,AF96,FALSE) -> 0.464902507 | AF96: 87 | AG96: =IF(CV7=1,1,0) -> 1 | AN96: Tabet er korrigeret for tilfældet, når perioden for oversvømmelse er så kort at afgrøden blot skades, men ikke behøver omsåning. | BH96: Maskinomkostninger (med presning) | BI96: 87 | BJ96: 105 | BK96: 125 | BL96: 145 | BM96: 4
G97: =IF(F97<>"","",IF(VLOOKUP(CV168,_Afg07,$CW$5)=0,"",VLOOKUP(CV168,_Afg07,$CW$5))) ->  | H97: =IF(CV168>1,IF(VLOOKUP(CV168,_Afg07,3)<>"",VLOOKUP(CV168,_Afg07,3),""),"") ->  | K97: =IF(I97<>"","",IF(VLOOKUP($CV168,_Afg07,$U$285)=0,"",VLOOKUP($CV168,_Afg07,$U$285))) ->  | L97: =IF($CV168>1,"kr.","") ->  | R97: =IF(AND(CV168>1,VLOOKUP(CV168,_Afg07,3)=""),"Areal med efterafgrøder tælles ikke med i dyrket areal i alt","") ->  | AD97: Gødning anvendt | AE97: =HLOOKUP($AE$93,'Fordeling af arbejdsopgaver'!$A$1:$AN$154,AF97,FALSE) -> 0.2 | AF97: 91 | BH97: Gødning | BI97: 91 | BJ97: 111 | BK97: 131 | BL97: 151 | BM97: 5
AD98: Planteværn anvendt | AE98: =HLOOKUP($AE$93,'Fordeling af arbejdsopgaver'!$A$1:$AN$154,AF98,FALSE) -> 0.6 | AF98: 92 | BH98: Planteværn | BI98: 92 | BJ98: 112 | BK98: 132 | BL98: 152 | BM98: 6
G99: =IF(F99<>"","",IF(VLOOKUP(CV170,_Afg07,$CW$5)=0,"",VLOOKUP(CV170,_Afg07,$CW$5))) ->  | H99: =IF(CV170>1,IF(VLOOKUP(CV170,_Afg07,3)<>"",VLOOKUP(CV170,_Afg07,3),""),"") ->  | K99: =IF(I99<>"","",IF(VLOOKUP($CV170,_Afg07,$U$285)=0,"",VLOOKUP($CV170,_Afg07,$U$285))) ->  | L99: =IF($CV170>1,"kr.","") ->  | R99: =IF(AND(CV170>1,VLOOKUP(CV170,_Afg07,3)=""),"Areal med efterafgrøder tælles ikke med i dyrket areal i alt","") ->  | AD99: Diverse stykomkostninger anvendt | AE99: =HLOOKUP($AE$93,'Fordeling af arbejdsopgaver'!$A$1:$AN$154,AF99,FALSE) -> 0 | AF99: 93 | AM99: =IF(Alt2nr>1,L576,"") -> 2315.0425 | AN99: Gødningsomkostning valgt afgrøde i Alternativ 2 | BH99: Diverse stykomkostninger | BI99: 93 | BJ99: 113 | BK99: 133 | BL99: 153 | BM99: 7
AD100: Bruttoudbytte | AE100: =HLOOKUP($AE$93,'Fordeling af arbejdsopgaver'!$A$1:$AN$154,AF100,FALSE) -> 0 | AF100: 94 | AM100: =IF(AC93="Vinterraps",D162-H162,0) -> -651.0864 | AN100: Korrektion af gødningsomkostning, hvis der har været dyrket vinterraps. | BH100: Bruttoudbytte | BI100: 94 | BJ100: 114 | BK100: 134 | BL100: 154 | BM100: 8
G101: =IF(F101<>"","",IF(VLOOKUP(CV172,_Afg07,$CW$5)=0,"",VLOOKUP(CV172,_Afg07,$CW$5))) ->  | H101: =IF(CV172>1,IF(VLOOKUP(CV172,_Afg07,3)<>"",VLOOKUP(CV172,_Afg07,3),""),"") ->  | K101: =IF(I101<>"","",IF(VLOOKUP($CV172,_Afg07,$U$285)=0,"",VLOOKUP($CV172,_Afg07,$U$285))) ->  | L101: =IF($CV172>1,"kr.","") ->  | R101: =IF(AND(CV172>1,VLOOKUP(CV172,_Afg07,3)=""),"Areal med efterafgrøder tælles ikke med i dyrket areal i alt","") ->  | AD101: Maskinomkostninger | AE101: =AE95*AG95+AE96*AG96 -> 0.464902507 | AF101: (med valgt indstilling for halmbjergning) | AM101: =SUM(AM99:AM100) -> 1663.9561 | AN101: Gødningsomkostning til vårsæd i alternativ 2, når der har været dyrket vinterraps | BH101: Indikator for hvor stor en andel der er høstet | BI101: 85 | BJ101: =BJ95-3 -> 100 | BK101: 120 | BL101: =BL95-3 -> 140 | BM101: 9
AD102: Indikator for hvor stor en andel der er høstet | AE102: =IF(AE95<1,HLOOKUP($AE$93,'Fordeling af arbejdsopgaver'!$A$1:$AN$154,AF102,FALSE),1) -> 0 | AF102: =HLOOKUP($AC$93,$BI$93:$BL$101,BM101,FALSE) -> 85 | AM102: =IF(AM101<0,0,AM101) -> 1663.9561 | AN102: afrundet værdi, der sørger for at omkostningen ikke bliver negativ
B103: Dyrket areal i alt | D103: =IF(AND(CV160>1,VLOOKUP(CV160,_Afg07,3)<>""),D89,0)+IF(AND(CV162>1,VLOOKUP(CV162,_Afg07,3)<>""),D91,0)+IF(AND(CV164>1,VLOOKUP(CV164,_Afg07,3)<>""),D93,0)+IF(AND(CV166>1,VLOOKUP(CV166,_Afg07,3)<>""),D95,0)+IF(AND(CV168>1,VLOOKUP(CV168,_Afg07,3)<>""),D97,0)+IF(AND(CV170>1,VLOOKUP(CV170,_Afg07,3)<>""),D99,0)+IF(AND(CV172>1,VLOOKUP(CV172,_Afg07,3)<>""),D101,0) -> 0
AS104: Udbytteniveau, hkg pr. ha | AX104: Dækningsbidrag II | BC104: Indekseret udbytte og DBII vårbyg JB5-6 (priser marts 2023) | BH104: Figur med DBII før og efter omsåning
B136: Angiv afgrøder og sædskifter til sammenligning (Sædskifte 1 og 2 findes nederst i rullemenuer) | T136: Dato for oversvømmelse | V136: 2024-02-18 | AR136: Normudbytte | AS136: =V330 -> 46 | AT136: =W330 -> 53 | AU136: =X330 -> 58 | AV136: =Y330 -> 65 | AW136: =Z330 -> 69 | BA136: 4311 | BC136: Udbytte | BD136: DBII
D137: Afgrøde/sædskifte | H137: Alternativ 1 | L137: Alternativ 2 | T137: Varighed af oversvømmelse | V137: 10 | W137: dage | AO137: Såtidspunkt vårbyg | AR137: sådato | AS137: JB 1+3 | AT137: JB2+4 | AU137: JB1-4 vandet | AV137: JB 5-6 | AW137: JB 7-9 | AX137: JB 1+3 | AY137: JB2+4 | AZ137: JB1-4 vandet | BA137: JB 5-6 | BB137: JB 7-9 | BC137: 100 | BD137: 100 | BH137: Etableret vintersæd | BI137: Oversvømmet periode | BJ137: Vårsæd efter omsåning
T138: Andel af beregnet tab fra skadet vintersæd | V138: =IF(AC93="Vinterhvede",VLOOKUP(V137,'Ark5'!D2:G122,2,FALSE),IF(AC93="Vinterraps",VLOOKUP(V137,'Ark5'!D2:G122,3,FALSE),IF(AC93="Vinterbyg",VLOOKUP(V137,'Ark5'!D2:G122,4,FALSE),IF(AC93="Vinterrug",VLOOKUP(V137,'Ark5'!D2:G122,5,FALSE))))) -> 1 | AP138: udbyttetab kg pr. dag | AR138: 2024-03-01 | AS138: =IF($AR138=$AO$140,AS$136,IF($AR138<$AO$140,IF($AR138>=$AO$141,AS$136+(($AO$140-$AR138)*$AP$142/100),AS$136+(($AO$140-$AO$141)*$AP$142/100)+(($AO$141-$AR138)*$AP$141/100)),IF($AR138<$AO$142,AS$136-(($AR138-$AO$140)*$AP$142/100),AS$136-(($AO$142-$AO$140)*$AP$142/100)-(($AR138-$AO$142)*$AP$143/100)))) -> 49.876 | AT138: 56.876 | AU138: 61.876 | AV138: 68.876 | AW138: 72.876 | BA138: 4311 | BC138: =AV138/$AV$138*100 -> 100 | BD138: =BA138/$BA$136*100 -> 100 | BG138: 2024-01-01 | BH138: =IF(BG138<$V$136,$H$173,"") -> 9864.33831 | BI138: =IF(AND(BG138>=$V$136,BG138<$V$136+$V$137),$H$173-(BG138-$V$136+1)*($H$173-$L$173)/$V$137,"") ->  | BJ138: =IF(BG138>=$V$136+$V$137,$L$173,"") ->  | CV138: Afgrøde | CW138: Alternat 1 | CX138: Alternat 2 | CY138: Alternat 3
B139: Afgrøde | T139: Dato for mulig såning af af vårbyg | V139: 2024-04-15 | W139: =IF(V136+V137+7>V139,"Fejl, såning af vårbyg kan ikke foretages før tidligst 7 dage efter oversvømmelsen er ophørt","") ->  | AR139: 2024-03-02 | AS139: 49.84 | AT139: 56.84 | AU139: 61.84 | AV139: 68.84 | AW139: 72.84 | BA139: =$BA$138-($BA$138-$BA$179)/($AO$141-$AR$138)*($AR139-$AR$138) -> 4306.512195 | BB139: =AO141-AR138 -> 41 | BC139: =AV139/$AV$138*100 -> 99.94773216 | BD139: 99.89589875 | BG139: 2024-01-02 | BH139: =IF(BG139<$V$136,$H$173,"") -> 9864.33831 | CU139: Afgrøderækkenummer | CV139: 39 | CW139: =Afgnr -> 39 | CX139: 43 | CY139: 1
D140: =IF(CV139=2,C43,"") ->  | H140: =IF(CW139=2,C43,"") ->  | L140: =IF(CX139=2,C43,"") ->  | AN140: Normudbytte dato | AO140: 2024-04-15 | AR140: 2024-03-03 | AS140: 49.804 | AT140: 56.804 | AU140: 61.804 | AV140: 68.804 | AW140: 72.804 | BA140: =$BA$138-($BA$138-$BA$179)/($AO$141-$AR$138)*($AR140-$AR$138) -> 4302.02439 | BB140: =BA139/BB139 -> 105.0368828 | BC140: 99.89546431 | BD140: 99.7917975 | BG140: 2024-01-03 | BH140: 9864.33831
B141: Udbyttenorm pr. ha | D141: =VLOOKUP(CV139,_Afg07,CW5) -> 44 | E141: =IF($CV$139>1,IF(VLOOKUP($CV$139,_Afg07,3)="","Hkg",VLOOKUP($CV$139,_Afg07,3)),"hkg") -> hkg | H141: =VLOOKUP(CW139,_Afg07,CW5) -> 44 | I141: =IF($CW$139>1,IF(VLOOKUP($CW$139,_Afg07,3)="","Hkg",VLOOKUP($CW$139,_Afg07,3)),"hkg") -> hkg | L141: =VLOOKUP(CX139,_Afg07,CW5) -> 65 | M141: =IF($CX$139>1,IF(VLOOKUP($CX$139,_Afg07,3)="","hkg",VLOOKUP($CX$139,_Afg07,3)),"hkg") -> hkg | AN141: 2024-03-13 | AO141: 2024-04-11 | AP141: 3.6 | AR141: 2024-03-04 | AS141: 49.768 | AT141: 56.768 | AU141: 61.768 | AV141: 68.768 | AW141: 72.768 | BA141: 4297.536585 | BC141: 99.84319647 | BD141: 99.68769625 | BG141: 2024-01-04 | BH141: 9864.33831
B142: Udbytte forventet | C142: 1 | D142: =D141*C142 -> 44 | E142: =IF($CV$139>1,IF(VLOOKUP($CV$139,_Afg07,3)="","Hkg",VLOOKUP($CV$139,_Afg07,3)),"hkg") -> hkg | G142: 1 | H142: =G142*H141 -> 44 | I142: =IF($CW$139>1,IF(VLOOKUP($CW$139,_Afg07,3)="","Hkg",VLOOKUP($CW$139,_Afg07,3)),"hkg") -> hkg | L142: =VLOOKUP(V139,AR137:AW219,JBnr+1,FALSE) -> 65 | M142: =IF($CX$139>1,IF(VLOOKUP($CX$139,_Afg07,3)="","hkg",VLOOKUP($CX$139,_Afg07,3)),"hkg") -> hkg | AN142: =AO141+1 -> 2024-04-12 | AO142: 2024-05-03 | AP142: 60 | AR142: 2024-03-05 | AS142: 49.732 | AT142: 56.732 | AU142: 61.732 | AV142: 68.732 | AW142: 72.732 | BA142: 4293.04878 | BC142: 99.79092863 | BD142: 99.583595 | BG142: 2024-01-05 | BH142: 9864.33831
AN143: =AO142+1 -> 2024-05-04 | AO143: 2024-05-21 | AP143: 109 | AR143: 2024-03-06 | AS143: 49.696 | AT143: 56.696 | AU143: 61.696 | AV143: 68.696 | AW143: 72.696 | BA143: 4288.560976 | BC143: 99.73866078 | BD143: 99.47949375 | BG143: 2024-01-06 | BH143: 9864.33831
B144: Pris, standard pr. hkg | D144: =VLOOKUP(CV139,_Afg07,4) -> 370 | E144: kr. | H144: =VLOOKUP(CW139,_Afg07,4) -> 370 | I144: kr. | L144: =VLOOKUP(CX139,_Afg07,4) -> 165 | M144: kr. | AR144: 2024-03-07 | AS144: 49.66 | AT144: 56.66 | AU144: 61.66 | AV144: 68.66 | AW144: 72.66 | BA144: 4284.073171 | BC144: 99.68639294 | BD144: 99.3753925 | BG144: 2024-01-07 | BH144: 9864.33831
B145: Pris forventet | E145: kr. | I145: kr. | M145: kr. | AR145: 2024-03-08 | AS145: 49.624 | AT145: 56.624 | AU145: 61.624 | AV145: 68.624 | AW145: 72.624 | BA145: 4279.585366 | BC145: 99.63412509 | BD145: 99.27129125 | BG145: 2024-01-08 | BH145: 9864.33831
AR146: 2024-03-09 | AS146: 49.588 | AT146: 56.588 | AU146: 61.588 | AV146: 68.588 | AW146: 72.588 | BA146: 4275.097561 | BC146: 99.58185725 | BD146: 99.16719 | BG146: 2024-01-09 | BH146: 9864.33831
B147: Udskrift (side 1): | L147: =AM95 ->  | M147: <- tab ved oversvømmelse der medfører omsåning, eller blot reduceret udbytte i afgrøde der er skadet, men ikke omsået | AR147: 2024-03-10 | AS147: 49.552 | AT147: 56.552 | AU147: 61.552 | AV147: 68.552 | AW147: 72.552 | BA147: 4270.609756 | BC147: 99.52958941 | BD147: 99.06308875 | BG147: 2024-01-10 | BH147: 9864.33831
AR148: 2024-03-11 | AS148: 49.516 | AT148: 56.516 | AU148: 61.516 | AV148: 68.516 | AW148: 72.516 | BA148: 4266.121951 | BC148: 99.47732156 | BD148: 98.9589875 | BG148: 2024-01-11 | BH148: 9864.33831
B149: =B1 -> Økonomi i afgrøder og sædskifter 2023 | AR149: 2024-03-12 | AS149: 49.48 | AT149: 56.48 | AU149: 61.48 | AV149: 68.48 | AW149: 72.48 | BA149: 4261.634146 | BC149: 99.42505372 | BD149: 98.85488625 | BG149: 2024-01-12 | BH149: 9864.33831
L150: DBII vårsæd | AR150: 2024-03-13 | AS150: 49.444 | AT150: 56.444 | AU150: 61.444 | AV150: 68.444 | AW150: 72.444 | BA150: 4257.146341 | BC150: 99.37278588 | BD150: 98.750785 | BG150: 2024-01-13 | BH150: 9864.33831
F151: =IF(CV139>1,VLOOKUP(CV139,_Afg07,2),"") -> Vinterraps | I151: =IF(CW139>1,VLOOKUP(CW139,_Afg07,2),"") -> Vinterraps | M151: =IF(CX139>1,VLOOKUP(CX139,_Afg07,2),"") -> Vårbyg, foder | AR151: 2024-03-14 | AS151: =IF($AR151=$AO$140,AS$136,IF($AR151<$AO$140,IF($AR151>=$AO$141,AS$136+(($AO$140-$AR151)*$AP$142/100),AS$136+(($AO$140-$AO$141)*$AP$142/100)+(($AO$141-$AR151)*$AP$141/100)),IF($AR151<$AO$142,AS$136-(($AR151-$AO$140)*$AP$142/100),AS$136-(($AO$142-$AO$140)*$AP$142/100)-(($AR151-$AO$142)*$AP$143/100)))) -> 49.408 | AT151: 56.408 | AU151: 61.408 | AV151: 68.408 | AW151: 72.408 | BA151: 4252.658537 | BC151: 99.32051803 | BD151: =BA151/$BA$136*100 -> 98.64668375 | BG151: 2024-01-14 | BH151: 9864.33831 | CN151: Efterafgr. Olieræddike
B152: Udbytte pr. ha | D152: =IF(CV139>1,IF(D142="",D141,D142),"") -> 44 | E152: =IF(AND(D152<>"",D152>0),VLOOKUP(CV139,_Afg07,3),"") -> hkg | H152: =IF(CW139>1,IF(H142="",H141,H142),"") -> 44 | I152: =IF(AND(H152<>"",H152>0),VLOOKUP(CW139,_Afg07,3),"") -> hkg | L152: =IF(CX139>1,IF(L142="",L141,L142),"") -> 65 | M152: =IF(AND(L152<>"",L152>0),VLOOKUP(CX139,_Afg07,3),"") -> hkg | S152: I nedenstående felter kan du overskrive gennemsnitsværdier i økonomiberegning, kr. pr. ha | AR152: 2024-03-15 | AS152: 49.372 | AT152: 56.372 | AU152: 61.372 | AV152: 68.372 | AW152: 72.372 | BA152: 4248.170732 | BC152: 99.26825019 | BD152: =BA152/$BA$136*100 -> 98.5425825 | BG152: 2024-01-15 | BH152: 9864.33831 | CN152: Efterafgr. Rajgræs
B153: Pris pr. hkg | D153: =IF(CV139>1,IF(D145="",D144,D145),"") -> 370 | E153: =IF(D153<>"","kr.","") -> kr. | H153: =IF(CW139>1,IF(H145="",H144,H145),"") -> 370 | I153: =IF(H153<>"","kr.","") -> kr. | L153: =IF(CX139>1,IF(L145="",L144,L145),"") -> 165 | M153: =IF(L153<>"","kr.","") -> kr. | S153: Husk minus foran omkostninger. | AR153: 2024-03-16 | AS153: 49.336 | AT153: 56.336 | AU153: 61.336 | AV153: 68.336 | AW153: 72.336 | BA153: 4243.682927 | BC153: 99.21598235 | BD153: 98.43848125 | BG153: 2024-01-16 | BH153: 9864.33831 | CN153: Efterafgr. Gul sennep | DO153: Plov (Plo) | DQ153: Stubharve (Stu) | DS153: Såbedsharve (Såb) | DU153: Marksprøjte | DW153: Såmaskine (Såm) | DY153: Mejetærsker (Mej) | EA153: Halmpresser (Hal) | EC153: Gylleudbringning | EE153: Gødningsspreder | EG153: Enkornsåmaskine | EI153: Kartoffellægger | EK153: Kartoffeloptager | EM153: Roeoptager
S154: Husk at slette tallene igen før ny beregning. | AR154: 2024-03-17 | AS154: 49.3 | AT154: 56.3 | AU154: 61.3 | AV154: 68.3 | AW154: 72.3 | BA154: 4239.195122 | BC154: 99.1637145 | BD154: 98.33438 | BG154: 2024-01-17 | BH154: 9864.33831
B155: Udbytte, kerne/frø | D155: =IF(CV139>1,D152*D153,"") -> 16280 | E155: =IF(D155<>"","kr.","") -> kr. | H155: =IF(CW139>1,H152*H153,"") -> 16280 | I155: =IF(H155<>"","kr.","") -> kr. | L155: =IF(CX139>1,L152*L153,"") -> 10725 | M155: =IF(L155<>"","kr.","") -> kr. | AR155: 2024-03-18 | AS155: 49.264 | AT155: 56.264 | AU155: 61.264 | AV155: 68.264 | AW155: 72.264 | BA155: 4234.707317 | BC155: 99.11144666 | BD155: 98.23027875 | BG155: 2024-01-18 | BH155: 9864.33831 | DO155: 3 | DQ155: 2 | DS155: 2 | DU155: 1 | DW155: 2 | DY155: 2 | EA155: 2 | EC155: 2 | EE155: 2 | EG155: 1 | EI155: 2 | EK155: 1 | EM155: 1
B156: Udbytte, halm | D156: =IF(CV139>1,IF($CV$7=1,VLOOKUP(CV139,_Afg07,$CW$7,0)*Halmpris,""),"") -> 0 | E156: =IF(D156<>"","kr.","") -> kr. | H156: =IF(CW139>1,IF($CV$7=1,VLOOKUP(CW139,_Afg07,$CW$7,0)*Halmpris,""),"") -> 0 | I156: =IF(H156<>"","kr.","") -> kr. | L156: =IF(CX139>1,IF($CV$7=1,VLOOKUP(CX139,_Afg07,$CW$7,0)*Halmpris,""),"") -> 2275 | M156: =IF(L156<>"","kr.","") -> kr. | T156: Afgrøde/ | V156: Alternativ 1 | X156: Alternativ 2 | AR156: 2024-03-19 | AS156: 49.228 | AT156: 56.228 | AU156: 61.228 | AV156: 68.228 | AW156: 72.228 | BA156: 4230.219512 | BC156: 99.05917881 | BD156: 98.1261775 | BG156: 2024-01-19 | BH156: 9864.33831 | DW156: Timer i alt
B157: Forfrugtsværdi | D157: =IF(CV139>1,IF($CV$13=1,(VLOOKUP(CV139,_Afg07,$CW$13)*ffvpris+VLOOKUP(CV139,_Afg07,20)*Npris),0),"") -> 0 | E157: =IF(D157<>"","kr.","") -> kr. | H157: =IF(CW139>1,IF($CV$13=1,(VLOOKUP(CW139,_Afg07,$CW$13)*ffvpris+VLOOKUP(CW139,_Afg07,20)*Npris),0),"") -> 0 | I157: =IF(H157<>"","kr.","") -> kr. | L157: =IF(CX139>1,IF($CV$13=1,(VLOOKUP(CX139,_Afg07,$CW$13)*ffvpris+VLOOKUP(CX139,_Afg07,20)*Npris),0),"") -> 0 | M157: =IF(L157<>"","kr.","") -> kr. | T157: sædskifte | AR157: 2024-03-20 | AS157: 49.192 | AT157: 56.192 | AU157: 61.192 | AV157: 68.192 | AW157: 72.192 | BA157: 4225.731707 | BC157: 99.00691097 | BD157: 98.02207625 | BG157: 2024-01-20 | BH157: 9864.33831 | CM157: Kagediagram 1 | CS157: Kagediagram Lopslag | CX157: Erstatningskorn,sædskifte | CY157: Udbytte, foderkorn | CZ157: Areal, foderkorn | DC157: Halm fra foderkorn | DE157: Hovedafgrøde_areal | DO157: Pløjning | DQ157: Harvning efter høst | DS157: Såbedsharvning | DU157: Glyphosatsprøjtning | DW157: Pløjning vinter/forå | DX157: Pløjning august | DY157: Pløjning sept | DZ157: Harvning e høst juli | EA157: Harvning e høst august | EB157: Harvning e høst oktober | EC157: Såbedsharvn forår | ED157: Såbedsharvn august | EE157: Såbedsharvn september | EF157: Glyphosat forår | EG157: Glyphosat august | EH157: Glyphosat september | EI157: Såning forår | EJ157: Såning august | EK157: Såning september | EL157: Høst juli | EM157: Høst august | EN157: Høst oktober | EO157: Halm juli | EP157: Halm august | EQ157: Enkornsåning forår | ER157: Kartof lægning forår | ES157: Kartof optag sept | ET157: Roeoptag | EU157: Planteværn | EV157: Gødning | EW157: Gylle
B158: Tilskud | D158: =IF(T158<>"",T158,"") ->  | E158: =IF(D158<>"","kr.","") ->  | H158: =IF(V158<>"",V158,"") ->  | I158: =IF(H158<>"","kr.","") ->  | L158: =IF(X158<>"",X158,"") ->  | M158: =IF(L158<>"","kr.","") ->  | S158: Tilskud | AR158: 2024-03-21 | AS158: 49.156 | AT158: 56.156 | AU158: 61.156 | AV158: 68.156 | AW158: 72.156 | BA158: 4221.243902 | BC158: 98.95464313 | BD158: 97.917975 | BG158: 2024-01-21 | BH158: 9864.33831 | CM158: =IF(CN158=0,"",_xlfn.CONCAT(CN158," ","(",CP158,"ha",")")) ->  | CN158: =IF(CO158="Egen afgrøde",$C$43,CO158) -> 0 | CO158: =IF(CS158=$CN$151,0,IF(CS158=$CN$152,0,IF(CS158=$CN$153,0,CS158))) -> 0 | CP158: =IF(CS158=$CN$151,0,IF(CS158=$CN$152,0,IF(CS158=$CN$153,0,CT158))) -> 0 | CS158: =VLOOKUP(CV159,$R$288:$S$342,2) -> 0 | CT158: =D68 -> 0
B159: Bruttoudbytte i alt | D159: =IF(CV139>1,SUM(D155:D158),"") -> 16280 | E159: =IF(D159<>"","kr.","") -> kr. | H159: =IF(CW139>1,SUM(H155:H158),"") -> 16280 | I159: =IF(H159<>"","kr.","") -> kr. | L159: =IF(CX139>1,SUM(L155:L158),"") -> 13000 | M159: =IF(L159<>"","kr.","") -> kr. | AR159: 2024-03-22 | AS159: 49.12 | AT159: 56.12 | AU159: 61.12 | AV159: 68.12 | AW159: 72.12 | BA159: 4216.756098 | BC159: 98.90237528 | BD159: 97.81387375 | BG159: 2024-01-22 | BH159: 9864.33831 | CM159: =IF(CN159=0,"",_xlfn.CONCAT(CN159," ","(",CP159,"ha",")")) ->  | CN159: 0 | CO159: =IF(CS159=$CN$151,0,IF(CS159=$CN$152,0,IF(CS159=$CN$153,0,CS159))) -> 0 | CP159: =IF(CS159=$CN$151,0,IF(CS159=$CN$152,0,IF(CS159=$CN$153,0,CT159))) -> 0 | CS159: =VLOOKUP(CV161,$R$288:$S$342,2) -> 0 | CT159: =D70 -> 0 | CV159: 1 | CX159: =IF(CV159>1,IF(VLOOKUP(CV159,_Afg07,$BU$285)=2,IF($CV$9=2,-VLOOKUP($R$324,_Afg07,$CW$9)*Erstatpris*D68,0),0),0) -> 0 | CY159: =IF(AND(CV159>1,VLOOKUP(CV159,_Afg07,$BU$285)=1),IF(F68<>"",F68,G68)*D68,0) -> 0 | CZ159: =IF(AND(CV159>1,VLOOKUP(CV159,_Afg07,$BU$285)=1),D68,0) -> 0 | DC159: =IF(AND(CV159>1,VLOOKUP(CV159,_Afg07,$BU$285)=1),VLOOKUP(CV159,_Afg07,Halmnr)*D68,0) -> 0 | DO159: TRUE | DQ159: FALSE | DS159: TRUE | DU159: FALSE | DW159: =IF(VLOOKUP($CV159,_Afg07,$BV$285)=1,IF($DO159,$D68/IF(_Plo2<>"",_Plo2,Plo),0),0) -> 0 | DX159: =IF(VLOOKUP($CV159,_Afg07,$BV$285)=2,IF($DO159,$D68/IF(_Plo2<>"",_Plo2,Plo),0),0) -> 0 | DY159: =IF(VLOOKUP($CV159,_Afg07,$BV$285)=3,IF($DO159,$D68/IF(_Plo2<>"",_Plo2,Plo),0),0) -> 0 | DZ159: =IF(VLOOKUP($CV159,_Afg07,$BZ$285)=1,IF($DQ159,$D68/IF(_Stu2<>"",_Stu2,Stu),0),0) -> 0 | EA159: =IF(VLOOKUP($CV159,_Afg07,$BZ$285)=2,IF($DQ159,$D68/IF(_Stu2<>"",_Stu2,Stu),0),0) -> 0 | EB159: =IF(VLOOKUP($CV159,_Afg07,$BZ$285)=3,IF($DQ159,$D68/IF(_Stu2<>"",_Stu2,Stu),0),0) -> 0 | EC159: =IF(VLOOKUP($CV159,_Afg07,$BW$285)=1,IF($DS159,$D68/IF(Såb2<>"",Såb2,Såb),0),0) -> 0 | ED159: =IF(VLOOKUP($CV159,_Afg07,$BW$285)=2,IF($DS159,$D68/IF(Såb2<>"",Såb2,Såb),0),0) -> 0 | EE159: =IF(VLOOKUP($CV159,_Afg07,$BW$285)=3,IF($DS159,$D68/IF(Såb2<>"",Såb2,Såb),0),0) -> 0 | EF159: =IF(VLOOKUP($CV159,_Afg07,$BX$285)=1,IF($DU159,$D68/IF(_Gly2<>"",_Gly2,Gly),0),0) -> 0 | EG159: =IF(VLOOKUP($CV159,_Afg07,$BX$285)=2,IF($DU159,$D68/IF(_Gly2<>"",_Gly2,Gly),0),0) -> 0 | EH159: =IF(VLOOKUP($CV159,_Afg07,$BX$285)=3,IF($DU159,$D68/IF(_Gly2<>"",_Gly2,Gly),0),0) -> 0 | EI159: =IF(VLOOKUP($CV159,_Afg07,$BY$285)=1,$D68/IF(Såm2<>"",Såm2,Såm),0) -> 0 | EJ159: =IF(VLOOKUP($CV159,_Afg07,$BY$285)=2,$D68/IF(Såm2<>"",Såm2,Såm),0) -> 0 | EK159: =IF(VLOOKUP($CV159,_Afg07,$BY$285)=3,$D68/IF(Såm2<>"",Såm2,Såm),0) -> 0 | EL159: =IF(VLOOKUP($CV159,_Afg07,$CA$285)=1,$D68/IF(_Mej2<>"",_Mej2,Mej)*VLOOKUP($CV159,_Afg07,$CC$285),0) -> 0 | EM159: =IF(VLOOKUP($CV159,_Afg07,$CA$285)=2,$D68/IF(_Mej2<>"",_Mej2,Mej)*VLOOKUP($CV159,_Afg07,$CC$285),0) -> 0 | EN159: =IF(VLOOKUP($CV159,_Afg07,$CA$285)=3,$D68/IF(_Mej2<>"",_Mej2,Mej)*VLOOKUP($CV159,_Afg07,$CC$285),0) -> 0 | EO159: =IF(HalmJa=1,IF(VLOOKUP($CV159,_Afg07,$CB$285)=1,$D68/IF(_Hal3<>"",_Hal3,Hal)+$D68/_Hal2,0),0) -> 0 | EP159: =IF(HalmJa=1,IF(VLOOKUP($CV159,_Afg07,$CB$285)=2,$D68/IF(_Hal3<>"",_Hal3,Hal)+$D68/_Hal2,0),0) -> 0 | EQ159: =IF(VLOOKUP($CV159,_Afg07,$CD$285)=1,$D68/IF(_Enk2<>"",_Enk2,Enk),0) -> 0 | ER159: =IF(VLOOKUP($CV159,_Afg07,$CE$285)=1,$D68/IF(_Kar2<>"",_Kar2,Kar),0) -> 0 | ES159: =IF(VLOOKUP($CV159,_Afg07,$CF$285)=1,$D68/IF(Kopt2<>"",Kopt2,Kopt),0) -> 0 | ET159: =IF(VLOOKUP($CV159,_Afg07,$CG$285)=1,$D68/IF(Ropt2<>"",Ropt2,Ropt),0) -> 0 | EU159: =VLOOKUP($CV159,_Afg07,$CH$285)*$D68/IF(_Gly2<>"",_Gly2,Gly) -> 0 | EV159: =VLOOKUP($CV159,_Afg07,$CI$285)*$D68/IF(Gød2<>"",Gød2,Gød) -> 0
H160: Ikke afholdte omkostninger | AR160: 2024-03-23 | AS160: 49.084 | AT160: 56.084 | AU160: 61.084 | AV160: 68.084 | AW160: 72.084 | BA160: 4212.268293 | BC160: 98.85010744 | BD160: 97.7097725 | BG160: 2024-01-23 | BH160: 9864.33831 | CN160: 0 | CO160: 0 | CP160: 0 | CS160: =VLOOKUP(CV163,$R$288:$S$342,2) -> 0 | CT160: =D72 -> 0 | CV160: 1 | CX160: =IF(CV160>1,IF(VLOOKUP(CV160,_Afg07,$BU$285)=2,IF($CV$9=2,-VLOOKUP($R$324,_Afg07,$CW$9)*Erstatpris*D89,0),0),0) -> 0 | CY160: =IF(AND(CV160>1,VLOOKUP(CV160,_Afg07,$BU$285)=1),IF(F89<>"",F89,G89)*D89,0) -> 0 | CZ160: =IF(AND(CV160>1,VLOOKUP(CV160,_Afg07,$BU$285)=1),D89,0) -> 0 | DC160: =IF(AND(CV160>1,VLOOKUP(CV160,_Afg07,$BU$285)=1),VLOOKUP(CV160,_Afg07,Halmnr)*D89,0) -> 0 | DO160: TRUE | DQ160: FALSE | DS160: TRUE | DU160: FALSE | DW160: =IF(VLOOKUP($CV160,_Afg07,$BV$285)=1,IF($DO160,$D89/IF(_Plo2<>"",_Plo2,Plo),0),0) -> 0 | DX160: =IF(VLOOKUP($CV160,_Afg07,$BV$285)=2,IF($DO160,$D89/IF(_Plo2<>"",_Plo2,Plo),0),0) -> 0 | DY160: =IF(VLOOKUP($CV160,_Afg07,$BV$285)=3,IF($DO160,$D89/IF(_Plo2<>"",_Plo2,Plo),0),0) -> 0 | DZ160: =IF(VLOOKUP($CV160,_Afg07,$BZ$285)=1,IF($DQ160,$D89/IF(_Stu2<>"",_Stu2,Stu),0),0) -> 0 | EA160: =IF(VLOOKUP($CV160,_Afg07,$BZ$285)=2,IF($DQ160,$D89/IF(_Stu2<>"",_Stu2,Stu),0),0) -> 0 | EB160: =IF(VLOOKUP($CV160,_Afg07,$BZ$285)=3,IF($DQ160,$D89/IF(_Stu2<>"",_Stu2,Stu),0),0) -> 0 | EC160: =IF(VLOOKUP($CV160,_Afg07,$BW$285)=1,IF($DS160,$D89/IF(Såb2<>"",Såb2,Såb),0),0) -> 0 | ED160: =IF(VLOOKUP($CV160,_Afg07,$BW$285)=2,IF($DS160,$D89/IF(Såb2<>"",Såb2,Såb),0),0) -> 0 | EE160: =IF(VLOOKUP($CV160,_Afg07,$BW$285)=3,IF($DS160,$D89/IF(Såb2<>"",Såb2,Såb),0),0) -> 0 | EF160: =IF(VLOOKUP($CV160,_Afg07,$BX$285)=1,IF($DU160,$D89/IF(_Gly2<>"",_Gly2,Gly),0),0) -> 0 | EG160: =IF(VLOOKUP($CV160,_Afg07,$BX$285)=2,IF($DU160,$D89/IF(_Gly2<>"",_Gly2,Gly),0),0) -> 0 | EH160: =IF(VLOOKUP($CV160,_Afg07,$BX$285)=3,IF($DU160,$D89/IF(_Gly2<>"",_Gly2,Gly),0),0) -> 0 | EI160: =IF(VLOOKUP($CV160,_Afg07,$BY$285)=1,$D89/IF(Såm2<>"",Såm2,Såm),0) -> 0 | EJ160: =IF(VLOOKUP($CV160,_Afg07,$BY$285)=2,$D89/IF(Såm2<>"",Såm2,Såm),0) -> 0 | EK160: =IF(VLOOKUP($CV160,_Afg07,$BY$285)=3,$D89/IF(Såm2<>"",Såm2,Såm),0) -> 0 | EL160: =IF(VLOOKUP($CV160,_Afg07,$CA$285)=1,$D89/IF(_Mej2<>"",_Mej2,Mej)*VLOOKUP($CV160,_Afg07,$CC$285),0) -> 0 | EM160: =IF(VLOOKUP($CV160,_Afg07,$CA$285)=2,$D89/IF(_Mej2<>"",_Mej2,Mej)*VLOOKUP($CV160,_Afg07,$CC$285),0) -> 0 | EN160: =IF(VLOOKUP($CV160,_Afg07,$CA$285)=3,$D89/IF(_Mej2<>"",_Mej2,Mej)*VLOOKUP($CV160,_Afg07,$CC$285),0) -> 0 | EO160: =IF(HalmJa=1,IF(VLOOKUP($CV160,_Afg07,$CB$285)=1,$D89/IF(_Hal3<>"",_Hal3,Hal)+$D89/_Hal2,0),0) -> 0 | EP160: =IF(HalmJa=1,IF(VLOOKUP($CV160,_Afg07,$CB$285)=2,$D89/IF(_Hal3<>"",_Hal3,Hal)+$D89/_Hal2,0),0) -> 0 | EQ160: =IF(VLOOKUP($CV160,_Afg07,$CD$285)=1,$D89/IF(_Enk2<>"",_Enk2,Enk),0) -> 0 | ER160: =IF(VLOOKUP($CV160,_Afg07,$CE$285)=1,$D89/IF(_Kar2<>"",_Kar2,Kar),0) -> 0 | ES160: =IF(VLOOKUP($CV160,_Afg07,$CF$285)=1,$D89/IF(Kopt2<>"",Kopt2,Kopt),0) -> 0 | ET160: =IF(VLOOKUP($CV160,_Afg07,$CG$285)=1,$D89/IF(Ropt2<>"",Ropt2,Ropt),0) -> 0 | EU160: =VLOOKUP($CV160,_Afg07,$CH$285)*$D89/IF(_Gly2<>"",_Gly2,Gly) -> 0 | EV160: =VLOOKUP($CV160,_Afg07,$CI$285)*$D89/IF(Gød2<>"",Gød2,Gød) -> 0
B161: Udsæd | D161: =IF(CV139>1,IF(T161<>"",T161,-VLOOKUP(CV139,_Afg07,AL285)),"") -> -550 | E161: =IF(D161<>"","kr.","") -> kr. | H161: =IF(CW139>1,IF(V161<>"",V161,-VLOOKUP(CW139,_Afg07,AL285)),"") -> 0 | I161: =IF(H161<>"","kr.","") -> kr. | L161: =IF(CX139>1,IF(X161<>"",X161,-VLOOKUP(CX139,_Afg07,AL285)),"") -> -560 | M161: =IF(L161<>"","kr.","") -> kr. | S161: Udsæd | V161: 0 | AR161: 2024-03-24 | AS161: =IF($AR161=$AO$140,AS$136,IF($AR161<$AO$140,IF($AR161>=$AO$141,AS$136+(($AO$140-$AR161)*$AP$142/100),AS$136+(($AO$140-$AO$141)*$AP$142/100)+(($AO$141-$AR161)*$AP$141/100)),IF($AR161<$AO$142,AS$136-(($AR161-$AO$140)*$AP$142/100),AS$136-(($AO$142-$AO$140)*$AP$142/100)-(($AR161-$AO$142)*$AP$143/100)))) -> 49.048 | AT161: 56.048 | AU161: 61.048 | AV161: 68.048 | AW161: 72.048 | BA161: 4207.780488 | BC161: 98.7978396 | BD161: 97.60567126 | BG161: 2024-01-24 | BH161: 9864.33831 | CN161: 0 | CO161: 0 | CP161: 0 | CS161: =VLOOKUP(CV165,$R$288:$S$342,2) -> 0 | CT161: =D74 -> 0 | CV161: 1 | CX161: =IF(CV161>1,IF(VLOOKUP(CV161,_Afg07,$BU$285)=2,IF($CV$9=2,-VLOOKUP($R$324,_Afg07,$CW$9)*Erstatpris*D70,0),0),0) -> 0 | CY161: =IF(AND(CV161>1,VLOOKUP(CV161,_Afg07,$BU$285)=1),IF(F70<>"",F70,G70)*D70,0) -> 0 | CZ161: =IF(AND(CV161>1,VLOOKUP(CV161,_Afg07,$BU$285)=1),D70,0) -> 0 | DC161: =IF(AND(CV161>1,VLOOKUP(CV161,_Afg07,$BU$285)=1),VLOOKUP(CV161,_Afg07,Halmnr)*D70,0) -> 0 | DO161: TRUE | DQ161: FALSE | DS161: TRUE | DU161: FALSE | DW161: =IF(VLOOKUP($CV161,_Afg07,$BV$285)=1,IF($DO161,$D70/IF(_Plo2<>"",_Plo2,Plo),0),0) -> 0 | DX161: =IF(VLOOKUP($CV161,_Afg07,$BV$285)=2,IF($DO161,$D70/IF(_Plo2<>"",_Plo2,Plo),0),0) -> 0 | DY161: =IF(VLOOKUP($CV161,_Afg07,$BV$285)=3,IF($DO161,$D70/IF(_Plo2<>"",_Plo2,Plo),0),0) -> 0 | DZ161: =IF(VLOOKUP($CV161,_Afg07,$BZ$285)=1,IF($DQ161,$D70/IF(_Stu2<>"",_Stu2,Stu),0),0) -> 0 | EA161: =IF(VLOOKUP($CV161,_Afg07,$BZ$285)=2,IF($DQ161,$D70/IF(_Stu2<>"",_Stu2,Stu),0),0) -> 0 | EB161: =IF(VLOOKUP($CV161,_Afg07,$BZ$285)=3,IF($DQ161,$D70/IF(_Stu2<>"",_Stu2,Stu),0),0) -> 0 | EC161: =IF(VLOOKUP($CV161,_Afg07,$BW$285)=1,IF($DS161,$D70/IF(Såb2<>"",Såb2,Såb),0),0) -> 0 | ED161: =IF(VLOOKUP($CV161,_Afg07,$BW$285)=2,IF($DS161,$D70/IF(Såb2<>"",Såb2,Såb),0),0) -> 0 | EE161: =IF(VLOOKUP($CV161,_Afg07,$BW$285)=3,IF($DS161,$D70/IF(Såb2<>"",Såb2,Såb),0),0) -> 0 | EF161: =IF(VLOOKUP($CV161,_Afg07,$BX$285)=1,IF($DU161,$D70/IF(_Gly2<>"",_Gly2,Gly),0),0) -> 0 | EG161: =IF(VLOOKUP($CV161,_Afg07,$BX$285)=2,IF($DU161,$D70/IF(_Gly2<>"",_Gly2,Gly),0),0) -> 0 | EH161: =IF(VLOOKUP($CV161,_Afg07,$BX$285)=3,IF($DU161,$D70/IF(_Gly2<>"",_Gly2,Gly),0),0) -> 0 | EI161: =IF(VLOOKUP($CV161,_Afg07,$BY$285)=1,$D70/IF(Såm2<>"",Såm2,Såm),0) -> 0 | EJ161: =IF(VLOOKUP($CV161,_Afg07,$BY$285)=2,$D70/IF(Såm2<>"",Såm2,Såm),0) -> 0 | EK161: =IF(VLOOKUP($CV161,_Afg07,$BY$285)=3,$D70/IF(Såm2<>"",Såm2,Såm),0) -> 0 | EL161: =IF(VLOOKUP($CV161,_Afg07,$CA$285)=1,$D70/IF(_Mej2<>"",_Mej2,Mej)*VLOOKUP($CV161,_Afg07,$CC$285),0) -> 0 | EM161: =IF(VLOOKUP($CV161,_Afg07,$CA$285)=2,$D70/IF(_Mej2<>"",_Mej2,Mej)*VLOOKUP($CV161,_Afg07,$CC$285),0) -> 0 | EN161: =IF(VLOOKUP($CV161,_Afg07,$CA$285)=3,$D70/IF(_Mej2<>"",_Mej2,Mej)*VLOOKUP($CV161,_Afg07,$CC$285),0) -> 0 | EO161: =IF(HalmJa=1,IF(VLOOKUP($CV161,_Afg07,$CB$285)=1,$D70/IF(_Hal3<>"",_Hal3,Hal)+$D70/_Hal2,0),0) -> 0 | EP161: =IF(HalmJa=1,IF(VLOOKUP($CV161,_Afg07,$CB$285)=2,$D70/IF(_Hal3<>"",_Hal3,Hal)+$D70/_Hal2,0),0) -> 0 | EQ161: =IF(VLOOKUP($CV161,_Afg07,$CD$285)=1,$D70/IF(_Enk2<>"",_Enk2,Enk),0) -> 0 | ER161: =IF(VLOOKUP($CV161,_Afg07,$CE$285)=1,$D70/IF(_Kar2<>"",_Kar2,Kar),0) -> 0 | ES161: =IF(VLOOKUP($CV161,_Afg07,$CF$285)=1,$D70/IF(Kopt2<>"",Kopt2,Kopt),0) -> 0 | ET161: =IF(VLOOKUP($CV161,_Afg07,$CG$285)=1,$D70/IF(Ropt2<>"",Ropt2,Ropt),0) -> 0 | EU161: =VLOOKUP($CV161,_Afg07,$CH$285)*$D70/IF(_Gly2<>"",_Gly2,Gly) -> 0 | EV161: =VLOOKUP($CV161,_Afg07,$CI$285)*$D70/IF(Gød2<>"",Gød2,Gød) -> 0
B162: Gødning | D162: =IF(Afgnr>1,IF(T162<>"",T162,-D576),"") -> -3255.432 | E162: =IF(D162<>"","kr.","") -> kr. | H162: =IF(Alt1nr>1,IF(V162<>"",V162,-H576),"") -> -2604.3456 | I162: =IF(H162<>"","kr.","") -> kr. | L162: =IF(Alt2nr>1,IF(X162<>"",X162,-L576),"") -> -1663.9561 | M162: =IF(L162<>"","kr.","") -> kr. | S162: Gødning | V162: =+D162*(1-AE97) -> -2604.3456 | X162: =IF(AC93="Vinterraps",-AM102,-AM99) -> -1663.9561 | AR162: 2024-03-25 | AS162: 49.012 | AT162: 56.012 | AU162: 61.012 | AV162: 68.012 | AW162: 72.012 | BA162: 4203.292683 | BC162: 98.74557175 | BD162: 97.50157001 | BG162: 2024-01-25 | BH162: 9864.33831 | CN162: 0 | CO162: 0 | CP162: 0 | CS162: =VLOOKUP(CV167,$R$288:$S$342,2) -> 0 | CT162: =D76 -> 0 | CV162: 1 | CX162: =IF(CV162>1,IF(VLOOKUP(CV162,_Afg07,$BU$285)=2,IF($CV$9=2,-VLOOKUP($R$324,_Afg07,$CW$9)*Erstatpris*D91,0),0),0) -> 0 | CY162: =IF(AND(CV162>1,VLOOKUP(CV162,_Afg07,$BU$285)=1),IF(F91<>"",F91,G91)*D91,0) -> 0 | CZ162: =IF(AND(CV162>1,VLOOKUP(CV162,_Afg07,$BU$285)=1),D91,0) -> 0 | DC162: =IF(AND(CV162>1,VLOOKUP(CV162,_Afg07,$BU$285)=1),VLOOKUP(CV162,_Afg07,Halmnr)*D91,0) -> 0 | DO162: TRUE | DQ162: FALSE | DS162: TRUE | DU162: FALSE | DW162: =IF(VLOOKUP($CV162,_Afg07,$BV$285)=1,IF($DO162,$D91/IF(_Plo2<>"",_Plo2,Plo),0),0) -> 0 | DX162: =IF(VLOOKUP($CV162,_Afg07,$BV$285)=2,IF($DO162,$D91/IF(_Plo2<>"",_Plo2,Plo),0),0) -> 0 | DY162: =IF(VLOOKUP($CV162,_Afg07,$BV$285)=3,IF($DO162,$D91/IF(_Plo2<>"",_Plo2,Plo),0),0) -> 0 | DZ162: =IF(VLOOKUP($CV162,_Afg07,$BZ$285)=1,IF($DQ162,$D91/IF(_Stu2<>"",_Stu2,Stu),0),0) -> 0 | EA162: =IF(VLOOKUP($CV162,_Afg07,$BZ$285)=2,IF($DQ162,$D91/IF(_Stu2<>"",_Stu2,Stu),0),0) -> 0 | EB162: =IF(VLOOKUP($CV162,_Afg07,$BZ$285)=3,IF($DQ162,$D91/IF(_Stu2<>"",_Stu2,Stu),0),0) -> 0 | EC162: =IF(VLOOKUP($CV162,_Afg07,$BW$285)=1,IF($DS162,$D91/IF(Såb2<>"",Såb2,Såb),0),0) -> 0 | ED162: =IF(VLOOKUP($CV162,_Afg07,$BW$285)=2,IF($DS162,$D91/IF(Såb2<>"",Såb2,Såb),0),0) -> 0 | EE162: =IF(VLOOKUP($CV162,_Afg07,$BW$285)=3,IF($DS162,$D91/IF(Såb2<>"",Såb2,Såb),0),0) -> 0 | EF162: =IF(VLOOKUP($CV162,_Afg07,$BX$285)=1,IF($DU162,$D91/IF(_Gly2<>"",_Gly2,Gly),0),0) -> 0 | EG162: =IF(VLOOKUP($CV162,_Afg07,$BX$285)=2,IF($DU162,$D91/IF(_Gly2<>"",_Gly2,Gly),0),0) -> 0 | EH162: =IF(VLOOKUP($CV162,_Afg07,$BX$285)=3,IF($DU162,$D91/IF(_Gly2<>"",_Gly2,Gly),0),0) -> 0 | EI162: =IF(VLOOKUP($CV162,_Afg07,$BY$285)=1,$D91/IF(Såm2<>"",Såm2,Såm),0) -> 0 | EJ162: =IF(VLOOKUP($CV162,_Afg07,$BY$285)=2,$D91/IF(Såm2<>"",Såm2,Såm),0) -> 0 | EK162: =IF(VLOOKUP($CV162,_Afg07,$BY$285)=3,$D91/IF(Såm2<>"",Såm2,Såm),0) -> 0 | EL162: =IF(VLOOKUP($CV162,_Afg07,$CA$285)=1,$D91/IF(_Mej2<>"",_Mej2,Mej)*VLOOKUP($CV162,_Afg07,$CC$285),0) -> 0 | EM162: =IF(VLOOKUP($CV162,_Afg07,$CA$285)=2,$D91/IF(_Mej2<>"",_Mej2,Mej)*VLOOKUP($CV162,_Afg07,$CC$285),0) -> 0 | EN162: =IF(VLOOKUP($CV162,_Afg07,$CA$285)=3,$D91/IF(_Mej2<>"",_Mej2,Mej)*VLOOKUP($CV162,_Afg07,$CC$285),0) -> 0 | EO162: =IF(HalmJa=1,IF(VLOOKUP($CV162,_Afg07,$CB$285)=1,$D91/IF(_Hal3<>"",_Hal3,Hal)+$D91/_Hal2,0),0) -> 0 | EP162: =IF(HalmJa=1,IF(VLOOKUP($CV162,_Afg07,$CB$285)=2,$D91/IF(_Hal3<>"",_Hal3,Hal)+$D91/_Hal2,0),0) -> 0 | EQ162: =IF(VLOOKUP($CV162,_Afg07,$CD$285)=1,$D91/IF(_Enk2<>"",_Enk2,Enk),0) -> 0 | ER162: =IF(VLOOKUP($CV162,_Afg07,$CE$285)=1,$D91/IF(_Kar2<>"",_Kar2,Kar),0) -> 0 | ES162: =IF(VLOOKUP($CV162,_Afg07,$CF$285)=1,$D91/IF(Kopt2<>"",Kopt2,Kopt),0) -> 0 | ET162: =IF(VLOOKUP($CV162,_Afg07,$CG$285)=1,$D91/IF(Ropt2<>"",Ropt2,Ropt),0) -> 0 | EU162: =VLOOKUP($CV162,_Afg07,$CH$285)*$D91/IF(_Gly2<>"",_Gly2,Gly) -> 0 | EV162: =VLOOKUP($CV162,_Afg07,$CI$285)*$D91/IF(Gød2<>"",Gød2,Gød) -> 0
B163: Planteværn | D163: =IF(CV139>1,IF(T163<>"",T163,-VLOOKUP(CV139,_Afg07,AM285)),"") -> -1185 | E163: =IF(D163<>"","kr.","") -> kr. | H163: =IF(CW139>1,IF(V163<>"",V163,-VLOOKUP(CW139,_Afg07,AM285)),"") -> -474 | I163: =IF(H163<>"","kr.","") -> kr. | L163: =IF(CX139>1,IF(X163<>"",X163,-VLOOKUP(CX139,_Afg07,AM285)),"") -> -340 | M163: =IF(L163<>"","kr.","") -> kr. | S163: Planteværn | V163: =+D163*(1-AE98) -> -474 | AR163: 2024-03-26 | AS163: 48.976 | AT163: 55.976 | AU163: 60.976 | AV163: 67.976 | AW163: 71.976 | BA163: 4198.804878 | BC163: 98.69330391 | BD163: 97.39746876 | BG163: 2024-01-26 | BH163: 9864.33831 | CN163: 0 | CO163: 0 | CP163: 0 | CS163: =VLOOKUP(CV169,$R$288:$S$342,2) -> 0 | CT163: =D78 -> 0 | CV163: 1 | CX163: =IF(CV163>1,IF(VLOOKUP(CV163,_Afg07,$BU$285)=2,IF($CV$9=2,-VLOOKUP($R$324,_Afg07,$CW$9)*Erstatpris*D72,0),0),0) -> 0 | CY163: =IF(AND(CV163>1,VLOOKUP(CV163,_Afg07,$BU$285)=1),IF(F72<>"",F72,G72)*D72,0) -> 0 | CZ163: =IF(AND(CV163>1,VLOOKUP(CV163,_Afg07,$BU$285)=1),D72,0) -> 0 | DC163: =IF(AND(CV163>1,VLOOKUP(CV163,_Afg07,$BU$285)=1),VLOOKUP(CV163,_Afg07,Halmnr)*D72,0) -> 0 | DO163: TRUE | DQ163: FALSE | DS163: TRUE | DU163: FALSE | DW163: =IF(VLOOKUP($CV163,_Afg07,$BV$285)=1,IF($DO163,$D72/IF(_Plo2<>"",_Plo2,Plo),0),0) -> 0 | DX163: =IF(VLOOKUP($CV163,_Afg07,$BV$285)=2,IF($DO163,$D72/IF(_Plo2<>"",_Plo2,Plo),0),0) -> 0 | DY163: =IF(VLOOKUP($CV163,_Afg07,$BV$285)=3,IF($DO163,$D72/IF(_Plo2<>"",_Plo2,Plo),0),0) -> 0 | DZ163: =IF(VLOOKUP($CV163,_Afg07,$BZ$285)=1,IF($DQ163,$D72/IF(_Stu2<>"",_Stu2,Stu),0),0) -> 0 | EA163: =IF(VLOOKUP($CV163,_Afg07,$BZ$285)=2,IF($DQ163,$D72/IF(_Stu2<>"",_Stu2,Stu),0),0) -> 0 | EB163: =IF(VLOOKUP($CV163,_Afg07,$BZ$285)=3,IF($DQ163,$D72/IF(_Stu2<>"",_Stu2,Stu),0),0) -> 0 | EC163: =IF(VLOOKUP($CV163,_Afg07,$BW$285)=1,IF($DS163,$D72/IF(Såb2<>"",Såb2,Såb),0),0) -> 0 | ED163: =IF(VLOOKUP($CV163,_Afg07,$BW$285)=2,IF($DS163,$D72/IF(Såb2<>"",Såb2,Såb),0),0) -> 0 | EE163: =IF(VLOOKUP($CV163,_Afg07,$BW$285)=3,IF($DS163,$D72/IF(Såb2<>"",Såb2,Såb),0),0) -> 0 | EF163: =IF(VLOOKUP($CV163,_Afg07,$BX$285)=1,IF($DU163,$D72/IF(_Gly2<>"",_Gly2,Gly),0),0) -> 0 | EG163: =IF(VLOOKUP($CV163,_Afg07,$BX$285)=2,IF($DU163,$D72/IF(_Gly2<>"",_Gly2,Gly),0),0) -> 0 | EH163: =IF(VLOOKUP($CV163,_Afg07,$BX$285)=3,IF($DU163,$D72/IF(_Gly2<>"",_Gly2,Gly),0),0) -> 0 | EI163: =IF(VLOOKUP($CV163,_Afg07,$BY$285)=1,$D72/IF(Såm2<>"",Såm2,Såm),0) -> 0 | EJ163: =IF(VLOOKUP($CV163,_Afg07,$BY$285)=2,$D72/IF(Såm2<>"",Såm2,Såm),0) -> 0 | EK163: =IF(VLOOKUP($CV163,_Afg07,$BY$285)=3,$D72/IF(Såm2<>"",Såm2,Såm),0) -> 0 | EL163: =IF(VLOOKUP($CV163,_Afg07,$CA$285)=1,$D72/IF(_Mej2<>"",_Mej2,Mej)*VLOOKUP($CV163,_Afg07,$CC$285),0) -> 0 | EM163: =IF(VLOOKUP($CV163,_Afg07,$CA$285)=2,$D72/IF(_Mej2<>"",_Mej2,Mej)*VLOOKUP($CV163,_Afg07,$CC$285),0) -> 0 | EN163: =IF(VLOOKUP($CV163,_Afg07,$CA$285)=3,$D72/IF(_Mej2<>"",_Mej2,Mej)*VLOOKUP($CV163,_Afg07,$CC$285),0) -> 0 | EO163: =IF(HalmJa=1,IF(VLOOKUP($CV163,_Afg07,$CB$285)=1,$D72/IF(_Hal3<>"",_Hal3,Hal)+$D72/_Hal2,0),0) -> 0 | EP163: =IF(HalmJa=1,IF(VLOOKUP($CV163,_Afg07,$CB$285)=2,$D72/IF(_Hal3<>"",_Hal3,Hal)+$D72/_Hal2,0),0) -> 0 | EQ163: =IF(VLOOKUP($CV163,_Afg07,$CD$285)=1,$D72/IF(_Enk2<>"",_Enk2,Enk),0) -> 0 | ER163: =IF(VLOOKUP($CV163,_Afg07,$CE$285)=1,$D72/IF(_Kar2<>"",_Kar2,Kar),0) -> 0 | ES163: =IF(VLOOKUP($CV163,_Afg07,$CF$285)=1,$D72/IF(Kopt2<>"",Kopt2,Kopt),0) -> 0 | ET163: =IF(VLOOKUP($CV163,_Afg07,$CG$285)=1,$D72/IF(Ropt2<>"",Ropt2,Ropt),0) -> 0 | EU163: =VLOOKUP($CV163,_Afg07,$CH$285)*$D72/IF(_Gly2<>"",_Gly2,Gly) -> 0 | EV163: =VLOOKUP($CV163,_Afg07,$CI$285)*$D72/IF(Gød2<>"",Gød2,Gød) -> 0
B164: Diverse | D164: =IF(Afgnr>1,IF(T164<>"",T164,-VLOOKUP(Afgnr,_Afg07,$AN$285)-D$152*VLOOKUP(Afgnr,_Afg07,$BB$285)),"") -> -240.2380952 | E164: =IF(D164<>"","kr.","") -> kr. | H164: =IF(CW139>1,IF(V164<>"",V164,-VLOOKUP(CW139,_Afg07,AN285)-H152*VLOOKUP(CW139,_Afg07,BB285)),"") -> -240.2380952 | I164: =IF(H164<>"","kr.","") -> kr. | L164: =IF(CX139>1,IF(X164<>"",X164,-VLOOKUP(CX139,_Afg07,AN285)-L152*VLOOKUP(CX139,_Afg07,BB285)),"") -> 0 | M164: =IF(L164<>"","kr.","") -> kr. | S164: Diverse | V164: =+D164*(1-AE99) -> -240.2380952 | AR164: 2024-03-27 | AS164: 48.94 | AT164: 55.94 | AU164: 60.94 | AV164: 67.94 | AW164: 71.94 | BA164: 4194.317073 | BC164: 98.64103606 | BD164: 97.29336751 | BG164: 2024-01-27 | BH164: 9864.33831 | CN164: 0 | CO164: 0 | CP164: 0 | CS164: =VLOOKUP(CV171,$R$288:$S$342,2) -> 0 | CT164: =D80 -> 0 | CV164: 1 | CX164: =IF(CV164>1,IF(VLOOKUP(CV164,_Afg07,$BU$285)=2,IF($CV$9=2,-VLOOKUP($R$324,_Afg07,$CW$9)*Erstatpris*D93,0),0),0) -> 0 | CY164: =IF(AND(CV164>1,VLOOKUP(CV164,_Afg07,$BU$285)=1),IF(F93<>"",F93,G93)*D93,0) -> 0 | CZ164: =IF(AND(CV164>1,VLOOKUP(CV164,_Afg07,$BU$285)=1),D93,0) -> 0 | DC164: =IF(AND(CV164>1,VLOOKUP(CV164,_Afg07,$BU$285)=1),VLOOKUP(CV164,_Afg07,Halmnr)*D93,0) -> 0 | DO164: TRUE | DQ164: FALSE | DS164: TRUE | DU164: FALSE | DW164: =IF(VLOOKUP($CV164,_Afg07,$BV$285)=1,IF($DO164,$D93/IF(_Plo2<>"",_Plo2,Plo),0),0) -> 0 | DX164: =IF(VLOOKUP($CV164,_Afg07,$BV$285)=2,IF($DO164,$D93/IF(_Plo2<>"",_Plo2,Plo),0),0) -> 0 | DY164: =IF(VLOOKUP($CV164,_Afg07,$BV$285)=3,IF($DO164,$D93/IF(_Plo2<>"",_Plo2,Plo),0),0) -> 0 | DZ164: =IF(VLOOKUP($CV164,_Afg07,$BZ$285)=1,IF($DQ164,$D93/IF(_Stu2<>"",_Stu2,Stu),0),0) -> 0 | EA164: =IF(VLOOKUP($CV164,_Afg07,$BZ$285)=2,IF($DQ164,$D93/IF(_Stu2<>"",_Stu2,Stu),0),0) -> 0 | EB164: =IF(VLOOKUP($CV164,_Afg07,$BZ$285)=3,IF($DQ164,$D93/IF(_Stu2<>"",_Stu2,Stu),0),0) -> 0 | EC164: =IF(VLOOKUP($CV164,_Afg07,$BW$285)=1,IF($DS164,$D93/IF(Såb2<>"",Såb2,Såb),0),0) -> 0 | ED164: =IF(VLOOKUP($CV164,_Afg07,$BW$285)=2,IF($DS164,$D93/IF(Såb2<>"",Såb2,Såb),0),0) -> 0 | EE164: =IF(VLOOKUP($CV164,_Afg07,$BW$285)=3,IF($DS164,$D93/IF(Såb2<>"",Såb2,Såb),0),0) -> 0 | EF164: =IF(VLOOKUP($CV164,_Afg07,$BX$285)=1,IF($DU164,$D93/IF(_Gly2<>"",_Gly2,Gly),0),0) -> 0 | EG164: =IF(VLOOKUP($CV164,_Afg07,$BX$285)=2,IF($DU164,$D93/IF(_Gly2<>"",_Gly2,Gly),0),0) -> 0 | EH164: =IF(VLOOKUP($CV164,_Afg07,$BX$285)=3,IF($DU164,$D93/IF(_Gly2<>"",_Gly2,Gly),0),0) -> 0 | EI164: =IF(VLOOKUP($CV164,_Afg07,$BY$285)=1,$D93/IF(Såm2<>"",Såm2,Såm),0) -> 0 | EJ164: =IF(VLOOKUP($CV164,_Afg07,$BY$285)=2,$D93/IF(Såm2<>"",Såm2,Såm),0) -> 0 | EK164: =IF(VLOOKUP($CV164,_Afg07,$BY$285)=3,$D93/IF(Såm2<>"",Såm2,Såm),0) -> 0 | EL164: =IF(VLOOKUP($CV164,_Afg07,$CA$285)=1,$D93/IF(_Mej2<>"",_Mej2,Mej)*VLOOKUP($CV164,_Afg07,$CC$285),0) -> 0 | EM164: =IF(VLOOKUP($CV164,_Afg07,$CA$285)=2,$D93/IF(_Mej2<>"",_Mej2,Mej)*VLOOKUP($CV164,_Afg07,$CC$285),0) -> 0 | EN164: =IF(VLOOKUP($CV164,_Afg07,$CA$285)=3,$D93/IF(_Mej2<>"",_Mej2,Mej)*VLOOKUP($CV164,_Afg07,$CC$285),0) -> 0 | EO164: =IF(HalmJa=1,IF(VLOOKUP($CV164,_Afg07,$CB$285)=1,$D93/IF(_Hal3<>"",_Hal3,Hal)+$D93/_Hal2,0),0) -> 0 | EP164: =IF(HalmJa=1,IF(VLOOKUP($CV164,_Afg07,$CB$285)=2,$D93/IF(_Hal3<>"",_Hal3,Hal)+$D93/_Hal2,0),0) -> 0 | EQ164: =IF(VLOOKUP($CV164,_Afg07,$CD$285)=1,$D93/IF(_Enk2<>"",_Enk2,Enk),0) -> 0 | ER164: =IF(VLOOKUP($CV164,_Afg07,$CE$285)=1,$D93/IF(_Kar2<>"",_Kar2,Kar),0) -> 0 | ES164: =IF(VLOOKUP($CV164,_Afg07,$CF$285)=1,$D93/IF(Kopt2<>"",Kopt2,Kopt),0) -> 0 | ET164: =IF(VLOOKUP($CV164,_Afg07,$CG$285)=1,$D93/IF(Ropt2<>"",Ropt2,Ropt),0) -> 0 | EU164: =VLOOKUP($CV164,_Afg07,$CH$285)*$D93/IF(_Gly2<>"",_Gly2,Gly) -> 0 | EV164: =VLOOKUP($CV164,_Afg07,$CI$285)*$D93/IF(Gød2<>"",Gød2,Gød) -> 0
B165: Stykomkostninger i alt | D165: =IF(Afgnr>1,D161+D162+D163+D164,"") -> -5230.670095 | E165: =IF(D165<>"","kr.","") -> kr. | H165: =IF(Alt1nr>1,H161+H162+H163+H164,"") -> -3318.583695 | I165: =IF(H165<>"","kr.","") -> kr. | L165: =IF(Alt2nr>1,L161+L162+L163+L164,"") -> -2563.9561 | M165: =IF(L165<>"","kr.","") -> kr. | T165: =IF(OR(T161>0,T162>0,T163>0,T164>0),"Husk minus foran","") ->  | V165: =IF(OR(V161>0,V162>0,V163>0,V164>0),"Husk minus foran","") ->  | X165: =IF(OR(X161>0,X162>0,X163>0,X164>0),"Husk minus foran","") ->  | AR165: 2024-03-28 | AS165: 48.904 | AT165: 55.904 | AU165: 60.904 | AV165: 67.904 | AW165: 71.904 | BA165: 4189.829268 | BC165: 98.58876822 | BD165: 97.18926626 | BG165: 2024-01-28 | BH165: 9864.33831 | CV165: 1 | CX165: =IF(CV165>1,IF(VLOOKUP(CV165,_Afg07,$BU$285)=2,IF($CV$9=2,-VLOOKUP($R$324,_Afg07,$CW$9)*Erstatpris*D74,0),0),0) -> 0 | CY165: =IF(AND(CV165>1,VLOOKUP(CV165,_Afg07,$BU$285)=1),IF(F74<>"",F74,G74)*D74,0) -> 0 | CZ165: =IF(AND(CV165>1,VLOOKUP(CV165,_Afg07,$BU$285)=1),D74,0) -> 0 | DC165: =IF(AND(CV165>1,VLOOKUP(CV165,_Afg07,$BU$285)=1),VLOOKUP(CV165,_Afg07,Halmnr)*D74,0) -> 0 | DO165: TRUE | DQ165: FALSE | DS165: TRUE | DU165: FALSE | DW165: =IF(VLOOKUP($CV165,_Afg07,$BV$285)=1,IF($DO165,$D74/IF(_Plo2<>"",_Plo2,Plo),0),0) -> 0 | DX165: =IF(VLOOKUP($CV165,_Afg07,$BV$285)=2,IF($DO165,$D74/IF(_Plo2<>"",_Plo2,Plo),0),0) -> 0 | DY165: =IF(VLOOKUP($CV165,_Afg07,$BV$285)=3,IF($DO165,$D74/IF(_Plo2<>"",_Plo2,Plo),0),0) -> 0 | DZ165: =IF(VLOOKUP($CV165,_Afg07,$BZ$285)=1,IF($DQ165,$D74/IF(_Stu2<>"",_Stu2,Stu),0),0) -> 0 | EA165: =IF(VLOOKUP($CV165,_Afg07,$BZ$285)=2,IF($DQ165,$D74/IF(_Stu2<>"",_Stu2,Stu),0),0) -> 0 | EB165: =IF(VLOOKUP($CV165,_Afg07,$BZ$285)=3,IF($DQ165,$D74/IF(_Stu2<>"",_Stu2,Stu),0),0) -> 0 | EC165: =IF(VLOOKUP($CV165,_Afg07,$BW$285)=1,IF($DS165,$D74/IF(Såb2<>"",Såb2,Såb),0),0) -> 0 | ED165: =IF(VLOOKUP($CV165,_Afg07,$BW$285)=2,IF($DS165,$D74/IF(Såb2<>"",Såb2,Såb),0),0) -> 0 | EE165: =IF(VLOOKUP($CV165,_Afg07,$BW$285)=3,IF($DS165,$D74/IF(Såb2<>"",Såb2,Såb),0),0) -> 0 | EF165: =IF(VLOOKUP($CV165,_Afg07,$BX$285)=1,IF($DU165,$D74/IF(_Gly2<>"",_Gly2,Gly),0),0) -> 0 | EG165: =IF(VLOOKUP($CV165,_Afg07,$BX$285)=2,IF($DU165,$D74/IF(_Gly2<>"",_Gly2,Gly),0),0) -> 0 | EH165: =IF(VLOOKUP($CV165,_Afg07,$BX$285)=3,IF($DU165,$D74/IF(_Gly2<>"",_Gly2,Gly),0),0) -> 0 | EI165: =IF(VLOOKUP($CV165,_Afg07,$BY$285)=1,$D74/IF(Såm2<>"",Såm2,Såm),0) -> 0 | EJ165: =IF(VLOOKUP($CV165,_Afg07,$BY$285)=2,$D74/IF(Såm2<>"",Såm2,Såm),0) -> 0 | EK165: =IF(VLOOKUP($CV165,_Afg07,$BY$285)=3,$D74/IF(Såm2<>"",Såm2,Såm),0) -> 0 | EL165: =IF(VLOOKUP($CV165,_Afg07,$CA$285)=1,$D74/IF(_Mej2<>"",_Mej2,Mej)*VLOOKUP($CV165,_Afg07,$CC$285),0) -> 0 | EM165: =IF(VLOOKUP($CV165,_Afg07,$CA$285)=2,$D74/IF(_Mej2<>"",_Mej2,Mej)*VLOOKUP($CV165,_Afg07,$CC$285),0) -> 0 | EN165: =IF(VLOOKUP($CV165,_Afg07,$CA$285)=3,$D74/IF(_Mej2<>"",_Mej2,Mej)*VLOOKUP($CV165,_Afg07,$CC$285),0) -> 0 | EO165: =IF(HalmJa=1,IF(VLOOKUP($CV165,_Afg07,$CB$285)=1,$D74/IF(_Hal3<>"",_Hal3,Hal)+$D74/_Hal2,0),0) -> 0 | EP165: =IF(HalmJa=1,IF(VLOOKUP($CV165,_Afg07,$CB$285)=2,$D74/IF(_Hal3<>"",_Hal3,Hal)+$D74/_Hal2,0),0) -> 0 | EQ165: =IF(VLOOKUP($CV165,_Afg07,$CD$285)=1,$D74/IF(_Enk2<>"",_Enk2,Enk),0) -> 0 | ER165: =IF(VLOOKUP($CV165,_Afg07,$CE$285)=1,$D74/IF(_Kar2<>"",_Kar2,Kar),0) -> 0 | ES165: =IF(VLOOKUP($CV165,_Afg07,$CF$285)=1,$D74/IF(Kopt2<>"",Kopt2,Kopt),0) -> 0 | ET165: =IF(VLOOKUP($CV165,_Afg07,$CG$285)=1,$D74/IF(Ropt2<>"",Ropt2,Ropt),0) -> 0 | EU165: =VLOOKUP($CV165,_Afg07,$CH$285)*$D74/IF(_Gly2<>"",_Gly2,Gly) -> 0 | EV165: =VLOOKUP($CV165,_Afg07,$CI$285)*$D74/IF(Gød2<>"",Gød2,Gød) -> 0
AR166: 2024-03-29 | AS166: 48.868 | AT166: 55.868 | AU166: 60.868 | AV166: 67.868 | AW166: 71.868 | BA166: 4185.341463 | BC166: 98.53650038 | BD166: 97.08516501 | BG166: 2024-01-29 | BH166: 9864.33831 | CV166: 1 | CX166: =IF(CV166>1,IF(VLOOKUP(CV166,_Afg07,$BU$285)=2,IF($CV$9=2,-VLOOKUP($R$324,_Afg07,$CW$9)*Erstatpris*D95,0),0),0) -> 0 | CY166: =IF(AND(CV166>1,VLOOKUP(CV166,_Afg07,$BU$285)=1),IF(F95<>"",F95,G95)*D95,0) -> 0 | CZ166: =IF(AND(CV166>1,VLOOKUP(CV166,_Afg07,$BU$285)=1),D95,0) -> 0 | DC166: =IF(AND(CV166>1,VLOOKUP(CV166,_Afg07,$BU$285)=1),VLOOKUP(CV166,_Afg07,Halmnr)*D95,0) -> 0 | DO166: TRUE | DQ166: FALSE | DS166: TRUE | DU166: FALSE | DW166: =IF(VLOOKUP($CV166,_Afg07,$BV$285)=1,IF($DO166,$D95/IF(_Plo2<>"",_Plo2,Plo),0),0) -> 0 | DX166: =IF(VLOOKUP($CV166,_Afg07,$BV$285)=2,IF($DO166,$D95/IF(_Plo2<>"",_Plo2,Plo),0),0) -> 0 | DY166: =IF(VLOOKUP($CV166,_Afg07,$BV$285)=3,IF($DO166,$D95/IF(_Plo2<>"",_Plo2,Plo),0),0) -> 0 | DZ166: =IF(VLOOKUP($CV166,_Afg07,$BZ$285)=1,IF($DQ166,$D95/IF(_Stu2<>"",_Stu2,Stu),0),0) -> 0 | EA166: =IF(VLOOKUP($CV166,_Afg07,$BZ$285)=2,IF($DQ166,$D95/IF(_Stu2<>"",_Stu2,Stu),0),0) -> 0 | EB166: =IF(VLOOKUP($CV166,_Afg07,$BZ$285)=3,IF($DQ166,$D95/IF(_Stu2<>"",_Stu2,Stu),0),0) -> 0 | EC166: =IF(VLOOKUP($CV166,_Afg07,$BW$285)=1,IF($DS166,$D95/IF(Såb2<>"",Såb2,Såb),0),0) -> 0 | ED166: =IF(VLOOKUP($CV166,_Afg07,$BW$285)=2,IF($DS166,$D95/IF(Såb2<>"",Såb2,Såb),0),0) -> 0 | EE166: =IF(VLOOKUP($CV166,_Afg07,$BW$285)=3,IF($DS166,$D95/IF(Såb2<>"",Såb2,Såb),0),0) -> 0 | EF166: =IF(VLOOKUP($CV166,_Afg07,$BX$285)=1,IF($DU166,$D95/IF(_Gly2<>"",_Gly2,Gly),0),0) -> 0 | EG166: =IF(VLOOKUP($CV166,_Afg07,$BX$285)=2,IF($DU166,$D95/IF(_Gly2<>"",_Gly2,Gly),0),0) -> 0 | EH166: =IF(VLOOKUP($CV166,_Afg07,$BX$285)=3,IF($DU166,$D95/IF(_Gly2<>"",_Gly2,Gly),0),0) -> 0 | EI166: =IF(VLOOKUP($CV166,_Afg07,$BY$285)=1,$D95/IF(Såm2<>"",Såm2,Såm),0) -> 0 | EJ166: =IF(VLOOKUP($CV166,_Afg07,$BY$285)=2,$D95/IF(Såm2<>"",Såm2,Såm),0) -> 0 | EK166: =IF(VLOOKUP($CV166,_Afg07,$BY$285)=3,$D95/IF(Såm2<>"",Såm2,Såm),0) -> 0 | EL166: =IF(VLOOKUP($CV166,_Afg07,$CA$285)=1,$D95/IF(_Mej2<>"",_Mej2,Mej)*VLOOKUP($CV166,_Afg07,$CC$285),0) -> 0 | EM166: =IF(VLOOKUP($CV166,_Afg07,$CA$285)=2,$D95/IF(_Mej2<>"",_Mej2,Mej)*VLOOKUP($CV166,_Afg07,$CC$285),0) -> 0 | EN166: =IF(VLOOKUP($CV166,_Afg07,$CA$285)=3,$D95/IF(_Mej2<>"",_Mej2,Mej)*VLOOKUP($CV166,_Afg07,$CC$285),0) -> 0 | EO166: =IF(HalmJa=1,IF(VLOOKUP($CV166,_Afg07,$CB$285)=1,$D95/IF(_Hal3<>"",_Hal3,Hal)+$D95/_Hal2,0),0) -> 0 | EP166: =IF(HalmJa=1,IF(VLOOKUP($CV166,_Afg07,$CB$285)=2,$D95/IF(_Hal3<>"",_Hal3,Hal)+$D95/_Hal2,0),0) -> 0 | EQ166: =IF(VLOOKUP($CV166,_Afg07,$CD$285)=1,$D95/IF(_Enk2<>"",_Enk2,Enk),0) -> 0 | ER166: =IF(VLOOKUP($CV166,_Afg07,$CE$285)=1,$D95/IF(_Kar2<>"",_Kar2,Kar),0) -> 0 | ES166: =IF(VLOOKUP($CV166,_Afg07,$CF$285)=1,$D95/IF(Kopt2<>"",Kopt2,Kopt),0) -> 0 | ET166: =IF(VLOOKUP($CV166,_Afg07,$CG$285)=1,$D95/IF(Ropt2<>"",Ropt2,Ropt),0) -> 0 | EU166: =VLOOKUP($CV166,_Afg07,$CH$285)*$D95/IF(_Gly2<>"",_Gly2,Gly) -> 0 | EV166: =VLOOKUP($CV166,_Afg07,$CI$285)*$D95/IF(Gød2<>"",Gød2,Gød) -> 0
B167: Dækningsbidrag | D167: =IF(Afgnr>1,(D159+D165),"") -> 11049.3299 | E167: =IF(D167<>"","kr.","") -> kr. | H167: =IF(Alt1nr>1,(H159+H165),"") -> 12961.4163 | I167: =IF(H167<>"","kr.","") -> kr. | L167: =IF(Alt2nr>1,(L159+L165),"") -> 10436.0439 | M167: =IF(L167<>"","kr.","") -> kr. | AR167: 2024-03-30 | AS167: 48.832 | AT167: 55.832 | AU167: 60.832 | AV167: 67.832 | AW167: 71.832 | BA167: 4180.853659 | BC167: 98.48423253 | BD167: 96.98106376 | BG167: 2024-01-30 | BH167: 9864.33831 | CV167: 1 | CX167: =IF(CV167>1,IF(VLOOKUP(CV167,_Afg07,$BU$285)=2,IF($CV$9=2,-VLOOKUP($R$324,_Afg07,$CW$9)*Erstatpris*D76,0),0),0) -> 0 | CY167: =IF(AND(CV167>1,VLOOKUP(CV167,_Afg07,$BU$285)=1),IF(F76<>"",F76,G76)*D76,0) -> 0 | CZ167: =IF(AND(CV167>1,VLOOKUP(CV167,_Afg07,$BU$285)=1),D76,0) -> 0 | DC167: =IF(AND(CV167>1,VLOOKUP(CV167,_Afg07,$BU$285)=1),VLOOKUP(CV167,_Afg07,Halmnr)*D76,0) -> 0 | DO167: TRUE | DQ167: FALSE | DS167: TRUE | DU167: FALSE | DW167: =IF(VLOOKUP($CV167,_Afg07,$BV$285)=1,IF($DO167,$D76/IF(_Plo2<>"",_Plo2,Plo),0),0) -> 0 | DX167: =IF(VLOOKUP($CV167,_Afg07,$BV$285)=2,IF($DO167,$D76/IF(_Plo2<>"",_Plo2,Plo),0),0) -> 0 | DY167: =IF(VLOOKUP($CV167,_Afg07,$BV$285)=3,IF($DO167,$D76/IF(_Plo2<>"",_Plo2,Plo),0),0) -> 0 | DZ167: =IF(VLOOKUP($CV167,_Afg07,$BZ$285)=1,IF($DQ167,$D76/IF(_Stu2<>"",_Stu2,Stu),0),0) -> 0 | EA167: =IF(VLOOKUP($CV167,_Afg07,$BZ$285)=2,IF($DQ167,$D76/IF(_Stu2<>"",_Stu2,Stu),0),0) -> 0 | EB167: =IF(VLOOKUP($CV167,_Afg07,$BZ$285)=3,IF($DQ167,$D76/IF(_Stu2<>"",_Stu2,Stu),0),0) -> 0 | EC167: =IF(VLOOKUP($CV167,_Afg07,$BW$285)=1,IF($DS167,$D76/IF(Såb2<>"",Såb2,Såb),0),0) -> 0 | ED167: =IF(VLOOKUP($CV167,_Afg07,$BW$285)=2,IF($DS167,$D76/IF(Såb2<>"",Såb2,Såb),0),0) -> 0 | EE167: =IF(VLOOKUP($CV167,_Afg07,$BW$285)=3,IF($DS167,$D76/IF(Såb2<>"",Såb2,Såb),0),0) -> 0 | EF167: =IF(VLOOKUP($CV167,_Afg07,$BX$285)=1,IF($DU167,$D76/IF(_Gly2<>"",_Gly2,Gly),0),0) -> 0 | EG167: =IF(VLOOKUP($CV167,_Afg07,$BX$285)=2,IF($DU167,$D76/IF(_Gly2<>"",_Gly2,Gly),0),0) -> 0 | EH167: =IF(VLOOKUP($CV167,_Afg07,$BX$285)=3,IF($DU167,$D76/IF(_Gly2<>"",_Gly2,Gly),0),0) -> 0 | EI167: =IF(VLOOKUP($CV167,_Afg07,$BY$285)=1,$D76/IF(Såm2<>"",Såm2,Såm),0) -> 0 | EJ167: =IF(VLOOKUP($CV167,_Afg07,$BY$285)=2,$D76/IF(Såm2<>"",Såm2,Såm),0) -> 0 | EK167: =IF(VLOOKUP($CV167,_Afg07,$BY$285)=3,$D76/IF(Såm2<>"",Såm2,Såm),0) -> 0 | EL167: =IF(VLOOKUP($CV167,_Afg07,$CA$285)=1,$D76/IF(_Mej2<>"",_Mej2,Mej)*VLOOKUP($CV167,_Afg07,$CC$285),0) -> 0 | EM167: =IF(VLOOKUP($CV167,_Afg07,$CA$285)=2,$D76/IF(_Mej2<>"",_Mej2,Mej)*VLOOKUP($CV167,_Afg07,$CC$285),0) -> 0 | EN167: =IF(VLOOKUP($CV167,_Afg07,$CA$285)=3,$D76/IF(_Mej2<>"",_Mej2,Mej)*VLOOKUP($CV167,_Afg07,$CC$285),0) -> 0 | EO167: =IF(HalmJa=1,IF(VLOOKUP($CV167,_Afg07,$CB$285)=1,$D76/IF(_Hal3<>"",_Hal3,Hal)+$D76/_Hal2,0),0) -> 0 | EP167: =IF(HalmJa=1,IF(VLOOKUP($CV167,_Afg07,$CB$285)=2,$D76/IF(_Hal3<>"",_Hal3,Hal)+$D76/_Hal2,0),0) -> 0 | EQ167: =IF(VLOOKUP($CV167,_Afg07,$CD$285)=1,$D76/IF(_Enk2<>"",_Enk2,Enk),0) -> 0 | ER167: =IF(VLOOKUP($CV167,_Afg07,$CE$285)=1,$D76/IF(_Kar2<>"",_Kar2,Kar),0) -> 0 | ES167: =IF(VLOOKUP($CV167,_Afg07,$CF$285)=1,$D76/IF(Kopt2<>"",Kopt2,Kopt),0) -> 0 | ET167: =IF(VLOOKUP($CV167,_Afg07,$CG$285)=1,$D76/IF(Ropt2<>"",Ropt2,Ropt),0) -> 0 | EU167: =VLOOKUP($CV167,_Afg07,$CH$285)*$D76/IF(_Gly2<>"",_Gly2,Gly) -> 0 | EV167: =VLOOKUP($CV167,_Afg07,$CI$285)*$D76/IF(Gød2<>"",Gød2,Gød) -> 0
AR168: 2024-03-31 | AS168: 48.796 | AT168: 55.796 | AU168: 60.796 | AV168: 67.796 | AW168: 71.796 | BA168: 4176.365854 | BC168: 98.43196469 | BD168: 96.87696251 | BG168: 2024-01-31 | BH168: 9864.33831 | CM168: Kagediagram 2 | CS168: Kagediagram Lopslag | CV168: 1 | CX168: =IF(CV168>1,IF(VLOOKUP(CV168,_Afg07,$BU$285)=2,IF($CV$9=2,-VLOOKUP($R$324,_Afg07,$CW$9)*Erstatpris*D97,0),0),0) -> 0 | CY168: =IF(AND(CV168>1,VLOOKUP(CV168,_Afg07,$BU$285)=1),IF(F97<>"",F97,G97)*D97,0) -> 0 | CZ168: =IF(AND(CV168>1,VLOOKUP(CV168,_Afg07,$BU$285)=1),D97,0) -> 0 | DC168: =IF(AND(CV168>1,VLOOKUP(CV168,_Afg07,$BU$285)=1),VLOOKUP(CV168,_Afg07,Halmnr)*D97,0) -> 0 | DO168: TRUE | DQ168: FALSE | DS168: TRUE | DU168: FALSE | DW168: =IF(VLOOKUP($CV168,_Afg07,$BV$285)=1,IF($DO168,$D97/IF(_Plo2<>"",_Plo2,Plo),0),0) -> 0 | DX168: =IF(VLOOKUP($CV168,_Afg07,$BV$285)=2,IF($DO168,$D97/IF(_Plo2<>"",_Plo2,Plo),0),0) -> 0 | DY168: =IF(VLOOKUP($CV168,_Afg07,$BV$285)=3,IF($DO168,$D97/IF(_Plo2<>"",_Plo2,Plo),0),0) -> 0 | DZ168: =IF(VLOOKUP($CV168,_Afg07,$BZ$285)=1,IF($DQ168,$D97/IF(_Stu2<>"",_Stu2,Stu),0),0) -> 0 | EA168: =IF(VLOOKUP($CV168,_Afg07,$BZ$285)=2,IF($DQ168,$D97/IF(_Stu2<>"",_Stu2,Stu),0),0) -> 0 | EB168: =IF(VLOOKUP($CV168,_Afg07,$BZ$285)=3,IF($DQ168,$D97/IF(_Stu2<>"",_Stu2,Stu),0),0) -> 0 | EC168: =IF(VLOOKUP($CV168,_Afg07,$BW$285)=1,IF($DS168,$D97/IF(Såb2<>"",Såb2,Såb),0),0) -> 0 | ED168: =IF(VLOOKUP($CV168,_Afg07,$BW$285)=2,IF($DS168,$D97/IF(Såb2<>"",Såb2,Såb),0),0) -> 0 | EE168: =IF(VLOOKUP($CV168,_Afg07,$BW$285)=3,IF($DS168,$D97/IF(Såb2<>"",Såb2,Såb),0),0) -> 0 | EF168: =IF(VLOOKUP($CV168,_Afg07,$BX$285)=1,IF($DU168,$D97/IF(_Gly2<>"",_Gly2,Gly),0),0) -> 0 | EG168: =IF(VLOOKUP($CV168,_Afg07,$BX$285)=2,IF($DU168,$D97/IF(_Gly2<>"",_Gly2,Gly),0),0) -> 0 | EH168: =IF(VLOOKUP($CV168,_Afg07,$BX$285)=3,IF($DU168,$D97/IF(_Gly2<>"",_Gly2,Gly),0),0) -> 0 | EI168: =IF(VLOOKUP($CV168,_Afg07,$BY$285)=1,$D97/IF(Såm2<>"",Såm2,Såm),0) -> 0 | EJ168: =IF(VLOOKUP($CV168,_Afg07,$BY$285)=2,$D97/IF(Såm2<>"",Såm2,Såm),0) -> 0 | EK168: =IF(VLOOKUP($CV168,_Afg07,$BY$285)=3,$D97/IF(Såm2<>"",Såm2,Såm),0) -> 0 | EL168: =IF(VLOOKUP($CV168,_Afg07,$CA$285)=1,$D97/IF(_Mej2<>"",_Mej2,Mej)*VLOOKUP($CV168,_Afg07,$CC$285),0) -> 0 | EM168: =IF(VLOOKUP($CV168,_Afg07,$CA$285)=2,$D97/IF(_Mej2<>"",_Mej2,Mej)*VLOOKUP($CV168,_Afg07,$CC$285),0) -> 0 | EN168: =IF(VLOOKUP($CV168,_Afg07,$CA$285)=3,$D97/IF(_Mej2<>"",_Mej2,Mej)*VLOOKUP($CV168,_Afg07,$CC$285),0) -> 0 | EO168: =IF(HalmJa=1,IF(VLOOKUP($CV168,_Afg07,$CB$285)=1,$D97/IF(_Hal3<>"",_Hal3,Hal)+$D97/_Hal2,0),0) -> 0 | EP168: =IF(HalmJa=1,IF(VLOOKUP($CV168,_Afg07,$CB$285)=2,$D97/IF(_Hal3<>"",_Hal3,Hal)+$D97/_Hal2,0),0) -> 0 | EQ168: =IF(VLOOKUP($CV168,_Afg07,$CD$285)=1,$D97/IF(_Enk2<>"",_Enk2,Enk),0) -> 0 | ER168: =IF(VLOOKUP($CV168,_Afg07,$CE$285)=1,$D97/IF(_Kar2<>"",_Kar2,Kar),0) -> 0 | ES168: =IF(VLOOKUP($CV168,_Afg07,$CF$285)=1,$D97/IF(Kopt2<>"",Kopt2,Kopt),0) -> 0 | ET168: =IF(VLOOKUP($CV168,_Afg07,$CG$285)=1,$D97/IF(Ropt2<>"",Ropt2,Ropt),0) -> 0 | EU168: =VLOOKUP($CV168,_Afg07,$CH$285)*$D97/IF(_Gly2<>"",_Gly2,Gly) -> 0 | EV168: =VLOOKUP($CV168,_Afg07,$CI$285)*$D97/IF(Gød2<>"",Gød2,Gød) -> 0
B169: Maskiner og arbejde | D169: =IF(Afgnr=1,"",IF(Afgnr>1,IF(T169<>"",T169,-VLOOKUP(Afgnr,_Afg07,$CX$7)-IF(Hdgnr>1,VLOOKUP(Afgnr,_Afg07,51,FALSE)*VLOOKUP(Afgnr,_Afg07,73,FALSE),0)),"")) -> -4390 | E169: =IF(D169<>"","kr.","") -> kr. | H169: =IF(CW139=1,"",IF(CW139>1,IF(V169<>"",V169,-VLOOKUP(CW139,_Afg07,$CX$7)-IF(Hdgnr>1,VLOOKUP(Alt1nr,_Afg07,51,FALSE)*VLOOKUP(Alt1nr,_Afg07,73,FALSE),0)),"")) -> -2349.077994 | I169: =IF(H169<>"","kr.","") -> kr. | L169: =IF(CX139=1,"",IF(CX139>1,IF(X169<>"",X169,-VLOOKUP(CX139,_Afg07,$CX$7)-IF(Hdgnr>1,VLOOKUP(Alt2nr,_Afg07,51,FALSE)*VLOOKUP(Alt2nr,_Afg07,73,FALSE),0)),"")) ->  | M169: =IF(L169<>"","kr.","") ->  | S169: Maskiner og arbejde | V169: =+D169*(1-AE101) -> -2349.077994 | AR169: 2024-04-01 | AS169: 48.76 | AT169: 55.76 | AU169: 60.76 | AV169: 67.76 | AW169: 71.76 | BA169: 4171.878049 | BC169: 98.37969685 | BD169: 96.77286126 | BG169: 2024-02-01 | BH169: 9864.33831 | CM169: =IF(CN169=0,"",_xlfn.CONCAT(CN169," ","(",CP169,"ha",")")) ->  | CN169: =IF(CO169="Egen afgrøde",$C$43,CO169) -> 0 | CO169: =IF(CS169=$CN$151,0,IF(CS169=$CN$152,0,IF(CS169=$CN$153,0,CS169))) -> 0 | CP169: =IF(CS169=$CN$151,0,IF(CS169=$CN$152,0,IF(CS169=$CN$153,0,CT169))) -> 0 | CS169: =VLOOKUP(CV160,$R$288:$S$342,2) -> 0 | CT169: =D89 -> 0 | CV169: 1 | CX169: =IF(CV169>1,IF(VLOOKUP(CV169,_Afg07,$BU$285)=2,IF($CV$9=2,-VLOOKUP($R$324,_Afg07,$CW$9)*Erstatpris*D78,0),0),0) -> 0 | CY169: =IF(AND(CV169>1,VLOOKUP(CV169,_Afg07,$BU$285)=1),IF(F78<>"",F78,G78)*D78,0) -> 0 | CZ169: =IF(AND(CV169>1,VLOOKUP(CV169,_Afg07,$BU$285)=1),D78,0) -> 0 | DC169: =IF(AND(CV169>1,VLOOKUP(CV169,_Afg07,$BU$285)=1),VLOOKUP(CV169,_Afg07,Halmnr)*D78,0) -> 0 | DH169: Lager til korn | DO169: TRUE | DQ169: FALSE | DS169: TRUE | DU169: FALSE | DW169: =IF(VLOOKUP($CV169,_Afg07,$BV$285)=1,IF($DO169,$D78/IF(_Plo2<>"",_Plo2,Plo),0),0) -> 0 | DX169: =IF(VLOOKUP($CV169,_Afg07,$BV$285)=2,IF($DO169,$D78/IF(_Plo2<>"",_Plo2,Plo),0),0) -> 0 | DY169: =IF(VLOOKUP($CV169,_Afg07,$BV$285)=3,IF($DO169,$D78/IF(_Plo2<>"",_Plo2,Plo),0),0) -> 0 | DZ169: =IF(VLOOKUP($CV169,_Afg07,$BZ$285)=1,IF($DQ169,$D78/IF(_Stu2<>"",_Stu2,Stu),0),0) -> 0 | EA169: =IF(VLOOKUP($CV169,_Afg07,$BZ$285)=2,IF($DQ169,$D78/IF(_Stu2<>"",_Stu2,Stu),0),0) -> 0 | EB169: =IF(VLOOKUP($CV169,_Afg07,$BZ$285)=3,IF($DQ169,$D78/IF(_Stu2<>"",_Stu2,Stu),0),0) -> 0 | EC169: =IF(VLOOKUP($CV169,_Afg07,$BW$285)=1,IF($DS169,$D78/IF(Såb2<>"",Såb2,Såb),0),0) -> 0 | ED169: =IF(VLOOKUP($CV169,_Afg07,$BW$285)=2,IF($DS169,$D78/IF(Såb2<>"",Såb2,Såb),0),0) -> 0 | EE169: =IF(VLOOKUP($CV169,_Afg07,$BW$285)=3,IF($DS169,$D78/IF(Såb2<>"",Såb2,Såb),0),0) -> 0 | EF169: =IF(VLOOKUP($CV169,_Afg07,$BX$285)=1,IF($DU169,$D78/IF(_Gly2<>"",_Gly2,Gly),0),0) -> 0 | EG169: =IF(VLOOKUP($CV169,_Afg07,$BX$285)=2,IF($DU169,$D78/IF(_Gly2<>"",_Gly2,Gly),0),0) -> 0 | EH169: =IF(VLOOKUP($CV169,_Afg07,$BX$285)=3,IF($DU169,$D78/IF(_Gly2<>"",_Gly2,Gly),0),0) -> 0 | EI169: =IF(VLOOKUP($CV169,_Afg07,$BY$285)=1,$D78/IF(Såm2<>"",Såm2,Såm),0) -> 0 | EJ169: =IF(VLOOKUP($CV169,_Afg07,$BY$285)=2,$D78/IF(Såm2<>"",Såm2,Såm),0) -> 0 | EK169: =IF(VLOOKUP($CV169,_Afg07,$BY$285)=3,$D78/IF(Såm2<>"",Såm2,Såm),0) -> 0 | EL169: =IF(VLOOKUP($CV169,_Afg07,$CA$285)=1,$D78/IF(_Mej2<>"",_Mej2,Mej)*VLOOKUP($CV169,_Afg07,$CC$285),0) -> 0 | EM169: =IF(VLOOKUP($CV169,_Afg07,$CA$285)=2,$D78/IF(_Mej2<>"",_Mej2,Mej)*VLOOKUP($CV169,_Afg07,$CC$285),0) -> 0 | EN169: =IF(VLOOKUP($CV169,_Afg07,$CA$285)=3,$D78/IF(_Mej2<>"",_Mej2,Mej)*VLOOKUP($CV169,_Afg07,$CC$285),0) -> 0 | EO169: =IF(HalmJa=1,IF(VLOOKUP($CV169,_Afg07,$CB$285)=1,$D78/IF(_Hal3<>"",_Hal3,Hal)+$D78/_Hal2,0),0) -> 0 | EP169: =IF(HalmJa=1,IF(VLOOKUP($CV169,_Afg07,$CB$285)=2,$D78/IF(_Hal3<>"",_Hal3,Hal)+$D78/_Hal2,0),0) -> 0 | EQ169: =IF(VLOOKUP($CV169,_Afg07,$CD$285)=1,$D78/IF(_Enk2<>"",_Enk2,Enk),0) -> 0 | ER169: =IF(VLOOKUP($CV169,_Afg07,$CE$285)=1,$D78/IF(_Kar2<>"",_Kar2,Kar),0) -> 0 | ES169: =IF(VLOOKUP($CV169,_Afg07,$CF$285)=1,$D78/IF(Kopt2<>"",Kopt2,Kopt),0) -> 0 | ET169: =IF(VLOOKUP($CV169,_Afg07,$CG$285)=1,$D78/IF(Ropt2<>"",Ropt2,Ropt),0) -> 0 | EU169: =VLOOKUP($CV169,_Afg07,$CH$285)*$D78/IF(_Gly2<>"",_Gly2,Gly) -> 0 | EV169: =VLOOKUP($CV169,_Afg07,$CI$285)*$D78/IF(Gød2<>"",Gød2,Gød) -> 0
B170: =IF(Tørringnr=1,"Tørring (løntørring)","Tørring (korn i eget tørreri)") -> Tørring (løntørring) | D170: =IF(Afgnr>1,IF(T170<>"",T170,IF(VLOOKUP(Afgnr,_Afg07,$BU$285)=2,-VLOOKUP(Afgnr,_Afg07,$BN$285)*D$152,IF(AND(VLOOKUP(Afgnr,_Afg07,$BU$285)=1,$CY$5=4),0,IF($CY$7=1,-VLOOKUP(Afgnr,_Afg07,$BN$285)*D$152,-VLOOKUP(Afgnr,_Afg07,$BO$285)*D$152)))),"") -> -748 | E170: =IF(D170<>"","kr.","") -> kr. | H170: =IF(Alt1nr>1,IF(V170<>"",V170,IF(VLOOKUP(Alt1nr,_Afg07,$BU$285)=2,-VLOOKUP(Alt1nr,_Afg07,$BN$285)*H152,IF(AND(VLOOKUP(Alt1nr,_Afg07,$BU$285)=1,$CY$5=4),0,IF($CY$7=1,-VLOOKUP(Alt1nr,_Afg07,$BN$285)*H152,-VLOOKUP(Alt1nr,_Afg07,$BO$285)*H152)))),"") -> -748 | I170: =IF(H170<>"","kr.","") -> kr. | L170: =IF(Alt2nr>1,IF(X170<>"",X170,IF(VLOOKUP(Alt2nr,_Afg07,$BU$285)=2,-VLOOKUP(Alt2nr,_Afg07,$BN$285)*L152,IF(AND(VLOOKUP(Alt2nr,_Afg07,$BU$285)=1,$CY$5=4),0,IF($CY$7=1,-VLOOKUP(Alt2nr,_Afg07,$BN$285)*L152,-VLOOKUP(Alt2nr,_Afg07,$BO$285)*L152)))),"") -> -780 | M170: =IF(L170<>"","kr.","") -> kr. | S170: =B170 -> Tørring (løntørring) | V170: =+D170*(1-AE102) -> -748 | AR170: 2024-04-02 | AS170: 48.724 | AT170: 55.724 | AU170: 60.724 | AV170: 67.724 | AW170: 71.724 | BA170: 4167.390244 | BC170: 98.327429 | BD170: 96.66876001 | BG170: 2024-02-02 | BH170: 9864.33831 | CM170: =IF(CN170=0,"",_xlfn.CONCAT(CN170," ","(",CP170,"ha",")")) ->  | CN170: =IF(CO170="Egen afgrøde",$C$43,CO170) -> 0 | CO170: =IF(CS170=$CN$151,0,IF(CS170=$CN$152,0,IF(CS170=$CN$153,0,CS170))) -> 0 | CP170: =IF(CS170=$CN$151,0,IF(CS170=$CN$152,0,IF(CS170=$CN$153,0,CT170))) -> 0 | CS170: =VLOOKUP(CV162,$R$288:$S$342,2) -> 0 | CT170: =D91 -> 0 | CV170: 1 | CX170: =IF(CV170>1,IF(VLOOKUP(CV170,_Afg07,$BU$285)=2,IF($CV$9=2,-VLOOKUP($R$324,_Afg07,$CW$9)*Erstatpris*D99,0),0),0) -> 0 | CY170: =IF(AND(CV170>1,VLOOKUP(CV170,_Afg07,$BU$285)=1),IF(F99<>"",F99,G99)*D99,0) -> 0 | CZ170: =IF(AND(CV170>1,VLOOKUP(CV170,_Afg07,$BU$285)=1),D99,0) -> 0 | DC170: =IF(AND(CV170>1,VLOOKUP(CV170,_Afg07,$BU$285)=1),VLOOKUP(CV170,_Afg07,Halmnr)*D99,0) -> 0 | DG170: 1 | DO170: TRUE | DQ170: FALSE | DS170: TRUE | DU170: FALSE | DW170: =IF(VLOOKUP($CV170,_Afg07,$BV$285)=1,IF($DO170,$D99/IF(_Plo2<>"",_Plo2,Plo),0),0) -> 0 | DX170: =IF(VLOOKUP($CV170,_Afg07,$BV$285)=2,IF($DO170,$D99/IF(_Plo2<>"",_Plo2,Plo),0),0) -> 0 | DY170: =IF(VLOOKUP($CV170,_Afg07,$BV$285)=3,IF($DO170,$D99/IF(_Plo2<>"",_Plo2,Plo),0),0) -> 0 | DZ170: =IF(VLOOKUP($CV170,_Afg07,$BZ$285)=1,IF($DQ170,$D99/IF(_Stu2<>"",_Stu2,Stu),0),0) -> 0 | EA170: =IF(VLOOKUP($CV170,_Afg07,$BZ$285)=2,IF($DQ170,$D99/IF(_Stu2<>"",_Stu2,Stu),0),0) -> 0 | EB170: =IF(VLOOKUP($CV170,_Afg07,$BZ$285)=3,IF($DQ170,$D99/IF(_Stu2<>"",_Stu2,Stu),0),0) -> 0 | EC170: =IF(VLOOKUP($CV170,_Afg07,$BW$285)=1,IF($DS170,$D99/IF(Såb2<>"",Såb2,Såb),0),0) -> 0 | ED170: =IF(VLOOKUP($CV170,_Afg07,$BW$285)=2,IF($DS170,$D99/IF(Såb2<>"",Såb2,Såb),0),0) -> 0 | EE170: =IF(VLOOKUP($CV170,_Afg07,$BW$285)=3,IF($DS170,$D99/IF(Såb2<>"",Såb2,Såb),0),0) -> 0 | EF170: =IF(VLOOKUP($CV170,_Afg07,$BX$285)=1,IF($DU170,$D99/IF(_Gly2<>"",_Gly2,Gly),0),0) -> 0 | EG170: =IF(VLOOKUP($CV170,_Afg07,$BX$285)=2,IF($DU170,$D99/IF(_Gly2<>"",_Gly2,Gly),0),0) -> 0 | EH170: =IF(VLOOKUP($CV170,_Afg07,$BX$285)=3,IF($DU170,$D99/IF(_Gly2<>"",_Gly2,Gly),0),0) -> 0 | EI170: =IF(VLOOKUP($CV170,_Afg07,$BY$285)=1,$D99/IF(Såm2<>"",Såm2,Såm),0) -> 0 | EJ170: =IF(VLOOKUP($CV170,_Afg07,$BY$285)=2,$D99/IF(Såm2<>"",Såm2,Såm),0) -> 0 | EK170: =IF(VLOOKUP($CV170,_Afg07,$BY$285)=3,$D99/IF(Såm2<>"",Såm2,Såm),0) -> 0 | EL170: =IF(VLOOKUP($CV170,_Afg07,$CA$285)=1,$D99/IF(_Mej2<>"",_Mej2,Mej)*VLOOKUP($CV170,_Afg07,$CC$285),0) -> 0 | EM170: =IF(VLOOKUP($CV170,_Afg07,$CA$285)=2,$D99/IF(_Mej2<>"",_Mej2,Mej)*VLOOKUP($CV170,_Afg07,$CC$285),0) -> 0 | EN170: =IF(VLOOKUP($CV170,_Afg07,$CA$285)=3,$D99/IF(_Mej2<>"",_Mej2,Mej)*VLOOKUP($CV170,_Afg07,$CC$285),0) -> 0 | EO170: =IF(HalmJa=1,IF(VLOOKUP($CV170,_Afg07,$CB$285)=1,$D99/IF(_Hal3<>"",_Hal3,Hal)+$D99/_Hal2,0),0) -> 0 | EP170: =IF(HalmJa=1,IF(VLOOKUP($CV170,_Afg07,$CB$285)=2,$D99/IF(_Hal3<>"",_Hal3,Hal)+$D99/_Hal2,0),0) -> 0 | EQ170: =IF(VLOOKUP($CV170,_Afg07,$CD$285)=1,$D99/IF(_Enk2<>"",_Enk2,Enk),0) -> 0 | ER170: =IF(VLOOKUP($CV170,_Afg07,$CE$285)=1,$D99/IF(_Kar2<>"",_Kar2,Kar),0) -> 0 | ES170: =IF(VLOOKUP($CV170,_Afg07,$CF$285)=1,$D99/IF(Kopt2<>"",Kopt2,Kopt),0) -> 0 | ET170: =IF(VLOOKUP($CV170,_Afg07,$CG$285)=1,$D99/IF(Ropt2<>"",Ropt2,Ropt),0) -> 0 | EU170: =VLOOKUP($CV170,_Afg07,$CH$285)*$D99/IF(_Gly2<>"",_Gly2,Gly) -> 0 | EV170: =VLOOKUP($CV170,_Afg07,$CI$285)*$D99/IF(Gød2<>"",Gød2,Gød) -> 0
B171: =IF(Købernr=2,"Erstatningskorn","") ->  | D171: =IF(CV139>1,IF($CV$9=2,IF(VLOOKUP(CV139,_Afg07,BU285)=2,(-VLOOKUP($R$324,_Afg07,$CW$9)*Erstatpris),IF(VLOOKUP(CV139,_Afg07,BU285)=3,$CX$173,IF(VLOOKUP(CV139,_Afg07,BU285)=4,$CX$174,""))),""),"") ->  | E171: =IF(D171<>"","kr.","") ->  | H171: =IF(CW139>1,IF($CV$9=2,IF(VLOOKUP(CW139,_Afg07,BU285)=2,(-VLOOKUP($R$324,_Afg07,$CW$9)*Erstatpris),IF(VLOOKUP(CW139,_Afg07,BU285)=3,$CX$173,IF(VLOOKUP(CW139,_Afg07,BU285)=4,$CX$174,""))),""),"") ->  | I171: =IF(H171<>"","kr.","") ->  | L171: =IF(CX139>1,IF($CV$9=2,IF(VLOOKUP(CX139,_Afg07,BU285)=2,(-VLOOKUP($R$324,_Afg07,$CW$9)*Erstatpris),IF(VLOOKUP(CX139,_Afg07,BU285)=3,$CX$173,IF(VLOOKUP(CX139,_Afg07,BU285)=4,$CX$174,""))),""),"") ->  | M171: =IF(L171<>"","kr.","") ->  | T171: =IF(OR(T169>0,T170>0),"Husk minus foran","") ->  | V171: =IF(OR(V169>0,V170>0),"Husk minus foran","") ->  | X171: =IF(OR(X169>0,X170>0),"Husk minus foran","") ->  | AR171: 2024-04-03 | AS171: =IF($AR171=$AO$140,AS$136,IF($AR171<$AO$140,IF($AR171>=$AO$141,AS$136+(($AO$140-$AR171)*$AP$142/100),AS$136+(($AO$140-$AO$141)*$AP$142/100)+(($AO$141-$AR171)*$AP$141/100)),IF($AR171<$AO$142,AS$136-(($AR171-$AO$140)*$AP$142/100),AS$136-(($AO$142-$AO$140)*$AP$142/100)-(($AR171-$AO$142)*$AP$143/100)))) -> 48.688 | AT171: 55.688 | AU171: 60.688 | AV171: 67.688 | AW171: 71.688 | BA171: 4162.902439 | BC171: 98.27516116 | BD171: 96.56465876 | BG171: 2024-02-03 | BH171: 9864.33831 | CN171: 0 | CO171: 0 | CP171: 0 | CS171: =VLOOKUP(CV164,$R$288:$S$342,2) -> 0 | CT171: =D93 -> 0 | CV171: 1 | CX171: =IF(CV171>1,IF(VLOOKUP(CV171,_Afg07,$BU$285)=2,IF($CV$9=2,-VLOOKUP($R$324,_Afg07,$CW$9)*Erstatpris*D80,0),0),0) -> 0 | CY171: =IF(AND(CV171>1,VLOOKUP(CV171,_Afg07,$BU$285)=1),IF(F80<>"",F80,G80)*D80,0) -> 0 | CZ171: =IF(AND(CV171>1,VLOOKUP(CV171,_Afg07,$BU$285)=1),D80,0) -> 0 | DC171: =IF(AND(CV171>1,VLOOKUP(CV171,_Afg07,$BU$285)=1),VLOOKUP(CV171,_Afg07,Halmnr)*D80,0) -> 0 | DG171: 2 | DH171: Planlager | DO171: TRUE | DQ171: FALSE | DS171: TRUE | DU171: FALSE | DW171: =IF(VLOOKUP($CV171,_Afg07,$BV$285)=1,IF($DO171,$D80/IF(_Plo2<>"",_Plo2,Plo),0),0) -> 0 | DX171: =IF(VLOOKUP($CV171,_Afg07,$BV$285)=2,IF($DO171,$D80/IF(_Plo2<>"",_Plo2,Plo),0),0) -> 0 | DY171: =IF(VLOOKUP($CV171,_Afg07,$BV$285)=3,IF($DO171,$D80/IF(_Plo2<>"",_Plo2,Plo),0),0) -> 0 | DZ171: =IF(VLOOKUP($CV171,_Afg07,$BZ$285)=1,IF($DQ171,$D80/IF(_Stu2<>"",_Stu2,Stu),0),0) -> 0 | EA171: =IF(VLOOKUP($CV171,_Afg07,$BZ$285)=2,IF($DQ171,$D80/IF(_Stu2<>"",_Stu2,Stu),0),0) -> 0 | EB171: =IF(VLOOKUP($CV171,_Afg07,$BZ$285)=3,IF($DQ171,$D80/IF(_Stu2<>"",_Stu2,Stu),0),0) -> 0 | EC171: =IF(VLOOKUP($CV171,_Afg07,$BW$285)=1,IF($DS171,$D80/IF(Såb2<>"",Såb2,Såb),0),0) -> 0 | ED171: =IF(VLOOKUP($CV171,_Afg07,$BW$285)=2,IF($DS171,$D80/IF(Såb2<>"",Såb2,Såb),0),0) -> 0 | EE171: =IF(VLOOKUP($CV171,_Afg07,$BW$285)=3,IF($DS171,$D80/IF(Såb2<>"",Såb2,Såb),0),0) -> 0 | EF171: =IF(VLOOKUP($CV171,_Afg07,$BX$285)=1,IF($DU171,$D80/IF(_Gly2<>"",_Gly2,Gly),0),0) -> 0 | EG171: =IF(VLOOKUP($CV171,_Afg07,$BX$285)=2,IF($DU171,$D80/IF(_Gly2<>"",_Gly2,Gly),0),0) -> 0 | EH171: =IF(VLOOKUP($CV171,_Afg07,$BX$285)=3,IF($DU171,$D80/IF(_Gly2<>"",_Gly2,Gly),0),0) -> 0 | EI171: =IF(VLOOKUP($CV171,_Afg07,$BY$285)=1,$D80/IF(Såm2<>"",Såm2,Såm),0) -> 0 | EJ171: =IF(VLOOKUP($CV171,_Afg07,$BY$285)=2,$D80/IF(Såm2<>"",Såm2,Såm),0) -> 0 | EK171: =IF(VLOOKUP($CV171,_Afg07,$BY$285)=3,$D80/IF(Såm2<>"",Såm2,Såm),0) -> 0 | EL171: =IF(VLOOKUP($CV171,_Afg07,$CA$285)=1,$D80/IF(_Mej2<>"",_Mej2,Mej)*VLOOKUP($CV171,_Afg07,$CC$285),0) -> 0 | EM171: =IF(VLOOKUP($CV171,_Afg07,$CA$285)=2,$D80/IF(_Mej2<>"",_Mej2,Mej)*VLOOKUP($CV171,_Afg07,$CC$285),0) -> 0 | EN171: =IF(VLOOKUP($CV171,_Afg07,$CA$285)=3,$D80/IF(_Mej2<>"",_Mej2,Mej)*VLOOKUP($CV171,_Afg07,$CC$285),0) -> 0 | EO171: =IF(HalmJa=1,IF(VLOOKUP($CV171,_Afg07,$CB$285)=1,$D80/IF(_Hal3<>"",_Hal3,Hal)+$D80/_Hal2,0),0) -> 0 | EP171: =IF(HalmJa=1,IF(VLOOKUP($CV171,_Afg07,$CB$285)=2,$D80/IF(_Hal3<>"",_Hal3,Hal)+$D80/_Hal2,0),0) -> 0 | EQ171: =IF(VLOOKUP($CV171,_Afg07,$CD$285)=1,$D80/IF(_Enk2<>"",_Enk2,Enk),0) -> 0 | ER171: =IF(VLOOKUP($CV171,_Afg07,$CE$285)=1,$D80/IF(_Kar2<>"",_Kar2,Kar),0) -> 0 | ES171: =IF(VLOOKUP($CV171,_Afg07,$CF$285)=1,$D80/IF(Kopt2<>"",Kopt2,Kopt),0) -> 0 | ET171: =IF(VLOOKUP($CV171,_Afg07,$CG$285)=1,$D80/IF(Ropt2<>"",Ropt2,Ropt),0) -> 0 | EU171: =VLOOKUP($CV171,_Afg07,$CH$285)*$D80/IF(_Gly2<>"",_Gly2,Gly) -> 0 | EV171: =VLOOKUP($CV171,_Afg07,$CI$285)*$D80/IF(Gød2<>"",Gød2,Gød) -> 0
AR172: 2024-04-04 | AS172: 48.652 | AT172: 55.652 | AU172: 60.652 | AV172: 67.652 | AW172: 71.652 | BA172: 4158.414634 | BC172: 98.22289332 | BD172: 96.46055751 | BG172: 2024-02-04 | BH172: 9864.33831 | CN172: 0 | CO172: 0 | CP172: 0 | CS172: =VLOOKUP(CV166,$R$288:$S$342,2) -> 0 | CT172: =D95 -> 0 | CV172: 1 | CX172: =IF(CV172>1,IF(VLOOKUP(CV172,_Afg07,$BU$285)=2,IF($CV$9=2,-VLOOKUP($R$324,_Afg07,$CW$9)*Erstatpris*D101,0),0),0) -> 0 | CY172: =IF(AND(CV172>1,VLOOKUP(CV172,_Afg07,$BU$285)=1),IF(F101<>"",F101,G101)*D101,0) -> 0 | CZ172: =IF(AND(CV172>1,VLOOKUP(CV172,_Afg07,$BU$285)=1),D101,0) -> 0 | DA172: Kornudbytte i gns pr. ha af alle ha i sædskiftet | DB172: Udbytte foderkorn i gns pr. ha med foderkorn | DC172: =IF(AND(CV172>1,VLOOKUP(CV172,_Afg07,$BU$285)=1),VLOOKUP(CV172,_Afg07,Halmnr)*D101,0) -> 0 | DG172: 3 | DH172: Stålsilo | DO172: TRUE | DQ172: FALSE | DS172: TRUE | DU172: FALSE | DW172: =IF(VLOOKUP($CV172,_Afg07,$BV$285)=1,IF($DO172,$D101/IF(_Plo2<>"",_Plo2,Plo),0),0) -> 0 | DX172: =IF(VLOOKUP($CV172,_Afg07,$BV$285)=2,IF($DO172,$D101/IF(_Plo2<>"",_Plo2,Plo),0),0) -> 0 | DY172: =IF(VLOOKUP($CV172,_Afg07,$BV$285)=3,IF($DO172,$D101/IF(_Plo2<>"",_Plo2,Plo),0),0) -> 0 | DZ172: =IF(VLOOKUP($CV172,_Afg07,$BZ$285)=1,IF($DQ172,$D101/IF(_Stu2<>"",_Stu2,Stu),0),0) -> 0 | EA172: =IF(VLOOKUP($CV172,_Afg07,$BZ$285)=2,IF($DQ172,$D101/IF(_Stu2<>"",_Stu2,Stu),0),0) -> 0 | EB172: =IF(VLOOKUP($CV172,_Afg07,$BZ$285)=3,IF($DQ172,$D101/IF(_Stu2<>"",_Stu2,Stu),0),0) -> 0 | EC172: =IF(VLOOKUP($CV172,_Afg07,$BW$285)=1,IF($DS172,$D101/IF(Såb2<>"",Såb2,Såb),0),0) -> 0 | ED172: =IF(VLOOKUP($CV172,_Afg07,$BW$285)=2,IF($DS172,$D101/IF(Såb2<>"",Såb2,Såb),0),0) -> 0 | EE172: =IF(VLOOKUP($CV172,_Afg07,$BW$285)=3,IF($DS172,$D101/IF(Såb2<>"",Såb2,Såb),0),0) -> 0 | EF172: =IF(VLOOKUP($CV172,_Afg07,$BX$285)=1,IF($DU172,$D101/IF(_Gly2<>"",_Gly2,Gly),0),0) -> 0 | EG172: =IF(VLOOKUP($CV172,_Afg07,$BX$285)=2,IF($DU172,$D101/IF(_Gly2<>"",_Gly2,Gly),0),0) -> 0 | EH172: =IF(VLOOKUP($CV172,_Afg07,$BX$285)=3,IF($DU172,$D101/IF(_Gly2<>"",_Gly2,Gly),0),0) -> 0 | EI172: =IF(VLOOKUP($CV172,_Afg07,$BY$285)=1,$D101/IF(Såm2<>"",Såm2,Såm),0) -> 0 | EJ172: =IF(VLOOKUP($CV172,_Afg07,$BY$285)=2,$D101/IF(Såm2<>"",Såm2,Såm),0) -> 0 | EK172: =IF(VLOOKUP($CV172,_Afg07,$BY$285)=3,$D101/IF(Såm2<>"",Såm2,Såm),0) -> 0 | EL172: =IF(VLOOKUP($CV172,_Afg07,$CA$285)=1,$D101/IF(_Mej2<>"",_Mej2,Mej)*VLOOKUP($CV172,_Afg07,$CC$285),0) -> 0 | EM172: =IF(VLOOKUP($CV172,_Afg07,$CA$285)=2,$D101/IF(_Mej2<>"",_Mej2,Mej)*VLOOKUP($CV172,_Afg07,$CC$285),0) -> 0 | EN172: =IF(VLOOKUP($CV172,_Afg07,$CA$285)=3,$D101/IF(_Mej2<>"",_Mej2,Mej)*VLOOKUP($CV172,_Afg07,$CC$285),0) -> 0 | EO172: =IF(HalmJa=1,IF(VLOOKUP($CV172,_Afg07,$CB$285)=1,$D101/IF(_Hal3<>"",_Hal3,Hal)+$D101/_Hal2,0),0) -> 0 | EP172: =IF(HalmJa=1,IF(VLOOKUP($CV172,_Afg07,$CB$285)=2,$D101/IF(_Hal3<>"",_Hal3,Hal)+$D101/_Hal2,0),0) -> 0 | EQ172: =IF(VLOOKUP($CV172,_Afg07,$CD$285)=1,$D101/IF(_Enk2<>"",_Enk2,Enk),0) -> 0 | ER172: =IF(VLOOKUP($CV172,_Afg07,$CE$285)=1,$D101/IF(_Kar2<>"",_Kar2,Kar),0) -> 0 | ES172: =IF(VLOOKUP($CV172,_Afg07,$CF$285)=1,$D101/IF(Kopt2<>"",Kopt2,Kopt),0) -> 0 | ET172: =IF(VLOOKUP($CV172,_Afg07,$CG$285)=1,$D101/IF(Ropt2<>"",Ropt2,Ropt),0) -> 0 | EU172: =VLOOKUP($CV172,_Afg07,$CH$285)*$D101/IF(_Gly2<>"",_Gly2,Gly) -> 0 | EV172: =VLOOKUP($CV172,_Afg07,$CI$285)*$D101/IF(Gød2<>"",Gød2,Gød) -> 0
B173: Resultat | D173: =IF(Afgnr>1,IF(D171="",D167+D169+D170,D167+D169+D170+D171),"") -> 5911.329905 | E173: =IF(D173<>"","kr.","") -> kr. | H173: =IF(Alt1nr>1,IF(H171="",H167+H169+H170,H167+H169+H170+H171),"") -> 9864.33831 | I173: =IF(H173<>"","kr.","") -> kr. | L173: =IF(Alt2nr>1,IF(L171="",L167+L169+L170,L167+L169+L170+L171),"") ->  | M173: =IF(L173<>"","kr.","") ->  | AR173: 2024-04-05 | AS173: 48.616 | AT173: 55.616 | AU173: 60.616 | AV173: 67.616 | AW173: 71.616 | BA173: 4153.926829 | BC173: 98.17062547 | BD173: 96.35645626 | BG173: 2024-02-05 | BH173: 9864.33831 | CN173: 0 | CO173: 0 | CP173: 0 | CS173: =VLOOKUP(CV168,$R$288:$S$342,2) -> 0 | CT173: =D97 -> 0 | CW173: Erstatkorn 1, gns. | CX173: =(CX159+CX161+CX163+CX165+CX167+CX169+CX171)/D82 ->  | CY173: =CY159+CY161+CY163+CY165+CY167+CY169+CY171 -> 0 | CZ173: =CZ159+CZ161+CZ163+CZ165+CZ167+CZ169+CZ171 -> 0 | DA173: =CY173/D82 ->  | DB173: =CY173/CZ173 ->  | DC173: =DC159+DC161+DC163+DC165+DC167+DC169+DC171 -> 0 | DG173: 4 | DH173: Gastæt silo | DV173: Sædskifte 1 | DW173: =DW159+DW161+DW163+DW165+DW167+DW169+DW171 -> 0 | DX173: =DX159+DX161+DX163+DX165+DX167+DX169+DX171 -> 0 | DY173: 0 | DZ173: 0 | EA173: 0 | EB173: 0 | EC173: 0 | ED173: 0 | EE173: 0 | EF173: 0 | EG173: 0 | EH173: 0 | EI173: 0 | EJ173: 0 | EK173: 0 | EL173: 0 | EM173: 0 | EN173: 0 | EO173: 0 | EP173: 0 | EQ173: =EQ159+EQ161+EQ163+EQ165+EQ167+EQ169+EQ171 -> 0 | ER173: 0 | ES173: 0 | ET173: 0 | EU173: 0 | EV173: 0 | EW173: =D82*DE_ha*ton_DE/IF(_Gyl2<>"",_Gyl2,Gyl) -> 0
H174: Bruttoudbytte - (ikke afholdte omkostninger) | AR174: 2024-04-06 | AS174: 48.58 | AT174: 55.58 | AU174: 60.58 | AV174: 67.58 | AW174: 71.58 | BA174: 4149.439024 | BC174: 98.11835763 | BD174: 96.25235501 | BG174: 2024-02-06 | BH174: 9864.33831 | CN174: 0 | CO174: 0 | CP174: 0 | CS174: =VLOOKUP(CV170,$R$288:$S$342,2) -> 0 | CT174: =D99 -> 0 | CW174: Erstatkorn 2, gns. | CX174: =(CX160+CX162+CX164+CX166+CX168+CX170+CX172)/D103 ->  | CY174: =CY160+CY162+CY164+CY166+CY168+CY170+CY172 -> 0 | CZ174: =CZ160+CZ162+CZ164+CZ166+CZ168+CZ170+CZ172 -> 0 | DA174: =CY174/D103 ->  | DB174: =CY174/CZ174 ->  | DC174: =DC160+DC162+DC164+DC166+DC168+DC170+DC172 -> 0 | DV174: Sædskifte 2 | DW174: =DW160+DW162+DW164+DW166+DW168+DW170+DW172 -> 0 | DX174: =DX160+DX162+DX164+DX166+DX168+DX170+DX172 -> 0 | DY174: 0 | DZ174: 0 | EA174: 0 | EB174: 0 | EC174: 0 | ED174: 0 | EE174: 0 | EF174: 0 | EG174: 0 | EH174: 0 | EI174: 0 | EJ174: 0 | EK174: 0 | EL174: 0 | EM174: 0 | EN174: 0 | EO174: 0 | EP174: 0 | EQ174: 0 | ER174: 0 | ES174: 0 | ET174: 0 | EU174: 0 | EV174: 0 | EW174: =D103*DE_ha*ton_DE/IF(_Gyl2<>"",_Gyl2,Gyl) -> 0
AR175: 2024-04-07 | AS175: 48.544 | AT175: 55.544 | AU175: 60.544 | AV175: 67.544 | AW175: 71.544 | BA175: 4144.95122 | BC175: 98.06608978 | BD175: 96.14825376 | BG175: 2024-02-07 | BH175: 9864.33831 | CN175: 0 | CO175: 0 | CP175: 0 | CS175: =VLOOKUP(CV172,$R$288:$S$342,2) -> 0 | CT175: =D101 -> 0 | DH175: Tørring korn
B176: Ligevægtspris | H176: =IF(ISERROR(IF(AND(CW139>1,CW139<R340,CV139>1),(($D$173-H173)/H152)+H153,"")),"",IF(AND(CW139>1,CW139<R340,CV139>1),(($D$173-H173)/H152)+H153,"")) -> 280.1588999 | I176: =IF(H176<>"","kr.","") -> kr. | L176: =IF(ISERROR(IF(AND(CX139>1,CX139<R340,CV139>1),(($D$173-L173)/L152)+L153,"")),"",IF(AND(CX139>1,CX139<R340,CV139>1),(($D$173-L173)/L152)+L153,"")) ->  | M176: =IF(L176<>"","kr.","") ->  | AR176: 2024-04-08 | AS176: 48.508 | AT176: 55.508 | AU176: 60.508 | AV176: 67.508 | AW176: 71.508 | BA176: 4140.463415 | BC176: 98.01382194 | BD176: 96.04415251 | BG176: 2024-02-08 | BH176: 9864.33831 | DG176: 1 | DH176: Løntørring | DW176: Forår | DX176: August | DY176: Sept | DZ176: Juli | EA176: August | EB176: Oktober | EC176: Forår | ED176: August | EE176: Sept | EF176: Forår | EG176: August | EH176: Sept | EI176: Forår | EJ176: August | EK176: Sept | EL176: Juli | EM176: August | EN176: Oktober | EO176: Juli | EP176: August | EQ176: Forår | ER176: Forår | ES176: Sept. | ET176: Oktober | EU176: Hele året | EV176: Hele året | EW176: Hele året
B177: Ligevægtsudbytte | H177: =IF(ISERROR(IF(AND(CW139>1,CW139<R340,CV139>1),(($D$173-H173)/H153)+H152,"")),"",IF(AND(CW139>1,CW139<R340,CV139>1),(($D$173-H173)/H153)+H152,"")) -> 33.3161935 | I177: =IF(H177<>"",VLOOKUP(CW139,_Afg07,3),"") -> hkg | L177: =IF(ISERROR(IF(AND(CX139>1,CX139<R340,CV139>1),(($D$173-L173)/L153)+L152,"")),"",IF(AND(CX139>1,CX139<R340,CV139>1),(($D$173-L173)/L153)+L152,"")) ->  | M177: =IF(L177<>"",VLOOKUP(CX139,_Afg07,3),"") ->  | AR177: 2024-04-09 | AS177: 48.472 | AT177: 55.472 | AU177: 60.472 | AV177: 67.472 | AW177: 71.472 | BA177: 4135.97561 | BC177: 97.9615541 | BD177: 95.94005126 | BG177: 2024-02-09 | BH177: 9864.33831 | BJ177: =IF(BG177>=$V$136+$V$137,$L$173,"") ->  | DG177: 2 | DH177: Eget tørreri
AR178: 2024-04-10 | AS178: 48.436 | AT178: 55.436 | AU178: 60.436 | AV178: 67.436 | AW178: 71.436 | BA178: 4131.487805 | BC178: 97.90928625 | BD178: 95.83595001 | BG178: 2024-02-10 | BH178: 9864.33831 | BJ178: =IF(BG178>=$V$136+$V$137,$L$173,"") ->  | CW178: Jordtyper
AR179: 2024-04-11 | AS179: 48.4 | AT179: 55.4 | AU179: 60.4 | AV179: 67.4 | AW179: 71.4 | BA179: 4127 | BC179: 97.85701841 | BD179: 95.73184876 | BG179: 2024-02-11 | BH179: 9864.33831 | CW179: 1 | CX179: JB 1+3 | DH179: Foderenheder
B180: =IF(FEnr=1,"Foderenheder pr. ha","") ->  | D180: =IF(AND(Afgnr>1,FEnr=1),IF(VLOOKUP(Afgnr,_Afg07,$BU$285)=1,D152*VLOOKUP(Afgnr,_Afg07,$BT$285),IF(VLOOKUP(Afgnr,_Afg07,$BU$285)=3,$DA$173*VLOOKUP(1,Foderkorn,$BT$285),IF(VLOOKUP(Afgnr,_Afg07,$BU$285)=4,$DA$174*VLOOKUP(2,Foderkorn,$BT$285),""))),"") ->  | E180: =IF(D180<>"","FEsv","") ->  | H180: =IF(AND(Alt1nr>1,FEnr=1),IF(VLOOKUP(Alt1nr,_Afg07,$BU$285)=1,H152*VLOOKUP(Alt1nr,_Afg07,$BT$285),IF(VLOOKUP(Alt1nr,_Afg07,$BU$285)=3,$DA$173*VLOOKUP(1,Foderkorn,$BT$285),IF(VLOOKUP(Alt1nr,_Afg07,$BU$285)=4,$DA$174*VLOOKUP(2,Foderkorn,$BT$285),""))),"") ->  | I180: =IF(H180<>"","FEsv","") ->  | L180: =IF(AND(Alt2nr>1,FEnr=1),IF(VLOOKUP(Alt2nr,_Afg07,$BU$285)=1,L152*VLOOKUP(Alt2nr,_Afg07,$BT$285),IF(VLOOKUP(Alt2nr,_Afg07,$BU$285)=3,$DA$173*VLOOKUP(1,Foderkorn,$BT$285),IF(VLOOKUP(Alt2nr,_Afg07,$BU$285)=4,$DA$174*VLOOKUP(2,Foderkorn,$BT$285),""))),"") ->  | M180: =IF(L180<>"","FEsv","") ->  | AR180: 2024-04-12 | AS180: 47.8 | AT180: 54.8 | AU180: 59.8 | AV180: 66.8 | AW180: 70.8 | BA180: =BA$179-($BA$179-$BA$201)/($AO$142-$AO$141)*($AR180-$AO$141) -> 4052.181818 | BC180: 96.98588768 | BD180: 93.99633074 | BG180: 2024-02-12 | BH180: 9864.33831 | CW180: 2 | CX180: JB 2+4 | DG180: 1 | DH180: Vis
B181: =IF(OR(Lagernr=1,FEnr=2),"",IF(Lagernr=BQ285,"Lager (planlager)",IF(Lagernr=BR285,"Lager (stålsilo)","Lager (gastæt silo)"))) ->  | D181: =IF(AND(Afgnr>1,FEnr=1,Lagernr<>1),IF(VLOOKUP(Afgnr,_Afg07,$BU$285)=1,-D152*VLOOKUP(Afgnr,_Afg07,Lagernr)/D180,IF(VLOOKUP(Afgnr,_Afg07,$BU$285)=3,-$DA$173*VLOOKUP(1,Foderkorn,Lagernr)/D180,IF(VLOOKUP(Afgnr,_Afg07,$BU$285)=4,-$DA$174*VLOOKUP(2,Foderkorn,Lagernr)/D180,""))),"") ->  | E181: =IF(D181<>"","kr./FEsv","") ->  | H181: =IF(AND(Alt1nr>1,FEnr=1,Lagernr<>1),IF(VLOOKUP(Alt1nr,_Afg07,$BU$285)=1,-H152*VLOOKUP(Alt1nr,_Afg07,Lagernr)/H180,IF(VLOOKUP(Alt1nr,_Afg07,$BU$285)=3,-$DA$173*VLOOKUP(1,Foderkorn,Lagernr)/H180,IF(VLOOKUP(Alt1nr,_Afg07,$BU$285)=4,-$DA$174*VLOOKUP(2,Foderkorn,Lagernr)/H180,""))),"") ->  | I181: =IF(H181<>"","kr./FEsv","") ->  | L181: =IF(AND(Alt2nr>1,FEnr=1,Lagernr<>1),IF(VLOOKUP(Alt2nr,_Afg07,$BU$285)=1,-L152*VLOOKUP(Alt2nr,_Afg07,Lagernr)/L180,IF(VLOOKUP(Alt2nr,_Afg07,$BU$285)=3,-$DA$173*VLOOKUP(1,Foderkorn,Lagernr)/L180,IF(VLOOKUP(Alt2nr,_Afg07,$BU$285)=4,-$DA$174*VLOOKUP(2,Foderkorn,Lagernr)/L180,""))),"") ->  | M181: =IF(L181<>"","kr./FEsv","") ->  | AR181: 2024-04-13 | AS181: =IF($AR181=$AO$140,AS$136,IF($AR181<$AO$140,IF($AR181>=$AO$141,AS$136+(($AO$140-$AR181)*$AP$142/100),AS$136+(($AO$140-$AO$141)*$AP$142/100)+(($AO$141-$AR181)*$AP$141/100)),IF($AR181<$AO$142,AS$136-(($AR181-$AO$140)*$AP$142/100),AS$136-(($AO$142-$AO$140)*$AP$142/100)-(($AR181-$AO$142)*$AP$143/100)))) -> 47.2 | AT181: 54.2 | AU181: 59.2 | AV181: 66.2 | AW181: 70.2 | BA181: =BA$179-($BA$179-$BA$201)/($AO$142-$AO$141)*($AR181-$AO$141) -> 3977.363636 | BC181: 96.11475695 | BD181: 92.26081272 | BG181: 2024-02-13 | BH181: 9864.33831 | CW181: 3 | CX181: JB 1-4 vandet | DG181: 2 | DH181: Vis ikke
B182: =IF(AND(FEnr=1,Lagernr<>1),"Omkostninger ab lager","") ->  | D182: =IF(AND(Afgnr>1,FEnr=1,Lagernr<>1,VLOOKUP(Afgnr,_Afg07,$BU$285,)=1),(D165+D169+D170)/D180+D181,IF(AND(Afgnr>1,FEnr=1,Lagernr<>1,VLOOKUP(Afgnr,_Afg07,$BU$285,)=3),-D$607*$CZ$173/$D$82/D$180+D181,IF(AND(Afgnr>1,FEnr=1,Lagernr<>1,VLOOKUP(Afgnr,_Afg07,$BU$285,)=4),-D$607*$CZ$174/$D$103/D$180+D181,""))) ->  | E182: =IF(D182<>"","kr./FEsv","") ->  | H182: =IF(AND(Alt1nr>1,FEnr=1,Lagernr<>1,VLOOKUP(Alt1nr,_Afg07,$BU$285,)=1),(H165+H169+H170)/H180+H181,IF(AND(Alt1nr>1,FEnr=1,Lagernr<>1,VLOOKUP(Alt1nr,_Afg07,$BU$285,)=3),-H$607*$CZ$173/$D$82/H$180+H181,IF(AND(Alt1nr>1,FEnr=1,Lagernr<>1,VLOOKUP(Alt1nr,_Afg07,$BU$285,)=4),-H$607*$CZ$174/$D$103/H$180+H181,""))) ->  | I182: =IF(H182<>"","kr./FEsv","") ->  | L182: =IF(AND(Alt2nr>1,FEnr=1,Lagernr<>1,VLOOKUP(Alt2nr,_Afg07,$BU$285,)=1),(L165+L169+L170)/L180+L181,IF(AND(Alt2nr>1,FEnr=1,Lagernr<>1,VLOOKUP(Alt2nr,_Afg07,$BU$285,)=3),-L$607*$CZ$173/$D$82/L$180+L181,IF(AND(Alt2nr>1,FEnr=1,Lagernr<>1,VLOOKUP(Alt2nr,_Afg07,$BU$285,)=4),-L$607*$CZ$174/$D$103/L$180+L181,""))) ->  | M182: =IF(L182<>"","kr./FEsv","") ->  | AR182: 2024-04-14 | AS182: 46.6 | AT182: 53.6 | AU182: 58.6 | AV182: 65.6 | AW182: 69.6 | BA182: 3902.545455 | BC182: 95.24362623 | BD182: 90.5252947 | BG182: 2024-02-14 | BH182: 9864.33831 | CW182: 4 | CX182: JB 5-6
AR183: 2024-04-15 | AS183: 46 | AT183: 53 | AU183: 58 | AV183: 65 | AW183: 69 | BA183: 3827.727273 | BC183: 94.3724955 | BD183: 88.78977668 | BG183: 2024-02-15 | BH183: 9864.33831 | CW183: 5 | CX183: JB 7-9
AR184: 2024-04-16 | AS184: 45.4 | AT184: 52.4 | AU184: 57.4 | AV184: 64.4 | AW184: 68.4 | BA184: 3752.909091 | BC184: 93.50136477 | BD184: 87.05425866 | BG184: 2024-02-16 | BH184: 9864.33831 | BI184: =IF(AND(BG184>=$V$136,BG184<$V$136+$V$137),$H$173-(BG184-$V$136+1)*($H$173-$L$173)/$V$137,"") -> 
B185: Kvælstof (normtilførsel) | D185: =IF(Afgnr>1,VLOOKUP(Afgnr,_Afg07,Nnr),"") -> 210 | E185: =IF(D185<>"","kg N","") -> kg N | H185: =IF(Alt1nr>1,VLOOKUP(Alt1nr,_Afg07,Nnr),"") -> 210 | I185: =IF(H185<>"","kg N","") -> kg N | L185: =IF(Alt2nr>1,VLOOKUP(Alt2nr,_Afg07,Nnr),"") -> 144 | M185: =IF(L185<>"","kg N","") -> kg N | S185: =IF($C$43="","","Når man opretter 'egen afgrøde' angives niveauer for N,P,K ikke alene på baggrund af beregnede bortførte mængde, der indgår også indtastede tilførte mængder for 'egen afgrøde'.") ->  | AR185: 2024-04-17 | AS185: 44.8 | AT185: 51.8 | AU185: 56.8 | AV185: 63.8 | AW185: 67.8 | BA185: 3678.090909 | BC185: 92.63023404 | BD185: 85.31874064 | BG185: 2024-02-17 | BH185: 9864.33831 | BI185: =IF(AND(BG185>=$V$136,BG185<$V$136+$V$137),$H$173-(BG185-$V$136+1)*($H$173-$L$173)/$V$137,"") ->  | CW185: Halm anvendelse
B186: Fosfor (bortførsel + startgødn.) | D186: =IF(Afgnr>1,(D563+D564+D565+D566)/Ppris,"") -> 36.036 | E186: =IF(D186<>"","kg P","") -> kg P | H186: =IF(Alt1nr>1,(H563+H564+H565+H566)/Ppris,"") -> 36.036 | I186: =IF(H186<>"","kg P","") -> kg P | L186: =IF(Alt2nr>1,(L563+L564+L565+L566)/Ppris,"") -> 26.1725 | M186: =IF(L186<>"","kg P","") -> kg P | AR186: 2024-04-18 | AS186: 44.2 | AT186: 51.2 | AU186: 56.2 | AV186: 63.2 | AW186: 67.2 | BA186: 3603.272727 | BC186: 91.75910332 | BD186: 83.58322262 | BG186: 2024-02-18 | CX186: Bjærges
B187: Kalium (bortførsel) | D187: =IF(Afgnr>1,(D570+D571+D572)/Kpris,"") -> 60.06 | E187: =IF(D187<>"","kg K","") -> kg K | H187: =IF(Alt1nr>1,(H570+H571+H572)/Kpris,"") -> 60.06 | I187: =IF(H187<>"","kg K","") -> kg K | L187: =IF(Alt2nr>1,(L570+L571+L572)/Kpris,"") -> 61.6675 | M187: =IF(L187<>"","kg K","") -> kg K | AR187: 2024-04-19 | AS187: 43.6 | AT187: 50.6 | AU187: 55.6 | AV187: 62.6 | AW187: 66.6 | BA187: 3528.454545 | BC187: 90.88797259 | BD187: 81.8477046 | BG187: 2024-02-19 | CX187: Nedmuldes
AR188: 2024-04-20 | AS188: 43 | AT188: 50 | AU188: 55 | AV188: 62 | AW188: 66 | BA188: 3453.636364 | BC188: 90.01684186 | BD188: 80.11218658 | BG188: 2024-02-20
AR189: 2024-04-21 | AS189: 42.4 | AT189: 49.4 | AU189: 54.4 | AV189: 61.4 | AW189: 65.4 | BA189: 3378.818182 | BC189: 89.14571113 | BD189: 78.37666856 | BG189: 2024-02-21 | CW189: Kornsælger eller -køber
G190: =IF(OR($CV$139=$R$340,$CW$139=$R$340,$CX$139=$R$340,$CY$139=$R$340),$S$340,"") ->  | AR190: 2024-04-22 | AS190: 41.8 | AT190: 48.8 | AU190: 53.8 | AV190: 60.8 | AW190: 64.8 | BA190: 3304 | BC190: 88.27458041 | BD190: 76.64115055 | BG190: 2024-02-22 | CX190: Sælger | DG190: Plove | DM190: Stubharver | DR190: Mejetærsker | DU190: Såmaskiner | DY190: Halmpresser | ED190: Kartoffellægger | EG190: ha/time
G191: =IF($G$190="Sædskifte 1",IF($CV$159>1,VLOOKUP($CV$159,_Afg07,2),""),"") ->  | I191: =IF($G$190="Sædskifte 1",IF($CV$159>1,$D$68,""),"") ->  | J191: =IF(I191<>"","ha","") ->  | K191: =IF($G$190="Sædskifte 1",IF($CV$159>1,IF($F$68<>"",$F$68,$G$68),""),"") ->  | L191: =IF(K191<>"",H68,"") ->  | M191: =IF($G$190="Sædskifte 1",IF($CV$159>1,IF($I$68<>"",$I$68,$K$68),""),"") ->  | N191: =IF(M191<>"","kr.","") ->  | AR191: 2024-04-23 | AS191: =IF($AR191=$AO$140,AS$136,IF($AR191<$AO$140,IF($AR191>=$AO$141,AS$136+(($AO$140-$AR191)*$AP$142/100),AS$136+(($AO$140-$AO$141)*$AP$142/100)+(($AO$141-$AR191)*$AP$141/100)),IF($AR191<$AO$142,AS$136-(($AR191-$AO$140)*$AP$142/100),AS$136-(($AO$142-$AO$140)*$AP$142/100)-(($AR191-$AO$142)*$AP$143/100)))) -> 41.2 | AT191: 48.2 | AU191: 53.2 | AV191: 60.2 | AW191: 64.2 | BA191: 3229.181818 | BC191: 87.40344968 | BD191: 74.90563253 | BG191: 2024-02-23 | CX191: Køber | DH191: Type | DI191: Kapacitet, ha/time | DJ191: Lav-høj anvendelse, antal ha | DN191: Type | DO191: Kapacitet, ha/time | DP191: Lav-høj anvendelse, antal ha | DS191: Type | DV191: Type | DW191: Kapacitet, ha/time | DZ191: Type | EA191: Kapacitet, ha/time | EB191: Transport, ha/time | ED191: 1 | EE191: 4 rækker u/ gødningsudstyr | EG191: 0.7
G192: =IF($G$190="Sædskifte 1",IF($CV$161>1,VLOOKUP($CV$161,_Afg07,2),""),"") ->  | I192: =IF($G$190="Sædskifte 1",IF($CV$161>1,$D$70,""),"") ->  | K192: =IF($G$190="Sædskifte 1",IF($CV$161>1,IF($F$70<>"",$F$70,$G$70),""),"") ->  | L192: =IF(K192<>"",H70,"") ->  | M192: =IF($G$190="Sædskifte 1",IF($CV$161>1,IF($I$70<>"",$I$70,$K$70),""),"") ->  | AR192: 2024-04-24 | AS192: 40.6 | AT192: 47.6 | AU192: 52.6 | AV192: 59.6 | AW192: 63.6 | BA192: 3154.363636 | BC192: 86.53231895 | BD192: 73.17011451 | BG192: 2024-02-24 | DG192: 1 | DH192: Vendeplov 4 fure | DI192: 0.9 | DJ192: 70-140 ha | DM192: 1 | DN192: Stubharve 4 m (let) | DO192: 2.9 | DP192: 200-400 ha | DR192: 1 | DS192: Mejetærsker 5,4 m | DT192: 1.7 | DU192: 1 | DV192: Kombiharve/såmaskine 3,0 m | DW192: 2.4 | DY192: 1 | DZ192: Minibigballer 1,5 kbm | EA192: 4.9 | EB192: 2 | ED192: 2 | EE192: 4 rækker m/ gødningsudstyr | EG192: 0.7
G193: =IF($G$190="Sædskifte 1",IF($CV$163>1,VLOOKUP($CV$163,_Afg07,2),""),"") ->  | I193: =IF($G$190="Sædskifte 1",IF($CV$163>1,$D$72,""),"") ->  | K193: =IF($G$190="Sædskifte 1",IF($CV$163>1,IF($F$72<>"",$F$72,$G$72),""),"") ->  | L193: =IF(K193<>"",H72,"") ->  | M193: =IF($G$190="Sædskifte 1",IF($CV$163>1,IF($I$72<>"",$I$72,$K$72),""),"") ->  | AR193: 2024-04-25 | AS193: 40 | AT193: 47 | AU193: 52 | AV193: 59 | AW193: 63 | BA193: 3079.545455 | BC193: 85.66118822 | BD193: 71.43459649 | BG193: 2024-02-25 | CW193: Husdyrgødning | DG193: 2 | DH193: Vendeplov 5 fure | DI193: 1.1 | DJ193: 85-170 ha | DM193: 2 | DN193: Stubharve 4 m (tung) | DO193: 2.7 | DP193: 200-400 ha | DR193: 2 | DS193: Mejetærsker 6,0 m | DT193: 1.9 | DU193: 2 | DV193: Kombiharve/såmaskine 4,0 m | DW193: 2.9 | DY193: 2 | DZ193: Bigballer 3,5 kbm | EA193: 5.3 | EB193: 3.2
G194: =IF($G$190="Sædskifte 1",IF($CV$165>1,VLOOKUP($CV$165,_Afg07,2),""),"") ->  | I194: =IF($G$190="Sædskifte 1",IF($CV$165>1,$D$74,""),"") ->  | K194: =IF($G$190="Sædskifte 1",IF($CV$165>1,IF($F$74<>"",$F$74,$G$74),""),"") ->  | L194: =IF(K194<>"",H74,"") ->  | M194: =IF($G$190="Sædskifte 1",IF($CV$165>1,IF($I$74<>"",$I$74,$K$74),""),"") ->  | AR194: 2024-04-26 | AS194: 39.4 | AT194: 46.4 | AU194: 51.4 | AV194: 58.4 | AW194: 62.4 | BA194: 3004.727273 | BC194: 84.79005749 | BD194: 69.69907847 | BG194: 2024-02-26 | CX194: Uden | DG194: 3 | DH194: Vendeplov 8 fure | DI194: 1.6 | DJ194: 120-240 ha | DM194: 3 | DN194: Stubharve 6 m (tung) | DO194: 4 | DP194: 400-800 ha | DR194: 3 | DS194: Mejetærsker 7,5 m | DT194: 2.7 | DU194: 3 | DV194: Radsåmaskine 3,0 m | DW194: 1.7 | ED194: Kartoffeloptager | EG194: ha/time
G195: =IF($G$190="Sædskifte 1",IF($CV$167>1,VLOOKUP($CV$167,_Afg07,2),""),"") ->  | I195: =IF($G$190="Sædskifte 1",IF($CV$167>1,$D$76,""),"") ->  | K195: =IF($G$190="Sædskifte 1",IF($CV$167>1,IF($F$76<>"",$F$76,$G$76),""),"") ->  | L195: =IF(K195<>"",H76,"") ->  | M195: =IF($G$190="Sædskifte 1",IF($CV$167>1,IF($I$76<>"",$I$76,$K$76),""),"") ->  | AR195: 2024-04-27 | AS195: 38.8 | AT195: 45.8 | AU195: 50.8 | AV195: 57.8 | AW195: 61.8 | BA195: 2929.909091 | BC195: 83.91892677 | BD195: 67.96356045 | BG195: 2024-02-27 | CX195: Med | DG195: 4 | DH195: Vendeplov 12 fure | DI195: 2.3 | DJ195: 175-350 ha | DM195: 4 | DN195: Tallerken / disc 4 m | DO195: 2.8 | DP195: 280-560 ha | DR195: 4 | DS195: Mejetærsker 9,0 m | DT195: 3.3 | DU195: 4 | DV195: Radsåmaskine 4,0 m | DW195: 2.1 | DY195: Gyllevogn | EB195: ton/time | ED195: 1 | EE195: 2 rk frilægger | EG195: 0.8
G196: =IF($G$190="Sædskifte 1",IF($CV$169>1,VLOOKUP($CV$169,_Afg07,2),""),"") ->  | I196: =IF($G$190="Sædskifte 1",IF($CV$169>1,$D$78,""),"") ->  | K196: =IF($G$190="Sædskifte 1",IF($CV$169>1,IF($F$78<>"",$F$78,$G$78),""),"") ->  | L196: =IF(K196<>"",H78,"") ->  | M196: =IF($G$190="Sædskifte 1",IF($CV$169>1,IF($I$78<>"",$I$78,$K$78),""),"") ->  | AR196: 2024-04-28 | AS196: 38.2 | AT196: 45.2 | AU196: 50.2 | AV196: 57.2 | AW196: 61.2 | BA196: 2855.090909 | BC196: 83.04779604 | BD196: 66.22804243 | BG196: 2024-02-28 | DM196: 5 | DN196: Tallerken / disc 6 m | DO196: 4.1 | DP196: 410-820 ha | DR196: 5 | DS196: Mejetærsker 10,5 m | DT196: 4 | DU196: 5 | DV196: Rotorharve/såmaskine 4,0 m | DW196: 1.5 | DY196: 1 | DZ196: Slæbeslanger 16 m / 15 ton | EB196: 51 | ED196: 2 | EE196: 1 rk m/ tank/stensep. | EG196: 0.3
G197: =IF($G$190="Sædskifte 1",IF($CV$171>1,VLOOKUP($CV$171,_Afg07,2),""),"") ->  | I197: =IF($G$190="Sædskifte 1",IF($CV$171>1,$D$80,""),"") ->  | K197: =IF($G$190="Sædskifte 1",IF($CV$171>1,IF($F$80<>"",$F$80,$G$80),""),"") ->  | L197: =IF(K197<>"",H80,"") ->  | M197: =IF($G$190="Sædskifte 1",IF($CV$171>1,IF($I$80<>"",$I$80,$K$80),""),"") ->  | AR197: 2024-04-29 | AS197: 37.6 | AT197: 44.6 | AU197: 49.6 | AV197: 56.6 | AW197: 60.6 | BA197: 2780.272727 | BC197: 82.17666531 | BD197: 64.49252441 | BG197: 2024-02-29 | CW197: Forfrugtsværdi | DG197: Såbedsharver | DM197: Marksprøjte | DU197: 6 | DV197: Rotorharve/såmaskine 6,0 m | DW197: 2.6 | DY197: 2 | DZ197: Slæbeslanger 24 m / 20 ton | EB197: 60 | ED197: 3 | EE197: Selvkørende 2 rk m/ tank | EG197: 0.9
AR198: 2024-04-30 | AS198: 37 | AT198: 44 | AU198: 49 | AV198: 56 | AW198: 60 | BA198: 2705.454545 | BC198: 81.30553458 | BD198: 62.75700639 | BG198: 2024-03-01 | CX198: Ja | DH198: Type | DI198: Kapacitet, ha/time | DN198: Type | DO198: Kapacitet, ha/time | DU198: 7 | DV198: Skiveskærmaskine 4 m | DW198: 2.8 | DY198: 3 | DZ198: Slæbeslanger 24 m / 25 ton | EB198: 66
G199: =IF(OR(CV139=R341,CW139=R341,CX139=R341,CY139=R341),S341,"") ->  | AR199: 2024-05-01 | AS199: 36.4 | AT199: 43.4 | AU199: 48.4 | AV199: 55.4 | AW199: 59.4 | BA199: 2630.636364 | BC199: 80.43440386 | BD199: 61.02148837 | BG199: 2024-03-02 | CX199: Nej | DG199: 1 | DH199: Såbedsharve 4,5 m | DI199: 3.3 | DM199: 1 | DN199: Sprøjte 24 m, 2800 liter | DO199: 5.3 | DU199: 8 | DV199: Skiveskærmaskine 6 m | DW199: 3.8 | DY199: 4 | DZ199: Nedfælder 6,0 m / 25 ton | EB199: 54
G200: =IF($G$199="Sædskifte 2",IF(CV160>1,VLOOKUP(CV160,_Afg07,2),""),"") ->  | I200: =IF($G$199="Sædskifte 2",IF(CV160>1,D89,""),"") ->  | J200: =IF(I200<>"","ha","") ->  | K200: =IF($G$199="Sædskifte 2",IF($CV160>1,IF(F89<>"",F89,G89),""),"") ->  | L200: =IF(K200<>"",H89,"") ->  | M200: =IF($G$199="Sædskifte 2",IF($CV160>1,IF(I89<>"",I89,K89),""),"") ->  | N200: =IF(M200<>"","kr.","") ->  | AR200: 2024-05-02 | AS200: 35.8 | AT200: 42.8 | AU200: 47.8 | AV200: 54.8 | AW200: 58.8 | BA200: 2555.818182 | BC200: 79.56327313 | BD200: 59.28597035 | BG200: 2024-03-03 | DG200: 2 | DH200: Såbedsharve 6,4 m | DI200: 4.7 | DM200: 2 | DN200: Sprøjte 24 m, 4000 liter | DO200: 7 | DU200: 9 | DV200: Tandskærsmaskine 4 m | DW200: 2.1 | DY200: 5 | DZ200: Nedfælder 7,5 m / 25 ton | EB200: 60
G201: =IF($G$199="Sædskifte 2",IF(CV162>1,VLOOKUP(CV162,_Afg07,2),""),"") ->  | I201: =IF($G$199="Sædskifte 2",IF(CV162>1,D91,""),"") ->  | K201: =IF($G$199="Sædskifte 2",IF($CV162>1,IF(F91<>"",F91,G91),""),"") ->  | L201: =IF(K201<>"",H91,"") ->  | M201: =IF($G$199="Sædskifte 2",IF($CV162>1,IF(I91<>"",I91,K91),""),"") ->  | N201: =IF(M201<>"","kr.","") ->  | AR201: 2024-05-03 | AS201: =IF($AR201=$AO$140,AS$136,IF($AR201<$AO$140,IF($AR201>=$AO$141,AS$136+(($AO$140-$AR201)*$AP$142/100),AS$136+(($AO$140-$AO$141)*$AP$142/100)+(($AO$141-$AR201)*$AP$141/100)),IF($AR201<$AO$142,AS$136-(($AR201-$AO$140)*$AP$142/100),AS$136-(($AO$142-$AO$140)*$AP$142/100)-(($AR201-$AO$142)*$AP$143/100)))) -> 35.2 | AT201: 42.2 | AU201: 47.2 | AV201: 54.2 | AW201: 58.2 | BA201: 2481 | BC201: 78.6921424 | BD201: 57.55045233 | BG201: 2024-03-04 | DG201: 3 | DH201: Såbedsharve 9,1 m | DI201: 6.6 | DM201: 3 | DN201: Sprøjte 36 m, 4000 liter | DO201: 9 | DU201: 10 | DV201: Tandskærsmaskine 6 m | DW201: 2.8 | DY201: 6 | DZ201: Selvkør. nedfælder 9 m/16 ton | EB201: 51 | ED201: Roeoptager | EG201: ha/time
G202: =IF($G$199="Sædskifte 2",IF(CV164>1,VLOOKUP(CV164,_Afg07,2),""),"") ->  | I202: =IF($G$199="Sædskifte 2",IF(CV164>1,D93,""),"") ->  | K202: =IF($G$199="Sædskifte 2",IF($CV164>1,IF(F93<>"",F93,G93),""),"") ->  | L202: =IF(K202<>"",H93,"") ->  | M202: =IF($G$199="Sædskifte 2",IF($CV164>1,IF(I93<>"",I93,K93),""),"") ->  | AR202: 2024-05-04 | AS202: 34.11 | AT202: 41.11 | AU202: 46.11 | AV202: 53.11 | AW202: 57.11 | BA202: =BA$201-($BA$201-$BA$219)/($AO$143-$AO$142)*($AR202-$AO$142) -> 2345.055556 | BC202: 77.10958825 | BD202: 54.39702054 | BG202: 2024-03-05 | DG202: 4 | DH202: Tallerken / disc 4 m | DI202: 2.8 | DM202: 4 | DN202: Sprøjte m/luft 24 m, 4400 liter | DO202: 8 | ED202: 1 | EE202: Selvkørende 6 rk > 40 kbm tank | EG202: 1.3
G203: =IF($G$199="Sædskifte 2",IF(CV166>1,VLOOKUP(CV166,_Afg07,2),""),"") ->  | I203: =IF($G$199="Sædskifte 2",IF(CV166>1,D95,""),"") ->  | K203: =IF($G$199="Sædskifte 2",IF($CV166>1,IF(F95<>"",F95,G95),""),"") ->  | L203: =IF(K203<>"",H95,"") ->  | M203: =IF($G$199="Sædskifte 2",IF($CV166>1,IF(I95<>"",I95,K95),""),"") ->  | AR203: 2024-05-05 | AS203: 33.02 | AT203: 40.02 | AU203: 45.02 | AV203: 52.02 | AW203: 56.02 | BA203: =BA$201-($BA$201-$BA$219)/($AO$143-$AO$142)*($AR203-$AO$142) -> 2209.111111 | BC203: =AV203/$AV$138*100 -> 75.52703409 | BD203: 51.24358875 | BG203: 2024-03-06 | BH203: =IF(BG203<$V$136,$H$173,"") ->  | DG203: 5 | DH203: Tallerken / disc 6 m | DI203: 4.1 | DU203: Enkorn | DW203: ha/time | DY203: Gødningsspreder | EB203: ha/time | ED203: 2 | EE203: 3 rk 12 kbm tank | EG203: 0.7
G204: =IF($G$199="Sædskifte 2",IF(CV168>1,VLOOKUP(CV168,_Afg07,2),""),"") ->  | I204: =IF($G$199="Sædskifte 2",IF(CV168>1,D97,""),"") ->  | K204: =IF($G$199="Sædskifte 2",IF($CV168>1,IF(F97<>"",F97,G97),""),"") ->  | L204: =IF(K204<>"",H97,"") ->  | M204: =IF($G$199="Sædskifte 2",IF($CV168>1,IF(I97<>"",I97,K97),""),"") ->  | AR204: 2024-05-06 | AS204: 31.93 | AT204: 38.93 | AU204: 43.93 | AV204: 50.93 | AW204: 54.93 | BA204: 2073.166667 | BC204: 73.94447993 | BD204: 48.09015696 | BG204: 2024-03-07 | DU204: 1 | DV204: 12 rækker | DW204: 2.6 | DY204: 1 | DZ204: Liftophængt 24 m / 3 ton | EB204: 6
G205: =IF($G$199="Sædskifte 2",IF(CV170>1,VLOOKUP(CV170,_Afg07,2),""),"") ->  | I205: =IF($G$199="Sædskifte 2",IF(CV170>1,D99,""),"") ->  | K205: =IF($G$199="Sædskifte 2",IF($CV170>1,IF(F99<>"",F99,G99),""),"") ->  | L205: =IF(K205<>"",H99,"") ->  | M205: =IF($G$199="Sædskifte 2",IF($CV170>1,IF(I99<>"",I99,K99),""),"") ->  | AR205: 2024-05-07 | AS205: 30.84 | AT205: 37.84 | AU205: 42.84 | AV205: 49.84 | AW205: 53.84 | BA205: 1937.222222 | BC205: 72.36192578 | BD205: 44.93672517 | BG205: 2024-03-08 | DY205: 2 | DZ205: Bugseret 20 m / 10 ton | EB205: 9
G206: =IF($G$199="Sædskifte 2",IF(CV172>1,VLOOKUP(CV172,_Afg07,2),""),"") ->  | I206: =IF($G$199="Sædskifte 2",IF(CV172>1,D101,""),"") ->  | K206: =IF($G$199="Sædskifte 2",IF($CV172>1,IF(F101<>"",F101,G101),""),"") ->  | L206: =IF(K206<>"",H101,"") ->  | M206: =IF($G$199="Sædskifte 2",IF($CV172>1,IF(I101<>"",I101,K101),""),"") ->  | AR206: 2024-05-08 | AS206: 29.75 | AT206: 36.75 | AU206: 41.75 | AV206: 48.75 | AW206: 52.75 | BA206: 1801.277778 | BC206: 70.77937162 | BD206: 41.78329338 | BG206: 2024-03-09 | DY206: 3 | DZ206: Bugseret 16 m / 5 ton | EB206: 7.8
G207: Egen afgrøde: | I207: =C43 -> 0 | AR207: 2024-05-09 | AS207: 28.66 | AT207: 35.66 | AU207: 40.66 | AV207: 47.66 | AW207: 51.66 | BA207: 1665.333333 | BC207: 69.19681747 | BD207: 38.62986159 | BG207: 2024-03-10
AR208: 2024-05-10 | AS208: 27.57 | AT208: 34.57 | AU208: 39.57 | AV208: 46.57 | AW208: 50.57 | BA208: 1529.388889 | BC208: 67.61426331 | BD208: 35.4764298 | BG208: 2024-03-11
B209: ="Jordtypen er "&IF(JBnr=1,"JB 1+3",IF(JBnr=2,"JB 2+4",IF(JBnr=3,"JB 1-4, vandet",IF(JBnr=4,"JB 5-6","JB 7-9")))) -> Jordtypen er JB 5-6 | D209: =IF(Hdgnr=1,"Ingen husdyrgødning","Husdyrgødning fra "&VLOOKUP(Hdgnr,_Hdg2,2)) -> Husdyrgødning fra 30 kg N kvæg | I209: =IF(OR(AND(Afgnr<>1,D557<1),AND(Alt1nr<>1,H557<1),AND(Alt2nr<>1,L557<1)),"Der tildeles mere N fra husdyrgødning end behovet","") ->  | AR209: 2024-05-11 | AS209: 26.48 | AT209: 33.48 | AU209: 38.48 | AV209: 45.48 | AW209: 49.48 | BA209: 1393.444444 | BC209: 66.03170916 | BD209: 32.32299802 | BG209: 2024-03-12
B210: =IF(HalmJa=1,"Halmen bjærges","Halmen nedmuldes") -> Halmen bjærges | D210: =IF(Købernr=1,"Bedriften er netto kornsælger","Bedriften er netto kornkøber") -> Bedriften er netto kornsælger | I210: =IF(OR(AND(Afgnr<>1,D557<1),AND(Alt1nr<>1,H557<1),AND(Alt2nr<>1,L557<1)),"i alternativ: ","")&IF(AND(D557<1,Afgnr<>1),F151&", ","")&IF(AND(H557<1,Alt1nr<>1),I151&", ","")&IF(AND(L557<1,Alt2nr<>1),M151,"") ->  | AR210: 2024-05-12 | AS210: 25.39 | AT210: 32.39 | AU210: 37.39 | AV210: 44.39 | AW210: 48.39 | BA210: 1257.5 | BC210: 64.449155 | BD210: 29.16956623 | BG210: 2024-03-13
AR211: 2024-05-13 | AS211: =IF($AR211=$AO$140,AS$136,IF($AR211<$AO$140,IF($AR211>=$AO$141,AS$136+(($AO$140-$AR211)*$AP$142/100),AS$136+(($AO$140-$AO$141)*$AP$142/100)+(($AO$141-$AR211)*$AP$141/100)),IF($AR211<$AO$142,AS$136-(($AR211-$AO$140)*$AP$142/100),AS$136-(($AO$142-$AO$140)*$AP$142/100)-(($AR211-$AO$142)*$AP$143/100)))) -> 24.3 | AT211: 31.3 | AU211: 36.3 | AV211: 43.3 | AW211: 47.3 | BA211: 1121.555556 | BC211: 62.86660085 | BD211: 26.01613444 | BG211: 2024-03-14
AR212: 2024-05-14 | AS212: 23.21 | AT212: 30.21 | AU212: 35.21 | AV212: 42.21 | AW212: 46.21 | BA212: 985.6111111 | BC212: 61.28404669 | BD212: 22.86270265 | BG212: 2024-03-15
B213: Udskrift (side 2): | AR213: 2024-05-15 | AS213: 22.12 | AT213: 29.12 | AU213: 34.12 | AV213: 41.12 | AW213: 45.12 | BA213: 849.6666667 | BC213: 59.70149254 | BD213: 19.70927086 | BG213: 2024-03-16
AR214: 2024-05-16 | AS214: 21.03 | AT214: 28.03 | AU214: 33.03 | AV214: 40.03 | AW214: 44.03 | BA214: 713.7222222 | BC214: 58.11893838 | BD214: 16.55583907 | BG214: 2024-03-17
B215: Samlet økonomisk resultat for markbruget 2023 | AR215: 2024-05-17 | AS215: 19.94 | AT215: 26.94 | AU215: 31.94 | AV215: 38.94 | AW215: 42.94 | BA215: 577.7777778 | BC215: 56.53638423 | BD215: 13.40240728 | BG215: 2024-03-18
AR216: 2024-05-18 | AS216: 18.85 | AT216: 25.85 | AU216: 30.85 | AV216: 37.85 | AW216: 41.85 | BA216: 441.8333333 | BC216: 54.95383007 | BD216: =BA216/$BA$136*100 -> 10.24897549 | BG216: 2024-03-19
F217: =IF(OR($CV$139=$R$340,$CW$139=$R$340,$CX$139=$R$340),$S$340,"") ->  | I217: =IF(OR(CV139=R341,CW139=R341,CX139=R341),S341,"") ->  | L217: =IF(AND($F$217<>"",$I$217<>"")," Forskel","") ->  | AR217: 2024-05-19 | AS217: 17.76 | AT217: 24.76 | AU217: 29.76 | AV217: 36.76 | AW217: 40.76 | BA217: 305.8888889 | BC217: 53.37127592 | BD217: 7.0955437 | BG217: 2024-03-20
B218: Antal ha | D218: =IF(F217="","",D82) ->  | E218: =IF(D218="","","ha") ->  | H218: =IF(I217="","",D103) ->  | I218: =IF(H218="","","ha") ->  | L218: =IF(AND($F$217<>"",$I$217<>""),H218-D218,"") ->  | M218: =IF(L218="","","ha") ->  | AR218: 2024-05-20 | AS218: 16.67 | AT218: 23.67 | AU218: 28.67 | AV218: 35.67 | AW218: 39.67 | BA218: 169.9444444 | BC218: 51.78872176 | BD218: 3.94211191 | BG218: 2024-03-21
AR219: 2024-05-21 | AS219: 15.58 | AT219: 22.58 | AU219: 27.58 | AV219: 34.58 | AW219: 38.58 | BA219: 34 | BC219: 50.20616761 | BD219: 0.7886801206 | BG219: 2024-03-22
B220: Udbytte, kerne/frø | C220: =IF($F$217="","",IF(CV$139=R$340,D155,IF(CW$139=R$340,H155,IF(CX$139=R$340,L155,"")))*D$82) ->  | E220: =IF(C220="","","kr.") ->  | G220: =IF($I$217="","",IF(CV$139=R$341,D155,IF(CW$139=R$341,H155,IF(CX$139=R$341,L155,"")))*D$103) ->  | I220: =IF(G220="","","kr.") ->  | K220: =IF(AND($F$217<>"",$I$217<>""),G220-C220,"") ->  | M220: =IF(K220="","","kr.") ->  | BG220: 2024-03-23
B221: Udbytte, halm | C221: =IF($F$217="","",IF(HalmJa=2,"",IF(CV$139=R$340,D156,IF(CW$139=R$340,H156,IF(CX$139=R$340,L156,"")))*D$82)) ->  | E221: =IF(C221="","","kr.") ->  | G221: =IF($I$217="","",IF(HalmJa=2,"",IF(CV$139=R$341,D156,IF(CW$139=R$341,H156,IF(CX$139=R$341,L156,"")))*D$103)) ->  | I221: =IF(G221="","","kr.") ->  | K221: =IF(AND($F$217<>"",$I$217<>"",HalmJa=1),G221-C221,"") ->  | M221: =IF(K221="","","kr.") ->  | BG221: 2024-03-24
B222: Udbytte i alt | C222: =IF($F$217="","",IF(CV$139=R$340,D159,IF(CW$139=R$340,H159,IF(CX$139=R$340,L159,"")))*D$82) ->  | E222: =IF(C222="","","kr.") ->  | G222: =IF($I$217="","",IF(CV$139=R$341,D159,IF(CW$139=R$341,H159,IF(CX$139=R$341,L159,"")))*D$103) ->  | I222: =IF(G222="","","kr.") ->  | K222: =IF(AND($F$217<>"",$I$217<>""),G222-C222,"") ->  | M222: =IF(K222="","","kr.") ->  | BG222: 2024-03-25
BG223: 2024-03-26
B224: Udsæd | C224: =IF($F$217="","",IF(CV$139=R$340,D161,IF(CW$139=R$340,H161,IF(CX$139=R$340,L161,"")))*D$82) ->  | E224: =IF(C224="","","kr.") ->  | G224: =IF($I$217="","",IF(CV$139=R$341,D161,IF(CW$139=R$341,H161,IF(CX$139=R$341,L161,"")))*D$103) ->  | I224: =IF(G224="","","kr.") ->  | K224: =IF(AND($F$217<>"",$I$217<>""),G224-C224,"") ->  | M224: =IF(K224="","","kr.") ->  | BG224: 2024-03-27
B225: Gødning | C225: =IF($F$217="","",IF(CV$139=R$340,D162,IF(CW$139=R$340,H162,IF(CX$139=R$340,L162,"")))*D$82) ->  | E225: =IF(C225="","","kr.") ->  | G225: =IF($I$217="","",IF(CV$139=R$341,D162,IF(CW$139=R$341,H162,IF(CX$139=R$341,L162,"")))*D$103) ->  | I225: =IF(G225="","","kr.") ->  | K225: =IF(AND($F$217<>"",$I$217<>""),G225-C225,"") ->  | M225: =IF(K225="","","kr.") ->  | BG225: 2024-03-28
B226: Planteværn | C226: =IF($F$217="","",IF(CV$139=R$340,D163,IF(CW$139=R$340,H163,IF(CX$139=R$340,L163,"")))*D$82) ->  | E226: =IF(C226="","","kr.") ->  | G226: =IF($I$217="","",IF(CV$139=R$341,D163,IF(CW$139=R$341,H163,IF(CX$139=R$341,L163,"")))*D$103) ->  | I226: =IF(G226="","","kr.") ->  | K226: =IF(AND($F$217<>"",$I$217<>""),G226-C226,"") ->  | M226: =IF(K226="","","kr.") ->  | BG226: 2024-03-29
B227: Diverse | C227: =IF($F$217="","",IF(CV$139=R$340,D164,IF(CW$139=R$340,H164,IF(CX$139=R$340,L164,"")))*D$82) ->  | E227: =IF(C227="","","kr.") ->  | G227: =IF($I$217="","",IF(CV$139=R$341,D164,IF(CW$139=R$341,H164,IF(CX$139=R$341,L164,"")))*D$103) ->  | I227: =IF(G227="","","kr.") ->  | K227: =IF(AND($F$217<>"",$I$217<>""),G227-C227,"") ->  | M227: =IF(K227="","","kr.") ->  | BG227: 2024-03-30
B228: Stykomkostninger i alt | C228: =IF($F$217="","",IF(CV$139=R$340,D165,IF(CW$139=R$340,H165,IF(CX$139=R$340,L165,"")))*D$82) ->  | E228: =IF(C228="","","kr.") ->  | G228: =IF($I$217="","",IF(CV$139=R$341,D165,IF(CW$139=R$341,H165,IF(CX$139=R$341,L165,"")))*D$103) ->  | I228: =IF(G228="","","kr.") ->  | K228: =IF(AND($F$217<>"",$I$217<>""),G228-C228,"") ->  | M228: =IF(K228="","","kr.") ->  | BG228: 2024-03-31
BG229: 2024-04-01
B230: Dækningsbidrag | C230: =IF($F$217="","",IF(CV$139=R$340,D167,IF(CW$139=R$340,H167,IF(CX$139=R$340,L167,"")))*D$82) ->  | E230: =IF(C230="","","kr.") ->  | G230: =IF($I$217="","",IF(CV$139=R$341,D167,IF(CW$139=R$341,H167,IF(CX$139=R$341,L167,"")))*D$103) ->  | I230: =IF(G230="","","kr.") ->  | K230: =IF(AND($F$217<>"",$I$217<>""),G230-C230,"") ->  | M230: =IF(K230="","","kr.") ->  | BG230: 2024-04-02
BG231: 2024-04-03
B232: Maskiner og arbejde | C232: =IF($F$217="","",IF(CV$139=R$340,D169,IF(CW$139=R$340,H169,IF(CX$139=R$340,L169,"")))*D$82) ->  | E232: =IF(C232="","","kr.") ->  | G232: =IF($I$217="","",IF(CV$139=R$341,D169,IF(CW$139=R$341,H169,IF(CX$139=R$341,L169,"")))*D$103) ->  | I232: =IF(G232="","","kr.") ->  | K232: =IF(AND($F$217<>"",$I$217<>""),G232-C232,"") ->  | M232: =IF(K232="","","kr.") ->  | BG232: 2024-04-04
B233: =IF(Tørringnr=1,"Tørring (løntørring)","Tørring (korn i eget tørreri)") -> Tørring (løntørring) | C233: =IF($F$217="","",IF(CV$139=R$340,D170,IF(CW$139=R$340,H170,IF(CX$139=R$340,L170,"")))*D$82) ->  | E233: =IF(C233="","","kr.") ->  | G233: =IF($I$217="","",IF(CV$139=R$341,D170,IF(CW$139=R$341,H170,IF(CX$139=R$341,L170,"")))*D$103) ->  | I233: =IF(G233="","","kr.") ->  | K233: =IF(AND($F$217<>"",$I$217<>""),G233-C233,"") ->  | M233: =IF(K233="","","kr.") ->  | BG233: 2024-04-05
B234: =IF(Købernr=2,"Erstatningskorn","") ->  | C234: =IF(Købernr=1,"",IF($F$217="","",IF(CV$139=R$340,D171,IF(CW$139=R$340,H171,IF(CX$139=R$340,L171,"")))*D$82)) ->  | E234: =IF(C234="","","kr.") ->  | G234: =IF(Købernr=1,"",IF($I$217="","",IF(CV$139=R$341,D171,IF(CW$139=R$341,H171,IF(CX$139=R$341,L171,"")))*D$103)) ->  | I234: =IF(G234="","","kr.") ->  | K234: =IF(Købernr=1,"",IF(AND($F$217<>"",$I$217<>""),G234-C234,"")) ->  | M234: =IF(K234="","","kr.") ->  | BG234: 2024-04-06
BG235: 2024-04-07
B236: Resultat | C236: =IF($F$217="","",IF(CV$139=R$340,D173,IF(CW$139=R$340,H173,IF(CX$139=R$340,L173,"")))*D$82) ->  | E236: =IF(C236="","","kr.") ->  | G236: =IF($I$217="","",IF(CV$139=R$341,D173,IF(CW$139=R$341,H173,IF(CX$139=R$341,L173,"")))*D$103) ->  | I236: =IF(G236="","","kr.") ->  | K236: =IF(AND($F$217<>"",$I$217<>""),G236-C236,"") ->  | M236: =IF(K236="","","kr.") ->  | BG236: 2024-04-08
BG237: 2024-04-09
S238: =IF($C$43="","","Når man opretter `Egen afgrøde` beregnes mængderne af foderkorn ikke korrekt") ->  | BG238: 2024-04-10
B239: =IF(FEnr=1,"Foderbehov (korn)","") ->  | C239: =IF(OR($F$217="",FEnr=2),"",C391) ->  | E239: =IF(C239<>"","FEsv","") ->  | G239: =IF(OR($I$217="",FEnr=2),"",C391) ->  | I239: =IF(G239<>"","FEsv","") ->  | BG239: 2024-04-11
B240: =IF(FEnr=1,"Foder produceret","") ->  | C240: =IF(OR($F$217="",FEnr=2),"",IF(CV$139=R$340,D180,IF(CW$139=R$340,H180,IF(CX$139=R$340,L180,"")))*D$82) ->  | E240: =IF(C240<>"","FEsv","") ->  | G240: =IF(OR($I$217="",FEnr=2),"",IF(CV$139=R$341,D180,IF(CW$139=R$341,H180,IF(CX$139=R$341,L180,"")))*D$103) ->  | I240: =IF(G240<>"","FEsv","") ->  | K240: =IF(AND($F$217<>"",$I$217<>"",FEnr=1),G240-C240,"") ->  | M240: =IF(K240<>"","FEsv","") ->  | BG240: 2024-04-12
BG241: 2024-04-13
BG242: 2024-04-14 | BJ242: =IF(BG242>=$V$136+$V$137,$L$173,"") -> 
B243: =G190 ->  | D243: Areal | G243: Udbytte | I243: Pris | BG243: 2024-04-15
B244: I alt | C244: =D218 ->  | D244: =E218 ->  | BG244: 2024-04-16
B245: =G191 ->  | C245: =I191 ->  | F245: =K191 ->  | BG245: 2024-04-17
BG246: 2024-04-18
BG247: 2024-04-19
BG248: 2024-04-20
BG249: 2024-04-21 | BI249: =IF(AND(BG249>=$V$136,BG249<$V$136+$V$137),$H$173-(BG249-$V$136+1)*($H$173-$L$173)/$V$137,"") -> 
BG250: 2024-04-22
BG251: 2024-04-23
BG252: 2024-04-24
B253: =G199 ->  | D253: =IF(I218="","","Areal ") ->  | G253: =IF(I217="","","Udbytte ") ->  | I253: =IF(I217="","","Pris") ->  | BG253: 2024-04-25
... 190 more rows

Sheet Ark2
A1: Sædskifteplan m. foderproduktion. Foderbehov (korn).
A3: Bemærk at nedenstående beregninger tager ikke hensyn til "Egen afgrøde"
A5: Delsædskifte 1
S6: Dette regneark kan anvendes til at udarbejde en sædskifteplan med op til 3 delsædskifter. Foderproduktionen (korn til svin) bliver beregnet ud fra sædskifteplanen. I regnearket kan man endvidere beregne foderbehovet (korn til svin). Foderbehovet fordeles på kornarter. Du kan angive både afgrøder og efterafgrøde. Man kan også dele arealet melem 2 afgrøder.
B8: Marker/ejendomme: | AG8: Udbyttenr2
B10: Jordtype | AF10: 4 | AG10: =IF(AF10=1,5,IF(AF10=2,6,IF(AF10=3,7,IF(AF10=4,8,IF(AF10=5,9,""))))) -> 8 | AH10: Areal | AM10: Database
AH11: til fordeling | AI11: Fordelt_areal
B12: Samlet areal | D12: ha | AH12: =C12-AH50 -> 0 | AI12: =Areal_fordel/Antal_skifter -> 
A14: Afgrødefølge | C14: Areal | G14: Udbytte pr. ha | L14: Kommentarer | AG14: Antal | AH14: Areal | AI14: Efter- | AJ14: Areal | AM14: Afgnr | AN14: Areal | AO14: Udbyt_ha | AP14: Udbyt_alt | AQ14: Efterafgrøde
AE15: Afgrødefølge | AG15: skifter | AH15: indtastet | AI15: afgrøde | AJ15: indtastet efterafgrøde
A16: 1 | C16: =IF(E16>0,"",IF(AND(AF16>1,AF18>1,AI16+AI18=0),Fordelt_areal/2,IF(AF16>1,Fordelt_areal,""))) ->  | D16: =IF(C16<>"","ha","") ->  | F16: ha | G16: =IF(I16<>"","",IF(VLOOKUP(AF16,_Afg07,Udbyttenr2)=0,"",VLOOKUP(AF16,_Afg07,Udbyttenr2))) ->  | H16: =IF(G16="","",IF(AF16>1,IF(VLOOKUP(AF16,_Afg07,3)<>"",VLOOKUP(AF16,_Afg07,3),""),"")) ->  | J16: hkg | AE16: =A16 -> 1 | AF16: 1 | AG16: =IF(AND(AF16>1,AH16=0),1,0) -> 0 | AH16: =IF(AND(E16<>"",VLOOKUP(AF16,_Afg07,3)<>""),E16,0) -> 0 | AI16: =IF(AND(AF16>1,VLOOKUP(AF16,_Afg07,3)=""),1,0) -> 0 | AJ16: =IF(AND(E16<>"",AF16>1,VLOOKUP(AF16,_Afg07,3)=""),E16,0) -> 0 | AM16: =AF16 -> 1 | AN16: =IF(E16<>"",E16,C16) ->  | AO16: =IF(I16<>"",I16,G16) ->  | AP16: =IF(ISERROR(AN16*AO16),0,AN16*AO16) -> 0 | AQ16: =AI16 -> 0
AM17: =AF17 -> 0 | AN17: =IF(E17<>"",E17,C17) -> 0 | AO17: =IF(I17<>"",I17,G17) -> 0 | AP17: =IF(ISERROR(AN17*AO17),0,AN17*AO17) -> 0 | AQ17: =AI17 -> 0
C18: =IF(E18>0,"",IF(E16>0,"",IF(AND(AF18>1,AI16+AI18=0),Fordelt_areal/2,IF(AF18>1,Fordelt_areal,"")))) ->  | D18: =IF(C18<>"","ha","") ->  | F18: ha | G18: =IF(I18<>"","",IF(VLOOKUP(AF18,_Afg07,Udbyttenr2)=0,"",VLOOKUP(AF18,_Afg07,Udbyttenr2))) ->  | H18: =IF(G18="","",IF(AF18>1,IF(VLOOKUP(AF18,_Afg07,3)<>"",VLOOKUP(AF18,_Afg07,3),""),"")) ->  | J18: hkg | AF18: 1 | AH18: =IF(AND(E18<>"",VLOOKUP(AF18,_Afg07,3)<>""),E18,0) -> 0 | AI18: =IF(AND(AF18>1,VLOOKUP(AF18,_Afg07,3)=""),1,0) -> 0 | AJ18: =IF(AND(E18<>"",AF18>1,VLOOKUP(AF18,_Afg07,3)=""),E18,0) -> 0 | AM18: 1 | AP18: 0 | AQ18: 0
AM19: 0 | AN19: 0 | AO19: 0 | AP19: 0 | AQ19: 0
AM20: 0 | AN20: 0 | AO20: 0 | AP20: 0 | AQ20: 0
A21: 2 | C21: =IF(E21>0,"",IF(AND(AF21>1,AF23>1,AI21+AI23=0),Fordelt_areal/2,IF(AF21>1,Fordelt_areal,""))) ->  | D21: =IF(C21<>"","ha","") ->  | F21: ha | G21: =IF(I21<>"","",IF(VLOOKUP(AF21,_Afg07,Udbyttenr2)=0,"",VLOOKUP(AF21,_Afg07,Udbyttenr2))) ->  | H21: =IF(G21="","",IF(AF21>1,IF(VLOOKUP(AF21,_Afg07,3)<>"",VLOOKUP(AF21,_Afg07,3),""),"")) ->  | J21: hkg | AE21: =A21 -> 2 | AF21: 1 | AG21: =IF(AND(AF21>1,AH21=0),1,0) -> 0 | AH21: =IF(AND(E21<>"",VLOOKUP(AF21,_Afg07,3)<>""),E21,0) -> 0 | AI21: =IF(AND(AF21>1,VLOOKUP(AF21,_Afg07,3)=""),1,0) -> 0 | AJ21: =IF(AND(E21<>"",AF21>1,VLOOKUP(AF21,_Afg07,3)=""),E21,0) -> 0 | AM21: 1 | AP21: 0 | AQ21: 0
AM22: 0 | AN22: 0 | AO22: 0 | AP22: 0 | AQ22: 0
C23: =IF(E23>0,"",IF(E21>0,"",IF(AND(AF23>1,AI21+AI23=0),Fordelt_areal/2,IF(AF23>1,Fordelt_areal,"")))) ->  | D23: =IF(C23<>"","ha","") ->  | F23: ha | G23: =IF(I23<>"","",IF(VLOOKUP(AF23,_Afg07,Udbyttenr2)=0,"",VLOOKUP(AF23,_Afg07,Udbyttenr2))) ->  | H23: =IF(G23="","",IF(AF23>1,IF(VLOOKUP(AF23,_Afg07,3)<>"",VLOOKUP(AF23,_Afg07,3),""),"")) ->  | J23: hkg | AF23: 1 | AH23: =IF(AND(E23<>"",VLOOKUP(AF23,_Afg07,3)<>""),E23,0) -> 0 | AI23: =IF(AND(AF23>1,VLOOKUP(AF23,_Afg07,3)=""),1,0) -> 0 | AJ23: =IF(AND(E23<>"",AF23>1,VLOOKUP(AF23,_Afg07,3)=""),E23,0) -> 0 | AM23: 1 | AP23: 0 | AQ23: 0
AM24: 0 | AN24: 0 | AO24: 0 | AP24: 0 | AQ24: 0
AM25: 0 | AN25: 0 | AO25: 0 | AP25: 0 | AQ25: 0
A26: 3 | C26: =IF(E26>0,"",IF(AND(AF26>1,AF28>1,AI26+AI28=0),Fordelt_areal/2,IF(AF26>1,Fordelt_areal,""))) ->  | D26: =IF(C26<>"","ha","") ->  | F26: ha | G26: =IF(I26<>"","",IF(VLOOKUP(AF26,_Afg07,Udbyttenr2)=0,"",VLOOKUP(AF26,_Afg07,Udbyttenr2))) ->  | H26: =IF(G26="","",IF(AF26>1,IF(VLOOKUP(AF26,_Afg07,3)<>"",VLOOKUP(AF26,_Afg07,3),""),"")) ->  | J26: hkg | AE26: =A26 -> 3 | AF26: 1 | AG26: =IF(AND(AF26>1,AH26=0),1,0) -> 0 | AH26: =IF(AND(E26<>"",VLOOKUP(AF26,_Afg07,3)<>""),E26,0) -> 0 | AI26: =IF(AND(AF26>1,VLOOKUP(AF26,_Afg07,3)=""),1,0) -> 0 | AJ26: =IF(AND(E26<>"",AF26>1,VLOOKUP(AF26,_Afg07,3)=""),E26,0) -> 0 | AM26: 1 | AP26: 0 | AQ26: 0
AM27: 0 | AN27: 0 | AO27: 0 | AP27: 0 | AQ27: 0
C28: =IF(E28>0,"",IF(E26>0,"",IF(AND(AF28>1,AI26+AI28=0),Fordelt_areal/2,IF(AF28>1,Fordelt_areal,"")))) ->  | D28: =IF(C28<>"","ha","") ->  | F28: ha | G28: =IF(I28<>"","",IF(VLOOKUP(AF28,_Afg07,Udbyttenr2)=0,"",VLOOKUP(AF28,_Afg07,Udbyttenr2))) ->  | H28: =IF(G28="","",IF(AF28>1,IF(VLOOKUP(AF28,_Afg07,3)<>"",VLOOKUP(AF28,_Afg07,3),""),"")) ->  | J28: hkg | AF28: 1 | AH28: =IF(AND(E28<>"",VLOOKUP(AF28,_Afg07,3)<>""),E28,0) -> 0 | AI28: =IF(AND(AF28>1,VLOOKUP(AF28,_Afg07,3)=""),1,0) -> 0 | AJ28: =IF(AND(E28<>"",AF28>1,VLOOKUP(AF28,_Afg07,3)=""),E28,0) -> 0 | AM28: 1 | AP28: 0 | AQ28: 0
AM29: 0 | AN29: 0 | AO29: 0 | AP29: 0 | AQ29: 0
AM30: 0 | AN30: 0 | AO30: 0 | AP30: 0 | AQ30: 0
A31: 4 | C31: =IF(E31>0,"",IF(AND(AF31>1,AF33>1,AI31+AI33=0),Fordelt_areal/2,IF(AF31>1,Fordelt_areal,""))) ->  | D31: =IF(C31<>"","ha","") ->  | F31: ha | G31: =IF(I31<>"","",IF(VLOOKUP(AF31,_Afg07,Udbyttenr2)=0,"",VLOOKUP(AF31,_Afg07,Udbyttenr2))) ->  | H31: =IF(G31="","",IF(AF31>1,IF(VLOOKUP(AF31,_Afg07,3)<>"",VLOOKUP(AF31,_Afg07,3),""),"")) ->  | J31: hkg | AE31: =A31 -> 4 | AF31: 1 | AG31: =IF(AND(AF31>1,AH31=0),1,0) -> 0 | AH31: =IF(AND(E31<>"",VLOOKUP(AF31,_Afg07,3)<>""),E31,0) -> 0 | AI31: =IF(AND(AF31>1,VLOOKUP(AF31,_Afg07,3)=""),1,0) -> 0 | AJ31: =IF(AND(E31<>"",AF31>1,VLOOKUP(AF31,_Afg07,3)=""),E31,0) -> 0 | AM31: 1 | AP31: 0 | AQ31: 0
AM32: 0 | AN32: 0 | AO32: 0 | AP32: 0 | AQ32: 0
C33: =IF(E33>0,"",IF(E31>0,"",IF(AND(AF33>1,AI31+AI33=0),Fordelt_areal/2,IF(AF33>1,Fordelt_areal,"")))) ->  | D33: =IF(C33<>"","ha","") ->  | F33: ha | G33: =IF(I33<>"","",IF(VLOOKUP(AF33,_Afg07,Udbyttenr2)=0,"",VLOOKUP(AF33,_Afg07,Udbyttenr2))) ->  | H33: =IF(G33="","",IF(AF33>1,IF(VLOOKUP(AF33,_Afg07,3)<>"",VLOOKUP(AF33,_Afg07,3),""),"")) ->  | J33: hkg | AF33: 1 | AH33: =IF(AND(E33<>"",VLOOKUP(AF33,_Afg07,3)<>""),E33,0) -> 0 | AI33: =IF(AND(AF33>1,VLOOKUP(AF33,_Afg07,3)=""),1,0) -> 0 | AJ33: =IF(AND(E33<>"",AF33>1,VLOOKUP(AF33,_Afg07,3)=""),E33,0) -> 0 | AM33: 1 | AP33: 0 | AQ33: 0
AM34: 0 | AN34: 0 | AO34: 0 | AP34: 0 | AQ34: 0
AM35: 0 | AN35: 0 | AO35: 0 | AP35: 0 | AQ35: 0
A36: 5 | C36: =IF(E36>0,"",IF(AND(AF36>1,AF38>1,AI36+AI38=0),Fordelt_areal/2,IF(AF36>1,Fordelt_areal,""))) ->  | D36: =IF(C36<>"","ha","") ->  | F36: ha | G36: =IF(I36<>"","",IF(VLOOKUP(AF36,_Afg07,Udbyttenr2)=0,"",VLOOKUP(AF36,_Afg07,Udbyttenr2))) ->  | H36: =IF(G36="","",IF(AF36>1,IF(VLOOKUP(AF36,_Afg07,3)<>"",VLOOKUP(AF36,_Afg07,3),""),"")) ->  | J36: hkg | AE36: =A36 -> 5 | AF36: 1 | AG36: =IF(AND(AF36>1,AH36=0),1,0) -> 0 | AH36: =IF(AND(E36<>"",VLOOKUP(AF36,_Afg07,3)<>""),E36,0) -> 0 | AI36: =IF(AND(AF36>1,VLOOKUP(AF36,_Afg07,3)=""),1,0) -> 0 | AJ36: =IF(AND(E36<>"",AF36>1,VLOOKUP(AF36,_Afg07,3)=""),E36,0) -> 0 | AM36: 1 | AP36: 0 | AQ36: 0
AM37: 0 | AN37: 0 | AO37: 0 | AP37: 0 | AQ37: 0
C38: =IF(E38>0,"",IF(E36>0,"",IF(AND(AF38>1,AI36+AI38=0),Fordelt_areal/2,IF(AF38>1,Fordelt_areal,"")))) ->  | D38: =IF(C38<>"","ha","") ->  | F38: ha | G38: =IF(I38<>"","",IF(VLOOKUP(AF38,_Afg07,Udbyttenr2)=0,"",VLOOKUP(AF38,_Afg07,Udbyttenr2))) ->  | H38: =IF(G38="","",IF(AF38>1,IF(VLOOKUP(AF38,_Afg07,3)<>"",VLOOKUP(AF38,_Afg07,3),""),"")) ->  | J38: hkg | AF38: 1 | AH38: =IF(AND(E38<>"",VLOOKUP(AF38,_Afg07,3)<>""),E38,0) -> 0 | AI38: =IF(AND(AF38>1,VLOOKUP(AF38,_Afg07,3)=""),1,0) -> 0 | AJ38: =IF(AND(E38<>"",AF38>1,VLOOKUP(AF38,_Afg07,3)=""),E38,0) -> 0 | AM38: 1 | AP38: 0 | AQ38: 0
AM39: 0 | AN39: 0 | AO39: 0 | AP39: 0 | AQ39: 0
AM40: 0 | AN40: 0 | AO40: 0 | AP40: 0 | AQ40: 0
A41: 6 | C41: =IF(E41>0,"",IF(AND(AF41>1,AF43>1,AI41+AI43=0),Fordelt_areal/2,IF(AF41>1,Fordelt_areal,""))) ->  | D41: =IF(C41<>"","ha","") ->  | F41: ha | G41: =IF(I41<>"","",IF(VLOOKUP(AF41,_Afg07,Udbyttenr2)=0,"",VLOOKUP(AF41,_Afg07,Udbyttenr2))) ->  | H41: =IF(G41="","",IF(AF41>1,IF(VLOOKUP(AF41,_Afg07,3)<>"",VLOOKUP(AF41,_Afg07,3),""),"")) ->  | J41: hkg | AE41: =A41 -> 6 | AF41: 1 | AG41: =IF(AND(AF41>1,AH41=0),1,0) -> 0 | AH41: =IF(AND(E41<>"",VLOOKUP(AF41,_Afg07,3)<>""),E41,0) -> 0 | AI41: =IF(AND(AF41>1,VLOOKUP(AF41,_Afg07,3)=""),1,0) -> 0 | AJ41: =IF(AND(E41<>"",AF41>1,VLOOKUP(AF41,_Afg07,3)=""),E41,0) -> 0 | AM41: 1 | AP41: 0 | AQ41: 0
AM42: 0 | AN42: 0 | AO42: 0 | AP42: 0 | AQ42: 0
C43: =IF(E43>0,"",IF(E41>0,"",IF(AND(AF43>1,AI41+AI43=0),Fordelt_areal/2,IF(AF43>1,Fordelt_areal,"")))) ->  | D43: =IF(C43<>"","ha","") ->  | F43: ha | G43: =IF(I43<>"","",IF(VLOOKUP(AF43,_Afg07,Udbyttenr2)=0,"",VLOOKUP(AF43,_Afg07,Udbyttenr2))) ->  | H43: =IF(G43="","",IF(AF43>1,IF(VLOOKUP(AF43,_Afg07,3)<>"",VLOOKUP(AF43,_Afg07,3),""),"")) ->  | J43: hkg | AF43: 1 | AH43: =IF(AND(E43<>"",VLOOKUP(AF43,_Afg07,3)<>""),E43,0) -> 0 | AI43: =IF(AND(AF43>1,VLOOKUP(AF43,_Afg07,3)=""),1,0) -> 0 | AJ43: =IF(AND(E43<>"",AF43>1,VLOOKUP(AF43,_Afg07,3)=""),E43,0) -> 0 | AM43: 1 | AP43: 0 | AQ43: 0
AM44: 0 | AN44: 0 | AO44: 0 | AP44: 0 | AQ44: 0
AM45: 0 | AN45: 0 | AO45: 0 | AP45: 0 | AQ45: 0
A46: 7 | C46: =IF(E46>0,"",IF(AND(AF46>1,AF48>1,AI46+AI48=0),Fordelt_areal/2,IF(AF46>1,Fordelt_areal,""))) ->  | D46: =IF(C46<>"","ha","") ->  | F46: ha | G46: =IF(I46<>"","",IF(VLOOKUP(AF46,_Afg07,Udbyttenr2)=0,"",VLOOKUP(AF46,_Afg07,Udbyttenr2))) ->  | H46: =IF(G46="","",IF(AF46>1,IF(VLOOKUP(AF46,_Afg07,3)<>"",VLOOKUP(AF46,_Afg07,3),""),"")) ->  | J46: hkg | AE46: =A46 -> 7 | AF46: 1 | AG46: =IF(AND(AF46>1,AH46=0),1,0) -> 0 | AH46: =IF(AND(E46<>"",VLOOKUP(AF46,_Afg07,3)<>""),E46,0) -> 0 | AI46: =IF(AND(AF46>1,VLOOKUP(AF46,_Afg07,3)=""),1,0) -> 0 | AJ46: =IF(AND(E46<>"",AF46>1,VLOOKUP(AF46,_Afg07,3)=""),E46,0) -> 0 | AM46: 1 | AP46: 0 | AQ46: 0
AM47: 0 | AN47: 0 | AO47: 0 | AP47: 0 | AQ47: 0
C48: =IF(E48>0,"",IF(E46>0,"",IF(AND(AF48>1,AI46+AI48=0),Fordelt_areal/2,IF(AF48>1,Fordelt_areal,"")))) ->  | D48: =IF(C48<>"","ha","") ->  | F48: ha | G48: =IF(I48<>"","",IF(VLOOKUP(AF48,_Afg07,Udbyttenr2)=0,"",VLOOKUP(AF48,_Afg07,Udbyttenr2))) ->  | H48: =IF(G48="","",IF(AF48>1,IF(VLOOKUP(AF48,_Afg07,3)<>"",VLOOKUP(AF48,_Afg07,3),""),"")) ->  | J48: hkg | AF48: 1 | AH48: =IF(AND(E48<>"",VLOOKUP(AF48,_Afg07,3)<>""),E48,0) -> 0 | AI48: =IF(AND(AF48>1,VLOOKUP(AF48,_Afg07,3)=""),1,0) -> 0 | AJ48: =IF(AND(E48<>"",AF48>1,VLOOKUP(AF48,_Afg07,3)=""),E48,0) -> 0 | AM48: 1 | AP48: 0 | AQ48: 0
AE50: Sum | AG50: =AG16+AG18+AG21+AG23+AG26+AG28+AG31+AG33+AG36+AG38+AG41+AG43+AG46+AG48 -> 0 | AH50: =AH16+AH18+AH21+AH23+AH26+AH28+AH31+AH33+AH36+AH38+AH41+AH43+AH46+AH48 -> 0 | AJ50: =AJ16+AJ18+AJ21+AJ23+AJ26+AJ28+AJ31+AJ33+AJ36+AJ38+AJ41+AJ43+AJ46+AJ48 -> 0
A51: Delsædskifte 2
B54: Marker/ejendomme: | AG54: Udbyttenr3
B56: Jordtype | AF56: 4 | AG56: =IF(AF56=1,5,IF(AF56=2,6,IF(AF56=3,7,IF(AF56=4,8,IF(AF56=5,9,""))))) -> 8 | AH56: Areal
AH57: til fordeling | AI57: Fordelt_areal
B58: Samlet areal | D58: ha | AH58: =C58-AH96 -> 0 | AI58: =Areal_fordel2/Antal_skifter2 -> 
A60: Afgrødefølge | C60: Areal | G60: Udbytte pr. ha | L60: Kommentarer | AG60: Antal | AH60: Areal | AI60: Efter- | AJ60: Areal
AE61: Afgrødefølge | AG61: skifter | AH61: indtastet | AI61: afgrøde | AJ61: indtastet efterafgrøde
A62: 1 | C62: =IF(E62>0,"",IF(AND(AF62>1,AF64>1,AI62+AI64=0),Fordelt_areal2/2,IF(AF62>1,Fordelt_areal2,""))) ->  | D62: =IF(C62<>"","ha","") ->  | F62: ha | G62: =IF(I62<>"","",IF(VLOOKUP(AF62,_Afg07,Udbyttenr3)=0,"",VLOOKUP(AF62,_Afg07,Udbyttenr3))) ->  | H62: =IF(G62="","",IF(AF62>1,IF(VLOOKUP(AF62,_Afg07,3)<>"",VLOOKUP(AF62,_Afg07,3),""),"")) ->  | J62: hkg | S62: Du kan angive både afgrøde og efterafgrøde. Man kan også dele arealet mellem 2 afgrøder. | AE62: =A62 -> 1 | AF62: 1 | AG62: =IF(AND(AF62>1,AH62=0),1,0) -> 0 | AH62: =IF(AND(E62<>"",VLOOKUP(AF62,_Afg07,3)<>""),E62,0) -> 0 | AI62: =IF(AND(AF62>1,VLOOKUP(AF62,_Afg07,3)=""),1,0) -> 0 | AJ62: =IF(AND(E62<>"",AF62>1,VLOOKUP(AF62,_Afg07,3)=""),E62,0) -> 0 | AM62: 1 | AP62: 0 | AQ62: =AI62 -> 0
AM63: 0 | AN63: 0 | AO63: 0 | AP63: 0 | AQ63: 0
C64: =IF(E64>0,"",IF(E62>0,"",IF(AND(AF64>1,AI62+AI64=0),Fordelt_areal2/2,IF(AF64>1,Fordelt_areal2,"")))) ->  | D64: =IF(C64<>"","ha","") ->  | F64: ha | G64: =IF(I64<>"","",IF(VLOOKUP(AF64,_Afg07,Udbyttenr3)=0,"",VLOOKUP(AF64,_Afg07,Udbyttenr3))) ->  | H64: =IF(G64="","",IF(AF64>1,IF(VLOOKUP(AF64,_Afg07,3)<>"",VLOOKUP(AF64,_Afg07,3),""),"")) ->  | J64: hkg | AF64: 1 | AH64: =IF(AND(E64<>"",VLOOKUP(AF64,_Afg07,3)<>""),E64,0) -> 0 | AI64: =IF(AND(AF64>1,VLOOKUP(AF64,_Afg07,3)=""),1,0) -> 0 | AJ64: =IF(AND(E64<>"",AF64>1,VLOOKUP(AF64,_Afg07,3)=""),E64,0) -> 0 | AM64: 1 | AP64: 0 | AQ64: 0
AM65: 0 | AN65: 0 | AO65: 0 | AP65: 0 | AQ65: 0
AM66: 0 | AN66: 0 | AO66: 0 | AP66: 0 | AQ66: 0
A67: 2 | C67: =IF(E67>0,"",IF(AND(AF67>1,AF69>1,AI67+AI69=0),Fordelt_areal2/2,IF(AF67>1,Fordelt_areal2,""))) ->  | D67: =IF(C67<>"","ha","") ->  | F67: ha | G67: =IF(I67<>"","",IF(VLOOKUP(AF67,_Afg07,Udbyttenr3)=0,"",VLOOKUP(AF67,_Afg07,Udbyttenr3))) ->  | H67: =IF(G67="","",IF(AF67>1,IF(VLOOKUP(AF67,_Afg07,3)<>"",VLOOKUP(AF67,_Afg07,3),""),"")) ->  | J67: hkg | AE67: =A67 -> 2 | AF67: 1 | AG67: =IF(AND(AF67>1,AH67=0),1,0) -> 0 | AH67: =IF(AND(E67<>"",VLOOKUP(AF67,_Afg07,3)<>""),E67,0) -> 0 | AI67: =IF(AND(AF67>1,VLOOKUP(AF67,_Afg07,3)=""),1,0) -> 0 | AJ67: =IF(AND(E67<>"",AF67>1,VLOOKUP(AF67,_Afg07,3)=""),E67,0) -> 0 | AM67: 1 | AP67: 0 | AQ67: 0
AM68: 0 | AN68: 0 | AO68: 0 | AP68: 0 | AQ68: 0
C69: =IF(E69>0,"",IF(E67>0,"",IF(AND(AF69>1,AI67+AI69=0),Fordelt_areal2/2,IF(AF69>1,Fordelt_areal2,"")))) ->  | D69: =IF(C69<>"","ha","") ->  | F69: ha | G69: =IF(I69<>"","",IF(VLOOKUP(AF69,_Afg07,Udbyttenr3)=0,"",VLOOKUP(AF69,_Afg07,Udbyttenr3))) ->  | H69: =IF(G69="","",IF(AF69>1,IF(VLOOKUP(AF69,_Afg07,3)<>"",VLOOKUP(AF69,_Afg07,3),""),"")) ->  | J69: hkg | AF69: 1 | AH69: =IF(AND(E69<>"",VLOOKUP(AF69,_Afg07,3)<>""),E69,0) -> 0 | AI69: =IF(AND(AF69>1,VLOOKUP(AF69,_Afg07,3)=""),1,0) -> 0 | AJ69: =IF(AND(E69<>"",AF69>1,VLOOKUP(AF69,_Afg07,3)=""),E69,0) -> 0 | AM69: 1 | AP69: 0 | AQ69: 0
AM70: 0 | AN70: 0 | AO70: 0 | AP70: 0 | AQ70: 0
AF71: 2 | AM71: 2 | AN71: 0 | AO71: 0 | AP71: 0 | AQ71: 0
A72: 3 | C72: =IF(E72>0,"",IF(AND(AF72>1,AF74>1,AI72+AI74=0),Fordelt_areal2/2,IF(AF72>1,Fordelt_areal2,""))) ->  | D72: =IF(C72<>"","ha","") ->  | F72: ha | G72: =IF(I72<>"","",IF(VLOOKUP(AF72,_Afg07,Udbyttenr3)=0,"",VLOOKUP(AF72,_Afg07,Udbyttenr3))) ->  | H72: =IF(G72="","",IF(AF72>1,IF(VLOOKUP(AF72,_Afg07,3)<>"",VLOOKUP(AF72,_Afg07,3),""),"")) ->  | J72: hkg | AE72: =A72 -> 3 | AF72: 1 | AG72: =IF(AND(AF72>1,AH72=0),1,0) -> 0 | AH72: =IF(AND(E72<>"",VLOOKUP(AF72,_Afg07,3)<>""),E72,0) -> 0 | AI72: =IF(AND(AF72>1,VLOOKUP(AF72,_Afg07,3)=""),1,0) -> 0 | AJ72: =IF(AND(E72<>"",AF72>1,VLOOKUP(AF72,_Afg07,3)=""),E72,0) -> 0 | AM72: 1 | AP72: 0 | AQ72: 0
AM73: 0 | AN73: 0 | AO73: 0 | AP73: 0 | AQ73: 0
C74: =IF(E74>0,"",IF(E72>0,"",IF(AND(AF74>1,AI72+AI74=0),Fordelt_areal2/2,IF(AF74>1,Fordelt_areal2,"")))) ->  | D74: =IF(C74<>"","ha","") ->  | F74: ha | G74: =IF(I74<>"","",IF(VLOOKUP(AF74,_Afg07,Udbyttenr3)=0,"",VLOOKUP(AF74,_Afg07,Udbyttenr3))) ->  | H74: =IF(G74="","",IF(AF74>1,IF(VLOOKUP(AF74,_Afg07,3)<>"",VLOOKUP(AF74,_Afg07,3),""),"")) ->  | J74: hkg | AF74: 1 | AH74: =IF(AND(E74<>"",VLOOKUP(AF74,_Afg07,3)<>""),E74,0) -> 0 | AI74: =IF(AND(AF74>1,VLOOKUP(AF74,_Afg07,3)=""),1,0) -> 0 | AJ74: =IF(AND(E74<>"",AF74>1,VLOOKUP(AF74,_Afg07,3)=""),E74,0) -> 0 | AM74: 1 | AP74: 0 | AQ74: 0
AM75: 0 | AN75: 0 | AO75: 0 | AP75: 0 | AQ75: 0
AM76: 0 | AN76: 0 | AO76: 0 | AP76: 0 | AQ76: 0
A77: 4 | C77: =IF(E77>0,"",IF(AND(AF77>1,AF79>1,AI77+AI79=0),Fordelt_areal2/2,IF(AF77>1,Fordelt_areal2,""))) ->  | D77: =IF(C77<>"","ha","") ->  | F77: ha | G77: =IF(I77<>"","",IF(VLOOKUP(AF77,_Afg07,Udbyttenr3)=0,"",VLOOKUP(AF77,_Afg07,Udbyttenr3))) ->  | H77: =IF(G77="","",IF(AF77>1,IF(VLOOKUP(AF77,_Afg07,3)<>"",VLOOKUP(AF77,_Afg07,3),""),"")) ->  | J77: hkg | AE77: =A77 -> 4 | AF77: 1 | AG77: =IF(AND(AF77>1,AH77=0),1,0) -> 0 | AH77: =IF(AND(E77<>"",VLOOKUP(AF77,_Afg07,3)<>""),E77,0) -> 0 | AI77: =IF(AND(AF77>1,VLOOKUP(AF77,_Afg07,3)=""),1,0) -> 0 | AJ77: =IF(AND(E77<>"",AF77>1,VLOOKUP(AF77,_Afg07,3)=""),E77,0) -> 0 | AM77: 1 | AP77: 0 | AQ77: 0
AM78: 0 | AN78: 0 | AO78: 0 | AP78: 0 | AQ78: 0
C79: =IF(E79>0,"",IF(E77>0,"",IF(AND(AF79>1,AI77+AI79=0),Fordelt_areal2/2,IF(AF79>1,Fordelt_areal2,"")))) ->  | D79: =IF(C79<>"","ha","") ->  | F79: ha | G79: =IF(I79<>"","",IF(VLOOKUP(AF79,_Afg07,Udbyttenr3)=0,"",VLOOKUP(AF79,_Afg07,Udbyttenr3))) ->  | H79: =IF(G79="","",IF(AF79>1,IF(VLOOKUP(AF79,_Afg07,3)<>"",VLOOKUP(AF79,_Afg07,3),""),"")) ->  | J79: hkg | AF79: 1 | AH79: =IF(AND(E79<>"",VLOOKUP(AF79,_Afg07,3)<>""),E79,0) -> 0 | AI79: =IF(AND(AF79>1,VLOOKUP(AF79,_Afg07,3)=""),1,0) -> 0 | AJ79: =IF(AND(E79<>"",AF79>1,VLOOKUP(AF79,_Afg07,3)=""),E79,0) -> 0 | AM79: 1 | AP79: 0 | AQ79: 0
AM80: 0 | AN80: 0 | AO80: 0 | AP80: 0 | AQ80: 0
AM81: =AF81 -> 0 | AN81: =IF(E81<>"",E81,C81) -> 0 | AO81: =IF(I81<>"",I81,G81) -> 0 | AP81: =IF(ISERROR(AN81*AO81),0,AN81*AO81) -> 0 | AQ81: 0
A82: 5 | C82: =IF(E82>0,"",IF(AND(AF82>1,AF84>1,AI82+AI84=0),Fordelt_areal2/2,IF(AF82>1,Fordelt_areal2,""))) ->  | D82: =IF(C82<>"","ha","") ->  | F82: ha | G82: =IF(I82<>"","",IF(VLOOKUP(AF82,_Afg07,Udbyttenr3)=0,"",VLOOKUP(AF82,_Afg07,Udbyttenr3))) ->  | H82: =IF(G82="","",IF(AF82>1,IF(VLOOKUP(AF82,_Afg07,3)<>"",VLOOKUP(AF82,_Afg07,3),""),"")) ->  | J82: hkg | AE82: =A82 -> 5 | AF82: 1 | AG82: =IF(AND(AF82>1,AH82=0),1,0) -> 0 | AH82: =IF(AND(E82<>"",VLOOKUP(AF82,_Afg07,3)<>""),E82,0) -> 0 | AI82: =IF(AND(AF82>1,VLOOKUP(AF82,_Afg07,3)=""),1,0) -> 0 | AJ82: =IF(AND(E82<>"",AF82>1,VLOOKUP(AF82,_Afg07,3)=""),E82,0) -> 0 | AM82: 1 | AP82: 0 | AQ82: 0
AM83: 0 | AN83: 0 | AO83: 0 | AP83: 0 | AQ83: 0
C84: =IF(E84>0,"",IF(E82>0,"",IF(AND(AF84>1,AI82+AI84=0),Fordelt_areal2/2,IF(AF84>1,Fordelt_areal2,"")))) ->  | D84: =IF(C84<>"","ha","") ->  | F84: ha | G84: =IF(I84<>"","",IF(VLOOKUP(AF84,_Afg07,Udbyttenr3)=0,"",VLOOKUP(AF84,_Afg07,Udbyttenr3))) ->  | H84: =IF(G84="","",IF(AF84>1,IF(VLOOKUP(AF84,_Afg07,3)<>"",VLOOKUP(AF84,_Afg07,3),""),"")) ->  | J84: hkg | AF84: 1 | AH84: =IF(AND(E84<>"",VLOOKUP(AF84,_Afg07,3)<>""),E84,0) -> 0 | AI84: =IF(AND(AF84>1,VLOOKUP(AF84,_Afg07,3)=""),1,0) -> 0 | AJ84: =IF(AND(E84<>"",AF84>1,VLOOKUP(AF84,_Afg07,3)=""),E84,0) -> 0 | AM84: 1 | AP84: 0 | AQ84: 0
AM85: 0 | AN85: 0 | AO85: 0 | AP85: 0 | AQ85: 0
AM86: 0 | AN86: 0 | AO86: 0 | AP86: 0 | AQ86: 0
A87: 6 | C87: =IF(E87>0,"",IF(AND(AF87>1,AF89>1,AI87+AI89=0),Fordelt_areal2/2,IF(AF87>1,Fordelt_areal2,""))) ->  | D87: =IF(C87<>"","ha","") ->  | F87: ha | G87: =IF(I87<>"","",IF(VLOOKUP(AF87,_Afg07,Udbyttenr3)=0,"",VLOOKUP(AF87,_Afg07,Udbyttenr3))) ->  | H87: =IF(G87="","",IF(AF87>1,IF(VLOOKUP(AF87,_Afg07,3)<>"",VLOOKUP(AF87,_Afg07,3),""),"")) ->  | J87: hkg | AE87: =A87 -> 6 | AF87: 1 | AG87: =IF(AND(AF87>1,AH87=0),1,0) -> 0 | AH87: =IF(AND(E87<>"",VLOOKUP(AF87,_Afg07,3)<>""),E87,0) -> 0 | AI87: =IF(AND(AF87>1,VLOOKUP(AF87,_Afg07,3)=""),1,0) -> 0 | AJ87: =IF(AND(E87<>"",AF87>1,VLOOKUP(AF87,_Afg07,3)=""),E87,0) -> 0 | AM87: 1 | AP87: 0 | AQ87: 0
AM88: 0 | AN88: 0 | AO88: 0 | AP88: 0 | AQ88: 0
C89: =IF(E89>0,"",IF(E87>0,"",IF(AND(AF89>1,AI87+AI89=0),Fordelt_areal2/2,IF(AF89>1,Fordelt_areal2,"")))) ->  | D89: =IF(C89<>"","ha","") ->  | F89: ha | G89: =IF(I89<>"","",IF(VLOOKUP(AF89,_Afg07,Udbyttenr3)=0,"",VLOOKUP(AF89,_Afg07,Udbyttenr3))) ->  | H89: =IF(G89="","",IF(AF89>1,IF(VLOOKUP(AF89,_Afg07,3)<>"",VLOOKUP(AF89,_Afg07,3),""),"")) ->  | J89: hkg | AF89: 1 | AH89: =IF(AND(E89<>"",VLOOKUP(AF89,_Afg07,3)<>""),E89,0) -> 0 | AI89: =IF(AND(AF89>1,VLOOKUP(AF89,_Afg07,3)=""),1,0) -> 0 | AJ89: =IF(AND(E89<>"",AF89>1,VLOOKUP(AF89,_Afg07,3)=""),E89,0) -> 0 | AM89: 1 | AP89: 0 | AQ89: 0
AM90: 0 | AN90: 0 | AO90: 0 | AP90: 0 | AQ90: 0
AM91: 0 | AN91: 0 | AO91: 0 | AP91: 0 | AQ91: 0
A92: 7 | C92: =IF(E92>0,"",IF(AND(AF92>1,AF94>1,AI92+AI94=0),Fordelt_areal2/2,IF(AF92>1,Fordelt_areal2,""))) ->  | D92: =IF(C92<>"","ha","") ->  | F92: ha | G92: =IF(I92<>"","",IF(VLOOKUP(AF92,_Afg07,Udbyttenr3)=0,"",VLOOKUP(AF92,_Afg07,Udbyttenr3))) ->  | H92: =IF(G92="","",IF(AF92>1,IF(VLOOKUP(AF92,_Afg07,3)<>"",VLOOKUP(AF92,_Afg07,3),""),"")) ->  | J92: hkg | AE92: =A92 -> 7 | AF92: 1 | AG92: =IF(AND(AF92>1,AH92=0),1,0) -> 0 | AH92: =IF(AND(E92<>"",VLOOKUP(AF92,_Afg07,3)<>""),E92,0) -> 0 | AI92: =IF(AND(AF92>1,VLOOKUP(AF92,_Afg07,3)=""),1,0) -> 0 | AJ92: =IF(AND(E92<>"",AF92>1,VLOOKUP(AF92,_Afg07,3)=""),E92,0) -> 0 | AM92: 1 | AP92: 0 | AQ92: 0
AM93: 0 | AN93: 0 | AO93: 0 | AP93: 0 | AQ93: 0
C94: =IF(E94>0,"",IF(E92>0,"",IF(AND(AF94>1,AI92+AI94=0),Fordelt_areal2/2,IF(AF94>1,Fordelt_areal2,"")))) ->  | D94: =IF(C94<>"","ha","") ->  | F94: ha | G94: =IF(I94<>"","",IF(VLOOKUP(AF94,_Afg07,Udbyttenr3)=0,"",VLOOKUP(AF94,_Afg07,Udbyttenr3))) ->  | H94: =IF(G94="","",IF(AF94>1,IF(VLOOKUP(AF94,_Afg07,3)<>"",VLOOKUP(AF94,_Afg07,3),""),"")) ->  | J94: hkg | AF94: 1 | AH94: =IF(AND(E94<>"",VLOOKUP(AF94,_Afg07,3)<>""),E94,0) -> 0 | AI94: =IF(AND(AF94>1,VLOOKUP(AF94,_Afg07,3)=""),1,0) -> 0 | AJ94: =IF(AND(E94<>"",AF94>1,VLOOKUP(AF94,_Afg07,3)=""),E94,0) -> 0 | AM94: 1 | AP94: 0 | AQ94: 0
AE96: Sum | AG96: =AG62+AG64+AG67+AG69+AG72+AG74+AG77+AG79+AG82+AG84+AG87+AG89+AG92+AG94 -> 0 | AH96: =AH62+AH64+AH67+AH69+AH72+AH74+AH77+AH79+AH82+AH84+AH87+AH89+AH92+AH94 -> 0 | AJ96: =AJ62+AJ64+AJ67+AJ69+AJ72+AJ74+AJ77+AJ79+AJ82+AJ84+AJ87+AJ89+AJ92+AJ94 -> 0
A97: Delsædskifte 3
B100: Marker/ejendomme: | AG100: Udbyttenr4
B102: Jordtype | AF102: 4 | AG102: =IF(AF102=1,5,IF(AF102=2,6,IF(AF102=3,7,IF(AF102=4,8,IF(AF102=5,9,""))))) -> 8 | AH102: Areal
AH103: til fordeling | AI103: Fordelt_areal
B104: Samlet areal | D104: ha | AH104: =C104-AH142 -> 0 | AI104: =Areal_fordel3/Antal_skifter3 -> 
A106: Afgrødefølge | C106: Areal | G106: Udbytte pr. ha | L106: Kommentarer | AG106: Antal | AH106: Areal | AI106: Efter- | AJ106: Areal
AE107: Afgrødefølge | AG107: skifter | AH107: indtastet | AI107: afgrøde | AJ107: indtastet efterafgrøde
A108: 1 | C108: =IF(E108>0,"",IF(AND(AF108>1,AF110>1,AI108+AI110=0),Fordelt_areal3/2,IF(AF108>1,Fordelt_areal3,""))) ->  | D108: =IF(C108<>"","ha","") ->  | F108: ha | G108: =IF(I108<>"","",IF(VLOOKUP(AF108,_Afg07,Udbyttenr4)=0,"",VLOOKUP(AF108,_Afg07,Udbyttenr4))) ->  | H108: =IF(G108="","",IF(AF108>1,IF(VLOOKUP(AF108,_Afg07,3)<>"",VLOOKUP(AF108,_Afg07,3),""),"")) ->  | J108: hkg | AE108: =A108 -> 1 | AF108: 1 | AG108: =IF(AND(AF108>1,AH108=0),1,0) -> 0 | AH108: =IF(AND(E108<>"",VLOOKUP(AF108,_Afg07,3)<>""),E108,0) -> 0 | AI108: =IF(AND(AF108>1,VLOOKUP(AF108,_Afg07,3)=""),1,0) -> 0 | AJ108: =IF(AND(E108<>"",AF108>1,VLOOKUP(AF108,_Afg07,3)=""),E108,0) -> 0 | AM108: 1 | AP108: 0 | AQ108: =AI108 -> 0
AM109: 0 | AN109: 0 | AO109: 0 | AP109: 0 | AQ109: 0
C110: =IF(E110>0,"",IF(E108>0,"",IF(AND(AF110>1,AI108+AI110=0),Fordelt_areal3/2,IF(AF110>1,Fordelt_areal3,"")))) ->  | D110: =IF(C110<>"","ha","") ->  | F110: ha | G110: =IF(I110<>"","",IF(VLOOKUP(AF110,_Afg07,Udbyttenr4)=0,"",VLOOKUP(AF110,_Afg07,Udbyttenr4))) ->  | H110: =IF(G110="","",IF(AF110>1,IF(VLOOKUP(AF110,_Afg07,3)<>"",VLOOKUP(AF110,_Afg07,3),""),"")) ->  | J110: hkg | AF110: 1 | AH110: =IF(AND(E110<>"",VLOOKUP(AF110,_Afg07,3)<>""),E110,0) -> 0 | AI110: =IF(AND(AF110>1,VLOOKUP(AF110,_Afg07,3)=""),1,0) -> 0 | AJ110: =IF(AND(E110<>"",AF110>1,VLOOKUP(AF110,_Afg07,3)=""),E110,0) -> 0 | AM110: 1 | AP110: 0 | AQ110: 0
AM111: 0 | AN111: 0 | AO111: 0 | AP111: 0 | AQ111: 0
AM112: 0 | AN112: 0 | AO112: 0 | AP112: 0 | AQ112: 0
A113: 2 | C113: =IF(E113>0,"",IF(AND(AF113>1,AF115>1,AI113+AI115=0),Fordelt_areal3/2,IF(AF113>1,Fordelt_areal3,""))) ->  | D113: =IF(C113<>"","ha","") ->  | F113: ha | G113: =IF(I113<>"","",IF(VLOOKUP(AF113,_Afg07,Udbyttenr4)=0,"",VLOOKUP(AF113,_Afg07,Udbyttenr4))) ->  | H113: =IF(G113="","",IF(AF113>1,IF(VLOOKUP(AF113,_Afg07,3)<>"",VLOOKUP(AF113,_Afg07,3),""),"")) ->  | J113: hkg | AE113: =A113 -> 2 | AF113: 1 | AG113: =IF(AND(AF113>1,AH113=0),1,0) -> 0 | AH113: =IF(AND(E113<>"",VLOOKUP(AF113,_Afg07,3)<>""),E113,0) -> 0 | AI113: =IF(AND(AF113>1,VLOOKUP(AF113,_Afg07,3)=""),1,0) -> 0 | AJ113: =IF(AND(E113<>"",AF113>1,VLOOKUP(AF113,_Afg07,3)=""),E113,0) -> 0 | AM113: 1 | AP113: 0 | AQ113: 0
AM114: 0 | AN114: 0 | AO114: 0 | AP114: 0 | AQ114: 0
C115: =IF(E115>0,"",IF(E113>0,"",IF(AND(AF115>1,AI113+AI115=0),Fordelt_areal3/2,IF(AF115>1,Fordelt_areal3,"")))) ->  | D115: =IF(C115<>"","ha","") ->  | F115: ha | G115: =IF(I115<>"","",IF(VLOOKUP(AF115,_Afg07,Udbyttenr4)=0,"",VLOOKUP(AF115,_Afg07,Udbyttenr4))) ->  | H115: =IF(G115="","",IF(AF115>1,IF(VLOOKUP(AF115,_Afg07,3)<>"",VLOOKUP(AF115,_Afg07,3),""),"")) ->  | J115: hkg | AF115: 1 | AH115: =IF(AND(E115<>"",VLOOKUP(AF115,_Afg07,3)<>""),E115,0) -> 0 | AI115: =IF(AND(AF115>1,VLOOKUP(AF115,_Afg07,3)=""),1,0) -> 0 | AJ115: =IF(AND(E115<>"",AF115>1,VLOOKUP(AF115,_Afg07,3)=""),E115,0) -> 0 | AM115: 1 | AP115: 0 | AQ115: 0
AM116: 0 | AN116: 0 | AO116: 0 | AP116: 0 | AQ116: 0
AM117: 0 | AN117: 0 | AO117: 0 | AP117: 0 | AQ117: 0
A118: 3 | C118: =IF(E118>0,"",IF(AND(AF118>1,AF120>1,AI118+AI120=0),Fordelt_areal3/2,IF(AF118>1,Fordelt_areal3,""))) ->  | D118: =IF(C118<>"","ha","") ->  | F118: ha | G118: =IF(I118<>"","",IF(VLOOKUP(AF118,_Afg07,Udbyttenr4)=0,"",VLOOKUP(AF118,_Afg07,Udbyttenr4))) ->  | H118: =IF(G118="","",IF(AF118>1,IF(VLOOKUP(AF118,_Afg07,3)<>"",VLOOKUP(AF118,_Afg07,3),""),"")) ->  | J118: hkg | AE118: =A118 -> 3 | AF118: 1 | AG118: =IF(AND(AF118>1,AH118=0),1,0) -> 0 | AH118: =IF(AND(E118<>"",VLOOKUP(AF118,_Afg07,3)<>""),E118,0) -> 0 | AI118: =IF(AND(AF118>1,VLOOKUP(AF118,_Afg07,3)=""),1,0) -> 0 | AJ118: =IF(AND(E118<>"",AF118>1,VLOOKUP(AF118,_Afg07,3)=""),E118,0) -> 0 | AM118: 1 | AP118: 0 | AQ118: 0
AM119: 0 | AN119: 0 | AO119: 0 | AP119: 0 | AQ119: 0
C120: =IF(E120>0,"",IF(E118>0,"",IF(AND(AF120>1,AI118+AI120=0),Fordelt_areal3/2,IF(AF120>1,Fordelt_areal3,"")))) ->  | D120: =IF(C120<>"","ha","") ->  | F120: ha | G120: =IF(I120<>"","",IF(VLOOKUP(AF120,_Afg07,Udbyttenr4)=0,"",VLOOKUP(AF120,_Afg07,Udbyttenr4))) ->  | H120: =IF(G120="","",IF(AF120>1,IF(VLOOKUP(AF120,_Afg07,3)<>"",VLOOKUP(AF120,_Afg07,3),""),"")) ->  | J120: hkg | AF120: 1 | AH120: =IF(AND(E120<>"",VLOOKUP(AF120,_Afg07,3)<>""),E120,0) -> 0 | AI120: =IF(AND(AF120>1,VLOOKUP(AF120,_Afg07,3)=""),1,0) -> 0 | AJ120: =IF(AND(E120<>"",AF120>1,VLOOKUP(AF120,_Afg07,3)=""),E120,0) -> 0 | AM120: 1 | AP120: 0 | AQ120: 0
AM121: 0 | AN121: 0 | AO121: 0 | AP121: 0 | AQ121: 0
AM122: 0 | AN122: 0 | AO122: 0 | AP122: 0 | AQ122: 0
A123: 4 | C123: =IF(E123>0,"",IF(AND(AF123>1,AF125>1,AI123+AI125=0),Fordelt_areal3/2,IF(AF123>1,Fordelt_areal3,""))) ->  | D123: =IF(C123<>"","ha","") ->  | F123: ha | G123: =IF(I123<>"","",IF(VLOOKUP(AF123,_Afg07,Udbyttenr4)=0,"",VLOOKUP(AF123,_Afg07,Udbyttenr4))) ->  | H123: =IF(G123="","",IF(AF123>1,IF(VLOOKUP(AF123,_Afg07,3)<>"",VLOOKUP(AF123,_Afg07,3),""),"")) ->  | J123: hkg | AE123: =A123 -> 4 | AF123: 1 | AG123: =IF(AND(AF123>1,AH123=0),1,0) -> 0 | AH123: =IF(AND(E123<>"",VLOOKUP(AF123,_Afg07,3)<>""),E123,0) -> 0 | AI123: =IF(AND(AF123>1,VLOOKUP(AF123,_Afg07,3)=""),1,0) -> 0 | AJ123: =IF(AND(E123<>"",AF123>1,VLOOKUP(AF123,_Afg07,3)=""),E123,0) -> 0 | AM123: 1 | AP123: 0 | AQ123: 0
AM124: 0 | AN124: 0 | AO124: 0 | AP124: 0 | AQ124: 0
C125: =IF(E125>0,"",IF(E123>0,"",IF(AND(AF125>1,AI123+AI125=0),Fordelt_areal3/2,IF(AF125>1,Fordelt_areal3,"")))) ->  | D125: =IF(C125<>"","ha","") ->  | F125: ha | G125: =IF(I125<>"","",IF(VLOOKUP(AF125,_Afg07,Udbyttenr4)=0,"",VLOOKUP(AF125,_Afg07,Udbyttenr4))) ->  | H125: =IF(G125="","",IF(AF125>1,IF(VLOOKUP(AF125,_Afg07,3)<>"",VLOOKUP(AF125,_Afg07,3),""),"")) ->  | J125: hkg | AF125: 1 | AH125: =IF(AND(E125<>"",VLOOKUP(AF125,_Afg07,3)<>""),E125,0) -> 0 | AI125: =IF(AND(AF125>1,VLOOKUP(AF125,_Afg07,3)=""),1,0) -> 0 | AJ125: =IF(AND(E125<>"",AF125>1,VLOOKUP(AF125,_Afg07,3)=""),E125,0) -> 0 | AM125: 1 | AP125: 0 | AQ125: 0
AM126: 0 | AN126: 0 | AO126: 0 | AP126: 0 | AQ126: 0
AM127: 0 | AN127: 0 | AO127: 0 | AP127: 0 | AQ127: 0
A128: 5 | C128: =IF(E128>0,"",IF(AND(AF128>1,AF130>1,AI128+AI130=0),Fordelt_areal3/2,IF(AF128>1,Fordelt_areal3,""))) ->  | D128: =IF(C128<>"","ha","") ->  | F128: ha | G128: =IF(I128<>"","",IF(VLOOKUP(AF128,_Afg07,Udbyttenr4)=0,"",VLOOKUP(AF128,_Afg07,Udbyttenr4))) ->  | H128: =IF(G128="","",IF(AF128>1,IF(VLOOKUP(AF128,_Afg07,3)<>"",VLOOKUP(AF128,_Afg07,3),""),"")) ->  | J128: hkg | AE128: =A128 -> 5 | AF128: 1 | AG128: =IF(AND(AF128>1,AH128=0),1,0) -> 0 | AH128: =IF(AND(E128<>"",VLOOKUP(AF128,_Afg07,3)<>""),E128,0) -> 0 | AI128: =IF(AND(AF128>1,VLOOKUP(AF128,_Afg07,3)=""),1,0) -> 0 | AJ128: =IF(AND(E128<>"",AF128>1,VLOOKUP(AF128,_Afg07,3)=""),E128,0) -> 0 | AM128: 1 | AP128: 0 | AQ128: 0
AM129: 0 | AN129: 0 | AO129: 0 | AP129: 0 | AQ129: 0
C130: =IF(E130>0,"",IF(E128>0,"",IF(AND(AF130>1,AI128+AI130=0),Fordelt_areal3/2,IF(AF130>1,Fordelt_areal3,"")))) ->  | D130: =IF(C130<>"","ha","") ->  | F130: ha | G130: =IF(I130<>"","",IF(VLOOKUP(AF130,_Afg07,Udbyttenr4)=0,"",VLOOKUP(AF130,_Afg07,Udbyttenr4))) ->  | H130: =IF(G130="","",IF(AF130>1,IF(VLOOKUP(AF130,_Afg07,3)<>"",VLOOKUP(AF130,_Afg07,3),""),"")) ->  | J130: hkg | AF130: 1 | AH130: =IF(AND(E130<>"",VLOOKUP(AF130,_Afg07,3)<>""),E130,0) -> 0 | AI130: =IF(AND(AF130>1,VLOOKUP(AF130,_Afg07,3)=""),1,0) -> 0 | AJ130: =IF(AND(E130<>"",AF130>1,VLOOKUP(AF130,_Afg07,3)=""),E130,0) -> 0 | AM130: 1 | AP130: 0 | AQ130: 0
AM131: 0 | AN131: 0 | AO131: 0 | AP131: 0 | AQ131: 0
AM132: 0 | AN132: 0 | AO132: 0 | AP132: 0 | AQ132: 0
A133: 6 | C133: =IF(E133>0,"",IF(AND(AF133>1,AF135>1,AI133+AI135=0),Fordelt_areal3/2,IF(AF133>1,Fordelt_areal3,""))) ->  | D133: =IF(C133<>"","ha","") ->  | F133: ha | G133: =IF(I133<>"","",IF(VLOOKUP(AF133,_Afg07,Udbyttenr4)=0,"",VLOOKUP(AF133,_Afg07,Udbyttenr4))) ->  | H133: =IF(G133="","",IF(AF133>1,IF(VLOOKUP(AF133,_Afg07,3)<>"",VLOOKUP(AF133,_Afg07,3),""),"")) ->  | J133: hkg | AE133: =A133 -> 6 | AF133: 1 | AG133: =IF(AND(AF133>1,AH133=0),1,0) -> 0 | AH133: =IF(AND(E133<>"",VLOOKUP(AF133,_Afg07,3)<>""),E133,0) -> 0 | AI133: =IF(AND(AF133>1,VLOOKUP(AF133,_Afg07,3)=""),1,0) -> 0 | AJ133: =IF(AND(E133<>"",AF133>1,VLOOKUP(AF133,_Afg07,3)=""),E133,0) -> 0 | AM133: 1 | AP133: 0 | AQ133: 0
AM134: 0 | AN134: 0 | AO134: 0 | AP134: 0 | AQ134: 0
C135: =IF(E135>0,"",IF(E133>0,"",IF(AND(AF135>1,AI133+AI135=0),Fordelt_areal3/2,IF(AF135>1,Fordelt_areal3,"")))) ->  | D135: =IF(C135<>"","ha","") ->  | F135: ha | G135: =IF(I135<>"","",IF(VLOOKUP(AF135,_Afg07,Udbyttenr4)=0,"",VLOOKUP(AF135,_Afg07,Udbyttenr4))) ->  | H135: =IF(G135="","",IF(AF135>1,IF(VLOOKUP(AF135,_Afg07,3)<>"",VLOOKUP(AF135,_Afg07,3),""),"")) ->  | J135: hkg | AF135: 1 | AH135: =IF(AND(E135<>"",VLOOKUP(AF135,_Afg07,3)<>""),E135,0) -> 0 | AI135: =IF(AND(AF135>1,VLOOKUP(AF135,_Afg07,3)=""),1,0) -> 0 | AJ135: =IF(AND(E135<>"",AF135>1,VLOOKUP(AF135,_Afg07,3)=""),E135,0) -> 0 | AM135: 1 | AP135: 0 | AQ135: 0
AM136: 0 | AN136: 0 | AO136: 0 | AP136: 0 | AQ136: 0
AM137: 0 | AN137: 0 | AO137: 0 | AP137: 0 | AQ137: 0
A138: 7 | C138: =IF(E138>0,"",IF(AND(AF138>1,AF140>1,AI138+AI140=0),Fordelt_areal3/2,IF(AF138>1,Fordelt_areal3,""))) ->  | D138: =IF(C138<>"","ha","") ->  | F138: ha | G138: =IF(I138<>"","",IF(VLOOKUP(AF138,_Afg07,Udbyttenr4)=0,"",VLOOKUP(AF138,_Afg07,Udbyttenr4))) ->  | H138: =IF(G138="","",IF(AF138>1,IF(VLOOKUP(AF138,_Afg07,3)<>"",VLOOKUP(AF138,_Afg07,3),""),"")) ->  | J138: hkg | AE138: =A138 -> 7 | AF138: 1 | AG138: =IF(AND(AF138>1,AH138=0),1,0) -> 0 | AH138: =IF(AND(E138<>"",VLOOKUP(AF138,_Afg07,3)<>""),E138,0) -> 0 | AI138: =IF(AND(AF138>1,VLOOKUP(AF138,_Afg07,3)=""),1,0) -> 0 | AJ138: =IF(AND(E138<>"",AF138>1,VLOOKUP(AF138,_Afg07,3)=""),E138,0) -> 0 | AM138: 1 | AP138: 0 | AQ138: 0
AM139: 0 | AN139: 0 | AO139: 0 | AP139: 0 | AQ139: 0
C140: =IF(E140>0,"",IF(E138>0,"",IF(AND(AF140>1,AI138+AI140=0),Fordelt_areal3/2,IF(AF140>1,Fordelt_areal3,"")))) ->  | D140: =IF(C140<>"","ha","") ->  | F140: ha | G140: =IF(I140<>"","",IF(VLOOKUP(AF140,_Afg07,Udbyttenr4)=0,"",VLOOKUP(AF140,_Afg07,Udbyttenr4))) ->  | H140: =IF(G140="","",IF(AF140>1,IF(VLOOKUP(AF140,_Afg07,3)<>"",VLOOKUP(AF140,_Afg07,3),""),"")) ->  | J140: hkg | AF140: 1 | AH140: =IF(AND(E140<>"",VLOOKUP(AF140,_Afg07,3)<>""),E140,0) -> 0 | AI140: =IF(AND(AF140>1,VLOOKUP(AF140,_Afg07,3)=""),1,0) -> 0 | AJ140: =IF(AND(E140<>"",AF140>1,VLOOKUP(AF140,_Afg07,3)=""),E140,0) -> 0 | AM140: 1 | AP140: 0 | AQ140: 0
AE142: Sum | AG142: =AG108+AG110+AG113+AG115+AG118+AG120+AG123+AG125+AG128+AG130+AG133+AG135+AG138+AG140 -> 0 | AH142: =AH108+AH110+AH113+AH115+AH118+AH120+AH123+AH125+AH128+AH130+AH133+AH135+AH138+AH140 -> 0 | AJ142: =AJ108+AJ110+AJ113+AJ115+AJ118+AJ120+AJ123+AJ125+AJ128+AJ130+AJ133+AJ135+AJ138+AJ140 -> 0
A143: Samlet produktion | AI143: Foderproduktion fordelt på korntyper
AI144: Hvede | AK144: Byg | AM144: Havre | AO144: Rug | AQ144: Triticale | AS144: Majs | AW144: Areal med efterafgrøder
B145: Afgrøder | C145: Areal | E145: Gns. udbytte | H145: Udbytte i alt | J145: Foderudbytte | AX145: Efterafgrøde
AF146: Afgnr | AG146: Foderudbytte | AI146: Hkg | AJ146: Fesv | AK146: Hkg | AL146: Fesv | AM146: Hkg | AN146: Fesv | AO146: Hkg | AP146: Fesv | AQ146: Hkg | AR146: Fesv | AS146: Hkg | AT146: Fesv | AX146: 1
C147: =IF(AF147>1,IF(DSUM(Base,2,$AF146:$AF147)=0,"",DSUM(Base,2,$AF146:$AF147))) -> FALSE | D147: =IF(C147="","","ha") -> ha | E147: =IF(ISERROR(G147/C147),"",G147/C147) ->  | F147: =IF(E147="","","hkg") ->  | G147: =IF(DSUM(Base,4,$AF146:$AF147)=0,"",DSUM(Base,4,$AF146:$AF147)) ->  | I147: =IF(G147="","","hkg") ->  | J147: =IF(ISERROR(G147*VLOOKUP(AF147,_Afg07,'Ark1'!$BT$285)),"",G147*VLOOKUP(AF147,_Afg07,'Ark1'!$BT$285)) ->  | L147: =IF(J147="","","FEsv") ->  | AF147: 1 | AG147: =IF(J147<>"",J147,0) -> 0 | AI147: =IF(VLOOKUP($AF147,_Afg07,'Ark1'!$CL$285)="Hvede",$G147,0) -> 0 | AJ147: =IF(VLOOKUP($AF147,_Afg07,'Ark1'!$CL$285)="Hvede",$J147,0) -> 0 | AK147: =IF(VLOOKUP($AF147,_Afg07,'Ark1'!$CL$285)="Byg",$G147,0) -> 0 | AL147: =IF(VLOOKUP($AF147,_Afg07,'Ark1'!$CL$285)="Byg",$J147,0) -> 0 | AM147: =IF(VLOOKUP($AF147,_Afg07,'Ark1'!$CL$285)="Havre",$G147,0) -> 0 | AN147: =IF(VLOOKUP($AF147,_Afg07,'Ark1'!$CL$285)="Havre",$J147,0) -> 0 | AO147: =IF(VLOOKUP($AF147,_Afg07,'Ark1'!$CL$285)="Rug",$G147,0) -> 0 | AP147: =IF(VLOOKUP($AF147,_Afg07,'Ark1'!$CL$285)="Rug",$J147,0) -> 0 | AQ147: =IF(VLOOKUP($AF147,_Afg07,'Ark1'!$CL$285)="Triticale",$G147,0) -> 0 | AR147: =IF(VLOOKUP($AF147,_Afg07,'Ark1'!$CL$285)="Triticale",$J147,0) -> 0 | AS147: =IF(VLOOKUP($AF147,_Afg07,'Ark1'!$CL$285)="Majs",$G147,0) -> 0 | AT147: =IF(VLOOKUP($AF147,_Afg07,'Ark1'!$CL$285)="Majs",$J147,0) -> 0 | AX147: =DSUM(Base,2,AX145:AX146) -> 0
AF148: Afgnr | AX148: =IF(ISERROR(AX147*100/C310),"",ROUND(AX147*100/C310,1)) -> 
C149: =IF(AF149>1,IF(DSUM(Base,2,$AF148:$AF149)=0,"",DSUM(Base,2,$AF148:$AF149)),"") ->  | D149: =IF(C149="","","ha") ->  | E149: =IF(ISERROR(G149/C149),"",G149/C149) ->  | F149: =IF(E149="","","hkg") ->  | G149: =IF(DSUM(Base,4,$AF148:$AF149)=0,"",DSUM(Base,4,$AF148:$AF149)) ->  | I149: =IF(G149="","","hkg") ->  | J149: =IF(ISERROR(G149*VLOOKUP(AF149,_Afg07,'Ark1'!$BT$285)),"",G149*VLOOKUP(AF149,_Afg07,'Ark1'!$BT$285)) ->  | L149: =IF(J149="","","FEsv") ->  | AF149: 1 | AG149: =IF(J149<>"",J149,0) -> 0 | AI149: =IF(VLOOKUP($AF149,_Afg07,'Ark1'!$CL$285)="Hvede",$G149,0) -> 0 | AJ149: =IF(VLOOKUP($AF149,_Afg07,'Ark1'!$CL$285)="Hvede",$J149,0) -> 0 | AK149: =IF(VLOOKUP($AF149,_Afg07,'Ark1'!$CL$285)="Byg",$G149,0) -> 0 | AL149: =IF(VLOOKUP($AF149,_Afg07,'Ark1'!$CL$285)="Byg",$J149,0) -> 0 | AM149: =IF(VLOOKUP($AF149,_Afg07,'Ark1'!$CL$285)="Havre",$G149,0) -> 0 | AN149: =IF(VLOOKUP($AF149,_Afg07,'Ark1'!$CL$285)="Havre",$J149,0) -> 0 | AO149: =IF(VLOOKUP($AF149,_Afg07,'Ark1'!$CL$285)="Rug",$G149,0) -> 0 | AP149: =IF(VLOOKUP($AF149,_Afg07,'Ark1'!$CL$285)="Rug",$J149,0) -> 0 | AQ149: =IF(VLOOKUP($AF149,_Afg07,'Ark1'!$CL$285)="Triticale",$G149,0) -> 0 | AR149: =IF(VLOOKUP($AF149,_Afg07,'Ark1'!$CL$285)="Triticale",$J149,0) -> 0 | AS149: =IF(VLOOKUP($AF149,_Afg07,'Ark1'!$CL$285)="Majs",$G149,0) -> 0 | AT149: =IF(VLOOKUP($AF149,_Afg07,'Ark1'!$CL$285)="Majs",$J149,0) -> 0
AF150: Afgnr
C151: =IF(AF151>1,IF(DSUM(Base,2,$AF150:$AF151)=0,"",DSUM(Base,2,$AF150:$AF151)),"") ->  | D151: =IF(C151="","","ha") ->  | E151: =IF(ISERROR(G151/C151),"",G151/C151) ->  | F151: =IF(E151="","","hkg") ->  | G151: =IF(DSUM(Base,4,$AF150:$AF151)=0,"",DSUM(Base,4,$AF150:$AF151)) ->  | I151: =IF(G151="","","hkg") ->  | J151: =IF(ISERROR(G151*VLOOKUP(AF151,_Afg07,'Ark1'!$BT$285)),"",G151*VLOOKUP(AF151,_Afg07,'Ark1'!$BT$285)) ->  | L151: =IF(J151="","","FEsv") ->  | AF151: 1 | AG151: =IF(J151<>"",J151,0) -> 0 | AI151: =IF(VLOOKUP($AF151,_Afg07,'Ark1'!$CL$285)="Hvede",$G151,0) -> 0 | AJ151: =IF(VLOOKUP($AF151,_Afg07,'Ark1'!$CL$285)="Hvede",$J151,0) -> 0 | AK151: =IF(VLOOKUP($AF151,_Afg07,'Ark1'!$CL$285)="Byg",$G151,0) -> 0 | AL151: =IF(VLOOKUP($AF151,_Afg07,'Ark1'!$CL$285)="Byg",$J151,0) -> 0 | AM151: =IF(VLOOKUP($AF151,_Afg07,'Ark1'!$CL$285)="Havre",$G151,0) -> 0 | AN151: =IF(VLOOKUP($AF151,_Afg07,'Ark1'!$CL$285)="Havre",$J151,0) -> 0 | AO151: =IF(VLOOKUP($AF151,_Afg07,'Ark1'!$CL$285)="Rug",$G151,0) -> 0 | AP151: =IF(VLOOKUP($AF151,_Afg07,'Ark1'!$CL$285)="Rug",$J151,0) -> 0 | AQ151: =IF(VLOOKUP($AF151,_Afg07,'Ark1'!$CL$285)="Triticale",$G151,0) -> 0 | AR151: =IF(VLOOKUP($AF151,_Afg07,'Ark1'!$CL$285)="Triticale",$J151,0) -> 0 | AS151: =IF(VLOOKUP($AF151,_Afg07,'Ark1'!$CL$285)="Majs",$G151,0) -> 0 | AT151: =IF(VLOOKUP($AF151,_Afg07,'Ark1'!$CL$285)="Majs",$J151,0) -> 0
AF152: Afgnr
C153: =IF(AF153>1,IF(DSUM(Base,2,$AF152:$AF153)=0,"",DSUM(Base,2,$AF152:$AF153)),"") ->  | D153: =IF(C153="","","ha") ->  | E153: =IF(ISERROR(G153/C153),"",G153/C153) ->  | F153: =IF(E153="","","hkg") ->  | G153: =IF(DSUM(Base,4,$AF152:$AF153)=0,"",DSUM(Base,4,$AF152:$AF153)) ->  | I153: =IF(G153="","","hkg") ->  | J153: =IF(ISERROR(G153*VLOOKUP(AF153,_Afg07,'Ark1'!$BT$285)),"",G153*VLOOKUP(AF153,_Afg07,'Ark1'!$BT$285)) ->  | L153: =IF(J153="","","FEsv") ->  | AF153: 1 | AG153: =IF(J153<>"",J153,0) -> 0 | AI153: =IF(VLOOKUP($AF153,_Afg07,'Ark1'!$CL$285)="Hvede",$G153,0) -> 0 | AJ153: =IF(VLOOKUP($AF153,_Afg07,'Ark1'!$CL$285)="Hvede",$J153,0) -> 0 | AK153: =IF(VLOOKUP($AF153,_Afg07,'Ark1'!$CL$285)="Byg",$G153,0) -> 0 | AL153: =IF(VLOOKUP($AF153,_Afg07,'Ark1'!$CL$285)="Byg",$J153,0) -> 0 | AM153: =IF(VLOOKUP($AF153,_Afg07,'Ark1'!$CL$285)="Havre",$G153,0) -> 0 | AN153: =IF(VLOOKUP($AF153,_Afg07,'Ark1'!$CL$285)="Havre",$J153,0) -> 0 | AO153: =IF(VLOOKUP($AF153,_Afg07,'Ark1'!$CL$285)="Rug",$G153,0) -> 0 | AP153: =IF(VLOOKUP($AF153,_Afg07,'Ark1'!$CL$285)="Rug",$J153,0) -> 0 | AQ153: =IF(VLOOKUP($AF153,_Afg07,'Ark1'!$CL$285)="Triticale",$G153,0) -> 0 | AR153: =IF(VLOOKUP($AF153,_Afg07,'Ark1'!$CL$285)="Triticale",$J153,0) -> 0 | AS153: =IF(VLOOKUP($AF153,_Afg07,'Ark1'!$CL$285)="Majs",$G153,0) -> 0 | AT153: =IF(VLOOKUP($AF153,_Afg07,'Ark1'!$CL$285)="Majs",$J153,0) -> 0
AF154: Afgnr
C155: =IF(AF155>1,IF(DSUM(Base,2,$AF154:$AF155)=0,"",DSUM(Base,2,$AF154:$AF155)),"") ->  | D155: =IF(C155="","","ha") ->  | E155: =IF(ISERROR(G155/C155),"",G155/C155) ->  | F155: =IF(E155="","","hkg") ->  | G155: =IF(DSUM(Base,4,$AF154:$AF155)=0,"",DSUM(Base,4,$AF154:$AF155)) ->  | I155: =IF(G155="","","hkg") ->  | J155: =IF(ISERROR(G155*VLOOKUP(AF155,_Afg07,'Ark1'!$BT$285)),"",G155*VLOOKUP(AF155,_Afg07,'Ark1'!$BT$285)) ->  | L155: =IF(J155="","","FEsv") ->  | AF155: 1 | AG155: =IF(J155<>"",J155,0) -> 0 | AI155: =IF(VLOOKUP($AF155,_Afg07,'Ark1'!$CL$285)="Hvede",$G155,0) -> 0 | AJ155: =IF(VLOOKUP($AF155,_Afg07,'Ark1'!$CL$285)="Hvede",$J155,0) -> 0 | AK155: =IF(VLOOKUP($AF155,_Afg07,'Ark1'!$CL$285)="Byg",$G155,0) -> 0 | AL155: =IF(VLOOKUP($AF155,_Afg07,'Ark1'!$CL$285)="Byg",$J155,0) -> 0 | AM155: =IF(VLOOKUP($AF155,_Afg07,'Ark1'!$CL$285)="Havre",$G155,0) -> 0 | AN155: =IF(VLOOKUP($AF155,_Afg07,'Ark1'!$CL$285)="Havre",$J155,0) -> 0 | AO155: =IF(VLOOKUP($AF155,_Afg07,'Ark1'!$CL$285)="Rug",$G155,0) -> 0 | AP155: =IF(VLOOKUP($AF155,_Afg07,'Ark1'!$CL$285)="Rug",$J155,0) -> 0 | AQ155: =IF(VLOOKUP($AF155,_Afg07,'Ark1'!$CL$285)="Triticale",$G155,0) -> 0 | AR155: =IF(VLOOKUP($AF155,_Afg07,'Ark1'!$CL$285)="Triticale",$J155,0) -> 0 | AS155: =IF(VLOOKUP($AF155,_Afg07,'Ark1'!$CL$285)="Majs",$G155,0) -> 0 | AT155: =IF(VLOOKUP($AF155,_Afg07,'Ark1'!$CL$285)="Majs",$J155,0) -> 0
AF156: Afgnr
C157: =IF(AF157>1,IF(DSUM(Base,2,$AF156:$AF157)=0,"",DSUM(Base,2,$AF156:$AF157)),"") ->  | D157: =IF(C157="","","ha") ->  | E157: =IF(ISERROR(G157/C157),"",G157/C157) ->  | F157: =IF(E157="","","hkg") ->  | G157: =IF(DSUM(Base,4,$AF156:$AF157)=0,"",DSUM(Base,4,$AF156:$AF157)) ->  | I157: =IF(G157="","","hkg") ->  | J157: =IF(ISERROR(G157*VLOOKUP(AF157,_Afg07,'Ark1'!$BT$285)),"",G157*VLOOKUP(AF157,_Afg07,'Ark1'!$BT$285)) ->  | L157: =IF(J157="","","FEsv") ->  | AF157: 1 | AG157: =IF(J157<>"",J157,0) -> 0 | AI157: =IF(VLOOKUP($AF157,_Afg07,'Ark1'!$CL$285)="Hvede",$G157,0) -> 0 | AJ157: =IF(VLOOKUP($AF157,_Afg07,'Ark1'!$CL$285)="Hvede",$J157,0) -> 0 | AK157: =IF(VLOOKUP($AF157,_Afg07,'Ark1'!$CL$285)="Byg",$G157,0) -> 0 | AL157: =IF(VLOOKUP($AF157,_Afg07,'Ark1'!$CL$285)="Byg",$J157,0) -> 0 | AM157: =IF(VLOOKUP($AF157,_Afg07,'Ark1'!$CL$285)="Havre",$G157,0) -> 0 | AN157: =IF(VLOOKUP($AF157,_Afg07,'Ark1'!$CL$285)="Havre",$J157,0) -> 0 | AO157: =IF(VLOOKUP($AF157,_Afg07,'Ark1'!$CL$285)="Rug",$G157,0) -> 0 | AP157: =IF(VLOOKUP($AF157,_Afg07,'Ark1'!$CL$285)="Rug",$J157,0) -> 0 | AQ157: =IF(VLOOKUP($AF157,_Afg07,'Ark1'!$CL$285)="Triticale",$G157,0) -> 0 | AR157: =IF(VLOOKUP($AF157,_Afg07,'Ark1'!$CL$285)="Triticale",$J157,0) -> 0 | AS157: =IF(VLOOKUP($AF157,_Afg07,'Ark1'!$CL$285)="Majs",$G157,0) -> 0 | AT157: =IF(VLOOKUP($AF157,_Afg07,'Ark1'!$CL$285)="Majs",$J157,0) -> 0
AF158: Afgnr
C159: =IF(AF159>1,IF(DSUM(Base,2,$AF158:$AF159)=0,"",DSUM(Base,2,$AF158:$AF159)),"") ->  | D159: =IF(C159="","","ha") ->  | E159: =IF(ISERROR(G159/C159),"",G159/C159) ->  | F159: =IF(E159="","","hkg") ->  | G159: =IF(DSUM(Base,4,$AF158:$AF159)=0,"",DSUM(Base,4,$AF158:$AF159)) ->  | I159: =IF(G159="","","hkg") ->  | J159: =IF(ISERROR(G159*VLOOKUP(AF159,_Afg07,'Ark1'!$BT$285)),"",G159*VLOOKUP(AF159,_Afg07,'Ark1'!$BT$285)) ->  | L159: =IF(J159="","","FEsv") ->  | AF159: 1 | AG159: =IF(J159<>"",J159,0) -> 0 | AI159: =IF(VLOOKUP($AF159,_Afg07,'Ark1'!$CL$285)="Hvede",$G159,0) -> 0 | AJ159: =IF(VLOOKUP($AF159,_Afg07,'Ark1'!$CL$285)="Hvede",$J159,0) -> 0 | AK159: =IF(VLOOKUP($AF159,_Afg07,'Ark1'!$CL$285)="Byg",$G159,0) -> 0 | AL159: =IF(VLOOKUP($AF159,_Afg07,'Ark1'!$CL$285)="Byg",$J159,0) -> 0 | AM159: =IF(VLOOKUP($AF159,_Afg07,'Ark1'!$CL$285)="Havre",$G159,0) -> 0 | AN159: =IF(VLOOKUP($AF159,_Afg07,'Ark1'!$CL$285)="Havre",$J159,0) -> 0 | AO159: =IF(VLOOKUP($AF159,_Afg07,'Ark1'!$CL$285)="Rug",$G159,0) -> 0 | AP159: =IF(VLOOKUP($AF159,_Afg07,'Ark1'!$CL$285)="Rug",$J159,0) -> 0 | AQ159: =IF(VLOOKUP($AF159,_Afg07,'Ark1'!$CL$285)="Triticale",$G159,0) -> 0 | AR159: =IF(VLOOKUP($AF159,_Afg07,'Ark1'!$CL$285)="Triticale",$J159,0) -> 0 | AS159: =IF(VLOOKUP($AF159,_Afg07,'Ark1'!$CL$285)="Majs",$G159,0) -> 0 | AT159: =IF(VLOOKUP($AF159,_Afg07,'Ark1'!$CL$285)="Majs",$J159,0) -> 0
AF160: Afgnr
C161: =IF(AF161>1,IF(DSUM(Base,2,$AF160:$AF161)=0,"",DSUM(Base,2,$AF160:$AF161)),"") ->  | D161: =IF(C161="","","ha") ->  | E161: =IF(ISERROR(G161/C161),"",G161/C161) ->  | F161: =IF(E161="","","hkg") ->  | G161: =IF(DSUM(Base,4,$AF160:$AF161)=0,"",DSUM(Base,4,$AF160:$AF161)) ->  | I161: =IF(G161="","","hkg") ->  | J161: =IF(ISERROR(G161*VLOOKUP(AF161,_Afg07,'Ark1'!$BT$285)),"",G161*VLOOKUP(AF161,_Afg07,'Ark1'!$BT$285)) ->  | L161: =IF(J161="","","FEsv") ->  | AF161: 1 | AG161: =IF(J161<>"",J161,0) -> 0 | AI161: =IF(VLOOKUP($AF161,_Afg07,'Ark1'!$CL$285)="Hvede",$G161,0) -> 0 | AJ161: =IF(VLOOKUP($AF161,_Afg07,'Ark1'!$CL$285)="Hvede",$J161,0) -> 0 | AK161: =IF(VLOOKUP($AF161,_Afg07,'Ark1'!$CL$285)="Byg",$G161,0) -> 0 | AL161: =IF(VLOOKUP($AF161,_Afg07,'Ark1'!$CL$285)="Byg",$J161,0) -> 0 | AM161: =IF(VLOOKUP($AF161,_Afg07,'Ark1'!$CL$285)="Havre",$G161,0) -> 0 | AN161: =IF(VLOOKUP($AF161,_Afg07,'Ark1'!$CL$285)="Havre",$J161,0) -> 0 | AO161: =IF(VLOOKUP($AF161,_Afg07,'Ark1'!$CL$285)="Rug",$G161,0) -> 0 | AP161: =IF(VLOOKUP($AF161,_Afg07,'Ark1'!$CL$285)="Rug",$J161,0) -> 0 | AQ161: =IF(VLOOKUP($AF161,_Afg07,'Ark1'!$CL$285)="Triticale",$G161,0) -> 0 | AR161: =IF(VLOOKUP($AF161,_Afg07,'Ark1'!$CL$285)="Triticale",$J161,0) -> 0 | AS161: =IF(VLOOKUP($AF161,_Afg07,'Ark1'!$CL$285)="Majs",$G161,0) -> 0 | AT161: =IF(VLOOKUP($AF161,_Afg07,'Ark1'!$CL$285)="Majs",$J161,0) -> 0
AF162: I alt | AG162: =AG147+AG149+AG151+AG153+AG155+AG157+AG159+AG161 -> 0 | AI162: =AI147+AI149+AI151+AI153+AI155+AI157+AI159+AI161 -> 0 | AJ162: 0 | AK162: 0 | AL162: 0 | AM162: 0 | AN162: 0 | AO162: 0 | AP162: 0 | AQ162: 0 | AR162: 0 | AS162: 0 | AT162: 0
A164: Foderbehov | R164: Andel i kornration (vægtpct.) | AJ164: Hkg af hver kornart
B166: Besætning | J166: Foderforbrug | N166: Kornandel af Fesv | R166: Byg | T166: Havre | V166: Rug | X166: Triticale | Z166: Majs | AB166: Hvede | AF166: Foderforbrug_FE | AG166: Korn-FE | AH166: Gns FE/kg korn | AI166: hkg korn | AJ166: Byg | AK166: Havre | AL166: Rug | AM166: Triticale | AN166: Majs | AO166: Hvede
B168: Søer m. smågrise | D168: årssøer | J168: 1482 | K168: FE | M168: FE | N168: 81 | O168: % | Q168: % | R168: 50 | S168: % | U168: % | W168: % | Y168: % | AA168: % | AB168: =100-R168-T168-V168-X168-Z168 -> 50 | AC168: % | AF168: =C168*IF(L168<>"",L168,J168) -> 0 | AG168: =AF168*IF(P168<>"",P168,N168)*0.01 -> 0 | AH168: =R168*0.01*102+T168*0.01*87+V168*0.01*110+X168*0.01*113+Z168*0.01*122+AB168*0.01*115 -> 108.5 | AI168: =AG168/AH168 -> 0 | AJ168: =$AI168*R168*0.01 -> 0 | AK168: =$AI168*T168*0.01 -> 0 | AL168: =$AI168*V168*0.01 -> 0 | AM168: =$AI168*X168*0.01 -> 0 | AN168: =$AI168*Z168*0.01 -> 0 | AO168: =$AI168*AB168*0.01 -> 0
B170: Smågrise | D170: stk. | E170: Fra | F170: 7 | G170: kg Til | H170: 32 | I170: kg | J170: 1.98 | K170: Fesv | M170: Fesv | N170: 68 | O170: % | Q170: % | R170: 22 | S170: % | U170: % | W170: % | Y170: % | AA170: % | AB170: =100-R170-T170-V170-X170-Z170 -> 78 | AC170: % | AF170: =C170*(H170-F170)*IF(L170<>"",L170,J170) -> 0 | AG170: =AF170*IF(P170<>"",P170,N170)*0.01 -> 0 | AH170: =R170*0.01*102+T170*0.01*87+V170*0.01*110+X170*0.01*113+Z170*0.01*122+AB170*0.01*115 -> 112.14 | AI170: =AG170/AH170 -> 0 | AJ170: =$AI170*R170*0.01 -> 0 | AK170: =$AI170*T170*0.01 -> 0 | AL170: =$AI170*V170*0.01 -> 0 | AM170: =$AI170*X170*0.01 -> 0 | AN170: =$AI170*Z170*0.01 -> 0 | AO170: =$AI170*AB170*0.01 -> 0
B172: Slagtesvin | D172: stk. | E172: Fra | F172: 32 | G172: kg Til | H172: 107 | I172: kg | J172: 2.83 | K172: Fesv | M172: Fesv | N172: 78 | O172: % | Q172: % | R172: 25 | S172: % | U172: % | W172: % | Y172: % | AA172: % | AB172: =100-R172-T172-V172-X172-Z172 -> 75 | AC172: % | AF172: =C172*(H172-F172)*IF(L172<>"",L172,J172) -> 0 | AG172: =AF172*IF(P172<>"",P172,N172)*0.01 -> 0 | AH172: =R172*0.01*102+T172*0.01*87+V172*0.01*110+X172*0.01*113+Z172*0.01*122+AB172*0.01*115 -> 111.75 | AI172: =AG172/AH172 -> 0 | AJ172: =$AI172*R172*0.01 -> 0 | AK172: =$AI172*T172*0.01 -> 0 | AL172: =$AI172*V172*0.01 -> 0 | AM172: =$AI172*X172*0.01 -> 0 | AN172: =$AI172*Z172*0.01 -> 0 | AO172: =$AI172*AB172*0.01 -> 0
AI174: Sum | AJ174: =AJ168+AJ170+AJ172 -> 0 | AK174: 0 | AL174: 0 | AM174: 0 | AN174: 0 | AO174: 0
A176: Udskrift
A177: ="Sædskifteplan" -> Sædskifteplan
A179: Delsædskifte 1
A181: Marker/ejendom: | C181: =IF(C8<>"",C8,"") -> 
A183: Areal sædskifte 1: | C183: =C12 -> 0 | D183: =IF(C183="","","ha") -> ha | F183: =VLOOKUP(JBnr2,Jordtyper,2) -> JB 5-6
A186: 1 | B186: =IF(AF16>1,VLOOKUP(AF16,_Afg07,2),"") ->  | C186: =IF(AN16>0,AN16,"") ->  | D186: =IF(C186="","","ha") ->  | E186: =IF(AO16>0,AO16,"") ->  | F186: =IF(E186="","","hkg") ->  | H186: =IF(L16="","",L16) -> 
B188: =IF(AF18>1,VLOOKUP(AF18,_Afg07,2),"") ->  | C188: =IF(AN18>0,AN18,"") ->  | D188: =IF(C188="","","ha") ->  | E188: =IF(AO18>0,AO18,"") ->  | F188: =IF(E188="","","hkg") -> 
A191: 2 | B191: =IF(AF21>1,VLOOKUP(AF21,_Afg07,2),"") ->  | C191: =IF(AN21>0,AN21,"") ->  | D191: =IF(C191="","","ha") ->  | E191: =IF(AO21>0,AO21,"") ->  | F191: =IF(E191="","","hkg") ->  | H191: =IF(L21="","",L21) -> 
B193: =IF(AF23>1,VLOOKUP(AF23,_Afg07,2),"") ->  | C193: =IF(AN23>0,AN23,"") ->  | D193: =IF(C193="","","ha") ->  | E193: =IF(AO23>0,AO23,"") ->  | F193: =IF(E193="","","hkg") -> 
A196: 3 | B196: =IF(AF26>1,VLOOKUP(AF26,_Afg07,2),"") ->  | C196: =IF(AN26>0,AN26,"") ->  | D196: =IF(C196="","","ha") ->  | E196: =IF(AO26>0,AO26,"") ->  | F196: =IF(E196="","","hkg") ->  | H196: =IF(L26="","",L26) -> 
B198: =IF(AF28>1,VLOOKUP(AF28,_Afg07,2),"") ->  | C198: =IF(AN28>0,AN28,"") ->  | D198: =IF(C198="","","ha") ->  | E198: =IF(AO28>0,AO28,"") ->  | F198: =IF(E198="","","hkg") -> 
A201: 4 | B201: =IF(AF31>1,VLOOKUP(AF31,_Afg07,2),"") ->  | C201: =IF(AN31>0,AN31,"") ->  | D201: =IF(C201="","","ha") ->  | E201: =IF(AO31>0,AO31,"") ->  | F201: =IF(E201="","","hkg") ->  | H201: =IF(L31="","",L31) -> 
B203: =IF(AF33>1,VLOOKUP(AF33,_Afg07,2),"") ->  | C203: =IF(AN33>0,AN33,"") ->  | D203: =IF(C203="","","ha") ->  | E203: =IF(AO33>0,AO33,"") ->  | F203: =IF(E203="","","hkg") -> 
A206: 5 | B206: =IF(AF36>1,VLOOKUP(AF36,_Afg07,2),"") ->  | C206: =IF(AN36>0,AN36,"") ->  | D206: =IF(C206="","","ha") ->  | E206: =IF(AO36>0,AO36,"") ->  | F206: =IF(E206="","","hkg") ->  | H206: =IF(L36="","",L36) -> 
B208: =IF(AF38>1,VLOOKUP(AF38,_Afg07,2),"") ->  | C208: =IF(AN38>0,AN38,"") ->  | D208: =IF(C208="","","ha") ->  | E208: =IF(AO38>0,AO38,"") ->  | F208: =IF(E208="","","hkg") -> 
A211: 6 | B211: =IF(AF41>1,VLOOKUP(AF41,_Afg07,2),"") ->  | C211: =IF(AN41>0,AN41,"") ->  | D211: =IF(C211="","","ha") ->  | E211: =IF(AO41>0,AO41,"") ->  | F211: =IF(E211="","","hkg") ->  | H211: =IF(L41="","",L41) -> 
B213: =IF(AF43>1,VLOOKUP(AF43,_Afg07,2),"") ->  | C213: =IF(AN43>0,AN43,"") ->  | D213: =IF(C213="","","ha") ->  | E213: =IF(AO43>0,AO43,"") ->  | F213: =IF(E213="","","hkg") -> 
A216: 7 | B216: =IF(AF46>1,VLOOKUP(AF46,_Afg07,2),"") ->  | C216: =IF(AN46>0,AN46,"") ->  | D216: =IF(C216="","","ha") ->  | E216: =IF(AO46>0,AO46,"") ->  | F216: =IF(E216="","","hkg") ->  | H216: =IF(L46="","",L46) -> 
B218: =IF(AF48>1,VLOOKUP(AF48,_Afg07,2),"") ->  | C218: =IF(AN48>0,AN48,"") ->  | D218: =IF(C218="","","ha") ->  | E218: =IF(AO48>0,AO48,"") ->  | F218: =IF(E218="","","hkg") -> 
A222: Delsædskifte 2
A224: Marker/ejendom: | C224: =IF(C54<>"",C54,"") -> 
A226: Areal sædskifte 2: | C226: =C58 -> 0 | D226: =IF(C226="","","ha") -> ha | F226: =VLOOKUP(JBnr3,Jordtyper,2) -> JB 5-6
A229: 1 | B229: =IF(AF62>1,VLOOKUP(AF62,_Afg07,2),"") ->  | C229: =IF(AN62>0,AN62,"") ->  | D229: =IF(C229="","","ha") ->  | E229: =IF(AO62>0,AO62,"") ->  | F229: =IF(E229="","","hkg") ->  | H229: =IF(L62="","",L62) -> 
B231: =IF(AF64>1,VLOOKUP(AF64,_Afg07,2),"") ->  | C231: =IF(AN64>0,AN64,"") ->  | D231: =IF(C231="","","ha") ->  | E231: =IF(AO64>0,AO64,"") ->  | F231: =IF(E231="","","hkg") -> 
A234: 2 | B234: =IF(AF67>1,VLOOKUP(AF67,_Afg07,2),"") ->  | C234: =IF(AN67>0,AN67,"") ->  | D234: =IF(C234="","","ha") ->  | E234: =IF(AO67>0,AO67,"") ->  | F234: =IF(E234="","","hkg") ->  | H234: =IF(L67="","",L67) -> 
B236: =IF(AF69>1,VLOOKUP(AF69,_Afg07,2),"") ->  | C236: =IF(AN69>0,AN69,"") ->  | D236: =IF(C236="","","ha") ->  | E236: =IF(AO69>0,AO69,"") ->  | F236: =IF(E236="","","hkg") -> 
A239: 3 | B239: =IF(AF72>1,VLOOKUP(AF72,_Afg07,2),"") ->  | C239: =IF(AN72>0,AN72,"") ->  | D239: =IF(C239="","","ha") ->  | E239: =IF(AO72>0,AO72,"") ->  | F239: =IF(E239="","","hkg") ->  | H239: =IF(L72="","",L72) -> 
B241: =IF(AF74>1,VLOOKUP(AF74,_Afg07,2),"") ->  | C241: =IF(AN74>0,AN74,"") ->  | D241: =IF(C241="","","ha") ->  | E241: =IF(AO74>0,AO74,"") ->  | F241: =IF(E241="","","hkg") -> 
A244: 4 | B244: =IF(AF77>1,VLOOKUP(AF77,_Afg07,2),"") ->  | C244: =IF(AN77>0,AN77,"") ->  | D244: =IF(C244="","","ha") ->  | E244: =IF(AO77>0,AO77,"") ->  | F244: =IF(E244="","","hkg") ->  | H244: =IF(L77="","",L77) -> 
B246: =IF(AF79>1,VLOOKUP(AF79,_Afg07,2),"") ->  | C246: =IF(AN79>0,AN79,"") ->  | D246: =IF(C246="","","ha") ->  | E246: =IF(AO79>0,AO79,"") ->  | F246: =IF(E246="","","hkg") -> 
A249: 5 | B249: =IF(AF82>1,VLOOKUP(AF82,_Afg07,2),"") ->  | C249: =IF(AN82>0,AN82,"") ->  | D249: =IF(C249="","","ha") ->  | E249: =IF(AO82>0,AO82,"") ->  | F249: =IF(E249="","","hkg") ->  | H249: =IF(L82="","",L82) -> 
B251: =IF(AF84>1,VLOOKUP(AF84,_Afg07,2),"") ->  | C251: =IF(AN84>0,AN84,"") ->  | D251: =IF(C251="","","ha") ->  | E251: =IF(AO84>0,AO84,"") ->  | F251: =IF(E251="","","hkg") -> 
A254: 6 | B254: =IF(AF87>1,VLOOKUP(AF87,_Afg07,2),"") ->  | C254: =IF(AN87>0,AN87,"") ->  | D254: =IF(C254="","","ha") ->  | E254: =IF(AO87>0,AO87,"") ->  | F254: =IF(E254="","","hkg") ->  | H254: =IF(L87="","",L87) -> 
B256: =IF(AF89>1,VLOOKUP(AF89,_Afg07,2),"") ->  | C256: =IF(AN89>0,AN89,"") ->  | D256: =IF(C256="","","ha") ->  | E256: =IF(AO89>0,AO89,"") ->  | F256: =IF(E256="","","hkg") -> 
A259: 7 | B259: =IF(AF92>1,VLOOKUP(AF92,_Afg07,2),"") ->  | C259: =IF(AN92>0,AN92,"") ->  | D259: =IF(C259="","","ha") ->  | E259: =IF(AO92>0,AO92,"") ->  | F259: =IF(E259="","","hkg") ->  | H259: =IF(L92="","",L92) -> 
B261: =IF(AF94>1,VLOOKUP(AF94,_Afg07,2),"") ->  | C261: =IF(AN94>0,AN94,"") ->  | D261: =IF(C261="","","ha") ->  | E261: =IF(AO94>0,AO94,"") ->  | F261: =IF(E261="","","hkg") -> 
A263: ="Sædskifteplan - fortsat" -> Sædskifteplan - fortsat
A265: Delsædskifte 3
A267: Marker/ejendom: | C267: =IF(C100<>"",C100,"") -> 
A269: Areal sædskifte 3: | C269: =C104 -> 0 | D269: =IF(C269="","","ha") -> ha | F269: =VLOOKUP(JBnr4,Jordtyper,2) -> JB 5-6
A272: 1 | B272: =IF(AF108>1,VLOOKUP(AF108,_Afg07,2),"") ->  | C272: =IF(AN108>0,AN108,"") ->  | D272: =IF(C272="","","ha") ->  | E272: =IF(AO108>0,AO108,"") ->  | F272: =IF(E272="","","hkg") ->  | H272: =IF(L108="","",L108) -> 
B274: =IF(AF110>1,VLOOKUP(AF110,_Afg07,2),"") ->  | C274: =IF(AN110>0,AN110,"") ->  | D274: =IF(C274="","","ha") ->  | E274: =IF(AO110>0,AO110,"") ->  | F274: =IF(E274="","","hkg") -> 
A277: 2 | B277: =IF(AF113>1,VLOOKUP(AF113,_Afg07,2),"") ->  | C277: =IF(AN113>0,AN113,"") ->  | D277: =IF(C277="","","ha") ->  | E277: =IF(AO113>0,AO113,"") ->  | F277: =IF(E277="","","hkg") ->  | H277: =IF(L113="","",L113) -> 
B279: =IF(AF115>1,VLOOKUP(AF115,_Afg07,2),"") ->  | C279: =IF(AN115>0,AN115,"") ->  | D279: =IF(C279="","","ha") ->  | E279: =IF(AO115>0,AO115,"") ->  | F279: =IF(E279="","","hkg") -> 
A282: 3 | B282: =IF(AF118>1,VLOOKUP(AF118,_Afg07,2),"") ->  | C282: =IF(AN118>0,AN118,"") ->  | D282: =IF(C282="","","ha") ->  | E282: =IF(AO118>0,AO118,"") ->  | F282: =IF(E282="","","hkg") ->  | H282: =IF(L118="","",L118) -> 
B284: =IF(AF120>1,VLOOKUP(AF120,_Afg07,2),"") ->  | C284: =IF(AN120>0,AN120,"") ->  | D284: =IF(C284="","","ha") ->  | E284: =IF(AO120>0,AO120,"") ->  | F284: =IF(E284="","","hkg") -> 
A287: 4 | B287: =IF(AF123>1,VLOOKUP(AF123,_Afg07,2),"") ->  | C287: =IF(AN123>0,AN123,"") ->  | D287: =IF(C287="","","ha") ->  | E287: =IF(AO123>0,AO123,"") ->  | F287: =IF(E287="","","hkg") ->  | H287: =IF(L123="","",L123) -> 
B289: =IF(AF125>1,VLOOKUP(AF125,_Afg07,2),"") ->  | C289: =IF(AN125>0,AN125,"") ->  | D289: =IF(C289="","","ha") ->  | E289: =IF(AO125>0,AO125,"") ->  | F289: =IF(E289="","","hkg") -> 
... 37 more rows

Sheet Dræning
B1: Økonomi ved dræning | D1: Vælg først afgrøder i "Økonomi i afgrøder og sædskifter"
P2: Estimér værdien af at dræne Værdien af at dræne kan estimeres ved det udbyttetab fra nuværende produktion, som kan undgås ved at dræne arealet. Udbyttetabet findes i flere niveauer, alt efter hvor hårdt et område bliver ramt af den dårlige dræning. Hjælpeværktøjet der kan beregne værdien af at dræne, giver mulighed for at regne på 3 niveauer af udbyttetab. Hvert udbyttetab har et arealmæssigt omfang, derfor er opmåling af områderne en afgørende del af beregningen. Mål op hvor store arealer der er påvirket af dårlig dræning Her er vist et eksempel, hvor ca. 0,85 ha er gået ud på grund af oversvømning. Figur 1. Areal der krævede omsåning: 0,85 ha Tabet ved dårlig dræning begrænser sig desværre ikke blot til arealet der blev oversvømmet. Randområderne til de oversvømmede giver ikke samme udbytte som et veldrænet areal. Randområdet til de pletter der er omsået udgør 6,5 ha med udbyttetab. Figur 2. Areal der er negativt påvirket af dårlig dræning (randområde) 6,5 ha Værktøj hjælper med beregning af dræningens værdi Beregningsværktøjet der er lavet til at vise værdien af forbedret dræning, kan håndtere op til 3 forskellige niveauer af udbyttetab. I dette eksempel er der kun lavet to niveauer. Nr. 1 er det totale udbyttetab på 0,85 ha, hvor afgrøden går tabt pga. vand. Her er udbyttetabet sat til 100 pct. Nr. 2 er randområdet på 6,5 ha omkring nr. 1. Her er der ikke optimale dyrkningsbetingelser for afgrø-den. I det specifikke tilfælde er udbyttetabet på dette areal vurderet til at være på 20 pct. Det er brugeren selv der vurderer det udbyttetab som anvendes i hvert niveau. Udbyttetabet i sig selv er en afgørende størrelse i beregningen, og det kræver indsigt i de faktiske forhold på hver lokation, at fastsætte et retvisende udbyttetab under de givne forudsætninger. I dette eksempel er der kun valgt to niveauer for udbyttetab. Hvis der er store forskelle i randområder-nes udbyttetab, kan disse opmåles hver for sig, og håndteres i beregningen. En anden væsentlig forudsætning for beregningen, er at tabsniveauet som anvendes, er retvisende som niveau for de kommende år. Opmålingen er en del af beregningen Når værdien af at dræne skal gøres op, er det både udbyttetab og påvirket areal der er afgørende for resultatet. Opmålingen er enkel at foretage i et GIS-program. Opmålingen til figur 1 og 2 er lavet ved hjælp af den gratis onlineløsning på https://arealinformation.miljoeportal.dk/ Opmålingen er med til at kvalificere beregningen. I eksemplet er det meget tydeligt på baggrundskortet at se hvilke arealer der er gået ud. Randområderne er opgjort på baggrund af markens lavninger og de naturlige strømningsveje for vandet. Opmåling af arealer foretages i dette værktøj ved at vælge knappen værktøjer. Når værktøjslinjen åbnes, vælges fanen ”Koordinater og mål” Og knappen ”Areal” vælges. Herefter kan der tegnes polygoner på kortet, og når tegningen er færdig vises arealet af de indtegnede områder. Anvendelse af beregningsværktøjet Beregningsværktøjet er en udvidelse af værktøjet ”økonomi i afgrøder og sædskifter”. Med den almindelige funktion i økonomi i afgrøder og sædskifter, vælges en afgrøde eller sædskifte, og der tilpasses med produktionsmæssige forudsætninger, så det på bedste vis giver en model af markens almindelige drift. Efterfølgende opmåles områderne der er påvirket af dårlig dræning, og der estimeres et udbyttetab på hvert område. Værktøjet giver en værdi for det årlige tab ved dårlig dræning, og giver et bud på hvor meget en dræningsopgave der løser problemet må koste, ud fra en forventet levetid og kalkulationsrente, dog uden omkostninger til vedligehold.
D4: Dræningsbehov
B5: Område der skal drænes
B6: Meget dårligt drænet | E6: ha
B8: Lidt dårligt drænet | E8: ha
B10: Moderat drænet | E10: ha
D13: Estimater for udbytteeffekt, hkg pr. ha
D15: ='Ark1'!F151 -> Vinterraps | G15: ='Ark1'!I151 -> Vinterraps | J15: ='Ark1'!M151 -> Vårbyg, foder
B16: Meget dårligt drænet
B17: Udbytte før dræning | E17: pct. | H17: pct. | K17: pct.
B18: Udbytte efter dræning | D18: ='Ark1'!D152 -> 44 | E18: ='Ark1'!E152 -> hkg | G18: ='Ark1'!H152 -> 44 | H18: ='Ark1'!I152 -> hkg | J18: ='Ark1'!L152 -> 65 | K18: ='Ark1'!M152 -> hkg
B19: Udbytteforbedring | D19: =D18-((D17*D18)/100) -> 44 | E19: ='Ark1'!E152 -> hkg | G19: =G18-((G17*G18)/100) -> 44 | H19: ='Ark1'!I152 -> hkg | J19: =J18-((J17*J18)/100) -> 65 | K19: ='Ark1'!M152 -> hkg
B21: Lidt dårligt drænet
B22: Udbytte før dræning | E22: pct. | H22: pct. | K22: pct.
B23: Udbytte efter dræning | D23: ='Ark1'!D152 -> 44 | E23: ='Ark1'!E152 -> hkg | G23: ='Ark1'!H152 -> 44 | H23: ='Ark1'!I152 -> hkg | J23: ='Ark1'!L152 -> 65 | K23: ='Ark1'!M152 -> hkg
B24: Udbytteforbedring | D24: =D23-((D22*D23)/100) -> 44 | E24: ='Ark1'!E152 -> hkg | G24: =G23-((G22*G23)/100) -> 44 | H24: ='Ark1'!I152 -> hkg | J24: =J23-((J22*J23)/100) -> 65 | K24: ='Ark1'!M152 -> hkg
B26: Moderat drænet
B27: Udbytte før dræning | E27: pct. | H27: pct. | K27: pct.
B28: Udbytte efter dræning | D28: ='Ark1'!D152 -> 44 | E28: ='Ark1'!E152 -> hkg | G28: ='Ark1'!H152 -> 44 | H28: ='Ark1'!I152 -> hkg | J28: ='Ark1'!L152 -> 65 | K28: ='Ark1'!M152 -> hkg
B29: Udbytteforbedring | D29: =D28-((D27*D28)/100) -> 44 | E29: ='Ark1'!E152 -> hkg | G29: =G28-((G27*G28)/100) -> 44 | H29: ='Ark1'!I152 -> hkg | J29: =J28-((J27*J28)/100) -> 65 | K29: ='Ark1'!M152 -> hkg
D32: Øget indtjening ved dræning, kr. pr. ha
D34: ='Ark1'!F151 -> Vinterraps | G34: ='Ark1'!I151 -> Vinterraps | J34: ='Ark1'!M151 -> Vårbyg, foder
B36: Forventet udbytteforbedring | D36: =(D19*D6)+(D24*D8)+(D29*D10) -> 0 | E36: =E19 -> hkg | G36: =(G19*D6)+(G24*D8)+(G29*D10) -> 0 | H36: =H19 -> hkg | J36: =(J19*D6)+(J24*D8)+(J29*D10) -> 0 | K36: =K19 -> hkg
B37: Pris pr. hkg | D37: ='Ark1'!D153 -> 370 | E37: ='Ark1'!E153 -> kr. | G37: ='Ark1'!H153 -> 370 | H37: ='Ark1'!I153 -> kr. | J37: ='Ark1'!L153 -> 165 | K37: ='Ark1'!M153 -> kr.
B38: Øget indtjening | D38: =D36*D37 -> 0 | E38: =E37 -> kr. | G38: =G36*G37 -> 0 | H38: =H37 -> kr. | J38: =J37*J36 -> 0 | K38: =K37 -> kr.
D42: Omkostning ved dræning (vedligehold af dræn ikke indregnet)
B44: Rentesats | D44: 0.05
B46: Drænsystemets levetid | D46: 30 | E46: år
D48: ='Ark1'!F151 -> Vinterraps | G48: ='Ark1'!I151 -> Vinterraps | J48: ='Ark1'!M151 -> Vårbyg, foder
B50: Maksimal årlig omkostning ved dræning | D50: =D38 -> 0 | E50: =E38 -> kr. | G50: =G38 -> 0 | H50: =H38 -> kr. | J50: =J38 -> 0 | K50: =K38 -> kr.
B52: Hvor stor en investering kan forbedringen forrente? | D52: =-PV(D44/D46,D46,D50) -> 0 | E52: kr. | G52: =-PV(D44/D46,D46,G50) -> 0 | H52: kr. | J52: =-PV(D44/D46,D46,J50) -> 0 | K52: kr.

Sheet Fordeling af arbejdsopgaver
A1: Aktivitet | B1: Afgrøde | C1: Aktivitet | D1: Antal | E1: Stykomk | F1: Maskinomk | G1: 0Start august | H1: 0Slut august | I1: 0Start september | J1: 0Slut september | K1: 0Start oktober | L1: 0Slut oktober | M1: 0Start november | N1: 0Slut november | O1: 0Start december | P1: 0Slut december | Q1: 1Start januar | R1: 1Slut januar | S1: 1Start februar | T1: 1Slut februar | U1: 1Start marts | V1: 1Slut marts | W1: 1Start april | X1: 1Slut april | Y1: 1Start maj | Z1: 1Slut maj | AA1: 1Start juni | AB1: 1Slut juni | AC1: 1Start juli | AD1: 1Slut juli | AE1: 1Start august | AF1: 1Slut august | AG1: 1Start september | AH1: 1Slut september | AI1: 1Start oktober | AJ1: 1Slut oktober | AK1: 1Start november | AL1: 1Slut november | AM1: 1Start december | AN1: 1Slut december
A2: 2 | B2: Frøgræs (Rajgræs) | C2: Pløjning | D2: 0
A3: 3 | B3: Frøgræs (Rajgræs) | C3: Jorbearb. Før såning | D3: 0
A4: 4 | B4: Frøgræs (Rajgræs) | C4: Afgrødeetabl. (såning, lægning o.l.) | D4: 1 | F4: 200 | G4: 1
A5: 5 | B5: Frøgræs (Rajgræs) | C5: Gødskning (handelsgødning) | D5: 2 | F5: 100 | J5: =1/D5 -> 0.5 | V5: =1/D5 -> 0.5
A6: 6 | B6: Frøgræs (Rajgræs) | C6: Planteværn | D6: 3 | F6: 560 | H6: =0.5/D6 -> 0.1666666667 | I6: =0.5/D6 -> 0.1666666667 | W6: =0.5/D6 -> 0.1666666667 | X6: =0.5/D6 -> 0.1666666667 | Y6: =0.5/D6 -> 0.1666666667 | Z6: =0.5/D6 -> 0.1666666667
A7: 7 | B7: Frøgræs (Rajgræs) | C7: Høst | D7: 1 | F7: 1517 | AC7: 1
A8: 8 | B8: Frøgræs (Rajgræs) | C8: Hjemkørsel | D8: 1 | F8: 418 | AC8: 1
A9: 9 | B9: Frøgræs (Rajgræs) | C9: Presning | D9: 1 | F9: =954+311 -> 1265 | AC9: 1
A10: 10 | B10: Frøgræs (Rajgræs) | C10: Tørringsomkostninger | D10: 1 | F10: 724 | AC10: 1
A11: 11 | B11: Frøgræs (Rajgræs) | C11: Maskinomkostninger | F11: =SUM(F2:F10) -> 4784 | G11: =($F2*G2+$F3*G3+$F4*G4+$F5*G5+$F6*G6+$F7*G7+$F8*G8+$F9*G9+$F10*G10)/$F11 -> 0.04180602007 | H11: 0.01950947603 | I11: 0.01950947603 | J11: 0.01045150502 | K11: 0 | L11: 0 | M11: 0 | N11: 0 | O11: 0 | P11: 0 | Q11: 0 | R11: 0 | S11: 0 | T11: 0 | U11: 0 | V11: 0.01045150502 | W11: 0.01950947603 | X11: 0.01950947603 | Y11: 0.01950947603 | Z11: 0.01950947603 | AA11: 0 | AB11: 0 | AC11: 0.8202341137 | AD11: 0 | AE11: 0 | AF11: 0 | AG11: 0 | AH11: 0 | AI11: 0 | AJ11: 0 | AK11: 0 | AL11: 0 | AM11: 0 | AN11: 0
A12: 12 | B12: Frøgræs (Rajgræs) | C12: Maskinomkostninger summeret | G12: =SUM($G11:G11) -> 0.04180602007 | H12: =SUM($G11:H11) -> 0.0613154961 | I12: =SUM($G11:I11) -> 0.08082497213 | J12: =SUM($G11:J11) -> 0.09127647715 | K12: =SUM($G11:K11) -> 0.09127647715 | L12: =SUM($G11:L11) -> 0.09127647715 | M12: =SUM($G11:M11) -> 0.09127647715 | N12: =SUM($G11:N11) -> 0.09127647715 | O12: =SUM($G11:O11) -> 0.09127647715 | P12: =SUM($G11:P11) -> 0.09127647715 | Q12: =SUM($G11:Q11) -> 0.09127647715 | R12: =SUM($G11:R11) -> 0.09127647715 | S12: =SUM($G11:S11) -> 0.09127647715 | T12: =SUM($G11:T11) -> 0.09127647715 | U12: =SUM($G11:U11) -> 0.09127647715 | V12: =SUM($G11:V11) -> 0.1017279822 | W12: =SUM($G11:W11) -> 0.1212374582 | X12: =SUM($G11:X11) -> 0.1407469342 | Y12: =SUM($G11:Y11) -> 0.1602564103 | Z12: =SUM($G11:Z11) -> 0.1797658863 | AA12: =SUM($G11:AA11) -> 0.1797658863 | AB12: =SUM($G11:AB11) -> 0.1797658863 | AC12: =SUM($G11:AC11) -> 1 | AD12: =SUM($G11:AD11) -> 1 | AE12: =SUM($G11:AE11) -> 1 | AF12: =SUM($G11:AF11) -> 1 | AG12: =SUM($G11:AG11) -> 1 | AH12: =SUM($G11:AH11) -> 1 | AI12: =SUM($G11:AI11) -> 1 | AJ12: =SUM($G11:AJ11) -> 1 | AK12: =SUM($G11:AK11) -> 1 | AL12: =SUM($G11:AL11) -> 1 | AM12: =SUM($G11:AM11) -> 1 | AN12: =SUM($G11:AN11) -> 1
A13: 13 | B13: Frøgræs (Rajgræs) | C13: Maskinomkostninger excl. Etablering | F13: =SUM(F5:F10) -> 4584 | G13: =($F5*G5+$F6*G6+$F7*G7+$F8*G8+$F9*G9+$F10*G10)/$F13 -> 0 | H13: =($F5*H5+$F6*H6+$F7*H7+$F8*H8+$F9*H9+$F10*H10)/$F13 -> 0.02036067481 | I13: 0.02036067481 | J13: 0.01090750436 | K13: 0 | L13: 0 | M13: 0 | N13: 0 | O13: 0 | P13: 0 | Q13: 0 | R13: 0 | S13: 0 | T13: 0 | U13: 0 | V13: 0.01090750436 | W13: 0.02036067481 | X13: 0.02036067481 | Y13: 0.02036067481 | Z13: 0.02036067481 | AA13: 0 | AB13: 0 | AC13: 0.8560209424 | AD13: 0 | AE13: 0 | AF13: 0 | AG13: 0 | AH13: 0 | AI13: 0 | AJ13: 0 | AK13: 0 | AL13: 0 | AM13: 0 | AN13: 0
A14: 14 | B14: Frøgræs (Rajgræs) | C14: Maskinomkostninger summeret excl. Etablering | G14: =SUM($G13:G13) -> 0 | H14: =SUM($G13:H13) -> 0.02036067481 | I14: =SUM($G13:I13) -> 0.04072134962 | J14: =SUM($G13:J13) -> 0.05162885398 | K14: =SUM($G13:K13) -> 0.05162885398 | L14: =SUM($G13:L13) -> 0.05162885398 | M14: =SUM($G13:M13) -> 0.05162885398 | N14: =SUM($G13:N13) -> 0.05162885398 | O14: =SUM($G13:O13) -> 0.05162885398 | P14: =SUM($G13:P13) -> 0.05162885398 | Q14: =SUM($G13:Q13) -> 0.05162885398 | R14: =SUM($G13:R13) -> 0.05162885398 | S14: =SUM($G13:S13) -> 0.05162885398 | T14: =SUM($G13:T13) -> 0.05162885398 | U14: =SUM($G13:U13) -> 0.05162885398 | V14: =SUM($G13:V13) -> 0.06253635835 | W14: =SUM($G13:W13) -> 0.08289703316 | X14: =SUM($G13:X13) -> 0.103257708 | Y14: =SUM($G13:Y13) -> 0.1236183828 | Z14: =SUM($G13:Z13) -> 0.1439790576 | AA14: =SUM($G13:AA13) -> 0.1439790576 | AB14: =SUM($G13:AB13) -> 0.1439790576 | AC14: =SUM($G13:AC13) -> 1 | AD14: =SUM($G13:AD13) -> 1 | AE14: =SUM($G13:AE13) -> 1 | AF14: =SUM($G13:AF13) -> 1 | AG14: =SUM($G13:AG13) -> 1 | AH14: =SUM($G13:AH13) -> 1 | AI14: =SUM($G13:AI13) -> 1 | AJ14: =SUM($G13:AJ13) -> 1 | AK14: =SUM($G13:AK13) -> 1 | AL14: =SUM($G13:AL13) -> 1 | AM14: =SUM($G13:AM13) -> 1 | AN14: =SUM($G13:AN13) -> 1
A15: 15 | B15: Frøgræs (Rajgræs) | C15: Udsæd | G15: =SUM($G4:G4) -> 1 | H15: =SUM($G4:H4) -> 1 | I15: =SUM($G4:I4) -> 1 | J15: =SUM($G4:J4) -> 1 | K15: =SUM($G4:K4) -> 1 | L15: =SUM($G4:L4) -> 1 | M15: =SUM($G4:M4) -> 1 | N15: =SUM($G4:N4) -> 1 | O15: =SUM($G4:O4) -> 1 | P15: =SUM($G4:P4) -> 1 | Q15: =SUM($G4:Q4) -> 1 | R15: =SUM($G4:R4) -> 1 | S15: =SUM($G4:S4) -> 1 | T15: =SUM($G4:T4) -> 1 | U15: =SUM($G4:U4) -> 1 | V15: =SUM($G4:V4) -> 1 | W15: =SUM($G4:W4) -> 1 | X15: =SUM($G4:X4) -> 1 | Y15: =SUM($G4:Y4) -> 1 | Z15: =SUM($G4:Z4) -> 1 | AA15: =SUM($G4:AA4) -> 1 | AB15: =SUM($G4:AB4) -> 1 | AC15: =SUM($G4:AC4) -> 1 | AD15: =SUM($G4:AD4) -> 1 | AE15: =SUM($G4:AE4) -> 1 | AF15: =SUM($G4:AF4) -> 1 | AG15: =SUM($G4:AG4) -> 1 | AH15: =SUM($G4:AH4) -> 1 | AI15: =SUM($G4:AI4) -> 1 | AJ15: =SUM($G4:AJ4) -> 1 | AK15: =SUM($G4:AK4) -> 1 | AL15: =SUM($G4:AL4) -> 1 | AM15: =SUM($G4:AM4) -> 1 | AN15: =SUM($G4:AN4) -> 1
A16: 16 | B16: Frøgræs (Rajgræs) | C16: Gødning | G16: =SUM($G5:G5) -> 0 | H16: =SUM($G5:H5) -> 0 | I16: =SUM($G5:I5) -> 0 | J16: =SUM($G5:J5) -> 0.5 | K16: =SUM($G5:K5) -> 0.5 | L16: =SUM($G5:L5) -> 0.5 | M16: =SUM($G5:M5) -> 0.5 | N16: =SUM($G5:N5) -> 0.5 | O16: =SUM($G5:O5) -> 0.5 | P16: =SUM($G5:P5) -> 0.5 | Q16: =SUM($G5:Q5) -> 0.5 | R16: =SUM($G5:R5) -> 0.5 | S16: =SUM($G5:S5) -> 0.5 | T16: =SUM($G5:T5) -> 0.5 | U16: =SUM($G5:U5) -> 0.5 | V16: =SUM($G5:V5) -> 1 | W16: =SUM($G5:W5) -> 1 | X16: =SUM($G5:X5) -> 1 | Y16: =SUM($G5:Y5) -> 1 | Z16: =SUM($G5:Z5) -> 1 | AA16: =SUM($G5:AA5) -> 1 | AB16: =SUM($G5:AB5) -> 1 | AC16: =SUM($G5:AC5) -> 1 | AD16: =SUM($G5:AD5) -> 1 | AE16: =SUM($G5:AE5) -> 1 | AF16: =SUM($G5:AF5) -> 1 | AG16: =SUM($G5:AG5) -> 1 | AH16: =SUM($G5:AH5) -> 1 | AI16: =SUM($G5:AI5) -> 1 | AJ16: =SUM($G5:AJ5) -> 1 | AK16: =SUM($G5:AK5) -> 1 | AL16: =SUM($G5:AL5) -> 1 | AM16: =SUM($G5:AM5) -> 1 | AN16: =SUM($G5:AN5) -> 1
A17: 17 | B17: Frøgræs (Rajgræs) | C17: Planteværn | G17: =SUM($G6:G6) -> 0 | H17: =SUM($G6:H6) -> 0.1666666667 | I17: =SUM($G6:I6) -> 0.3333333333 | J17: =SUM($G6:J6) -> 0.3333333333 | K17: =SUM($G6:K6) -> 0.3333333333 | L17: =SUM($G6:L6) -> 0.3333333333 | M17: =SUM($G6:M6) -> 0.3333333333 | N17: =SUM($G6:N6) -> 0.3333333333 | O17: =SUM($G6:O6) -> 0.3333333333 | P17: =SUM($G6:P6) -> 0.3333333333 | Q17: =SUM($G6:Q6) -> 0.3333333333 | R17: =SUM($G6:R6) -> 0.3333333333 | S17: =SUM($G6:S6) -> 0.3333333333 | T17: =SUM($G6:T6) -> 0.3333333333 | U17: =SUM($G6:U6) -> 0.3333333333 | V17: =SUM($G6:V6) -> 0.3333333333 | W17: =SUM($G6:W6) -> 0.5 | X17: =SUM($G6:X6) -> 0.6666666667 | Y17: =SUM($G6:Y6) -> 0.8333333333 | Z17: =SUM($G6:Z6) -> 1 | AA17: =SUM($G6:AA6) -> 1 | AB17: =SUM($G6:AB6) -> 1 | AC17: =SUM($G6:AC6) -> 1 | AD17: =SUM($G6:AD6) -> 1 | AE17: =SUM($G6:AE6) -> 1 | AF17: =SUM($G6:AF6) -> 1 | AG17: =SUM($G6:AG6) -> 1 | AH17: =SUM($G6:AH6) -> 1 | AI17: =SUM($G6:AI6) -> 1 | AJ17: =SUM($G6:AJ6) -> 1 | AK17: =SUM($G6:AK6) -> 1 | AL17: =SUM($G6:AL6) -> 1 | AM17: =SUM($G6:AM6) -> 1 | AN17: =SUM($G6:AN6) -> 1
A18: 18 | B18: Frøgræs (Rajgræs) | C18: Diverse stykomkostninger | G18: =SUM($G7:G7) -> 0 | H18: =SUM($G7:H7) -> 0 | I18: =SUM($G7:I7) -> 0 | J18: =SUM($G7:J7) -> 0 | K18: =SUM($G7:K7) -> 0 | L18: =SUM($G7:L7) -> 0 | M18: =SUM($G7:M7) -> 0 | N18: =SUM($G7:N7) -> 0 | O18: =SUM($G7:O7) -> 0 | P18: =SUM($G7:P7) -> 0 | Q18: =SUM($G7:Q7) -> 0 | R18: =SUM($G7:R7) -> 0 | S18: =SUM($G7:S7) -> 0 | T18: =SUM($G7:T7) -> 0 | U18: =SUM($G7:U7) -> 0 | V18: =SUM($G7:V7) -> 0 | W18: =SUM($G7:W7) -> 0 | X18: =SUM($G7:X7) -> 0 | Y18: =SUM($G7:Y7) -> 0 | Z18: =SUM($G7:Z7) -> 0 | AA18: =SUM($G7:AA7) -> 0 | AB18: =SUM($G7:AB7) -> 0 | AC18: =SUM($G7:AC7) -> 1 | AD18: =SUM($G7:AD7) -> 1 | AE18: =SUM($G7:AE7) -> 1 | AF18: =SUM($G7:AF7) -> 1 | AG18: =SUM($G7:AG7) -> 1 | AH18: =SUM($G7:AH7) -> 1 | AI18: =SUM($G7:AI7) -> 1 | AJ18: =SUM($G7:AJ7) -> 1 | AK18: =SUM($G7:AK7) -> 1 | AL18: =SUM($G7:AL7) -> 1 | AM18: =SUM($G7:AM7) -> 1 | AN18: =SUM($G7:AN7) -> 1
A19: 19 | B19: Frøgræs (Rajgræs) | C19: Bruttoudbytte (høsttid) | G19: =SUM($G7:G7) -> 0 | H19: =SUM($G7:H7) -> 0 | I19: =SUM($G7:I7) -> 0 | J19: =SUM($G7:J7) -> 0 | K19: =SUM($G7:K7) -> 0 | L19: =SUM($G7:L7) -> 0 | M19: =SUM($G7:M7) -> 0 | N19: =SUM($G7:N7) -> 0 | O19: =SUM($G7:O7) -> 0 | P19: =SUM($G7:P7) -> 0 | Q19: =SUM($G7:Q7) -> 0 | R19: =SUM($G7:R7) -> 0 | S19: =SUM($G7:S7) -> 0 | T19: =SUM($G7:T7) -> 0 | U19: =SUM($G7:U7) -> 0 | V19: =SUM($G7:V7) -> 0 | W19: =SUM($G7:W7) -> 0 | X19: =SUM($G7:X7) -> 0 | Y19: =SUM($G7:Y7) -> 0 | Z19: =SUM($G7:Z7) -> 0 | AA19: =SUM($G7:AA7) -> 0 | AB19: =SUM($G7:AB7) -> 0 | AC19: =SUM($G7:AC7) -> 1 | AD19: =SUM($G7:AD7) -> 1 | AE19: =SUM($G7:AE7) -> 1 | AF19: =SUM($G7:AF7) -> 1 | AG19: =SUM($G7:AG7) -> 1 | AH19: =SUM($G7:AH7) -> 1 | AI19: =SUM($G7:AI7) -> 1 | AJ19: =SUM($G7:AJ7) -> 1 | AK19: =SUM($G7:AK7) -> 1 | AL19: =SUM($G7:AL7) -> 1 | AM19: =SUM($G7:AM7) -> 1 | AN19: =SUM($G7:AN7) -> 1
A20: 20 | B20: Kartofler | C20: Pløjning | D20: 1 | F20: 725 | T20: =0.5/D20 -> 0.5 | U20: =0.5/D20 -> 0.5
A21: 21 | B21: Kartofler | C21: Jorbearb. Før såning | D21: 1 | F21: =225+2550 -> 2775 | W21: =0.5/D21 -> 0.5 | X21: =0.5/D21 -> 0.5
A22: 22 | B22: Kartofler | C22: Afgrødeetabl. (såning, lægning o.l.) | D22: 1 | F22: 1450 | W22: =0.5/D22 -> 0.5 | X22: =0.5/D22 -> 0.5
A23: 23 | B23: Kartofler | C23: Gødskning (handelsgødning) | D23: 1 | F23: 100 | W23: =0.5/D23 -> 0.5 | X23: =0.5/D23 -> 0.5
A24: 24 | B24: Kartofler | C24: Planteværn | D24: 16 | F24: =16*165 -> 2640 | Y24: =1/D24 -> 0.0625 | Z24: =1/D24 -> 0.0625 | AA24: =2/D24 -> 0.125 | AB24: =2/D24 -> 0.125 | AC24: =2/D24 -> 0.125 | AD24: =2/D24 -> 0.125 | AE24: =2/D24 -> 0.125 | AF24: =2/D24 -> 0.125 | AG24: =2/D24 -> 0.125
A25: 25 | B25: Kartofler | C25: Høst og hjemkørsel | D25: 1 | F25: 3153 | AH25: 1
A26: 26 | B26: Kartofler | C26: Maskinomkostninger | F26: =SUM(F20:F25) -> 10843 | G26: =($F20*G20+$F21*G21+$F22*G22+$F23*G23+$F24*G24+$F25*G25)/$F26 -> 0 | H26: =($F20*H20+$F21*H21+$F22*H22+$F23*H23+$F24*H24+$F25*H25)/$F26 -> 0 | I26: 0 | J26: 0 | K26: 0 | L26: 0 | M26: 0 | N26: 0 | O26: 0 | P26: 0 | Q26: 0 | R26: 0 | S26: 0 | T26: 0.03343170709 | U26: 0.03343170709 | V26: 0 | W26: 0.1994374251 | X26: 0.1994374251 | Y26: 0.01521719081 | Z26: 0.01521719081 | AA26: 0.03043438163 | AB26: 0.03043438163 | AC26: 0.03043438163 | AD26: 0.03043438163 | AE26: 0.03043438163 | AF26: 0.03043438163 | AG26: 0.03043438163 | AH26: 0.2907866827 | AI26: 0 | AJ26: 0 | AK26: 0 | AL26: 0 | AM26: 0 | AN26: 0
A27: 27 | B27: Kartofler | C27: Maskinomkostninger summeret | G27: =SUM($G26:G26) -> 0 | H27: =SUM($G26:H26) -> 0 | I27: =SUM($G26:I26) -> 0 | J27: =SUM($G26:J26) -> 0 | K27: =SUM($G26:K26) -> 0 | L27: =SUM($G26:L26) -> 0 | M27: =SUM($G26:M26) -> 0 | N27: =SUM($G26:N26) -> 0 | O27: =SUM($G26:O26) -> 0 | P27: =SUM($G26:P26) -> 0 | Q27: =SUM($G26:Q26) -> 0 | R27: =SUM($G26:R26) -> 0 | S27: =SUM($G26:S26) -> 0 | T27: =SUM($G26:T26) -> 0.03343170709 | U27: =SUM($G26:U26) -> 0.06686341418 | V27: =SUM($G26:V26) -> 0.06686341418 | W27: =SUM($G26:W26) -> 0.2663008393 | X27: =SUM($G26:X26) -> 0.4657382643 | Y27: =SUM($G26:Y26) -> 0.4809554551 | Z27: =SUM($G26:Z26) -> 0.4961726459 | AA27: =SUM($G26:AA26) -> 0.5266070276 | AB27: =SUM($G26:AB26) -> 0.5570414092 | AC27: =SUM($G26:AC26) -> 0.5874757908 | AD27: =SUM($G26:AD26) -> 0.6179101725 | AE27: =SUM($G26:AE26) -> 0.6483445541 | AF27: =SUM($G26:AF26) -> 0.6787789357 | AG27: =SUM($G26:AG26) -> 0.7092133173 | AH27: =SUM($G26:AH26) -> 1 | AI27: =SUM($G26:AI26) -> 1 | AJ27: =SUM($G26:AJ26) -> 1 | AK27: =SUM($G26:AK26) -> 1 | AL27: =SUM($G26:AL26) -> 1 | AM27: =SUM($G26:AM26) -> 1 | AN27: =SUM($G26:AN26) -> 1
A28: 28 | B28: Kartofler | C28: Maskinomkostninger excl. Etablering | F28: =SUM(F23:F25) -> 5893 | G28: =($F23*G23+$F24*G24+$F25*G25)/$F28 -> 0 | H28: =($F23*H23+$F24*H24+$F25*H25)/$F28 -> 0 | I28: 0 | J28: 0 | K28: 0 | L28: 0 | M28: 0 | N28: 0 | O28: 0 | P28: 0 | Q28: 0 | R28: 0 | S28: 0 | T28: 0 | U28: 0 | V28: 0 | W28: 0.008484642797 | X28: 0.008484642797 | Y28: 0.02799932123 | Z28: 0.02799932123 | AA28: 0.05599864246 | AB28: 0.05599864246 | AC28: 0.05599864246 | AD28: 0.05599864246 | AE28: 0.05599864246 | AF28: 0.05599864246 | AG28: 0.05599864246 | AH28: 0.5350415747 | AI28: 0 | AJ28: 0 | AK28: 0 | AL28: 0 | AM28: 0 | AN28: 0
A29: 29 | B29: Kartofler | C29: Maskinomkostninger summeret excl. Etablering | G29: =SUM($G28:G28) -> 0 | H29: =SUM($G28:H28) -> 0 | I29: =SUM($G28:I28) -> 0 | J29: =SUM($G28:J28) -> 0 | K29: =SUM($G28:K28) -> 0 | L29: =SUM($G28:L28) -> 0 | M29: =SUM($G28:M28) -> 0 | N29: =SUM($G28:N28) -> 0 | O29: =SUM($G28:O28) -> 0 | P29: =SUM($G28:P28) -> 0 | Q29: =SUM($G28:Q28) -> 0 | R29: =SUM($G28:R28) -> 0 | S29: =SUM($G28:S28) -> 0 | T29: =SUM($G28:T28) -> 0 | U29: =SUM($G28:U28) -> 0 | V29: =SUM($G28:V28) -> 0 | W29: =SUM($G28:W28) -> 0.008484642797 | X29: =SUM($G28:X28) -> 0.01696928559 | Y29: =SUM($G28:Y28) -> 0.04496860682 | Z29: =SUM($G28:Z28) -> 0.07296792805 | AA29: =SUM($G28:AA28) -> 0.1289665705 | AB29: =SUM($G28:AB28) -> 0.184965213 | AC29: =SUM($G28:AC28) -> 0.2409638554 | AD29: =SUM($G28:AD28) -> 0.2969624979 | AE29: =SUM($G28:AE28) -> 0.3529611403 | AF29: =SUM($G28:AF28) -> 0.4089597828 | AG29: =SUM($G28:AG28) -> 0.4649584253 | AH29: =SUM($G28:AH28) -> 1 | AI29: =SUM($G28:AI28) -> 1 | AJ29: =SUM($G28:AJ28) -> 1 | AK29: =SUM($G28:AK28) -> 1 | AL29: =SUM($G28:AL28) -> 1 | AM29: =SUM($G28:AM28) -> 1 | AN29: =SUM($G28:AN28) -> 1
A30: 30 | B30: Kartofler | C30: Udsæd | G30: =SUM($G22:G22) -> 0 | H30: =SUM($G22:H22) -> 0 | I30: =SUM($G22:I22) -> 0 | J30: =SUM($G22:J22) -> 0 | K30: =SUM($G22:K22) -> 0 | L30: =SUM($G22:L22) -> 0 | M30: =SUM($G22:M22) -> 0 | N30: =SUM($G22:N22) -> 0 | O30: =SUM($G22:O22) -> 0 | P30: =SUM($G22:P22) -> 0 | Q30: =SUM($G22:Q22) -> 0 | R30: =SUM($G22:R22) -> 0 | S30: =SUM($G22:S22) -> 0 | T30: =SUM($G22:T22) -> 0 | U30: =SUM($G22:U22) -> 0 | V30: =SUM($G22:V22) -> 0 | W30: =SUM($G22:W22) -> 0.5 | X30: =SUM($G22:X22) -> 1 | Y30: =SUM($G22:Y22) -> 1 | Z30: =SUM($G22:Z22) -> 1 | AA30: =SUM($G22:AA22) -> 1 | AB30: =SUM($G22:AB22) -> 1 | AC30: =SUM($G22:AC22) -> 1 | AD30: =SUM($G22:AD22) -> 1 | AE30: =SUM($G22:AE22) -> 1 | AF30: =SUM($G22:AF22) -> 1 | AG30: =SUM($G22:AG22) -> 1 | AH30: =SUM($G22:AH22) -> 1 | AI30: =SUM($G22:AI22) -> 1 | AJ30: =SUM($G22:AJ22) -> 1 | AK30: =SUM($G22:AK22) -> 1 | AL30: =SUM($G22:AL22) -> 1 | AM30: =SUM($G22:AM22) -> 1 | AN30: =SUM($G22:AN22) -> 1
A31: 31 | B31: Kartofler | C31: Gødning | G31: =SUM($G23:G23) -> 0 | H31: =SUM($G23:H23) -> 0 | I31: =SUM($G23:I23) -> 0 | J31: =SUM($G23:J23) -> 0 | K31: =SUM($G23:K23) -> 0 | L31: =SUM($G23:L23) -> 0 | M31: =SUM($G23:M23) -> 0 | N31: =SUM($G23:N23) -> 0 | O31: =SUM($G23:O23) -> 0 | P31: =SUM($G23:P23) -> 0 | Q31: =SUM($G23:Q23) -> 0 | R31: =SUM($G23:R23) -> 0 | S31: =SUM($G23:S23) -> 0 | T31: =SUM($G23:T23) -> 0 | U31: =SUM($G23:U23) -> 0 | V31: =SUM($G23:V23) -> 0 | W31: =SUM($G23:W23) -> 0.5 | X31: =SUM($G23:X23) -> 1 | Y31: =SUM($G23:Y23) -> 1 | Z31: =SUM($G23:Z23) -> 1 | AA31: =SUM($G23:AA23) -> 1 | AB31: =SUM($G23:AB23) -> 1 | AC31: =SUM($G23:AC23) -> 1 | AD31: =SUM($G23:AD23) -> 1 | AE31: =SUM($G23:AE23) -> 1 | AF31: =SUM($G23:AF23) -> 1 | AG31: =SUM($G23:AG23) -> 1 | AH31: =SUM($G23:AH23) -> 1 | AI31: =SUM($G23:AI23) -> 1 | AJ31: =SUM($G23:AJ23) -> 1 | AK31: =SUM($G23:AK23) -> 1 | AL31: =SUM($G23:AL23) -> 1 | AM31: =SUM($G23:AM23) -> 1 | AN31: =SUM($G23:AN23) -> 1
A32: 32 | B32: Kartofler | C32: Planteværn | G32: =SUM($G24:G24) -> 0 | H32: =SUM($G24:H24) -> 0 | I32: =SUM($G24:I24) -> 0 | J32: =SUM($G24:J24) -> 0 | K32: =SUM($G24:K24) -> 0 | L32: =SUM($G24:L24) -> 0 | M32: =SUM($G24:M24) -> 0 | N32: =SUM($G24:N24) -> 0 | O32: =SUM($G24:O24) -> 0 | P32: =SUM($G24:P24) -> 0 | Q32: =SUM($G24:Q24) -> 0 | R32: =SUM($G24:R24) -> 0 | S32: =SUM($G24:S24) -> 0 | T32: =SUM($G24:T24) -> 0 | U32: =SUM($G24:U24) -> 0 | V32: =SUM($G24:V24) -> 0 | W32: =SUM($G24:W24) -> 0 | X32: =SUM($G24:X24) -> 0 | Y32: =SUM($G24:Y24) -> 0.0625 | Z32: =SUM($G24:Z24) -> 0.125 | AA32: =SUM($G24:AA24) -> 0.25 | AB32: =SUM($G24:AB24) -> 0.375 | AC32: =SUM($G24:AC24) -> 0.5 | AD32: =SUM($G24:AD24) -> 0.625 | AE32: =SUM($G24:AE24) -> 0.75 | AF32: =SUM($G24:AF24) -> 0.875 | AG32: =SUM($G24:AG24) -> 1 | AH32: =SUM($G24:AH24) -> 1 | AI32: =SUM($G24:AI24) -> 1 | AJ32: =SUM($G24:AJ24) -> 1 | AK32: =SUM($G24:AK24) -> 1 | AL32: =SUM($G24:AL24) -> 1 | AM32: =SUM($G24:AM24) -> 1 | AN32: =SUM($G24:AN24) -> 1
A33: 33 | B33: Kartofler | C33: Diverse stykomkostninger | G33: =SUM($G25:G25) -> 0 | H33: =SUM($G25:H25) -> 0 | I33: =SUM($G25:I25) -> 0 | J33: =SUM($G25:J25) -> 0 | K33: =SUM($G25:K25) -> 0 | L33: =SUM($G25:L25) -> 0 | M33: =SUM($G25:M25) -> 0 | N33: =SUM($G25:N25) -> 0 | O33: =SUM($G25:O25) -> 0 | P33: =SUM($G25:P25) -> 0 | Q33: =SUM($G25:Q25) -> 0 | R33: =SUM($G25:R25) -> 0 | S33: =SUM($G25:S25) -> 0 | T33: =SUM($G25:T25) -> 0 | U33: =SUM($G25:U25) -> 0 | V33: =SUM($G25:V25) -> 0 | W33: =SUM($G25:W25) -> 0 | X33: =SUM($G25:X25) -> 0 | Y33: =SUM($G25:Y25) -> 0 | Z33: =SUM($G25:Z25) -> 0 | AA33: =SUM($G25:AA25) -> 0 | AB33: =SUM($G25:AB25) -> 0 | AC33: =SUM($G25:AC25) -> 0 | AD33: =SUM($G25:AD25) -> 0 | AE33: =SUM($G25:AE25) -> 0 | AF33: =SUM($G25:AF25) -> 0 | AG33: =SUM($G25:AG25) -> 0 | AH33: =SUM($G25:AH25) -> 1 | AI33: =SUM($G25:AI25) -> 1 | AJ33: =SUM($G25:AJ25) -> 1 | AK33: =SUM($G25:AK25) -> 1 | AL33: =SUM($G25:AL25) -> 1 | AM33: =SUM($G25:AM25) -> 1 | AN33: =SUM($G25:AN25) -> 1
A34: 34 | B34: Kartofler | C34: Bruttoudbytte (høsttid) | G34: =SUM($G25:G25) -> 0 | H34: =SUM($G25:H25) -> 0 | I34: =SUM($G25:I25) -> 0 | J34: =SUM($G25:J25) -> 0 | K34: =SUM($G25:K25) -> 0 | L34: =SUM($G25:L25) -> 0 | M34: =SUM($G25:M25) -> 0 | N34: =SUM($G25:N25) -> 0 | O34: =SUM($G25:O25) -> 0 | P34: =SUM($G25:P25) -> 0 | Q34: =SUM($G25:Q25) -> 0 | R34: =SUM($G25:R25) -> 0 | S34: =SUM($G25:S25) -> 0 | T34: =SUM($G25:T25) -> 0 | U34: =SUM($G25:U25) -> 0 | V34: =SUM($G25:V25) -> 0 | W34: =SUM($G25:W25) -> 0 | X34: =SUM($G25:X25) -> 0 | Y34: =SUM($G25:Y25) -> 0 | Z34: =SUM($G25:Z25) -> 0 | AA34: =SUM($G25:AA25) -> 0 | AB34: =SUM($G25:AB25) -> 0 | AC34: =SUM($G25:AC25) -> 0 | AD34: =SUM($G25:AD25) -> 0 | AE34: =SUM($G25:AE25) -> 0 | AF34: =SUM($G25:AF25) -> 0 | AG34: =SUM($G25:AG25) -> 0 | AH34: =SUM($G25:AH25) -> 1 | AI34: =SUM($G25:AI25) -> 1 | AJ34: =SUM($G25:AJ25) -> 1 | AK34: =SUM($G25:AK25) -> 1 | AL34: =SUM($G25:AL25) -> 1 | AM34: =SUM($G25:AM25) -> 1 | AN34: =SUM($G25:AN25) -> 1
A35: 35 | B35: Kløvergræs til slæt | C35: Pløjning | D35: 0 | F35: 0
A36: 36 | B36: Kløvergræs til slæt | C36: Jorbearb. Før såning | D36: 0 | F36: 0
A37: 37 | B37: Kløvergræs til slæt | C37: Afgrødeetabl. (såning, lægning o.l.) | D37: 1 | F37: 116 | G37: 1
A38: 38 | B38: Kløvergræs til slæt | C38: Gødskning (handelsgødning) | D38: 3 | F38: 300 | V38: =1/D38 -> 0.3333333333 | Z38: =1/D38 -> 0.3333333333 | AC38: =1/D38 -> 0.3333333333
A39: 39 | B39: Kløvergræs til slæt | C39: Planteværn | D39: 0 | F39: 0
A40: 40 | B40: Kløvergræs til slæt | C40: Høst og hjemkørsel | D40: 4 | F40: =900+680+2948 -> 4528 | Z40: =1/D40 -> 0.25 | AC40: =1/D40 -> 0.25 | AE40: =0.5/D40 -> 0.125 | AF40: =0.5/D40 -> 0.125 | AH40: =1/D40 -> 0.25
A41: 41 | B41: Kløvergræs til slæt | C41: Maskinomkostninger | F41: =SUM(F35:F40) -> 4944 | G41: =($F35*G35+$F36*G36+$F37*G37+$F38*G38+$F39*G39+$F40*G40)/$F41 -> 0.02346278317 | H41: =($F35*H35+$F36*H36+$F37*H37+$F38*H38+$F39*H39+$F40*H40)/$F41 -> 0 | I41: 0 | J41: 0 | K41: 0 | L41: 0 | M41: 0 | N41: 0 | O41: 0 | P41: 0 | Q41: 0 | R41: 0 | S41: 0 | T41: 0 | U41: 0 | V41: 0.02022653722 | W41: 0 | X41: 0 | Y41: 0 | Z41: 0.2491909385 | AA41: 0 | AB41: 0 | AC41: 0.2491909385 | AD41: 0 | AE41: =($F35*AE35+$F36*AE36+$F37*AE37+$F38*AE38+$F39*AE39+$F40*AE40)/$F41 -> 0.1144822006 | AF41: 0.1144822006 | AG41: 0 | AH41: 0.2289644013 | AI41: 0 | AJ41: 0 | AK41: 0 | AL41: 0 | AM41: 0 | AN41: 0
A42: 42 | B42: Kløvergræs til slæt | C42: Maskinomkostninger summeret | G42: =SUM($G41:G41) -> 0.02346278317 | H42: =SUM($G41:H41) -> 0.02346278317 | I42: =SUM($G41:I41) -> 0.02346278317 | J42: =SUM($G41:J41) -> 0.02346278317 | K42: =SUM($G41:K41) -> 0.02346278317 | L42: =SUM($G41:L41) -> 0.02346278317 | M42: =SUM($G41:M41) -> 0.02346278317 | N42: =SUM($G41:N41) -> 0.02346278317 | O42: =SUM($G41:O41) -> 0.02346278317 | P42: =SUM($G41:P41) -> 0.02346278317 | Q42: =SUM($G41:Q41) -> 0.02346278317 | R42: =SUM($G41:R41) -> 0.02346278317 | S42: =SUM($G41:S41) -> 0.02346278317 | T42: =SUM($G41:T41) -> 0.02346278317 | U42: =SUM($G41:U41) -> 0.02346278317 | V42: =SUM($G41:V41) -> 0.04368932039 | W42: =SUM($G41:W41) -> 0.04368932039 | X42: =SUM($G41:X41) -> 0.04368932039 | Y42: =SUM($G41:Y41) -> 0.04368932039 | Z42: =SUM($G41:Z41) -> 0.2928802589 | AA42: =SUM($G41:AA41) -> 0.2928802589 | AB42: =SUM($G41:AB41) -> 0.2928802589 | AC42: =SUM($G41:AC41) -> 0.5420711974 | AD42: =SUM($G41:AD41) -> 0.5420711974 | AE42: =SUM($G41:AE41) -> 0.6565533981 | AF42: =SUM($G41:AF41) -> 0.7710355987 | AG42: =SUM($G41:AG41) -> 0.7710355987 | AH42: =SUM($G41:AH41) -> 1 | AI42: =SUM($G41:AI41) -> 1 | AJ42: =SUM($G41:AJ41) -> 1 | AK42: =SUM($G41:AK41) -> 1 | AL42: =SUM($G41:AL41) -> 1 | AM42: =SUM($G41:AM41) -> 1 | AN42: =SUM($G41:AN41) -> 1
A43: 43 | B43: Kløvergræs til slæt | C43: Maskinomkostninger excl. Etablering | F43: =SUM(F38:F40) -> 4828 | G43: =($F38*G38+$F39*G39+$F40*G40)/$F43 -> 0 | H43: =($F38*H38+$F39*H39+$F40*H40)/$F43 -> 0 | I43: 0 | J43: 0 | K43: 0 | L43: 0 | M43: 0 | N43: 0 | O43: 0 | P43: 0 | Q43: 0 | R43: 0 | S43: 0 | T43: 0 | U43: 0 | V43: 0.02071251036 | W43: 0 | X43: 0 | Y43: 0 | Z43: 0.2551781276 | AA43: 0 | AB43: 0 | AC43: 0.2551781276 | AD43: 0 | AE43: 0.1172328086 | AF43: 0.1172328086 | AG43: 0 | AH43: 0.2344656172 | AI43: 0 | AJ43: 0 | AK43: 0 | AL43: 0 | AM43: 0 | AN43: 0
A44: 44 | B44: Kløvergræs til slæt | C44: Maskinomkostninger summeret excl. Etablering | G44: =SUM($G43:G43) -> 0 | H44: =SUM($G43:H43) -> 0 | I44: =SUM($G43:I43) -> 0 | J44: =SUM($G43:J43) -> 0 | K44: =SUM($G43:K43) -> 0 | L44: =SUM($G43:L43) -> 0 | M44: =SUM($G43:M43) -> 0 | N44: =SUM($G43:N43) -> 0 | O44: =SUM($G43:O43) -> 0 | P44: =SUM($G43:P43) -> 0 | Q44: =SUM($G43:Q43) -> 0 | R44: =SUM($G43:R43) -> 0 | S44: =SUM($G43:S43) -> 0 | T44: =SUM($G43:T43) -> 0 | U44: =SUM($G43:U43) -> 0 | V44: =SUM($G43:V43) -> 0.02071251036 | W44: =SUM($G43:W43) -> 0.02071251036 | X44: =SUM($G43:X43) -> 0.02071251036 | Y44: =SUM($G43:Y43) -> 0.02071251036 | Z44: =SUM($G43:Z43) -> 0.2758906379 | AA44: =SUM($G43:AA43) -> 0.2758906379 | AB44: =SUM($G43:AB43) -> 0.2758906379 | AC44: =SUM($G43:AC43) -> 0.5310687655 | AD44: =SUM($G43:AD43) -> 0.5310687655 | AE44: =SUM($G43:AE43) -> 0.6483015742 | AF44: =SUM($G43:AF43) -> 0.7655343828 | AG44: =SUM($G43:AG43) -> 0.7655343828 | AH44: =SUM($G43:AH43) -> 1 | AI44: =SUM($G43:AI43) -> 1 | AJ44: =SUM($G43:AJ43) -> 1 | AK44: =SUM($G43:AK43) -> 1 | AL44: =SUM($G43:AL43) -> 1 | AM44: =SUM($G43:AM43) -> 1 | AN44: =SUM($G43:AN43) -> 1
A45: 45 | B45: Kløvergræs til slæt | C45: Udsæd | G45: =SUM($G37:G37) -> 1 | H45: =SUM($G37:H37) -> 1 | I45: =SUM($G37:I37) -> 1 | J45: =SUM($G37:J37) -> 1 | K45: =SUM($G37:K37) -> 1 | L45: =SUM($G37:L37) -> 1 | M45: =SUM($G37:M37) -> 1 | N45: =SUM($G37:N37) -> 1 | O45: =SUM($G37:O37) -> 1 | P45: =SUM($G37:P37) -> 1 | Q45: =SUM($G37:Q37) -> 1 | R45: =SUM($G37:R37) -> 1 | S45: =SUM($G37:S37) -> 1 | T45: =SUM($G37:T37) -> 1 | U45: =SUM($G37:U37) -> 1 | V45: =SUM($G37:V37) -> 1 | W45: =SUM($G37:W37) -> 1 | X45: =SUM($G37:X37) -> 1 | Y45: =SUM($G37:Y37) -> 1 | Z45: =SUM($G37:Z37) -> 1 | AA45: =SUM($G37:AA37) -> 1 | AB45: =SUM($G37:AB37) -> 1 | AC45: =SUM($G37:AC37) -> 1 | AD45: =SUM($G37:AD37) -> 1 | AE45: =SUM($G37:AE37) -> 1 | AF45: =SUM($G37:AF37) -> 1 | AG45: =SUM($G37:AG37) -> 1 | AH45: =SUM($G37:AH37) -> 1 | AI45: =SUM($G37:AI37) -> 1 | AJ45: =SUM($G37:AJ37) -> 1 | AK45: =SUM($G37:AK37) -> 1 | AL45: =SUM($G37:AL37) -> 1 | AM45: =SUM($G37:AM37) -> 1 | AN45: =SUM($G37:AN37) -> 1
A46: 46 | B46: Kløvergræs til slæt | C46: Gødning | G46: =SUM($G38:G38) -> 0 | H46: =SUM($G38:H38) -> 0 | I46: =SUM($G38:I38) -> 0 | J46: =SUM($G38:J38) -> 0 | K46: =SUM($G38:K38) -> 0 | L46: =SUM($G38:L38) -> 0 | M46: =SUM($G38:M38) -> 0 | N46: =SUM($G38:N38) -> 0 | O46: =SUM($G38:O38) -> 0 | P46: =SUM($G38:P38) -> 0 | Q46: =SUM($G38:Q38) -> 0 | R46: =SUM($G38:R38) -> 0 | S46: =SUM($G38:S38) -> 0 | T46: =SUM($G38:T38) -> 0 | U46: =SUM($G38:U38) -> 0 | V46: =SUM($G38:V38) -> 0.3333333333 | W46: =SUM($G38:W38) -> 0.3333333333 | X46: =SUM($G38:X38) -> 0.3333333333 | Y46: =SUM($G38:Y38) -> 0.3333333333 | Z46: =SUM($G38:Z38) -> 0.6666666667 | AA46: =SUM($G38:AA38) -> 0.6666666667 | AB46: =SUM($G38:AB38) -> 0.6666666667 | AC46: =SUM($G38:AC38) -> 1 | AD46: =SUM($G38:AD38) -> 1 | AE46: =SUM($G38:AE38) -> 1 | AF46: =SUM($G38:AF38) -> 1 | AG46: =SUM($G38:AG38) -> 1 | AH46: =SUM($G38:AH38) -> 1 | AI46: =SUM($G38:AI38) -> 1 | AJ46: =SUM($G38:AJ38) -> 1 | AK46: =SUM($G38:AK38) -> 1 | AL46: =SUM($G38:AL38) -> 1 | AM46: =SUM($G38:AM38) -> 1 | AN46: =SUM($G38:AN38) -> 1
A47: 47 | B47: Kløvergræs til slæt | C47: Planteværn | G47: =SUM($G39:G39) -> 0 | H47: =SUM($G39:H39) -> 0 | I47: =SUM($G39:I39) -> 0 | J47: =SUM($G39:J39) -> 0 | K47: =SUM($G39:K39) -> 0 | L47: =SUM($G39:L39) -> 0 | M47: =SUM($G39:M39) -> 0 | N47: =SUM($G39:N39) -> 0 | O47: =SUM($G39:O39) -> 0 | P47: =SUM($G39:P39) -> 0 | Q47: =SUM($G39:Q39) -> 0 | R47: =SUM($G39:R39) -> 0 | S47: =SUM($G39:S39) -> 0 | T47: =SUM($G39:T39) -> 0 | U47: =SUM($G39:U39) -> 0 | V47: =SUM($G39:V39) -> 0 | W47: =SUM($G39:W39) -> 0 | X47: =SUM($G39:X39) -> 0 | Y47: =SUM($G39:Y39) -> 0 | Z47: =SUM($G39:Z39) -> 0 | AA47: =SUM($G39:AA39) -> 0 | AB47: =SUM($G39:AB39) -> 0 | AC47: =SUM($G39:AC39) -> 0 | AD47: =SUM($G39:AD39) -> 0 | AE47: =SUM($G39:AE39) -> 0 | AF47: =SUM($G39:AF39) -> 0 | AG47: =SUM($G39:AG39) -> 0 | AH47: =SUM($G39:AH39) -> 0 | AI47: =SUM($G39:AI39) -> 0 | AJ47: =SUM($G39:AJ39) -> 0 | AK47: =SUM($G39:AK39) -> 0 | AL47: =SUM($G39:AL39) -> 0 | AM47: =SUM($G39:AM39) -> 0 | AN47: =SUM($G39:AN39) -> 0
A48: 48 | B48: Kløvergræs til slæt | C48: Diverse stykomkostninger | G48: =SUM($G40:G40) -> 0 | H48: =SUM($G40:H40) -> 0 | I48: =SUM($G40:I40) -> 0 | J48: =SUM($G40:J40) -> 0 | K48: =SUM($G40:K40) -> 0 | L48: =SUM($G40:L40) -> 0 | M48: =SUM($G40:M40) -> 0 | N48: =SUM($G40:N40) -> 0 | O48: =SUM($G40:O40) -> 0 | P48: =SUM($G40:P40) -> 0 | Q48: =SUM($G40:Q40) -> 0 | R48: =SUM($G40:R40) -> 0 | S48: =SUM($G40:S40) -> 0 | T48: =SUM($G40:T40) -> 0 | U48: =SUM($G40:U40) -> 0 | V48: =SUM($G40:V40) -> 0 | W48: =SUM($G40:W40) -> 0 | X48: =SUM($G40:X40) -> 0 | Y48: =SUM($G40:Y40) -> 0 | Z48: =SUM($G40:Z40) -> 0.25 | AA48: =SUM($G40:AA40) -> 0.25 | AB48: =SUM($G40:AB40) -> 0.25 | AC48: =SUM($G40:AC40) -> 0.5 | AD48: =SUM($G40:AD40) -> 0.5 | AE48: =SUM($G40:AE40) -> 0.625 | AF48: =SUM($G40:AF40) -> 0.75 | AG48: =SUM($G40:AG40) -> 0.75 | AH48: =SUM($G40:AH40) -> 1 | AI48: =SUM($G40:AI40) -> 1 | AJ48: =SUM($G40:AJ40) -> 1 | AK48: =SUM($G40:AK40) -> 1 | AL48: =SUM($G40:AL40) -> 1 | AM48: =SUM($G40:AM40) -> 1 | AN48: =SUM($G40:AN40) -> 1
A49: 49 | B49: Kløvergræs til slæt | C49: Bruttoudbytte (høsttid) | G49: =SUM($G40:G40) -> 0 | H49: =SUM($G40:H40) -> 0 | I49: =SUM($G40:I40) -> 0 | J49: =SUM($G40:J40) -> 0 | K49: =SUM($G40:K40) -> 0 | L49: =SUM($G40:L40) -> 0 | M49: =SUM($G40:M40) -> 0 | N49: =SUM($G40:N40) -> 0 | O49: =SUM($G40:O40) -> 0 | P49: =SUM($G40:P40) -> 0 | Q49: =SUM($G40:Q40) -> 0 | R49: =SUM($G40:R40) -> 0 | S49: =SUM($G40:S40) -> 0 | T49: =SUM($G40:T40) -> 0 | U49: =SUM($G40:U40) -> 0 | V49: =SUM($G40:V40) -> 0 | W49: =SUM($G40:W40) -> 0 | X49: =SUM($G40:X40) -> 0 | Y49: =SUM($G40:Y40) -> 0 | Z49: =SUM($G40:Z40) -> 0.25 | AA49: =SUM($G40:AA40) -> 0.25 | AB49: =SUM($G40:AB40) -> 0.25 | AC49: =SUM($G40:AC40) -> 0.5 | AD49: =SUM($G40:AD40) -> 0.5 | AE49: =SUM($G40:AE40) -> 0.625 | AF49: =SUM($G40:AF40) -> 0.75 | AG49: =SUM($G40:AG40) -> 0.75 | AH49: =SUM($G40:AH40) -> 1 | AI49: =SUM($G40:AI40) -> 1 | AJ49: =SUM($G40:AJ40) -> 1 | AK49: =SUM($G40:AK40) -> 1 | AL49: =SUM($G40:AL40) -> 1 | AM49: =SUM($G40:AM40) -> 1 | AN49: =SUM($G40:AN40) -> 1
A50: 50 | B50: Majs til helsæd | C50: Pløjning | D50: 1 | F50: 725 | V50: =0.5/D50 -> 0.5 | W50: =0.5/D50 -> 0.5
A51: 51 | B51: Majs til helsæd | C51: Jorbearb. Før såning | D51: 1 | F51: 200 | W51: =1/D51 -> 1
A52: 52 | B52: Majs til helsæd | C52: Afgrødeetabl. (såning, lægning o.l.) | D52: 1 | F52: =500+175 -> 675 | X52: =1/D52 -> 1
A53: 53 | B53: Majs til helsæd | C53: Gødskning (handelsgødning) | D53: 1 | F53: 100 | W53: =1/D53 -> 1
A54: 54 | B54: Majs til helsæd | C54: Planteværn | D54: 2 | F54: 280 | Z54: =1/D54 -> 0.5 | AA54: =1/D54 -> 0.5
A55: 55 | B55: Majs til helsæd | C55: Høst og hjemkørsel | D55: 1 | F55: 1754 | AH55: 1
A56: 56 | B56: Majs til helsæd | C56: Maskinomkostninger | F56: =SUM(F50:F55) -> 3734 | G56: =($F50*G50+$F51*G51+$F52*G52+$F53*G53+$F54*G54+$F55*G55)/$F56 -> 0 | H56: =($F50*H50+$F51*H51+$F52*H52+$F53*H53+$F54*H54+$F55*H55)/$F56 -> 0 | I56: 0 | J56: 0 | K56: 0 | L56: 0 | M56: 0 | N56: 0 | O56: 0 | P56: 0 | Q56: 0 | R56: 0 | S56: 0 | T56: 0 | U56: 0 | V56: 0.09708087841 | W56: 0.1774236743 | X56: 0.1807712908 | Y56: 0 | Z56: 0.03749330477 | AA56: 0.03749330477 | AB56: 0 | AC56: 0 | AD56: 0 | AE56: 0 | AF56: 0 | AG56: 0 | AH56: 0.4697375469 | AI56: 0 | AJ56: 0 | AK56: 0 | AL56: 0 | AM56: 0 | AN56: 0
A57: 57 | B57: Majs til helsæd | C57: Maskinomkostninger summeret | G57: =SUM($G56:G56) -> 0 | H57: =SUM($G56:H56) -> 0 | I57: =SUM($G56:I56) -> 0 | J57: =SUM($G56:J56) -> 0 | K57: =SUM($G56:K56) -> 0 | L57: =SUM($G56:L56) -> 0 | M57: =SUM($G56:M56) -> 0 | N57: =SUM($G56:N56) -> 0 | O57: =SUM($G56:O56) -> 0 | P57: =SUM($G56:P56) -> 0 | Q57: =SUM($G56:Q56) -> 0 | R57: =SUM($G56:R56) -> 0 | S57: =SUM($G56:S56) -> 0 | T57: =SUM($G56:T56) -> 0 | U57: =SUM($G56:U56) -> 0 | V57: =SUM($G56:V56) -> 0.09708087841 | W57: =SUM($G56:W56) -> 0.2745045528 | X57: =SUM($G56:X56) -> 0.4552758436 | Y57: =SUM($G56:Y56) -> 0.4552758436 | Z57: =SUM($G56:Z56) -> 0.4927691484 | AA57: =SUM($G56:AA56) -> 0.5302624531 | AB57: =SUM($G56:AB56) -> 0.5302624531 | AC57: =SUM($G56:AC56) -> 0.5302624531 | AD57: =SUM($G56:AD56) -> 0.5302624531 | AE57: =SUM($G56:AE56) -> 0.5302624531 | AF57: =SUM($G56:AF56) -> 0.5302624531 | AG57: =SUM($G56:AG56) -> 0.5302624531 | AH57: =SUM($G56:AH56) -> 1 | AI57: =SUM($G56:AI56) -> 1 | AJ57: =SUM($G56:AJ56) -> 1 | AK57: =SUM($G56:AK56) -> 1 | AL57: =SUM($G56:AL56) -> 1 | AM57: =SUM($G56:AM56) -> 1 | AN57: =SUM($G56:AN56) -> 1
A58: 58 | B58: Majs til helsæd | C58: Maskinomkostninger excl. Etablering | F58: =SUM(F53:F55) -> 2134 | G58: =($F53*G53+$F54*G54+$F55*G55)/$F58 -> 0 | H58: =($F53*H53+$F54*H54+$F55*H55)/$F58 -> 0 | I58: 0 | J58: 0 | K58: 0 | L58: 0 | M58: 0 | N58: 0 | O58: 0 | P58: 0 | Q58: 0 | R58: 0 | S58: 0 | T58: 0 | U58: 0 | V58: 0 | W58: 0.04686035614 | X58: 0 | Y58: 0 | Z58: 0.06560449859 | AA58: 0.06560449859 | AB58: 0 | AC58: 0 | AD58: 0 | AE58: 0 | AF58: 0 | AG58: 0 | AH58: 0.8219306467 | AI58: 0 | AJ58: 0 | AK58: 0 | AL58: 0 | AM58: 0 | AN58: 0
A59: 59 | B59: Majs til helsæd | C59: Maskinomkostninger summeret excl. Etablering | G59: =SUM($G58:G58) -> 0 | H59: =SUM($G58:H58) -> 0 | I59: =SUM($G58:I58) -> 0 | J59: =SUM($G58:J58) -> 0 | K59: =SUM($G58:K58) -> 0 | L59: =SUM($G58:L58) -> 0 | M59: =SUM($G58:M58) -> 0 | N59: =SUM($G58:N58) -> 0 | O59: =SUM($G58:O58) -> 0 | P59: =SUM($G58:P58) -> 0 | Q59: =SUM($G58:Q58) -> 0 | R59: =SUM($G58:R58) -> 0 | S59: =SUM($G58:S58) -> 0 | T59: =SUM($G58:T58) -> 0 | U59: =SUM($G58:U58) -> 0 | V59: =SUM($G58:V58) -> 0 | W59: =SUM($G58:W58) -> 0.04686035614 | X59: =SUM($G58:X58) -> 0.04686035614 | Y59: =SUM($G58:Y58) -> 0.04686035614 | Z59: =SUM($G58:Z58) -> 0.1124648547 | AA59: =SUM($G58:AA58) -> 0.1780693533 | AB59: =SUM($G58:AB58) -> 0.1780693533 | AC59: =SUM($G58:AC58) -> 0.1780693533 | AD59: =SUM($G58:AD58) -> 0.1780693533 | AE59: =SUM($G58:AE58) -> 0.1780693533 | AF59: =SUM($G58:AF58) -> 0.1780693533 | AG59: =SUM($G58:AG58) -> 0.1780693533 | AH59: =SUM($G58:AH58) -> 1 | AI59: =SUM($G58:AI58) -> 1 | AJ59: =SUM($G58:AJ58) -> 1 | AK59: =SUM($G58:AK58) -> 1 | AL59: =SUM($G58:AL58) -> 1 | AM59: =SUM($G58:AM58) -> 1 | AN59: =SUM($G58:AN58) -> 1
A60: 60 | B60: Majs til helsæd | C60: Udsæd | G60: =SUM($G52:G52) -> 0 | H60: =SUM($G52:H52) -> 0 | I60: =SUM($G52:I52) -> 0 | J60: =SUM($G52:J52) -> 0 | K60: =SUM($G52:K52) -> 0 | L60: =SUM($G52:L52) -> 0 | M60: =SUM($G52:M52) -> 0 | N60: =SUM($G52:N52) -> 0 | O60: =SUM($G52:O52) -> 0 | P60: =SUM($G52:P52) -> 0 | Q60: =SUM($G52:Q52) -> 0 | R60: =SUM($G52:R52) -> 0 | S60: =SUM($G52:S52) -> 0 | T60: =SUM($G52:T52) -> 0 | U60: =SUM($G52:U52) -> 0 | V60: =SUM($G52:V52) -> 0 | W60: =SUM($G52:W52) -> 0 | X60: =SUM($G52:X52) -> 1 | Y60: =SUM($G52:Y52) -> 1 | Z60: =SUM($G52:Z52) -> 1 | AA60: =SUM($G52:AA52) -> 1 | AB60: =SUM($G52:AB52) -> 1 | AC60: =SUM($G52:AC52) -> 1 | AD60: =SUM($G52:AD52) -> 1 | AE60: =SUM($G52:AE52) -> 1 | AF60: =SUM($G52:AF52) -> 1 | AG60: =SUM($G52:AG52) -> 1 | AH60: =SUM($G52:AH52) -> 1 | AI60: =SUM($G52:AI52) -> 1 | AJ60: =SUM($G52:AJ52) -> 1 | AK60: =SUM($G52:AK52) -> 1 | AL60: =SUM($G52:AL52) -> 1 | AM60: =SUM($G52:AM52) -> 1 | AN60: =SUM($G52:AN52) -> 1
A61: 61 | B61: Majs til helsæd | C61: Gødning | G61: =SUM($G53:G53) -> 0 | H61: =SUM($G53:H53) -> 0 | I61: =SUM($G53:I53) -> 0 | J61: =SUM($G53:J53) -> 0 | K61: =SUM($G53:K53) -> 0 | L61: =SUM($G53:L53) -> 0 | M61: =SUM($G53:M53) -> 0 | N61: =SUM($G53:N53) -> 0 | O61: =SUM($G53:O53) -> 0 | P61: =SUM($G53:P53) -> 0 | Q61: =SUM($G53:Q53) -> 0 | R61: =SUM($G53:R53) -> 0 | S61: =SUM($G53:S53) -> 0 | T61: =SUM($G53:T53) -> 0 | U61: =SUM($G53:U53) -> 0 | V61: =SUM($G53:V53) -> 0 | W61: =SUM($G53:W53) -> 1 | X61: =SUM($G53:X53) -> 1 | Y61: =SUM($G53:Y53) -> 1 | Z61: =SUM($G53:Z53) -> 1 | AA61: =SUM($G53:AA53) -> 1 | AB61: =SUM($G53:AB53) -> 1 | AC61: =SUM($G53:AC53) -> 1 | AD61: =SUM($G53:AD53) -> 1 | AE61: =SUM($G53:AE53) -> 1 | AF61: =SUM($G53:AF53) -> 1 | AG61: =SUM($G53:AG53) -> 1 | AH61: =SUM($G53:AH53) -> 1 | AI61: =SUM($G53:AI53) -> 1 | AJ61: =SUM($G53:AJ53) -> 1 | AK61: =SUM($G53:AK53) -> 1 | AL61: =SUM($G53:AL53) -> 1 | AM61: =SUM($G53:AM53) -> 1 | AN61: =SUM($G53:AN53) -> 1
A62: 62 | B62: Majs til helsæd | C62: Planteværn | G62: =SUM($G54:G54) -> 0 | H62: =SUM($G54:H54) -> 0 | I62: =SUM($G54:I54) -> 0 | J62: =SUM($G54:J54) -> 0 | K62: =SUM($G54:K54) -> 0 | L62: =SUM($G54:L54) -> 0 | M62: =SUM($G54:M54) -> 0 | N62: =SUM($G54:N54) -> 0 | O62: =SUM($G54:O54) -> 0 | P62: =SUM($G54:P54) -> 0 | Q62: =SUM($G54:Q54) -> 0 | R62: =SUM($G54:R54) -> 0 | S62: =SUM($G54:S54) -> 0 | T62: =SUM($G54:T54) -> 0 | U62: =SUM($G54:U54) -> 0 | V62: =SUM($G54:V54) -> 0 | W62: =SUM($G54:W54) -> 0 | X62: =SUM($G54:X54) -> 0 | Y62: =SUM($G54:Y54) -> 0 | Z62: =SUM($G54:Z54) -> 0.5 | AA62: =SUM($G54:AA54) -> 1 | AB62: =SUM($G54:AB54) -> 1 | AC62: =SUM($G54:AC54) -> 1 | AD62: =SUM($G54:AD54) -> 1 | AE62: =SUM($G54:AE54) -> 1 | AF62: =SUM($G54:AF54) -> 1 | AG62: =SUM($G54:AG54) -> 1 | AH62: =SUM($G54:AH54) -> 1 | AI62: =SUM($G54:AI54) -> 1 | AJ62: =SUM($G54:AJ54) -> 1 | AK62: =SUM($G54:AK54) -> 1 | AL62: =SUM($G54:AL54) -> 1 | AM62: =SUM($G54:AM54) -> 1 | AN62: =SUM($G54:AN54) -> 1
A63: 63 | B63: Majs til helsæd | C63: Diverse stykomkostninger | G63: =SUM($G55:G55) -> 0 | H63: =SUM($G55:H55) -> 0 | I63: =SUM($G55:I55) -> 0 | J63: =SUM($G55:J55) -> 0 | K63: =SUM($G55:K55) -> 0 | L63: =SUM($G55:L55) -> 0 | M63: =SUM($G55:M55) -> 0 | N63: =SUM($G55:N55) -> 0 | O63: =SUM($G55:O55) -> 0 | P63: =SUM($G55:P55) -> 0 | Q63: =SUM($G55:Q55) -> 0 | R63: =SUM($G55:R55) -> 0 | S63: =SUM($G55:S55) -> 0 | T63: =SUM($G55:T55) -> 0 | U63: =SUM($G55:U55) -> 0 | V63: =SUM($G55:V55) -> 0 | W63: =SUM($G55:W55) -> 0 | X63: =SUM($G55:X55) -> 0 | Y63: =SUM($G55:Y55) -> 0 | Z63: =SUM($G55:Z55) -> 0 | AA63: =SUM($G55:AA55) -> 0 | AB63: =SUM($G55:AB55) -> 0 | AC63: =SUM($G55:AC55) -> 0 | AD63: =SUM($G55:AD55) -> 0 | AE63: =SUM($G55:AE55) -> 0 | AF63: =SUM($G55:AF55) -> 0 | AG63: =SUM($G55:AG55) -> 0 | AH63: =SUM($G55:AH55) -> 1 | AI63: =SUM($G55:AI55) -> 1 | AJ63: =SUM($G55:AJ55) -> 1 | AK63: =SUM($G55:AK55) -> 1 | AL63: =SUM($G55:AL55) -> 1 | AM63: =SUM($G55:AM55) -> 1 | AN63: =SUM($G55:AN55) -> 1
A64: 64 | B64: Majs til helsæd | C64: Bruttoudbytte (høsttid) | G64: =SUM($G55:G55) -> 0 | H64: =SUM($G55:H55) -> 0 | I64: =SUM($G55:I55) -> 0 | J64: =SUM($G55:J55) -> 0 | K64: =SUM($G55:K55) -> 0 | L64: =SUM($G55:L55) -> 0 | M64: =SUM($G55:M55) -> 0 | N64: =SUM($G55:N55) -> 0 | O64: =SUM($G55:O55) -> 0 | P64: =SUM($G55:P55) -> 0 | Q64: =SUM($G55:Q55) -> 0 | R64: =SUM($G55:R55) -> 0 | S64: =SUM($G55:S55) -> 0 | T64: =SUM($G55:T55) -> 0 | U64: =SUM($G55:U55) -> 0 | V64: =SUM($G55:V55) -> 0 | W64: =SUM($G55:W55) -> 0 | X64: =SUM($G55:X55) -> 0 | Y64: =SUM($G55:Y55) -> 0 | Z64: =SUM($G55:Z55) -> 0 | AA64: =SUM($G55:AA55) -> 0 | AB64: =SUM($G55:AB55) -> 0 | AC64: =SUM($G55:AC55) -> 0 | AD64: =SUM($G55:AD55) -> 0 | AE64: =SUM($G55:AE55) -> 0 | AF64: =SUM($G55:AF55) -> 0 | AG64: =SUM($G55:AG55) -> 0 | AH64: =SUM($G55:AH55) -> 1 | AI64: =SUM($G55:AI55) -> 1 | AJ64: =SUM($G55:AJ55) -> 1 | AK64: =SUM($G55:AK55) -> 1 | AL64: =SUM($G55:AL55) -> 1 | AM64: =SUM($G55:AM55) -> 1 | AN64: =SUM($G55:AN55) -> 1
A65: 65 | B65: Roer | C65: Pløjning | D65: 1 | F65: 725 | N65: 1
A66: 66 | B66: Roer | C66: Jorbearb. Før såning | D66: 1 | F66: 400 | V66: =1/D66 -> 1
A67: 67 | B67: Roer | C67: Afgrødeetabl. (såning, lægning o.l.) | D67: 1 | F67: 450 | W67: =1/D67 -> 1
A68: 68 | B68: Roer | C68: Gødskning (handelsgødning) | D68: 1 | F68: 100 | W68: =1/D68 -> 1
A69: 69 | B69: Roer | C69: Planteværn | D69: 5 | F69: =990+425 -> 1415 | X69: =2/D69 -> 0.4 | Z69: =1/D69 -> 0.2 | AA69: =1/D69 -> 0.2 | AB69: =1/D69 -> 0.2
A70: 70 | B70: Roer | C70: Høst og hjemkørsel | D70: 1 | F70: 2118 | AJ70: 1
A71: 71 | B71: Roer | C71: Maskinomkostninger | F71: =SUM(F65:F70) -> 5208 | G71: =($F65*G65+$F66*G66+$F67*G67+$F68*G68+$F69*G69+$F70*G70)/$F71 -> 0 | H71: =($F65*H65+$F66*H66+$F67*H67+$F68*H68+$F69*H69+$F70*H70)/$F71 -> 0 | I71: 0 | J71: 0 | K71: 0 | L71: 0 | M71: 0 | N71: 0.1392089094 | O71: 0 | P71: 0 | Q71: 0 | R71: 0 | S71: 0 | T71: 0 | U71: 0 | V71: 0.07680491551 | W71: 0.1056067588 | X71: 0.1086789555 | Y71: 0 | Z71: 0.05433947773 | AA71: 0.05433947773 | AB71: 0.05433947773 | AC71: 0 | AD71: 0 | AE71: 0 | AF71: 0 | AG71: 0 | AH71: 0 | AI71: 0 | AJ71: 0.4066820276 | AK71: 0 | AL71: 0 | AM71: 0 | AN71: 0
A72: 72 | B72: Roer | C72: Maskinomkostninger summeret | G72: =SUM($G71:G71) -> 0 | H72: =SUM($G71:H71) -> 0 | I72: =SUM($G71:I71) -> 0 | J72: =SUM($G71:J71) -> 0 | K72: =SUM($G71:K71) -> 0 | L72: =SUM($G71:L71) -> 0 | M72: =SUM($G71:M71) -> 0 | N72: =SUM($G71:N71) -> 0.1392089094 | O72: =SUM($G71:O71) -> 0.1392089094 | P72: =SUM($G71:P71) -> 0.1392089094 | Q72: =SUM($G71:Q71) -> 0.1392089094 | R72: =SUM($G71:R71) -> 0.1392089094 | S72: =SUM($G71:S71) -> 0.1392089094 | T72: =SUM($G71:T71) -> 0.1392089094 | U72: =SUM($G71:U71) -> 0.1392089094 | V72: =SUM($G71:V71) -> 0.2160138249 | W72: =SUM($G71:W71) -> 0.3216205837 | X72: =SUM($G71:X71) -> 0.4302995392 | Y72: =SUM($G71:Y71) -> 0.4302995392 | Z72: =SUM($G71:Z71) -> 0.4846390169 | AA72: =SUM($G71:AA71) -> 0.5389784946 | AB72: =SUM($G71:AB71) -> 0.5933179724 | AC72: =SUM($G71:AC71) -> 0.5933179724 | AD72: =SUM($G71:AD71) -> 0.5933179724 | AE72: =SUM($G71:AE71) -> 0.5933179724 | AF72: =SUM($G71:AF71) -> 0.5933179724 | AG72: =SUM($G71:AG71) -> 0.5933179724 | AH72: =SUM($G71:AH71) -> 0.5933179724 | AI72: =SUM($G71:AI71) -> 0.5933179724 | AJ72: =SUM($G71:AJ71) -> 1 | AK72: =SUM($G71:AK71) -> 1 | AL72: =SUM($G71:AL71) -> 1 | AM72: =SUM($G71:AM71) -> 1 | AN72: =SUM($G71:AN71) -> 1
A73: 73 | B73: Roer | C73: Maskinomkostninger excl. Etablering | F73: =SUM(F68:F70) -> 3633 | G73: =($F68*G68+$F69*G69+$F70*G70)/$F73 -> 0 | H73: =($F68*H68+$F69*H69+$F70*H70)/$F73 -> 0 | I73: 0 | J73: 0 | K73: 0 | L73: 0 | M73: 0 | N73: 0 | O73: 0 | P73: 0 | Q73: 0 | R73: 0 | S73: 0 | T73: 0 | U73: 0 | V73: 0 | W73: 0.02752546105 | X73: 0.1557941096 | Y73: 0 | Z73: 0.07789705478 | AA73: 0.07789705478 | AB73: 0.07789705478 | AC73: 0 | AD73: 0 | AE73: 0 | AF73: 0 | AG73: 0 | AH73: 0 | AI73: 0 | AJ73: 0.5829892651 | AK73: 0 | AL73: 0 | AM73: 0 | AN73: 0
A74: 74 | B74: Roer | C74: Maskinomkostninger summeret excl. Etablering | G74: =SUM($G73:G73) -> 0 | H74: =SUM($G73:H73) -> 0 | I74: =SUM($G73:I73) -> 0 | J74: =SUM($G73:J73) -> 0 | K74: =SUM($G73:K73) -> 0 | L74: =SUM($G73:L73) -> 0 | M74: =SUM($G73:M73) -> 0 | N74: =SUM($G73:N73) -> 0 | O74: =SUM($G73:O73) -> 0 | P74: =SUM($G73:P73) -> 0 | Q74: =SUM($G73:Q73) -> 0 | R74: =SUM($G73:R73) -> 0 | S74: =SUM($G73:S73) -> 0 | T74: =SUM($G73:T73) -> 0 | U74: =SUM($G73:U73) -> 0 | V74: =SUM($G73:V73) -> 0 | W74: =SUM($G73:W73) -> 0.02752546105 | X74: =SUM($G73:X73) -> 0.1833195706 | Y74: =SUM($G73:Y73) -> 0.1833195706 | Z74: =SUM($G73:Z73) -> 0.2612166254 | AA74: =SUM($G73:AA73) -> 0.3391136802 | AB74: =SUM($G73:AB73) -> 0.4170107349 | AC74: =SUM($G73:AC73) -> 0.4170107349 | AD74: =SUM($G73:AD73) -> 0.4170107349 | AE74: =SUM($G73:AE73) -> 0.4170107349 | AF74: =SUM($G73:AF73) -> 0.4170107349 | AG74: =SUM($G73:AG73) -> 0.4170107349 | AH74: =SUM($G73:AH73) -> 0.4170107349 | AI74: =SUM($G73:AI73) -> 0.4170107349 | AJ74: =SUM($G73:AJ73) -> 1 | AK74: =SUM($G73:AK73) -> 1 | AL74: =SUM($G73:AL73) -> 1 | AM74: =SUM($G73:AM73) -> 1 | AN74: =SUM($G73:AN73) -> 1
A75: 75 | B75: Roer | C75: Udsæd | G75: =SUM($G67:G67) -> 0 | H75: =SUM($G67:H67) -> 0 | I75: =SUM($G67:I67) -> 0 | J75: =SUM($G67:J67) -> 0 | K75: =SUM($G67:K67) -> 0 | L75: =SUM($G67:L67) -> 0 | M75: =SUM($G67:M67) -> 0 | N75: =SUM($G67:N67) -> 0 | O75: =SUM($G67:O67) -> 0 | P75: =SUM($G67:P67) -> 0 | Q75: =SUM($G67:Q67) -> 0 | R75: =SUM($G67:R67) -> 0 | S75: =SUM($G67:S67) -> 0 | T75: =SUM($G67:T67) -> 0 | U75: =SUM($G67:U67) -> 0 | V75: =SUM($G67:V67) -> 0 | W75: =SUM($G67:W67) -> 1 | X75: =SUM($G67:X67) -> 1 | Y75: =SUM($G67:Y67) -> 1 | Z75: =SUM($G67:Z67) -> 1 | AA75: =SUM($G67:AA67) -> 1 | AB75: =SUM($G67:AB67) -> 1 | AC75: =SUM($G67:AC67) -> 1 | AD75: =SUM($G67:AD67) -> 1 | AE75: =SUM($G67:AE67) -> 1 | AF75: =SUM($G67:AF67) -> 1 | AG75: =SUM($G67:AG67) -> 1 | AH75: =SUM($G67:AH67) -> 1 | AI75: =SUM($G67:AI67) -> 1 | AJ75: =SUM($G67:AJ67) -> 1 | AK75: =SUM($G67:AK67) -> 1 | AL75: =SUM($G67:AL67) -> 1 | AM75: =SUM($G67:AM67) -> 1 | AN75: =SUM($G67:AN67) -> 1
A76: 76 | B76: Roer | C76: Gødning | G76: =SUM($G68:G68) -> 0 | H76: =SUM($G68:H68) -> 0 | I76: =SUM($G68:I68) -> 0 | J76: =SUM($G68:J68) -> 0 | K76: =SUM($G68:K68) -> 0 | L76: =SUM($G68:L68) -> 0 | M76: =SUM($G68:M68) -> 0 | N76: =SUM($G68:N68) -> 0 | O76: =SUM($G68:O68) -> 0 | P76: =SUM($G68:P68) -> 0 | Q76: =SUM($G68:Q68) -> 0 | R76: =SUM($G68:R68) -> 0 | S76: =SUM($G68:S68) -> 0 | T76: =SUM($G68:T68) -> 0 | U76: =SUM($G68:U68) -> 0 | V76: =SUM($G68:V68) -> 0 | W76: =SUM($G68:W68) -> 1 | X76: =SUM($G68:X68) -> 1 | Y76: =SUM($G68:Y68) -> 1 | Z76: =SUM($G68:Z68) -> 1 | AA76: =SUM($G68:AA68) -> 1 | AB76: =SUM($G68:AB68) -> 1 | AC76: =SUM($G68:AC68) -> 1 | AD76: =SUM($G68:AD68) -> 1 | AE76: =SUM($G68:AE68) -> 1 | AF76: =SUM($G68:AF68) -> 1 | AG76: =SUM($G68:AG68) -> 1 | AH76: =SUM($G68:AH68) -> 1 | AI76: =SUM($G68:AI68) -> 1 | AJ76: =SUM($G68:AJ68) -> 1 | AK76: =SUM($G68:AK68) -> 1 | AL76: =SUM($G68:AL68) -> 1 | AM76: =SUM($G68:AM68) -> 1 | AN76: =SUM($G68:AN68) -> 1
A77: 77 | B77: Roer | C77: Planteværn | G77: =SUM($G69:G69) -> 0 | H77: =SUM($G69:H69) -> 0 | I77: =SUM($G69:I69) -> 0 | J77: =SUM($G69:J69) -> 0 | K77: =SUM($G69:K69) -> 0 | L77: =SUM($G69:L69) -> 0 | M77: =SUM($G69:M69) -> 0 | N77: =SUM($G69:N69) -> 0 | O77: =SUM($G69:O69) -> 0 | P77: =SUM($G69:P69) -> 0 | Q77: =SUM($G69:Q69) -> 0 | R77: =SUM($G69:R69) -> 0 | S77: =SUM($G69:S69) -> 0 | T77: =SUM($G69:T69) -> 0 | U77: =SUM($G69:U69) -> 0 | V77: =SUM($G69:V69) -> 0 | W77: =SUM($G69:W69) -> 0 | X77: =SUM($G69:X69) -> 0.4 | Y77: =SUM($G69:Y69) -> 0.4 | Z77: =SUM($G69:Z69) -> 0.6 | AA77: =SUM($G69:AA69) -> 0.8 | AB77: =SUM($G69:AB69) -> 1 | AC77: =SUM($G69:AC69) -> 1 | AD77: =SUM($G69:AD69) -> 1 | AE77: =SUM($G69:AE69) -> 1 | AF77: =SUM($G69:AF69) -> 1 | AG77: =SUM($G69:AG69) -> 1 | AH77: =SUM($G69:AH69) -> 1 | AI77: =SUM($G69:AI69) -> 1 | AJ77: =SUM($G69:AJ69) -> 1 | AK77: =SUM($G69:AK69) -> 1 | AL77: =SUM($G69:AL69) -> 1 | AM77: =SUM($G69:AM69) -> 1 | AN77: =SUM($G69:AN69) -> 1
A78: 78 | B78: Roer | C78: Diverse stykomkostninger | G78: =SUM($G70:G70) -> 0 | H78: =SUM($G70:H70) -> 0 | I78: =SUM($G70:I70) -> 0 | J78: =SUM($G70:J70) -> 0 | K78: =SUM($G70:K70) -> 0 | L78: =SUM($G70:L70) -> 0 | M78: =SUM($G70:M70) -> 0 | N78: =SUM($G70:N70) -> 0 | O78: =SUM($G70:O70) -> 0 | P78: =SUM($G70:P70) -> 0 | Q78: =SUM($G70:Q70) -> 0 | R78: =SUM($G70:R70) -> 0 | S78: =SUM($G70:S70) -> 0 | T78: =SUM($G70:T70) -> 0 | U78: =SUM($G70:U70) -> 0 | V78: =SUM($G70:V70) -> 0 | W78: =SUM($G70:W70) -> 0 | X78: =SUM($G70:X70) -> 0 | Y78: =SUM($G70:Y70) -> 0 | Z78: =SUM($G70:Z70) -> 0 | AA78: =SUM($G70:AA70) -> 0 | AB78: =SUM($G70:AB70) -> 0 | AC78: =SUM($G70:AC70) -> 0 | AD78: =SUM($G70:AD70) -> 0 | AE78: =SUM($G70:AE70) -> 0 | AF78: =SUM($G70:AF70) -> 0 | AG78: =SUM($G70:AG70) -> 0 | AH78: =SUM($G70:AH70) -> 0 | AI78: =SUM($G70:AI70) -> 0 | AJ78: =SUM($G70:AJ70) -> 1 | AK78: =SUM($G70:AK70) -> 1 | AL78: =SUM($G70:AL70) -> 1 | AM78: =SUM($G70:AM70) -> 1 | AN78: =SUM($G70:AN70) -> 1
A79: 79 | B79: Roer | C79: Bruttoudbytte (høsttid) | G79: =SUM($G70:G70) -> 0 | H79: =SUM($G70:H70) -> 0 | I79: =SUM($G70:I70) -> 0 | J79: =SUM($G70:J70) -> 0 | K79: =SUM($G70:K70) -> 0 | L79: =SUM($G70:L70) -> 0 | M79: =SUM($G70:M70) -> 0 | N79: =SUM($G70:N70) -> 0 | O79: =SUM($G70:O70) -> 0 | P79: =SUM($G70:P70) -> 0 | Q79: =SUM($G70:Q70) -> 0 | R79: =SUM($G70:R70) -> 0 | S79: =SUM($G70:S70) -> 0 | T79: =SUM($G70:T70) -> 0 | U79: =SUM($G70:U70) -> 0 | V79: =SUM($G70:V70) -> 0 | W79: =SUM($G70:W70) -> 0 | X79: =SUM($G70:X70) -> 0 | Y79: =SUM($G70:Y70) -> 0 | Z79: =SUM($G70:Z70) -> 0 | AA79: =SUM($G70:AA70) -> 0 | AB79: =SUM($G70:AB70) -> 0 | AC79: =SUM($G70:AC70) -> 0 | AD79: =SUM($G70:AD70) -> 0 | AE79: =SUM($G70:AE70) -> 0 | AF79: =SUM($G70:AF70) -> 0 | AG79: =SUM($G70:AG70) -> 0 | AH79: =SUM($G70:AH70) -> 0 | AI79: =SUM($G70:AI70) -> 0 | AJ79: =SUM($G70:AJ70) -> 1 | AK79: =SUM($G70:AK70) -> 1 | AL79: =SUM($G70:AL70) -> 1 | AM79: =SUM($G70:AM70) -> 1 | AN79: =SUM($G70:AN70) -> 1
A80: 80 | B80: Vinterraps | C80: Pløjning | D80: 1 | F80: 725 | G80: 0.75 | H80: 0.25
A81: 81 | B81: Vinterraps | C81: Jorbearb. Før såning | D81: 1 | G81: 0.75 | H81: 0.25
A82: 82 | B82: Vinterraps | C82: Afgrødeetabl. (såning, lægning o.l.) | D82: 1 | F82: 400 | G82: 0.75 | H82: 0.25
A83: 83 | B83: Vinterraps | C83: Gødskning (handelsgødning) | D83: 3 | F83: 200 | J83: 0.2 | U83: 0.4 | W83: 0.4
A84: 84 | B84: Vinterraps | C84: Planteværn | D84: 6 | F84: 840 | I84: 0.2 | K84: 0.2 | M84: 0.2 | W84: 0.065 | X84: 0.065 | Y84: 0.135 | Z84: 0.135
A85: 85 | B85: Vinterraps | C85: Høst og hjemkørsel | D85: 1 | F85: =980+445 -> 1425 | AE85: 1
A86: 86 | B86: Vinterraps | C86: Maskinomkostninger | F86: =SUM(F80:F85) -> 3590 | G86: =($F80*G80+$F81*G81+$F82*G82+$F83*G83+$F84*G84+$F85*G85)/$F86 -> 0.2350278552 | H86: =($F80*H80+$F81*H81+$F82*H82+$F83*H83+$F84*H84+$F85*H85)/$F86 -> 0.07834261838 | I86: 0.04679665738 | J86: 0.01114206128 | K86: 0.04679665738 | L86: 0 | M86: 0.04679665738 | N86: 0 | O86: 0 | P86: 0 | Q86: 0 | R86: 0 | S86: 0 | T86: 0 | U86: 0.02228412256 | V86: 0 | W86: 0.03749303621 | X86: 0.01520891365 | Y86: 0.03158774373 | Z86: 0.03158774373 | AA86: 0 | AB86: 0 | AC86: 0 | AD86: 0 | AE86: 0.3969359331 | AF86: 0 | AG86: 0 | AH86: 0 | AI86: 0 | AJ86: 0 | AK86: 0 | AL86: 0 | AM86: 0 | AN86: 0
A87: 87 | B87: Vinterraps | C87: Maskinomkostninger summeret | G87: =SUM($G86:G86) -> 0.2350278552 | H87: =SUM($G86:H86) -> 0.3133704735 | I87: =SUM($G86:I86) -> 0.3601671309 | J87: =SUM($G86:J86) -> 0.3713091922 | K87: =SUM($G86:K86) -> 0.4181058496 | L87: =SUM($G86:L86) -> 0.4181058496 | M87: =SUM($G86:M86) -> 0.464902507 | N87: =SUM($G86:N86) -> 0.464902507 | O87: =SUM($G86:O86) -> 0.464902507 | P87: =SUM($G86:P86) -> 0.464902507 | Q87: =SUM($G86:Q86) -> 0.464902507 | R87: =SUM($G86:R86) -> 0.464902507 | S87: =SUM($G86:S86) -> 0.464902507 | T87: =SUM($G86:T86) -> 0.464902507 | U87: =SUM($G86:U86) -> 0.4871866295 | V87: =SUM($G86:V86) -> 0.4871866295 | W87: =SUM($G86:W86) -> 0.5246796657 | X87: =SUM($G86:X86) -> 0.5398885794 | Y87: =SUM($G86:Y86) -> 0.5714763231 | Z87: =SUM($G86:Z86) -> 0.6030640669 | AA87: =SUM($G86:AA86) -> 0.6030640669 | AB87: =SUM($G86:AB86) -> 0.6030640669 | AC87: =SUM($G86:AC86) -> 0.6030640669 | AD87: =SUM($G86:AD86) -> 0.6030640669 | AE87: =SUM($G86:AE86) -> 1 | AF87: =SUM($G86:AF86) -> 1 | AG87: =SUM($G86:AG86) -> 1 | AH87: =SUM($G86:AH86) -> 1 | AI87: =SUM($G86:AI86) -> 1 | AJ87: =SUM($G86:AJ86) -> 1 | AK87: =SUM($G86:AK86) -> 1 | AL87: =SUM($G86:AL86) -> 1 | AM87: =SUM($G86:AM86) -> 1 | AN87: =SUM($G86:AN86) -> 1
A88: 88 | B88: Vinterraps | C88: Maskinomkostninger excl. Etablering | F88: =SUM(F83:F85) -> 2465 | G88: =($F83*G83+$F84*G84+$F85*G85)/$F88 -> 0 | H88: =($F83*H83+$F84*H84+$F85*H85)/$F88 -> 0 | I88: 0.06815415822 | J88: 0.01622718053 | K88: 0.06815415822 | L88: 0 | M88: 0.06815415822 | N88: 0 | O88: 0 | P88: 0 | Q88: 0 | R88: 0 | S88: 0 | T88: 0 | U88: 0.03245436105 | V88: 0 | W88: 0.05460446247 | X88: 0.02215010142 | Y88: 0.0460040568 | Z88: 0.0460040568 | AA88: 0 | AB88: 0 | AC88: 0 | AD88: 0 | AE88: 0.5780933063 | AF88: 0 | AG88: 0 | AH88: 0 | AI88: 0 | AJ88: 0 | AK88: 0 | AL88: 0 | AM88: 0 | AN88: 0
A89: 89 | B89: Vinterraps | C89: Maskinomkostninger summeret excl. Etablering | G89: =SUM($G88:G88) -> 0 | H89: =SUM($G88:H88) -> 0 | I89: =SUM($G88:I88) -> 0.06815415822 | J89: =SUM($G88:J88) -> 0.08438133874 | K89: =SUM($G88:K88) -> 0.152535497 | L89: =SUM($G88:L88) -> 0.152535497 | M89: =SUM($G88:M88) -> 0.2206896552 | N89: =SUM($G88:N88) -> 0.2206896552 | O89: =SUM($G88:O88) -> 0.2206896552 | P89: =SUM($G88:P88) -> 0.2206896552 | Q89: =SUM($G88:Q88) -> 0.2206896552 | R89: =SUM($G88:R88) -> 0.2206896552 | S89: =SUM($G88:S88) -> 0.2206896552 | T89: =SUM($G88:T88) -> 0.2206896552 | U89: =SUM($G88:U88) -> 0.2531440162 | V89: =SUM($G88:V88) -> 0.2531440162 | W89: =SUM($G88:W88) -> 0.3077484787 | X89: =SUM($G88:X88) -> 0.3298985801 | Y89: =SUM($G88:Y88) -> 0.3759026369 | Z89: =SUM($G88:Z88) -> 0.4219066937 | AA89: =SUM($G88:AA88) -> 0.4219066937 | AB89: =SUM($G88:AB88) -> 0.4219066937 | AC89: =SUM($G88:AC88) -> 0.4219066937 | AD89: =SUM($G88:AD88) -> 0.4219066937 | AE89: =SUM($G88:AE88) -> 1 | AF89: =SUM($G88:AF88) -> 1 | AG89: =SUM($G88:AG88) -> 1 | AH89: =SUM($G88:AH88) -> 1 | AI89: =SUM($G88:AI88) -> 1 | AJ89: =SUM($G88:AJ88) -> 1 | AK89: =SUM($G88:AK88) -> 1 | AL89: =SUM($G88:AL88) -> 1 | AM89: =SUM($G88:AM88) -> 1 | AN89: =SUM($G88:AN88) -> 1
A90: 90 | B90: Vinterraps | C90: Udsæd | G90: =SUM($G82:G82) -> 0.75 | H90: =SUM($G82:H82) -> 1 | I90: =SUM($G82:I82) -> 1 | J90: =SUM($G82:J82) -> 1 | K90: =SUM($G82:K82) -> 1 | L90: =SUM($G82:L82) -> 1 | M90: =SUM($G82:M82) -> 1 | N90: =SUM($G82:N82) -> 1 | O90: =SUM($G82:O82) -> 1 | P90: =SUM($G82:P82) -> 1 | Q90: =SUM($G82:Q82) -> 1 | R90: =SUM($G82:R82) -> 1 | S90: =SUM($G82:S82) -> 1 | T90: =SUM($G82:T82) -> 1 | U90: =SUM($G82:U82) -> 1 | V90: =SUM($G82:V82) -> 1 | W90: =SUM($G82:W82) -> 1 | X90: =SUM($G82:X82) -> 1 | Y90: =SUM($G82:Y82) -> 1 | Z90: =SUM($G82:Z82) -> 1 | AA90: =SUM($G82:AA82) -> 1 | AB90: =SUM($G82:AB82) -> 1 | AC90: =SUM($G82:AC82) -> 1 | AD90: =SUM($G82:AD82) -> 1 | AE90: =SUM($G82:AE82) -> 1 | AF90: =SUM($G82:AF82) -> 1 | AG90: =SUM($G82:AG82) -> 1 | AH90: =SUM($G82:AH82) -> 1 | AI90: =SUM($G82:AI82) -> 1 | AJ90: =SUM($G82:AJ82) -> 1 | AK90: =SUM($G82:AK82) -> 1 | AL90: =SUM($G82:AL82) -> 1 | AM90: =SUM($G82:AM82) -> 1 | AN90: =SUM($G82:AN82) -> 1
A91: 91 | B91: Vinterraps | C91: Gødning | G91: =SUM($G83:G83) -> 0 | H91: =SUM($G83:H83) -> 0 | I91: =SUM($G83:I83) -> 0 | J91: =SUM($G83:J83) -> 0.2 | K91: =SUM($G83:K83) -> 0.2 | L91: =SUM($G83:L83) -> 0.2 | M91: =SUM($G83:M83) -> 0.2 | N91: =SUM($G83:N83) -> 0.2 | O91: =SUM($G83:O83) -> 0.2 | P91: =SUM($G83:P83) -> 0.2 | Q91: =SUM($G83:Q83) -> 0.2 | R91: =SUM($G83:R83) -> 0.2 | S91: =SUM($G83:S83) -> 0.2 | T91: =SUM($G83:T83) -> 0.2 | U91: =SUM($G83:U83) -> 0.6 | V91: =SUM($G83:V83) -> 0.6 | W91: =SUM($G83:W83) -> 1 | X91: =SUM($G83:X83) -> 1 | Y91: =SUM($G83:Y83) -> 1 | Z91: =SUM($G83:Z83) -> 1 | AA91: =SUM($G83:AA83) -> 1 | AB91: =SUM($G83:AB83) -> 1 | AC91: =SUM($G83:AC83) -> 1 | AD91: =SUM($G83:AD83) -> 1 | AE91: =SUM($G83:AE83) -> 1 | AF91: =SUM($G83:AF83) -> 1 | AG91: =SUM($G83:AG83) -> 1 | AH91: =SUM($G83:AH83) -> 1 | AI91: =SUM($G83:AI83) -> 1 | AJ91: =SUM($G83:AJ83) -> 1 | AK91: =SUM($G83:AK83) -> 1 | AL91: =SUM($G83:AL83) -> 1 | AM91: =SUM($G83:AM83) -> 1 | AN91: =SUM($G83:AN83) -> 1
A92: 92 | B92: Vinterraps | C92: Planteværn | G92: =SUM($G84:G84) -> 0 | H92: =SUM($G84:H84) -> 0 | I92: =SUM($G84:I84) -> 0.2 | J92: =SUM($G84:J84) -> 0.2 | K92: =SUM($G84:K84) -> 0.4 | L92: =SUM($G84:L84) -> 0.4 | M92: =SUM($G84:M84) -> 0.6 | N92: =SUM($G84:N84) -> 0.6 | O92: =SUM($G84:O84) -> 0.6 | P92: =SUM($G84:P84) -> 0.6 | Q92: =SUM($G84:Q84) -> 0.6 | R92: =SUM($G84:R84) -> 0.6 | S92: =SUM($G84:S84) -> 0.6 | T92: =SUM($G84:T84) -> 0.6 | U92: =SUM($G84:U84) -> 0.6 | V92: =SUM($G84:V84) -> 0.6 | W92: =SUM($G84:W84) -> 0.665 | X92: =SUM($G84:X84) -> 0.73 | Y92: =SUM($G84:Y84) -> 0.865 | Z92: =SUM($G84:Z84) -> 1 | AA92: =SUM($G84:AA84) -> 1 | AB92: =SUM($G84:AB84) -> 1 | AC92: =SUM($G84:AC84) -> 1 | AD92: =SUM($G84:AD84) -> 1 | AE92: =SUM($G84:AE84) -> 1 | AF92: =SUM($G84:AF84) -> 1 | AG92: =SUM($G84:AG84) -> 1 | AH92: =SUM($G84:AH84) -> 1 | AI92: =SUM($G84:AI84) -> 1 | AJ92: =SUM($G84:AJ84) -> 1 | AK92: =SUM($G84:AK84) -> 1 | AL92: =SUM($G84:AL84) -> 1 | AM92: =SUM($G84:AM84) -> 1 | AN92: =SUM($G84:AN84) -> 1
A93: 93 | B93: Vinterraps | C93: Diverse stykomkostninger | G93: =SUM($G85:G85) -> 0 | H93: =SUM($G85:H85) -> 0 | I93: =SUM($G85:I85) -> 0 | J93: =SUM($G85:J85) -> 0 | K93: =SUM($G85:K85) -> 0 | L93: =SUM($G85:L85) -> 0 | M93: =SUM($G85:M85) -> 0 | N93: =SUM($G85:N85) -> 0 | O93: =SUM($G85:O85) -> 0 | P93: =SUM($G85:P85) -> 0 | Q93: =SUM($G85:Q85) -> 0 | R93: =SUM($G85:R85) -> 0 | S93: =SUM($G85:S85) -> 0 | T93: =SUM($G85:T85) -> 0 | U93: =SUM($G85:U85) -> 0 | V93: =SUM($G85:V85) -> 0 | W93: =SUM($G85:W85) -> 0 | X93: =SUM($G85:X85) -> 0 | Y93: =SUM($G85:Y85) -> 0 | Z93: =SUM($G85:Z85) -> 0 | AA93: =SUM($G85:AA85) -> 0 | AB93: =SUM($G85:AB85) -> 0 | AC93: =SUM($G85:AC85) -> 0 | AD93: =SUM($G85:AD85) -> 0 | AE93: =SUM($G85:AE85) -> 1 | AF93: =SUM($G85:AF85) -> 1 | AG93: =SUM($G85:AG85) -> 1 | AH93: =SUM($G85:AH85) -> 1 | AI93: =SUM($G85:AI85) -> 1 | AJ93: =SUM($G85:AJ85) -> 1 | AK93: =SUM($G85:AK85) -> 1 | AL93: =SUM($G85:AL85) -> 1 | AM93: =SUM($G85:AM85) -> 1 | AN93: =SUM($G85:AN85) -> 1
A94: 94 | B94: Vinterraps | C94: Bruttoudbytte (høsttid) | G94: =SUM($G85:G85) -> 0 | H94: =SUM($G85:H85) -> 0 | I94: =SUM($G85:I85) -> 0 | J94: =SUM($G85:J85) -> 0 | K94: =SUM($G85:K85) -> 0 | L94: =SUM($G85:L85) -> 0 | M94: =SUM($G85:M85) -> 0 | N94: =SUM($G85:N85) -> 0 | O94: =SUM($G85:O85) -> 0 | P94: =SUM($G85:P85) -> 0 | Q94: =SUM($G85:Q85) -> 0 | R94: =SUM($G85:R85) -> 0 | S94: =SUM($G85:S85) -> 0 | T94: =SUM($G85:T85) -> 0 | U94: =SUM($G85:U85) -> 0 | V94: =SUM($G85:V85) -> 0 | W94: =SUM($G85:W85) -> 0 | X94: =SUM($G85:X85) -> 0 | Y94: =SUM($G85:Y85) -> 0 | Z94: =SUM($G85:Z85) -> 0 | AA94: =SUM($G85:AA85) -> 0 | AB94: =SUM($G85:AB85) -> 0 | AC94: =SUM($G85:AC85) -> 0 | AD94: =SUM($G85:AD85) -> 0 | AE94: =SUM($G85:AE85) -> 1 | AF94: =SUM($G85:AF85) -> 1 | AG94: =SUM($G85:AG85) -> 1 | AH94: =SUM($G85:AH85) -> 1 | AI94: =SUM($G85:AI85) -> 1 | AJ94: =SUM($G85:AJ85) -> 1 | AK94: =SUM($G85:AK85) -> 1 | AL94: =SUM($G85:AL85) -> 1 | AM94: =SUM($G85:AM85) -> 1 | AN94: =SUM($G85:AN85) -> 1
A95: 95 | B95: Vinterbyg | C95: Pløjning | D95: 1 | F95: 725 | H95: 0.5 | I95: 0.5
A96: 96 | B96: Vinterbyg | C96: Jorbearb. Før såning | D96: 1 | H96: 0.5 | I96: 0.5
A97: 97 | B97: Vinterbyg | C97: Afgrødeetabl. (såning, lægning o.l.) | D97: 1 | F97: 400 | I97: 1
A98: 98 | B98: Vinterbyg | C98: Gødskning (handelsgødning) | D98: 1 | F98: 100 | V98: =1/D98 -> 1
A99: 99 | B99: Vinterbyg | C99: Planteværn | D99: 4 | F99: 560 | K99: 0.25 | W99: =0.5/D99 -> 0.125 | X99: =0.5/D99 -> 0.125 | Y99: =1/D99 -> 0.25 | Z99: =1/D99 -> 0.25
A100: 100 | B100: Vinterbyg | C100: Høst og hjemkørsel | D100: 1 | F100: =963+438 -> 1401 | AD100: 1
A101: 101 | B101: Vinterbyg | C101: Presning og hjemkørsel | D101: 1 | F101: =702+259 -> 961 | AD101: 1
A102: 102 | B102: Vinterbyg | C102: Maskinomkostninger excl. Presning | F102: =SUM(F95:F100) -> 3186 | G102: =($F95*G95+$F96*G96+$F97*G97+$F98*G98+$F99*G99+$F100*G100)/$F102 -> 0 | H102: =($F95*H95+$F96*H96+$F97*H97+$F98*H98+$F99*H99+$F100*H100)/$F102 -> 0.1137790333 | I102: 0.2393283114 | J102: 0 | K102: 0.04394224733 | L102: 0 | M102: 0 | N102: 0 | O102: 0 | P102: 0 | Q102: 0 | R102: 0 | S102: 0 | T102: 0 | U102: 0 | V102: 0.03138731952 | W102: 0.02197112367 | X102: 0.02197112367 | Y102: 0.04394224733 | Z102: 0.04394224733 | AA102: 0 | AB102: 0 | AC102: 0 | AD102: 0.4397363465 | AE102: 0 | AF102: 0 | AG102: 0 | AH102: 0 | AI102: 0 | AJ102: 0 | AK102: 0 | AL102: 0 | AM102: 0 | AN102: 0
A103: 103 | B103: Vinterbyg | C103: Maskinomkostninger summeret excl. Presning | G103: =SUM($G102:G102) -> 0 | H103: =SUM($G102:H102) -> 0.1137790333 | I103: =SUM($G102:I102) -> 0.3531073446 | J103: =SUM($G102:J102) -> 0.3531073446 | K103: =SUM($G102:K102) -> 0.397049592 | L103: =SUM($G102:L102) -> 0.397049592 | M103: =SUM($G102:M102) -> 0.397049592 | N103: =SUM($G102:N102) -> 0.397049592 | O103: =SUM($G102:O102) -> 0.397049592 | P103: =SUM($G102:P102) -> 0.397049592 | Q103: =SUM($G102:Q102) -> 0.397049592 | R103: =SUM($G102:R102) -> 0.397049592 | S103: =SUM($G102:S102) -> 0.397049592 | T103: =SUM($G102:T102) -> 0.397049592 | U103: =SUM($G102:U102) -> 0.397049592 | V103: =SUM($G102:V102) -> 0.4284369115 | W103: =SUM($G102:W102) -> 0.4504080352 | X103: =SUM($G102:X102) -> 0.4723791588 | Y103: =SUM($G102:Y102) -> 0.5163214062 | Z103: =SUM($G102:Z102) -> 0.5602636535 | AA103: =SUM($G102:AA102) -> 0.5602636535 | AB103: =SUM($G102:AB102) -> 0.5602636535 | AC103: =SUM($G102:AC102) -> 0.5602636535 | AD103: =SUM($G102:AD102) -> 1 | AE103: =SUM($G102:AE102) -> 1 | AF103: =SUM($G102:AF102) -> 1 | AG103: =SUM($G102:AG102) -> 1 | AH103: =SUM($G102:AH102) -> 1 | AI103: =SUM($G102:AI102) -> 1 | AJ103: =SUM($G102:AJ102) -> 1 | AK103: =SUM($G102:AK102) -> 1 | AL103: =SUM($G102:AL102) -> 1 | AM103: =SUM($G102:AM102) -> 1 | AN103: =SUM($G102:AN102) -> 1
A104: 104 | B104: Vinterbyg | C104: Maskinomkostninger | F104: =SUM(F95:F101) -> 4147 | G104: =($F95*G95+$F96*G96+$F97*G97+$F98*G98+$F99*G99+$F100*G100+$F101*G101)/$F104 -> 0 | H104: =($F95*H95+$F96*H96+$F97*H97+$F98*H98+$F99*H99+$F100*H100+$F101*H101)/$F104 -> 0.08741258741 | I104: 0.1838678563 | J104: 0 | K104: 0.0337593441 | L104: 0 | M104: 0 | N104: 0 | O104: 0 | P104: 0 | Q104: 0 | R104: 0 | S104: 0 | T104: 0 | U104: 0 | V104: 0.02411381722 | W104: 0.01687967205 | X104: 0.01687967205 | Y104: 0.0337593441 | Z104: 0.0337593441 | AA104: 0 | AB104: 0 | AC104: 0 | AD104: 0.5695683627 | AE104: 0 | AF104: 0 | AG104: 0 | AH104: 0 | AI104: 0 | AJ104: 0 | AK104: 0 | AL104: 0 | AM104: 0 | AN104: 0
A105: 105 | B105: Vinterbyg | C105: Maskinomkostninger summeret | G105: =SUM($G104:G104) -> 0 | H105: =SUM($G104:H104) -> 0.08741258741 | I105: =SUM($G104:I104) -> 0.2712804437 | J105: =SUM($G104:J104) -> 0.2712804437 | K105: =SUM($G104:K104) -> 0.3050397878 | L105: =SUM($G104:L104) -> 0.3050397878 | M105: =SUM($G104:M104) -> 0.3050397878 | N105: =SUM($G104:N104) -> 0.3050397878 | O105: =SUM($G104:O104) -> 0.3050397878 | P105: =SUM($G104:P104) -> 0.3050397878 | Q105: =SUM($G104:Q104) -> 0.3050397878 | R105: =SUM($G104:R104) -> 0.3050397878 | S105: =SUM($G104:S104) -> 0.3050397878 | T105: =SUM($G104:T104) -> 0.3050397878 | U105: =SUM($G104:U104) -> 0.3050397878 | V105: =SUM($G104:V104) -> 0.329153605 | W105: =SUM($G104:W104) -> 0.3460332771 | X105: =SUM($G104:X104) -> 0.3629129491 | Y105: =SUM($G104:Y104) -> 0.3966722932 | Z105: =SUM($G104:Z104) -> 0.4304316373 | AA105: =SUM($G104:AA104) -> 0.4304316373 | AB105: =SUM($G104:AB104) -> 0.4304316373 | AC105: =SUM($G104:AC104) -> 0.4304316373 | AD105: =SUM($G104:AD104) -> 1 | AE105: =SUM($G104:AE104) -> 1 | AF105: =SUM($G104:AF104) -> 1 | AG105: =SUM($G104:AG104) -> 1 | AH105: =SUM($G104:AH104) -> 1 | AI105: =SUM($G104:AI104) -> 1 | AJ105: =SUM($G104:AJ104) -> 1 | AK105: =SUM($G104:AK104) -> 1 | AL105: =SUM($G104:AL104) -> 1 | AM105: =SUM($G104:AM104) -> 1 | AN105: =SUM($G104:AN104) -> 1
A106: 106 | B106: Vinterbyg | C106: Maskinomkostninger excl. Etablering excl. Presning | F106: =SUM(F98:F100) -> 2061 | G106: =($F98*G98+$F99*G99+$F100*G100)/$F106 -> 0 | H106: =($F98*H98+$F99*H99+$F100*H100)/$F106 -> 0 | I106: 0 | J106: 0 | K106: 0.0679281902 | L106: 0 | M106: 0 | N106: 0 | O106: 0 | P106: 0 | Q106: 0 | R106: 0 | S106: 0 | T106: 0 | U106: 0 | V106: 0.04852013586 | W106: 0.0339640951 | X106: 0.0339640951 | Y106: 0.0679281902 | Z106: 0.0679281902 | AA106: 0 | AB106: 0 | AC106: 0 | AD106: 0.6797671033 | AE106: 0 | AF106: 0 | AG106: 0 | AH106: 0 | AI106: 0 | AJ106: 0 | AK106: 0 | AL106: 0 | AM106: 0 | AN106: 0
A107: 107 | B107: Vinterbyg | C107: Maskinomkostninger summeret excl. Etablering excl. Presning | G107: =SUM($G106:G106) -> 0 | H107: =SUM($G106:H106) -> 0 | I107: =SUM($G106:I106) -> 0 | J107: =SUM($G106:J106) -> 0 | K107: =SUM($G106:K106) -> 0.0679281902 | L107: =SUM($G106:L106) -> 0.0679281902 | M107: =SUM($G106:M106) -> 0.0679281902 | N107: =SUM($G106:N106) -> 0.0679281902 | O107: =SUM($G106:O106) -> 0.0679281902 | P107: =SUM($G106:P106) -> 0.0679281902 | Q107: =SUM($G106:Q106) -> 0.0679281902 | R107: =SUM($G106:R106) -> 0.0679281902 | S107: =SUM($G106:S106) -> 0.0679281902 | T107: =SUM($G106:T106) -> 0.0679281902 | U107: =SUM($G106:U106) -> 0.0679281902 | V107: =SUM($G106:V106) -> 0.1164483261 | W107: =SUM($G106:W106) -> 0.1504124212 | X107: =SUM($G106:X106) -> 0.1843765163 | Y107: =SUM($G106:Y106) -> 0.2523047065 | Z107: =SUM($G106:Z106) -> 0.3202328967 | AA107: =SUM($G106:AA106) -> 0.3202328967 | AB107: =SUM($G106:AB106) -> 0.3202328967 | AC107: =SUM($G106:AC106) -> 0.3202328967 | AD107: =SUM($G106:AD106) -> 1 | AE107: =SUM($G106:AE106) -> 1 | AF107: =SUM($G106:AF106) -> 1 | AG107: =SUM($G106:AG106) -> 1 | AH107: =SUM($G106:AH106) -> 1 | AI107: =SUM($G106:AI106) -> 1 | AJ107: =SUM($G106:AJ106) -> 1 | AK107: =SUM($G106:AK106) -> 1 | AL107: =SUM($G106:AL106) -> 1 | AM107: =SUM($G106:AM106) -> 1 | AN107: =SUM($G106:AN106) -> 1
A108: 108 | B108: Vinterbyg | C108: Maskinomkostninger excl. Etablering | F108: =SUM(F98:F101) -> 3022 | G108: =($F98*G98+$F99*G99+$F100*G100+$F101*G101)/$F108 -> 0 | H108: =($F98*H98+$F99*H99+$F100*H100+$F101*H101)/$F108 -> 0 | I108: 0 | J108: 0 | K108: 0.0463269358 | L108: 0 | M108: 0 | N108: 0 | O108: 0 | P108: 0 | Q108: 0 | R108: 0 | S108: 0 | T108: 0 | U108: 0 | V108: 0.03309066843 | W108: 0.0231634679 | X108: 0.0231634679 | Y108: 0.0463269358 | Z108: 0.0463269358 | AA108: 0 | AB108: 0 | AC108: 0 | AD108: 0.7816015884 | AE108: 0 | AF108: 0 | AG108: 0 | AH108: 0 | AI108: 0 | AJ108: 0 | AK108: 0 | AL108: 0 | AM108: 0 | AN108: 0
A109: 109 | B109: Vinterbyg | C109: Maskinomkostninger summeret excl. Etablering | G109: =SUM($G108:G108) -> 0 | H109: =SUM($G108:H108) -> 0 | I109: =SUM($G108:I108) -> 0 | J109: =SUM($G108:J108) -> 0 | K109: =SUM($G108:K108) -> 0.0463269358 | L109: =SUM($G108:L108) -> 0.0463269358 | M109: =SUM($G108:M108) -> 0.0463269358 | N109: =SUM($G108:N108) -> 0.0463269358 | O109: =SUM($G108:O108) -> 0.0463269358 | P109: =SUM($G108:P108) -> 0.0463269358 | Q109: =SUM($G108:Q108) -> 0.0463269358 | R109: =SUM($G108:R108) -> 0.0463269358 | S109: =SUM($G108:S108) -> 0.0463269358 | T109: =SUM($G108:T108) -> 0.0463269358 | U109: =SUM($G108:U108) -> 0.0463269358 | V109: =SUM($G108:V108) -> 0.07941760424 | W109: =SUM($G108:W108) -> 0.1025810721 | X109: =SUM($G108:X108) -> 0.12574454 | Y109: =SUM($G108:Y108) -> 0.1720714758 | Z109: =SUM($G108:Z108) -> 0.2183984116 | AA109: =SUM($G108:AA108) -> 0.2183984116 | AB109: =SUM($G108:AB108) -> 0.2183984116 | AC109: =SUM($G108:AC108) -> 0.2183984116 | AD109: =SUM($G108:AD108) -> 1 | AE109: =SUM($G108:AE108) -> 1 | AF109: =SUM($G108:AF108) -> 1 | AG109: =SUM($G108:AG108) -> 1 | AH109: =SUM($G108:AH108) -> 1 | AI109: =SUM($G108:AI108) -> 1 | AJ109: =SUM($G108:AJ108) -> 1 | AK109: =SUM($G108:AK108) -> 1 | AL109: =SUM($G108:AL108) -> 1 | AM109: =SUM($G108:AM108) -> 1 | AN109: =SUM($G108:AN108) -> 1
A110: 110 | B110: Vinterbyg | C110: Udsæd | G110: =SUM($G97:G97) -> 0 | H110: =SUM($G97:H97) -> 0 | I110: =SUM($G97:I97) -> 1 | J110: =SUM($G97:J97) -> 1 | K110: =SUM($G97:K97) -> 1 | L110: =SUM($G97:L97) -> 1 | M110: =SUM($G97:M97) -> 1 | N110: =SUM($G97:N97) -> 1 | O110: =SUM($G97:O97) -> 1 | P110: =SUM($G97:P97) -> 1 | Q110: =SUM($G97:Q97) -> 1 | R110: =SUM($G97:R97) -> 1 | S110: =SUM($G97:S97) -> 1 | T110: =SUM($G97:T97) -> 1 | U110: =SUM($G97:U97) -> 1 | V110: =SUM($G97:V97) -> 1 | W110: =SUM($G97:W97) -> 1 | X110: =SUM($G97:X97) -> 1 | Y110: =SUM($G97:Y97) -> 1 | Z110: =SUM($G97:Z97) -> 1 | AA110: =SUM($G97:AA97) -> 1 | AB110: =SUM($G97:AB97) -> 1 | AC110: =SUM($G97:AC97) -> 1 | AD110: =SUM($G97:AD97) -> 1 | AE110: =SUM($G97:AE97) -> 1 | AF110: =SUM($G97:AF97) -> 1 | AG110: =SUM($G97:AG97) -> 1 | AH110: =SUM($G97:AH97) -> 1 | AI110: =SUM($G97:AI97) -> 1 | AJ110: =SUM($G97:AJ97) -> 1 | AK110: =SUM($G97:AK97) -> 1 | AL110: =SUM($G97:AL97) -> 1 | AM110: =SUM($G97:AM97) -> 1 | AN110: =SUM($G97:AN97) -> 1
A111: 111 | B111: Vinterbyg | C111: Gødning | G111: =SUM($G98:G98) -> 0 | H111: =SUM($G98:H98) -> 0 | I111: =SUM($G98:I98) -> 0 | J111: =SUM($G98:J98) -> 0 | K111: =SUM($G98:K98) -> 0 | L111: =SUM($G98:L98) -> 0 | M111: =SUM($G98:M98) -> 0 | N111: =SUM($G98:N98) -> 0 | O111: =SUM($G98:O98) -> 0 | P111: =SUM($G98:P98) -> 0 | Q111: =SUM($G98:Q98) -> 0 | R111: =SUM($G98:R98) -> 0 | S111: =SUM($G98:S98) -> 0 | T111: =SUM($G98:T98) -> 0 | U111: =SUM($G98:U98) -> 0 | V111: =SUM($G98:V98) -> 1 | W111: =SUM($G98:W98) -> 1 | X111: =SUM($G98:X98) -> 1 | Y111: =SUM($G98:Y98) -> 1 | Z111: =SUM($G98:Z98) -> 1 | AA111: =SUM($G98:AA98) -> 1 | AB111: =SUM($G98:AB98) -> 1 | AC111: =SUM($G98:AC98) -> 1 | AD111: =SUM($G98:AD98) -> 1 | AE111: =SUM($G98:AE98) -> 1 | AF111: =SUM($G98:AF98) -> 1 | AG111: =SUM($G98:AG98) -> 1 | AH111: =SUM($G98:AH98) -> 1 | AI111: =SUM($G98:AI98) -> 1 | AJ111: =SUM($G98:AJ98) -> 1 | AK111: =SUM($G98:AK98) -> 1 | AL111: =SUM($G98:AL98) -> 1 | AM111: =SUM($G98:AM98) -> 1 | AN111: =SUM($G98:AN98) -> 1
A112: 112 | B112: Vinterbyg | C112: Planteværn | G112: =SUM($G99:G99) -> 0 | H112: =SUM($G99:H99) -> 0 | I112: =SUM($G99:I99) -> 0 | J112: =SUM($G99:J99) -> 0 | K112: =SUM($G99:K99) -> 0.25 | L112: =SUM($G99:L99) -> 0.25 | M112: =SUM($G99:M99) -> 0.25 | N112: =SUM($G99:N99) -> 0.25 | O112: =SUM($G99:O99) -> 0.25 | P112: =SUM($G99:P99) -> 0.25 | Q112: =SUM($G99:Q99) -> 0.25 | R112: =SUM($G99:R99) -> 0.25 | S112: =SUM($G99:S99) -> 0.25 | T112: =SUM($G99:T99) -> 0.25 | U112: =SUM($G99:U99) -> 0.25 | V112: =SUM($G99:V99) -> 0.25 | W112: =SUM($G99:W99) -> 0.375 | X112: =SUM($G99:X99) -> 0.5 | Y112: =SUM($G99:Y99) -> 0.75 | Z112: =SUM($G99:Z99) -> 1 | AA112: =SUM($G99:AA99) -> 1 | AB112: =SUM($G99:AB99) -> 1 | AC112: =SUM($G99:AC99) -> 1 | AD112: =SUM($G99:AD99) -> 1 | AE112: =SUM($G99:AE99) -> 1 | AF112: =SUM($G99:AF99) -> 1 | AG112: =SUM($G99:AG99) -> 1 | AH112: =SUM($G99:AH99) -> 1 | AI112: =SUM($G99:AI99) -> 1 | AJ112: =SUM($G99:AJ99) -> 1 | AK112: =SUM($G99:AK99) -> 1 | AL112: =SUM($G99:AL99) -> 1 | AM112: =SUM($G99:AM99) -> 1 | AN112: =SUM($G99:AN99) -> 1
A113: 113 | B113: Vinterbyg | C113: Diverse stykomkostninger | G113: =SUM($G100:G100) -> 0 | H113: =SUM($G100:H100) -> 0 | I113: =SUM($G100:I100) -> 0 | J113: =SUM($G100:J100) -> 0 | K113: =SUM($G100:K100) -> 0 | L113: =SUM($G100:L100) -> 0 | M113: =SUM($G100:M100) -> 0 | N113: =SUM($G100:N100) -> 0 | O113: =SUM($G100:O100) -> 0 | P113: =SUM($G100:P100) -> 0 | Q113: =SUM($G100:Q100) -> 0 | R113: =SUM($G100:R100) -> 0 | S113: =SUM($G100:S100) -> 0 | T113: =SUM($G100:T100) -> 0 | U113: =SUM($G100:U100) -> 0 | V113: =SUM($G100:V100) -> 0 | W113: =SUM($G100:W100) -> 0 | X113: =SUM($G100:X100) -> 0 | Y113: =SUM($G100:Y100) -> 0 | Z113: =SUM($G100:Z100) -> 0 | AA113: =SUM($G100:AA100) -> 0 | AB113: =SUM($G100:AB100) -> 0 | AC113: =SUM($G100:AC100) -> 0 | AD113: =SUM($G100:AD100) -> 1 | AE113: =SUM($G100:AE100) -> 1 | AF113: =SUM($G100:AF100) -> 1 | AG113: =SUM($G100:AG100) -> 1 | AH113: =SUM($G100:AH100) -> 1 | AI113: =SUM($G100:AI100) -> 1 | AJ113: =SUM($G100:AJ100) -> 1 | AK113: =SUM($G100:AK100) -> 1 | AL113: =SUM($G100:AL100) -> 1 | AM113: =SUM($G100:AM100) -> 1 | AN113: =SUM($G100:AN100) -> 1
A114: 114 | B114: Vinterbyg | C114: Bruttoudbytte (høsttid) | G114: =SUM($G101:G101) -> 0 | H114: =SUM($G101:H101) -> 0 | I114: =SUM($G101:I101) -> 0 | J114: =SUM($G101:J101) -> 0 | K114: =SUM($G101:K101) -> 0 | L114: =SUM($G101:L101) -> 0 | M114: =SUM($G101:M101) -> 0 | N114: =SUM($G101:N101) -> 0 | O114: =SUM($G101:O101) -> 0 | P114: =SUM($G101:P101) -> 0 | Q114: =SUM($G101:Q101) -> 0 | R114: =SUM($G101:R101) -> 0 | S114: =SUM($G101:S101) -> 0 | T114: =SUM($G101:T101) -> 0 | U114: =SUM($G101:U101) -> 0 | V114: =SUM($G101:V101) -> 0 | W114: =SUM($G101:W101) -> 0 | X114: =SUM($G101:X101) -> 0 | Y114: =SUM($G101:Y101) -> 0 | Z114: =SUM($G101:Z101) -> 0 | AA114: =SUM($G101:AA101) -> 0 | AB114: =SUM($G101:AB101) -> 0 | AC114: =SUM($G101:AC101) -> 0 | AD114: =SUM($G101:AD101) -> 1 | AE114: =SUM($G101:AE101) -> 1 | AF114: =SUM($G101:AF101) -> 1 | AG114: =SUM($G101:AG101) -> 1 | AH114: =SUM($G101:AH101) -> 1 | AI114: =SUM($G101:AI101) -> 1 | AJ114: =SUM($G101:AJ101) -> 1 | AK114: =SUM($G101:AK101) -> 1 | AL114: =SUM($G101:AL101) -> 1 | AM114: =SUM($G101:AM101) -> 1 | AN114: =SUM($G101:AN101) -> 1
A115: 115 | B115: Vinterhvede | C115: Pløjning | D115: 1 | F115: 725 | H115: 0.25 | I115: 0.5 | J115: 0.25
A116: 116 | B116: Vinterhvede | C116: Jorbearb. Før såning | D116: 1 | H116: 0.25 | I116: 0.5 | J116: 0.25
A117: 117 | B117: Vinterhvede | C117: Afgrødeetabl. (såning, lægning o.l.) | D117: 1 | F117: 400 | I117: 0.5 | J117: 0.5
A118: 118 | B118: Vinterhvede | C118: Gødskning (handelsgødning) | D118: 2 | F118: 200 | V118: =1/D118 -> 0.5 | X118: =1/D118 -> 0.5
A119: 119 | B119: Vinterhvede | C119: Planteværn | D119: 5 | F119: 700 | K119: 0.2 | W119: =0.5/D119 -> 0.1 | X119: =0.5/D119 -> 0.1 | Y119: =0.5/D119 -> 0.1 | Z119: =0.5/D119 -> 0.1 | AA119: =1/D119 -> 0.2 | AB119: =1/D119 -> 0.2
A120: 120 | B120: Vinterhvede | C120: Høst og hjemkørsel | D120: 1 | F120: =1093+497 -> 1590 | AE120: 1
A121: 121 | B121: Vinterhvede | C121: Presning og hjemkørsel | D121: 1 | F121: =864+293 -> 1157 | AE121: 1
A122: 122 | B122: Vinterhvede | C122: Maskinomkostninger excl. Presning | F122: =SUM(F115:F120) -> 3615 | G122: =($F115*G115+$F116*G116+$F117*G117+$F118*G118+$F119*G119+$F120*G120)/$F122 -> 0 | H122: =($F115*H115+$F116*H116+$F117*H117+$F118*H118+$F119*H119+$F120*H120)/$F122 -> 0.05013831259 | I122: 0.1556016598 | J122: 0.1054633472 | K122: 0.0387275242 | L122: 0 | M122: 0 | N122: 0 | O122: 0 | P122: 0 | Q122: 0 | R122: 0 | S122: 0 | T122: 0 | U122: 0 | V122: 0.02766251729 | W122: 0.0193637621 | X122: 0.04702627939 | Y122: 0.0193637621 | Z122: 0.0193637621 | AA122: 0.0387275242 | AB122: 0.0387275242 | AC122: 0 | AD122: 0 | AE122: 0.4398340249 | AF122: 0 | AG122: 0 | AH122: 0 | AI122: 0 | AJ122: 0 | AK122: 0 | AL122: 0 | AM122: 0 | AN122: 0
A123: 123 | B123: Vinterhvede | C123: Maskinomkostninger summeret excl. Presning | G123: =SUM($G122:G122) -> 0 | H123: =SUM($G122:H122) -> 0.05013831259 | I123: =SUM($G122:I122) -> 0.2057399723 | J123: =SUM($G122:J122) -> 0.3112033195 | K123: =SUM($G122:K122) -> 0.3499308437 | L123: =SUM($G122:L122) -> 0.3499308437 | M123: =SUM($G122:M122) -> 0.3499308437 | N123: =SUM($G122:N122) -> 0.3499308437 | O123: =SUM($G122:O122) -> 0.3499308437 | P123: =SUM($G122:P122) -> 0.3499308437 | Q123: =SUM($G122:Q122) -> 0.3499308437 | R123: =SUM($G122:R122) -> 0.3499308437 | S123: =SUM($G122:S122) -> 0.3499308437 | T123: =SUM($G122:T122) -> 0.3499308437 | U123: =SUM($G122:U122) -> 0.3499308437 | V123: =SUM($G122:V122) -> 0.377593361 | W123: =SUM($G122:W122) -> 0.3969571231 | X123: =SUM($G122:X122) -> 0.4439834025 | Y123: =SUM($G122:Y122) -> 0.4633471646 | Z123: =SUM($G122:Z122) -> 0.4827109267 | AA123: =SUM($G122:AA122) -> 0.5214384509 | AB123: =SUM($G122:AB122) -> 0.5601659751 | AC123: =SUM($G122:AC122) -> 0.5601659751 | AD123: =SUM($G122:AD122) -> 0.5601659751 | AE123: =SUM($G122:AE122) -> 1 | AF123: =SUM($G122:AF122) -> 1 | AG123: =SUM($G122:AG122) -> 1 | AH123: =SUM($G122:AH122) -> 1 | AI123: =SUM($G122:AI122) -> 1 | AJ123: =SUM($G122:AJ122) -> 1 | AK123: =SUM($G122:AK122) -> 1 | AL123: =SUM($G122:AL122) -> 1 | AM123: =SUM($G122:AM122) -> 1 | AN123: =SUM($G122:AN122) -> 1
A124: 124 | B124: Vinterhvede | C124: Maskinomkostninger | F124: =SUM(F115:F121) -> 4772 | G124: =($F115*G115+$F116*G116+$F117*G117+$F118*G118+$F119*G119+$F120*G120+$F121*G121)/$F124 -> 0 | H124: =($F115*H115+$F116*H116+$F117*H117+$F118*H118+$F119*H119+$F120*H120+$F121*H121)/$F124 -> 0.03798197821 | I124: 0.1178751048 | J124: 0.07989312657 | K124: 0.02933780386 | L124: 0 | M124: 0 | N124: 0 | O124: 0 | P124: 0 | Q124: 0 | R124: 0 | S124: 0 | T124: 0 | U124: 0 | V124: 0.02095557418 | W124: 0.01466890193 | X124: 0.03562447611 | Y124: 0.01466890193 | Z124: 0.01466890193 | AA124: 0.02933780386 | AB124: 0.02933780386 | AC124: 0 | AD124: 0 | AE124: 0.5756496228 | AF124: 0 | AG124: 0 | AH124: 0 | AI124: 0 | AJ124: 0 | AK124: 0 | AL124: 0 | AM124: 0 | AN124: 0
A125: 125 | B125: Vinterhvede | C125: Maskinomkostninger summeret | G125: =SUM($G124:G124) -> 0 | H125: =SUM($G124:H124) -> 0.03798197821 | I125: =SUM($G124:I124) -> 0.155857083 | J125: =SUM($G124:J124) -> 0.2357502096 | K125: =SUM($G124:K124) -> 0.2650880134 | L125: =SUM($G124:L124) -> 0.2650880134 | M125: =SUM($G124:M124) -> 0.2650880134 | N125: =SUM($G124:N124) -> 0.2650880134 | O125: =SUM($G124:O124) -> 0.2650880134 | P125: =SUM($G124:P124) -> 0.2650880134 | Q125: =SUM($G124:Q124) -> 0.2650880134 | R125: =SUM($G124:R124) -> 0.2650880134 | S125: =SUM($G124:S124) -> 0.2650880134 | T125: =SUM($G124:T124) -> 0.2650880134 | U125: =SUM($G124:U124) -> 0.2650880134 | V125: =SUM($G124:V124) -> 0.2860435876 | W125: =SUM($G124:W124) -> 0.3007124895 | X125: =SUM($G124:X124) -> 0.3363369656 | Y125: =SUM($G124:Y124) -> 0.3510058676 | Z125: =SUM($G124:Z124) -> 0.3656747695 | AA125: =SUM($G124:AA124) -> 0.3950125733 | AB125: =SUM($G124:AB124) -> 0.4243503772 | AC125: =SUM($G124:AC124) -> 0.4243503772 | AD125: =SUM($G124:AD124) -> 0.4243503772 | AE125: =SUM($G124:AE124) -> 1 | AF125: =SUM($G124:AF124) -> 1 | AG125: =SUM($G124:AG124) -> 1 | AH125: =SUM($G124:AH124) -> 1 | AI125: =SUM($G124:AI124) -> 1 | AJ125: =SUM($G124:AJ124) -> 1 | AK125: =SUM($G124:AK124) -> 1 | AL125: =SUM($G124:AL124) -> 1 | AM125: =SUM($G124:AM124) -> 1 | AN125: =SUM($G124:AN124) -> 1
A126: 126 | B126: Vinterhvede | C126: Maskinomkostninger excl. Etablering excl. Presning | F126: =SUM(F118:F120) -> 2490 | G126: =($F118*G118+$F119*G119+$F120*G120)/$F126 -> 0 | H126: =($F118*H118+$F119*H119+$F120*H120)/$F126 -> 0 | I126: 0 | J126: 0 | K126: 0.0562248996 | L126: 0 | M126: 0 | N126: 0 | O126: 0 | P126: 0 | Q126: 0 | R126: 0 | S126: 0 | T126: 0 | U126: 0 | V126: 0.04016064257 | W126: 0.0281124498 | X126: 0.06827309237 | Y126: 0.0281124498 | Z126: 0.0281124498 | AA126: 0.0562248996 | AB126: 0.0562248996 | AC126: 0 | AD126: 0 | AE126: 0.6385542169 | AF126: 0 | AG126: 0 | AH126: 0 | AI126: 0 | AJ126: 0 | AK126: 0 | AL126: 0 | AM126: 0 | AN126: 0
A127: 127 | B127: Vinterhvede | C127: Maskinomkostninger summeret excl. Etablering excl. Presning | G127: =SUM($G126:G126) -> 0 | H127: =SUM($G126:H126) -> 0 | I127: =SUM($G126:I126) -> 0 | J127: =SUM($G126:J126) -> 0 | K127: =SUM($G126:K126) -> 0.0562248996 | L127: =SUM($G126:L126) -> 0.0562248996 | M127: =SUM($G126:M126) -> 0.0562248996 | N127: =SUM($G126:N126) -> 0.0562248996 | O127: =SUM($G126:O126) -> 0.0562248996 | P127: =SUM($G126:P126) -> 0.0562248996 | Q127: =SUM($G126:Q126) -> 0.0562248996 | R127: =SUM($G126:R126) -> 0.0562248996 | S127: =SUM($G126:S126) -> 0.0562248996 | T127: =SUM($G126:T126) -> 0.0562248996 | U127: =SUM($G126:U126) -> 0.0562248996 | V127: =SUM($G126:V126) -> 0.09638554217 | W127: =SUM($G126:W126) -> 0.124497992 | X127: =SUM($G126:X126) -> 0.1927710843 | Y127: =SUM($G126:Y126) -> 0.2208835341 | Z127: =SUM($G126:Z126) -> 0.2489959839 | AA127: =SUM($G126:AA126) -> 0.3052208835 | AB127: =SUM($G126:AB126) -> 0.3614457831 | AC127: =SUM($G126:AC126) -> 0.3614457831 | AD127: =SUM($G126:AD126) -> 0.3614457831 | AE127: =SUM($G126:AE126) -> 1 | AF127: =SUM($G126:AF126) -> 1 | AG127: =SUM($G126:AG126) -> 1 | AH127: =SUM($G126:AH126) -> 1 | AI127: =SUM($G126:AI126) -> 1 | AJ127: =SUM($G126:AJ126) -> 1 | AK127: =SUM($G126:AK126) -> 1 | AL127: =SUM($G126:AL126) -> 1 | AM127: =SUM($G126:AM126) -> 1 | AN127: =SUM($G126:AN126) -> 1
A128: 128 | B128: Vinterhvede | C128: Maskinomkostninger excl. Etablering | F128: =SUM(F118:F121) -> 3647 | G128: =($F118*G118+$F119*G119+$F120*G120+$F121*G121)/$F128 -> 0 | H128: =($F118*H118+$F119*H119+$F120*H120+$F121*H121)/$F128 -> 0 | I128: 0 | J128: 0 | K128: 0.03838771593 | L128: 0 | M128: 0 | N128: 0 | O128: 0 | P128: 0 | Q128: 0 | R128: 0 | S128: 0 | T128: 0 | U128: 0 | V128: 0.02741979709 | W128: 0.01919385797 | X128: 0.04661365506 | Y128: 0.01919385797 | Z128: 0.01919385797 | AA128: 0.03838771593 | AB128: 0.03838771593 | AC128: 0 | AD128: 0 | AE128: 0.7532218262 | AF128: 0 | AG128: 0 | AH128: 0 | AI128: 0 | AJ128: 0 | AK128: 0 | AL128: 0 | AM128: 0 | AN128: 0
A129: 129 | B129: Vinterhvede | C129: Maskinomkostninger summeret excl. Etablering | G129: =SUM($G128:G128) -> 0 | H129: =SUM($G128:H128) -> 0 | I129: =SUM($G128:I128) -> 0 | J129: =SUM($G128:J128) -> 0 | K129: =SUM($G128:K128) -> 0.03838771593 | L129: =SUM($G128:L128) -> 0.03838771593 | M129: =SUM($G128:M128) -> 0.03838771593 | N129: =SUM($G128:N128) -> 0.03838771593 | O129: =SUM($G128:O128) -> 0.03838771593 | P129: =SUM($G128:P128) -> 0.03838771593 | Q129: =SUM($G128:Q128) -> 0.03838771593 | R129: =SUM($G128:R128) -> 0.03838771593 | S129: =SUM($G128:S128) -> 0.03838771593 | T129: =SUM($G128:T128) -> 0.03838771593 | U129: =SUM($G128:U128) -> 0.03838771593 | V129: =SUM($G128:V128) -> 0.06580751302 | W129: =SUM($G128:W128) -> 0.08500137099 | X129: =SUM($G128:X128) -> 0.131615026 | Y129: =SUM($G128:Y128) -> 0.150808884 | Z129: =SUM($G128:Z128) -> 0.170002742 | AA129: =SUM($G128:AA128) -> 0.2083904579 | AB129: =SUM($G128:AB128) -> 0.2467781738 | AC129: =SUM($G128:AC128) -> 0.2467781738 | AD129: =SUM($G128:AD128) -> 0.2467781738 | AE129: =SUM($G128:AE128) -> 1 | AF129: =SUM($G128:AF128) -> 1 | AG129: =SUM($G128:AG128) -> 1 | AH129: =SUM($G128:AH128) -> 1 | AI129: =SUM($G128:AI128) -> 1 | AJ129: =SUM($G128:AJ128) -> 1 | AK129: =SUM($G128:AK128) -> 1 | AL129: =SUM($G128:AL128) -> 1 | AM129: =SUM($G128:AM128) -> 1 | AN129: =SUM($G128:AN128) -> 1
A130: 130 | B130: Vinterhvede | C130: Udsæd | G130: =SUM($G117:G117) -> 0 | H130: =SUM($G117:H117) -> 0 | I130: =SUM($G117:I117) -> 0.5 | J130: =SUM($G117:J117) -> 1 | K130: =SUM($G117:K117) -> 1 | L130: =SUM($G117:L117) -> 1 | M130: =SUM($G117:M117) -> 1 | N130: =SUM($G117:N117) -> 1 | O130: =SUM($G117:O117) -> 1 | P130: =SUM($G117:P117) -> 1 | Q130: =SUM($G117:Q117) -> 1 | R130: =SUM($G117:R117) -> 1 | S130: =SUM($G117:S117) -> 1 | T130: =SUM($G117:T117) -> 1 | U130: =SUM($G117:U117) -> 1 | V130: =SUM($G117:V117) -> 1 | W130: =SUM($G117:W117) -> 1 | X130: =SUM($G117:X117) -> 1 | Y130: =SUM($G117:Y117) -> 1 | Z130: =SUM($G117:Z117) -> 1 | AA130: =SUM($G117:AA117) -> 1 | AB130: =SUM($G117:AB117) -> 1 | AC130: =SUM($G117:AC117) -> 1 | AD130: =SUM($G117:AD117) -> 1 | AE130: =SUM($G117:AE117) -> 1 | AF130: =SUM($G117:AF117) -> 1 | AG130: =SUM($G117:AG117) -> 1 | AH130: =SUM($G117:AH117) -> 1 | AI130: =SUM($G117:AI117) -> 1 | AJ130: =SUM($G117:AJ117) -> 1 | AK130: =SUM($G117:AK117) -> 1 | AL130: =SUM($G117:AL117) -> 1 | AM130: =SUM($G117:AM117) -> 1 | AN130: =SUM($G117:AN117) -> 1
A131: 131 | B131: Vinterhvede | C131: Gødning | G131: =SUM($G118:G118) -> 0 | H131: =SUM($G118:H118) -> 0 | I131: =SUM($G118:I118) -> 0 | J131: =SUM($G118:J118) -> 0 | K131: =SUM($G118:K118) -> 0 | L131: =SUM($G118:L118) -> 0 | M131: =SUM($G118:M118) -> 0 | N131: =SUM($G118:N118) -> 0 | O131: =SUM($G118:O118) -> 0 | P131: =SUM($G118:P118) -> 0 | Q131: =SUM($G118:Q118) -> 0 | R131: =SUM($G118:R118) -> 0 | S131: =SUM($G118:S118) -> 0 | T131: =SUM($G118:T118) -> 0 | U131: =SUM($G118:U118) -> 0 | V131: =SUM($G118:V118) -> 0.5 | W131: =SUM($G118:W118) -> 0.5 | X131: =SUM($G118:X118) -> 1 | Y131: =SUM($G118:Y118) -> 1 | Z131: =SUM($G118:Z118) -> 1 | AA131: =SUM($G118:AA118) -> 1 | AB131: =SUM($G118:AB118) -> 1 | AC131: =SUM($G118:AC118) -> 1 | AD131: =SUM($G118:AD118) -> 1 | AE131: =SUM($G118:AE118) -> 1 | AF131: =SUM($G118:AF118) -> 1 | AG131: =SUM($G118:AG118) -> 1 | AH131: =SUM($G118:AH118) -> 1 | AI131: =SUM($G118:AI118) -> 1 | AJ131: =SUM($G118:AJ118) -> 1 | AK131: =SUM($G118:AK118) -> 1 | AL131: =SUM($G118:AL118) -> 1 | AM131: =SUM($G118:AM118) -> 1 | AN131: =SUM($G118:AN118) -> 1
A132: 132 | B132: Vinterhvede | C132: Planteværn | G132: =SUM($G119:G119) -> 0 | H132: =SUM($G119:H119) -> 0 | I132: =SUM($G119:I119) -> 0 | J132: =SUM($G119:J119) -> 0 | K132: =SUM($G119:K119) -> 0.2 | L132: =SUM($G119:L119) -> 0.2 | M132: =SUM($G119:M119) -> 0.2 | N132: =SUM($G119:N119) -> 0.2 | O132: =SUM($G119:O119) -> 0.2 | P132: =SUM($G119:P119) -> 0.2 | Q132: =SUM($G119:Q119) -> 0.2 | R132: =SUM($G119:R119) -> 0.2 | S132: =SUM($G119:S119) -> 0.2 | T132: =SUM($G119:T119) -> 0.2 | U132: =SUM($G119:U119) -> 0.2 | V132: =SUM($G119:V119) -> 0.2 | W132: =SUM($G119:W119) -> 0.3 | X132: =SUM($G119:X119) -> 0.4 | Y132: =SUM($G119:Y119) -> 0.5 | Z132: =SUM($G119:Z119) -> 0.6 | AA132: =SUM($G119:AA119) -> 0.8 | AB132: =SUM($G119:AB119) -> 1 | AC132: =SUM($G119:AC119) -> 1 | AD132: =SUM($G119:AD119) -> 1 | AE132: =SUM($G119:AE119) -> 1 | AF132: =SUM($G119:AF119) -> 1 | AG132: =SUM($G119:AG119) -> 1 | AH132: =SUM($G119:AH119) -> 1 | AI132: =SUM($G119:AI119) -> 1 | AJ132: =SUM($G119:AJ119) -> 1 | AK132: =SUM($G119:AK119) -> 1 | AL132: =SUM($G119:AL119) -> 1 | AM132: =SUM($G119:AM119) -> 1 | AN132: =SUM($G119:AN119) -> 1
A133: 133 | B133: Vinterhvede | C133: Diverse stykomkostninger | G133: =SUM($G120:G120) -> 0 | H133: =SUM($G120:H120) -> 0 | I133: =SUM($G120:I120) -> 0 | J133: =SUM($G120:J120) -> 0 | K133: =SUM($G120:K120) -> 0 | L133: =SUM($G120:L120) -> 0 | M133: =SUM($G120:M120) -> 0 | N133: =SUM($G120:N120) -> 0 | O133: =SUM($G120:O120) -> 0 | P133: =SUM($G120:P120) -> 0 | Q133: =SUM($G120:Q120) -> 0 | R133: =SUM($G120:R120) -> 0 | S133: =SUM($G120:S120) -> 0 | T133: =SUM($G120:T120) -> 0 | U133: =SUM($G120:U120) -> 0 | V133: =SUM($G120:V120) -> 0 | W133: =SUM($G120:W120) -> 0 | X133: =SUM($G120:X120) -> 0 | Y133: =SUM($G120:Y120) -> 0 | Z133: =SUM($G120:Z120) -> 0 | AA133: =SUM($G120:AA120) -> 0 | AB133: =SUM($G120:AB120) -> 0 | AC133: =SUM($G120:AC120) -> 0 | AD133: =SUM($G120:AD120) -> 0 | AE133: =SUM($G120:AE120) -> 1 | AF133: =SUM($G120:AF120) -> 1 | AG133: =SUM($G120:AG120) -> 1 | AH133: =SUM($G120:AH120) -> 1 | AI133: =SUM($G120:AI120) -> 1 | AJ133: =SUM($G120:AJ120) -> 1 | AK133: =SUM($G120:AK120) -> 1 | AL133: =SUM($G120:AL120) -> 1 | AM133: =SUM($G120:AM120) -> 1 | AN133: =SUM($G120:AN120) -> 1
A134: 134 | B134: Vinterhvede | C134: Bruttoudbytte (høsttid) | G134: =SUM($G120:G120) -> 0 | H134: =SUM($G120:H120) -> 0 | I134: =SUM($G120:I120) -> 0 | J134: =SUM($G120:J120) -> 0 | K134: =SUM($G120:K120) -> 0 | L134: =SUM($G120:L120) -> 0 | M134: =SUM($G120:M120) -> 0 | N134: =SUM($G120:N120) -> 0 | O134: =SUM($G120:O120) -> 0 | P134: =SUM($G120:P120) -> 0 | Q134: =SUM($G120:Q120) -> 0 | R134: =SUM($G120:R120) -> 0 | S134: =SUM($G120:S120) -> 0 | T134: =SUM($G120:T120) -> 0 | U134: =SUM($G120:U120) -> 0 | V134: =SUM($G120:V120) -> 0 | W134: =SUM($G120:W120) -> 0 | X134: =SUM($G120:X120) -> 0 | Y134: =SUM($G120:Y120) -> 0 | Z134: =SUM($G120:Z120) -> 0 | AA134: =SUM($G120:AA120) -> 0 | AB134: =SUM($G120:AB120) -> 0 | AC134: =SUM($G120:AC120) -> 0 | AD134: =SUM($G120:AD120) -> 0 | AE134: =SUM($G120:AE120) -> 1 | AF134: =SUM($G120:AF120) -> 1 | AG134: =SUM($G120:AG120) -> 1 | AH134: =SUM($G120:AH120) -> 1 | AI134: =SUM($G120:AI120) -> 1 | AJ134: =SUM($G120:AJ120) -> 1 | AK134: =SUM($G120:AK120) -> 1 | AL134: =SUM($G120:AL120) -> 1 | AM134: =SUM($G120:AM120) -> 1 | AN134: =SUM($G120:AN120) -> 1
A135: 135 | B135: Vårbyg | C135: Pløjning | D135: 1 | F135: 725 | T135: =0.5/D135 -> 0.5 | U135: =0.5/D135 -> 0.5
A136: 136 | B136: Vårbyg | C136: Jorbearb. Før såning | D136: 1 | V136: =0.5/D136 -> 0.5 | W136: =0.5/D136 -> 0.5
A137: 137 | B137: Vårbyg | C137: Afgrødeetabl. (såning, lægning o.l.) | D137: 1 | F137: 400 | V137: =0.5/D137 -> 0.5 | W137: =0.5/D137 -> 0.5
A138: 138 | B138: Vårbyg | C138: Gødskning (handelsgødning) | D138: 1 | F138: 100 | W138: =0.5/D138 -> 0.5 | X138: =0.5/D138 -> 0.5
A139: 139 | B139: Vårbyg | C139: Planteværn | D139: 3 | F139: 420 | W139: =0.5/D139 -> 0.1666666667 | X139: =0.5/D139 -> 0.1666666667 | Y139: =0.5/D139 -> 0.1666666667 | Z139: =0.5/D139 -> 0.1666666667 | AA139: =1/D139 -> 0.3333333333
A140: 140 | B140: Vårbyg | C140: Høst og hjemkørsel | D140: 1 | F140: =866+394 -> 1260 | AE140: 1
A141: 141 | B141: Vårbyg | C141: Presning og hjemkørsel | D141: 1 | F141: =630+244 -> 874 | AE141: 1
A142: 142 | B142: Vårbyg | C142: Maskinomkostninger excl. Presning | F142: =SUM(F135:F140) -> 2905 | G142: =($F135*G135+$F136*G136+$F137*G137+$F138*G138+$F139*G139+$F140*G140)/$F142 -> 0 | H142: =($F135*H135+$F136*H136+$F137*H137+$F138*H138+$F139*H139+$F140*H140)/$F142 -> 0 | I142: 0 | J142: 0 | K142: 0 | L142: 0 | M142: 0 | N142: 0 | O142: 0 | P142: 0 | Q142: 0 | R142: 0 | S142: 0 | T142: 0.1247848537 | U142: 0.1247848537 | V142: 0.06884681583 | W142: 0.1101549053 | X142: 0.0413080895 | Y142: 0.02409638554 | Z142: 0.02409638554 | AA142: 0.04819277108 | AB142: 0 | AC142: 0 | AD142: 0 | AE142: 0.4337349398 | AF142: 0 | AG142: 0 | AH142: 0 | AI142: 0 | AJ142: 0 | AK142: 0 | AL142: 0 | AM142: 0 | AN142: 0
A143: 143 | B143: Vårbyg | C143: Maskinomkostninger summeret excl. Presning | G143: =SUM($G142:G142) -> 0 | H143: =SUM($G142:H142) -> 0 | I143: =SUM($G142:I142) -> 0 | J143: =SUM($G142:J142) -> 0 | K143: =SUM($G142:K142) -> 0 | L143: =SUM($G142:L142) -> 0 | M143: =SUM($G142:M142) -> 0 | N143: =SUM($G142:N142) -> 0 | O143: =SUM($G142:O142) -> 0 | P143: =SUM($G142:P142) -> 0 | Q143: =SUM($G142:Q142) -> 0 | R143: =SUM($G142:R142) -> 0 | S143: =SUM($G142:S142) -> 0 | T143: =SUM($G142:T142) -> 0.1247848537 | U143: =SUM($G142:U142) -> 0.2495697074 | V143: =SUM($G142:V142) -> 0.3184165232 | W143: =SUM($G142:W142) -> 0.4285714286 | X143: =SUM($G142:X142) -> 0.4698795181 | Y143: =SUM($G142:Y142) -> 0.4939759036 | Z143: =SUM($G142:Z142) -> 0.5180722892 | AA143: =SUM($G142:AA142) -> 0.5662650602 | AB143: =SUM($G142:AB142) -> 0.5662650602 | AC143: =SUM($G142:AC142) -> 0.5662650602 | AD143: =SUM($G142:AD142) -> 0.5662650602 | AE143: =SUM($G142:AE142) -> 1 | AF143: =SUM($G142:AF142) -> 1 | AG143: =SUM($G142:AG142) -> 1 | AH143: =SUM($G142:AH142) -> 1 | AI143: =SUM($G142:AI142) -> 1 | AJ143: =SUM($G142:AJ142) -> 1 | AK143: =SUM($G142:AK142) -> 1 | AL143: =SUM($G142:AL142) -> 1 | AM143: =SUM($G142:AM142) -> 1 | AN143: =SUM($G142:AN142) -> 1
A144: 144 | B144: Vårbyg | C144: Maskinomkostninger | F144: =SUM(F135:F141) -> 3779 | G144: =($F135*G135+$F136*G136+$F137*G137+$F138*G138+$F139*G139+$F140*G140+$F141*G141)/$F144 -> 0 | H144: =($F135*H135+$F136*H136+$F137*H137+$F138*H138+$F139*H139+$F140*H140+$F141*H141)/$F144 -> 0 | I144: 0 | J144: 0 | K144: 0 | L144: 0 | M144: 0 | N144: 0 | O144: 0 | P144: 0 | Q144: 0 | R144: 0 | S144: 0 | T144: 0.09592484784 | U144: 0.09592484784 | V144: 0.05292405398 | W144: 0.08467848637 | X144: 0.03175443239 | Y144: 0.01852341889 | Z144: 0.01852341889 | AA144: 0.03704683779 | AB144: 0 | AC144: 0 | AD144: 0 | AE144: 0.564699656 | AF144: 0 | AG144: 0 | AH144: 0 | AI144: 0 | AJ144: 0 | AK144: 0 | AL144: 0 | AM144: 0 | AN144: 0
A145: 145 | B145: Vårbyg | C145: Maskinomkostninger summeret | G145: =SUM($G144:G144) -> 0 | H145: =SUM($G144:H144) -> 0 | I145: =SUM($G144:I144) -> 0 | J145: =SUM($G144:J144) -> 0 | K145: =SUM($G144:K144) -> 0 | L145: =SUM($G144:L144) -> 0 | M145: =SUM($G144:M144) -> 0 | N145: =SUM($G144:N144) -> 0 | O145: =SUM($G144:O144) -> 0 | P145: =SUM($G144:P144) -> 0 | Q145: =SUM($G144:Q144) -> 0 | R145: =SUM($G144:R144) -> 0 | S145: =SUM($G144:S144) -> 0 | T145: =SUM($G144:T144) -> 0.09592484784 | U145: =SUM($G144:U144) -> 0.1918496957 | V145: =SUM($G144:V144) -> 0.2447737497 | W145: =SUM($G144:W144) -> 0.329452236 | X145: =SUM($G144:X144) -> 0.3612066684 | Y145: =SUM($G144:Y144) -> 0.3797300873 | Z145: =SUM($G144:Z144) -> 0.3982535062 | AA145: =SUM($G144:AA144) -> 0.435300344 | AB145: =SUM($G144:AB144) -> 0.435300344 | AC145: =SUM($G144:AC144) -> 0.435300344 | AD145: =SUM($G144:AD144) -> 0.435300344 | AE145: =SUM($G144:AE144) -> 1 | AF145: =SUM($G144:AF144) -> 1 | AG145: =SUM($G144:AG144) -> 1 | AH145: =SUM($G144:AH144) -> 1 | AI145: =SUM($G144:AI144) -> 1 | AJ145: =SUM($G144:AJ144) -> 1 | AK145: =SUM($G144:AK144) -> 1 | AL145: =SUM($G144:AL144) -> 1 | AM145: =SUM($G144:AM144) -> 1 | AN145: =SUM($G144:AN144) -> 1
A146: 146 | B146: Vårbyg | C146: Maskinomkostninger excl. Etablering excl. Presning | F146: =SUM(F138:F140) -> 1780 | G146: =($F138*G138+$F139*G139+$F140*G140)/$F146 -> 0 | H146: =($F138*H138+$F139*H139+$F140*H140)/$F146 -> 0 | I146: 0 | J146: 0 | K146: 0 | L146: 0 | M146: 0 | N146: 0 | O146: 0 | P146: 0 | Q146: 0 | R146: 0 | S146: 0 | T146: 0 | U146: 0 | V146: 0 | W146: 0.06741573034 | X146: 0.06741573034 | Y146: 0.0393258427 | Z146: 0.0393258427 | AA146: 0.07865168539 | AB146: 0 | AC146: 0 | AD146: 0 | AE146: 0.7078651685 | AF146: 0 | AG146: 0 | AH146: 0 | AI146: 0 | AJ146: 0 | AK146: 0 | AL146: 0 | AM146: 0 | AN146: 0
A147: 147 | B147: Vårbyg | C147: Maskinomkostninger summeret excl. Etablering excl. Presning | G147: =SUM($G146:G146) -> 0 | H147: =SUM($G146:H146) -> 0 | I147: =SUM($G146:I146) -> 0 | J147: =SUM($G146:J146) -> 0 | K147: =SUM($G146:K146) -> 0 | L147: =SUM($G146:L146) -> 0 | M147: =SUM($G146:M146) -> 0 | N147: =SUM($G146:N146) -> 0 | O147: =SUM($G146:O146) -> 0 | P147: =SUM($G146:P146) -> 0 | Q147: =SUM($G146:Q146) -> 0 | R147: =SUM($G146:R146) -> 0 | S147: =SUM($G146:S146) -> 0 | T147: =SUM($G146:T146) -> 0 | U147: =SUM($G146:U146) -> 0 | V147: =SUM($G146:V146) -> 0 | W147: =SUM($G146:W146) -> 0.06741573034 | X147: =SUM($G146:X146) -> 0.1348314607 | Y147: =SUM($G146:Y146) -> 0.1741573034 | Z147: =SUM($G146:Z146) -> 0.2134831461 | AA147: =SUM($G146:AA146) -> 0.2921348315 | AB147: =SUM($G146:AB146) -> 0.2921348315 | AC147: =SUM($G146:AC146) -> 0.2921348315 | AD147: =SUM($G146:AD146) -> 0.2921348315 | AE147: =SUM($G146:AE146) -> 1 | AF147: =SUM($G146:AF146) -> 1 | AG147: =SUM($G146:AG146) -> 1 | AH147: =SUM($G146:AH146) -> 1 | AI147: =SUM($G146:AI146) -> 1 | AJ147: =SUM($G146:AJ146) -> 1 | AK147: =SUM($G146:AK146) -> 1 | AL147: =SUM($G146:AL146) -> 1 | AM147: =SUM($G146:AM146) -> 1 | AN147: =SUM($G146:AN146) -> 1
A148: 148 | B148: Vårbyg | C148: Maskinomkostninger excl. Etablering | F148: =SUM(F138:F141) -> 2654 | G148: =($F138*G138+$F139*G139+$F140*G140+$F141*G141)/$F148 -> 0 | H148: =($F138*H138+$F139*H139+$F140*H140+$F141*H141)/$F148 -> 0 | I148: 0 | J148: 0 | K148: 0 | L148: 0 | M148: 0 | N148: 0 | O148: 0 | P148: 0 | Q148: 0 | R148: 0 | S148: 0 | T148: 0 | U148: 0 | V148: 0 | W148: 0.04521477016 | X148: 0.04521477016 | Y148: 0.02637528259 | Z148: 0.02637528259 | AA148: 0.05275056518 | AB148: 0 | AC148: 0 | AD148: 0 | AE148: 0.8040693293 | AF148: 0 | AG148: 0 | AH148: 0 | AI148: 0 | AJ148: 0 | AK148: 0 | AL148: 0 | AM148: 0 | AN148: 0
A149: 149 | B149: Vårbyg | C149: Maskinomkostninger summeret excl. Etablering | G149: =SUM($G148:G148) -> 0 | H149: =SUM($G148:H148) -> 0 | I149: =SUM($G148:I148) -> 0 | J149: =SUM($G148:J148) -> 0 | K149: =SUM($G148:K148) -> 0 | L149: =SUM($G148:L148) -> 0 | M149: =SUM($G148:M148) -> 0 | N149: =SUM($G148:N148) -> 0 | O149: =SUM($G148:O148) -> 0 | P149: =SUM($G148:P148) -> 0 | Q149: =SUM($G148:Q148) -> 0 | R149: =SUM($G148:R148) -> 0 | S149: =SUM($G148:S148) -> 0 | T149: =SUM($G148:T148) -> 0 | U149: =SUM($G148:U148) -> 0 | V149: =SUM($G148:V148) -> 0 | W149: =SUM($G148:W148) -> 0.04521477016 | X149: =SUM($G148:X148) -> 0.09042954032 | Y149: =SUM($G148:Y148) -> 0.1168048229 | Z149: =SUM($G148:Z148) -> 0.1431801055 | AA149: =SUM($G148:AA148) -> 0.1959306707 | AB149: =SUM($G148:AB148) -> 0.1959306707 | AC149: =SUM($G148:AC148) -> 0.1959306707 | AD149: =SUM($G148:AD148) -> 0.1959306707 | AE149: =SUM($G148:AE148) -> 1 | AF149: =SUM($G148:AF148) -> 1 | AG149: =SUM($G148:AG148) -> 1 | AH149: =SUM($G148:AH148) -> 1 | AI149: =SUM($G148:AI148) -> 1 | AJ149: =SUM($G148:AJ148) -> 1 | AK149: =SUM($G148:AK148) -> 1 | AL149: =SUM($G148:AL148) -> 1 | AM149: =SUM($G148:AM148) -> 1 | AN149: =SUM($G148:AN148) -> 1
A150: 150 | B150: Vårbyg | C150: Udsæd | G150: =SUM($G137:G137) -> 0 | H150: =SUM($G137:H137) -> 0 | I150: =SUM($G137:I137) -> 0 | J150: =SUM($G137:J137) -> 0 | K150: =SUM($G137:K137) -> 0 | L150: =SUM($G137:L137) -> 0 | M150: =SUM($G137:M137) -> 0 | N150: =SUM($G137:N137) -> 0 | O150: =SUM($G137:O137) -> 0 | P150: =SUM($G137:P137) -> 0 | Q150: =SUM($G137:Q137) -> 0 | R150: =SUM($G137:R137) -> 0 | S150: =SUM($G137:S137) -> 0 | T150: =SUM($G137:T137) -> 0 | U150: =SUM($G137:U137) -> 0 | V150: =SUM($G137:V137) -> 0.5 | W150: =SUM($G137:W137) -> 1 | X150: =SUM($G137:X137) -> 1 | Y150: =SUM($G137:Y137) -> 1 | Z150: =SUM($G137:Z137) -> 1 | AA150: =SUM($G137:AA137) -> 1 | AB150: =SUM($G137:AB137) -> 1 | AC150: =SUM($G137:AC137) -> 1 | AD150: =SUM($G137:AD137) -> 1 | AE150: =SUM($G137:AE137) -> 1 | AF150: =SUM($G137:AF137) -> 1 | AG150: =SUM($G137:AG137) -> 1 | AH150: =SUM($G137:AH137) -> 1 | AI150: =SUM($G137:AI137) -> 1 | AJ150: =SUM($G137:AJ137) -> 1 | AK150: =SUM($G137:AK137) -> 1 | AL150: =SUM($G137:AL137) -> 1 | AM150: =SUM($G137:AM137) -> 1 | AN150: =SUM($G137:AN137) -> 1
A151: 151 | B151: Vårbyg | C151: Gødning | G151: =SUM($G138:G138) -> 0 | H151: =SUM($G138:H138) -> 0 | I151: =SUM($G138:I138) -> 0 | J151: =SUM($G138:J138) -> 0 | K151: =SUM($G138:K138) -> 0 | L151: =SUM($G138:L138) -> 0 | M151: =SUM($G138:M138) -> 0 | N151: =SUM($G138:N138) -> 0 | O151: =SUM($G138:O138) -> 0 | P151: =SUM($G138:P138) -> 0 | Q151: =SUM($G138:Q138) -> 0 | R151: =SUM($G138:R138) -> 0 | S151: =SUM($G138:S138) -> 0 | T151: =SUM($G138:T138) -> 0 | U151: =SUM($G138:U138) -> 0 | V151: =SUM($G138:V138) -> 0 | W151: =SUM($G138:W138) -> 0.5 | X151: =SUM($G138:X138) -> 1 | Y151: =SUM($G138:Y138) -> 1 | Z151: =SUM($G138:Z138) -> 1 | AA151: =SUM($G138:AA138) -> 1 | AB151: =SUM($G138:AB138) -> 1 | AC151: =SUM($G138:AC138) -> 1 | AD151: =SUM($G138:AD138) -> 1 | AE151: =SUM($G138:AE138) -> 1 | AF151: =SUM($G138:AF138) -> 1 | AG151: =SUM($G138:AG138) -> 1 | AH151: =SUM($G138:AH138) -> 1 | AI151: =SUM($G138:AI138) -> 1 | AJ151: =SUM($G138:AJ138) -> 1 | AK151: =SUM($G138:AK138) -> 1 | AL151: =SUM($G138:AL138) -> 1 | AM151: =SUM($G138:AM138) -> 1 | AN151: =SUM($G138:AN138) -> 1
A152: 152 | B152: Vårbyg | C152: Planteværn | G152: =SUM($G139:G139) -> 0 | H152: =SUM($G139:H139) -> 0 | I152: =SUM($G139:I139) -> 0 | J152: =SUM($G139:J139) -> 0 | K152: =SUM($G139:K139) -> 0 | L152: =SUM($G139:L139) -> 0 | M152: =SUM($G139:M139) -> 0 | N152: =SUM($G139:N139) -> 0 | O152: =SUM($G139:O139) -> 0 | P152: =SUM($G139:P139) -> 0 | Q152: =SUM($G139:Q139) -> 0 | R152: =SUM($G139:R139) -> 0 | S152: =SUM($G139:S139) -> 0 | T152: =SUM($G139:T139) -> 0 | U152: =SUM($G139:U139) -> 0 | V152: =SUM($G139:V139) -> 0 | W152: =SUM($G139:W139) -> 0.1666666667 | X152: =SUM($G139:X139) -> 0.3333333333 | Y152: =SUM($G139:Y139) -> 0.5 | Z152: =SUM($G139:Z139) -> 0.6666666667 | AA152: =SUM($G139:AA139) -> 1 | AB152: =SUM($G139:AB139) -> 1 | AC152: =SUM($G139:AC139) -> 1 | AD152: =SUM($G139:AD139) -> 1 | AE152: =SUM($G139:AE139) -> 1 | AF152: =SUM($G139:AF139) -> 1 | AG152: =SUM($G139:AG139) -> 1 | AH152: =SUM($G139:AH139) -> 1 | AI152: =SUM($G139:AI139) -> 1 | AJ152: =SUM($G139:AJ139) -> 1 | AK152: =SUM($G139:AK139) -> 1 | AL152: =SUM($G139:AL139) -> 1 | AM152: =SUM($G139:AM139) -> 1 | AN152: =SUM($G139:AN139) -> 1
A153: 153 | B153: Vårbyg | C153: Diverse stykomkostninger | G153: =SUM($G140:G140) -> 0 | H153: =SUM($G140:H140) -> 0 | I153: =SUM($G140:I140) -> 0 | J153: =SUM($G140:J140) -> 0 | K153: =SUM($G140:K140) -> 0 | L153: =SUM($G140:L140) -> 0 | M153: =SUM($G140:M140) -> 0 | N153: =SUM($G140:N140) -> 0 | O153: =SUM($G140:O140) -> 0 | P153: =SUM($G140:P140) -> 0 | Q153: =SUM($G140:Q140) -> 0 | R153: =SUM($G140:R140) -> 0 | S153: =SUM($G140:S140) -> 0 | T153: =SUM($G140:T140) -> 0 | U153: =SUM($G140:U140) -> 0 | V153: =SUM($G140:V140) -> 0 | W153: =SUM($G140:W140) -> 0 | X153: =SUM($G140:X140) -> 0 | Y153: =SUM($G140:Y140) -> 0 | Z153: =SUM($G140:Z140) -> 0 | AA153: =SUM($G140:AA140) -> 0 | AB153: =SUM($G140:AB140) -> 0 | AC153: =SUM($G140:AC140) -> 0 | AD153: =SUM($G140:AD140) -> 0 | AE153: =SUM($G140:AE140) -> 1 | AF153: =SUM($G140:AF140) -> 1 | AG153: =SUM($G140:AG140) -> 1 | AH153: =SUM($G140:AH140) -> 1 | AI153: =SUM($G140:AI140) -> 1 | AJ153: =SUM($G140:AJ140) -> 1 | AK153: =SUM($G140:AK140) -> 1 | AL153: =SUM($G140:AL140) -> 1 | AM153: =SUM($G140:AM140) -> 1 | AN153: =SUM($G140:AN140) -> 1
A154: 154 | B154: Vårbyg | C154: Bruttoudbytte (høsttid) | G154: =SUM($G140:G140) -> 0 | H154: =SUM($G140:H140) -> 0 | I154: =SUM($G140:I140) -> 0 | J154: =SUM($G140:J140) -> 0 | K154: =SUM($G140:K140) -> 0 | L154: =SUM($G140:L140) -> 0 | M154: =SUM($G140:M140) -> 0 | N154: =SUM($G140:N140) -> 0 | O154: =SUM($G140:O140) -> 0 | P154: =SUM($G140:P140) -> 0 | Q154: =SUM($G140:Q140) -> 0 | R154: =SUM($G140:R140) -> 0 | S154: =SUM($G140:S140) -> 0 | T154: =SUM($G140:T140) -> 0 | U154: =SUM($G140:U140) -> 0 | V154: =SUM($G140:V140) -> 0 | W154: =SUM($G140:W140) -> 0 | X154: =SUM($G140:X140) -> 0 | Y154: =SUM($G140:Y140) -> 0 | Z154: =SUM($G140:Z140) -> 0 | AA154: =SUM($G140:AA140) -> 0 | AB154: =SUM($G140:AB140) -> 0 | AC154: =SUM($G140:AC140) -> 0 | AD154: =SUM($G140:AD140) -> 0 | AE154: =SUM($G140:AE140) -> 1 | AF154: =SUM($G140:AF140) -> 1 | AG154: =SUM($G140:AG140) -> 1 | AH154: =SUM($G140:AH140) -> 1 | AI154: =SUM($G140:AI140) -> 1 | AJ154: =SUM($G140:AJ140) -> 1 | AK154: =SUM($G140:AK140) -> 1 | AL154: =SUM($G140:AL140) -> 1 | AM154: =SUM($G140:AM140) -> 1 | AN154: =SUM($G140:AN140) -> 1

Sheet Ark5
D1: Antal dage med oversvømmelse inden afgrøden skal sås om | E1: 10 | F1: 10 | G1: 5 | H1: 5
D2: Antal dage med oversvømmelse | E2: Vinterhvede | F2: Vinterraps | G2: Vinterrug | H2: Vinterbyg
D3: 1 | E3: =IF($D3<=E$1,+$D3/E$1,1) -> 0.1 | F3: =IF($D3<=F$1,+$D3/F$1,1) -> 0.1 | G3: =IF($D3<=G$1,+$D3/G$1,1) -> 0.2 | H3: =IF($D3<=H$1,+$D3/H$1,1) -> 0.2
D4: 2 | E4: =IF($D4<=E$1,+$D4/E$1,1) -> 0.2 | F4: 0.2 | G4: 0.4 | H4: 0.4
D5: 3 | E5: 0.3 | F5: 0.3 | G5: 0.6 | H5: 0.6
D6: 4 | E6: 0.4 | F6: 0.4 | G6: 0.8 | H6: 0.8
D7: 5 | E7: 0.5 | F7: 0.5 | G7: 1 | H7: 1
D8: 6 | E8: 0.6 | F8: 0.6 | G8: 1 | H8: 1
D9: 7 | E9: 0.7 | F9: 0.7 | G9: 1 | H9: 1
D10: 8 | E10: 0.8 | F10: 0.8 | G10: 1 | H10: 1
D11: 9 | E11: 0.9 | F11: 0.9 | G11: 1 | H11: 1
D12: 10 | E12: 1 | F12: 1 | G12: 1 | H12: 1
D13: 11 | E13: 1 | F13: 1 | G13: 1 | H13: 1
D14: 12 | E14: 1 | F14: 1 | G14: 1 | H14: 1
D15: 13 | E15: 1 | F15: 1 | G15: 1 | H15: 1
D16: 14 | E16: 1 | F16: 1 | G16: 1 | H16: 1
D17: 15 | E17: 1 | F17: 1 | G17: 1 | H17: 1
D18: 16 | E18: 1 | F18: 1 | G18: 1 | H18: 1
D19: 17 | E19: 1 | F19: 1 | G19: 1 | H19: 1
D20: 18 | E20: 1 | F20: 1 | G20: 1 | H20: 1
D21: 19 | E21: 1 | F21: 1 | G21: 1 | H21: 1
D22: 20 | E22: 1 | F22: 1 | G22: 1 | H22: 1
D23: 21 | E23: 1 | F23: 1 | G23: 1 | H23: 1
D24: 22 | E24: =IF($D24<=E$1,+$D24/E$1,1) -> 1 | F24: 1 | G24: 1 | H24: 1
D25: 23 | E25: 1 | F25: 1 | G25: 1 | H25: 1
D26: 24 | E26: 1 | F26: 1 | G26: 1 | H26: 1
D27: 25 | E27: 1 | F27: 1 | G27: 1 | H27: 1
D28: 26 | E28: 1 | F28: 1 | G28: 1 | H28: 1
D29: 27 | E29: 1 | F29: 1 | G29: 1 | H29: 1
D30: 28 | E30: 1 | F30: 1 | G30: 1 | H30: 1
D31: 29 | E31: 1 | F31: 1 | G31: 1 | H31: 1
D32: 30 | E32: 1 | F32: 1 | G32: 1 | H32: 1
D33: 31 | E33: 1 | F33: 1 | G33: 1 | H33: 1
D34: 32 | E34: 1 | F34: 1 | G34: 1 | H34: 1
D35: 33 | E35: 1 | F35: 1 | G35: 1 | H35: 1
D36: 34 | E36: 1 | F36: 1 | G36: 1 | H36: 1
D37: 35 | E37: 1 | F37: 1 | G37: 1 | H37: 1
D38: 36 | E38: 1 | F38: 1 | G38: 1 | H38: 1
D39: 37 | E39: 1 | F39: 1 | G39: 1 | H39: 1
D40: 38 | E40: 1 | F40: 1 | G40: 1 | H40: 1
D41: 39 | E41: 1 | F41: 1 | G41: 1 | H41: 1
D42: 40 | E42: 1 | F42: 1 | G42: 1 | H42: 1
D43: 41 | E43: 1 | F43: 1 | G43: 1 | H43: 1
D44: 42 | E44: 1 | F44: 1 | G44: 1 | H44: 1
D45: 43 | E45: 1 | F45: 1 | G45: 1 | H45: 1
D46: 44 | E46: 1 | F46: 1 | G46: 1 | H46: 1
D47: 45 | E47: 1 | F47: 1 | G47: 1 | H47: 1
D48: 46 | E48: 1 | F48: 1 | G48: 1 | H48: 1
D49: 47 | E49: 1 | F49: 1 | G49: 1 | H49: 1
D50: 48 | E50: 1 | F50: 1 | G50: 1 | H50: 1
D51: 49 | E51: 1 | F51: 1 | G51: 1 | H51: 1
D52: 50 | E52: 1 | F52: 1 | G52: 1 | H52: 1
D53: 51 | E53: 1 | F53: 1 | G53: 1 | H53: 1
D54: 52 | E54: 1 | F54: 1 | G54: 1 | H54: 1
D55: 53 | E55: 1 | F55: 1 | G55: 1 | H55: 1
D56: 54 | E56: 1 | F56: 1 | G56: 1 | H56: 1
D57: 55 | E57: 1 | F57: 1 | G57: 1 | H57: 1
D58: 56 | E58: 1 | F58: 1 | G58: 1 | H58: 1
D59: 57 | E59: 1 | F59: 1 | G59: 1 | H59: 1
D60: 58 | E60: 1 | F60: 1 | G60: 1 | H60: 1
D61: 59 | E61: 1 | F61: 1 | G61: 1 | H61: 1
D62: 60 | E62: 1 | F62: 1 | G62: 1 | H62: 1
D63: 61 | E63: 1 | F63: 1 | G63: 1 | H63: 1
D64: 62 | E64: 1 | F64: 1 | G64: 1 | H64: 1
D65: 63 | E65: 1 | F65: 1 | G65: 1 | H65: 1
D66: 64 | E66: 1 | F66: 1 | G66: 1 | H66: 1
D67: 65 | E67: 1 | F67: 1 | G67: 1 | H67: 1
D68: 66 | E68: 1 | F68: 1 | G68: 1 | H68: 1
D69: 67 | E69: 1 | F69: 1 | G69: 1 | H69: 1
D70: 68 | E70: 1 | F70: 1 | G70: 1 | H70: 1
D71: 69 | E71: 1 | F71: 1 | G71: 1 | H71: 1
D72: 70 | E72: 1 | F72: 1 | G72: 1 | H72: 1
D73: 71 | E73: 1 | F73: 1 | G73: 1 | H73: 1
D74: 72 | E74: 1 | F74: 1 | G74: 1 | H74: 1
D75: 73 | E75: 1 | F75: 1 | G75: 1 | H75: 1
D76: 74 | E76: 1 | F76: 1 | G76: 1 | H76: 1
D77: 75 | E77: 1 | F77: 1 | G77: 1 | H77: 1
D78: 76 | E78: 1 | F78: 1 | G78: 1 | H78: 1
D79: 77 | E79: 1 | F79: 1 | G79: 1 | H79: 1
D80: 78 | E80: 1 | F80: 1 | G80: 1 | H80: 1
D81: 79 | E81: 1 | F81: 1 | G81: 1 | H81: 1
D82: 80 | E82: 1 | F82: 1 | G82: 1 | H82: 1
D83: 81 | E83: 1 | F83: 1 | G83: 1 | H83: 1
D84: 82 | E84: 1 | F84: 1 | G84: 1 | H84: 1
D85: 83 | E85: 1 | F85: 1 | G85: 1 | H85: 1
D86: 84 | E86: 1 | F86: 1 | G86: 1 | H86: 1
D87: 85 | E87: 1 | F87: 1 | G87: 1 | H87: =IF($D87<=H$1,+$D87/H$1,1) -> 1
D88: 86 | E88: 1 | F88: 1 | G88: 1 | H88: 1
D89: 87 | E89: 1 | F89: 1 | G89: 1 | H89: 1
D90: 88 | E90: 1 | F90: 1 | G90: 1 | H90: 1
D91: 89 | E91: 1 | F91: 1 | G91: 1 | H91: 1
D92: 90 | E92: 1 | F92: 1 | G92: 1 | H92: 1
D93: 91 | E93: 1 | F93: 1 | G93: 1 | H93: 1
D94: 92 | E94: 1 | F94: 1 | G94: 1 | H94: 1
D95: 93 | E95: 1 | F95: 1 | G95: 1 | H95: 1
D96: 94 | E96: 1 | F96: 1 | G96: 1 | H96: 1
D97: 95 | E97: 1 | F97: 1 | G97: 1 | H97: 1
D98: 96 | E98: 1 | F98: 1 | G98: 1 | H98: 1
D99: 97 | E99: 1 | F99: 1 | G99: 1 | H99: 1
D100: 98 | E100: 1 | F100: 1 | G100: 1 | H100: 1
D101: 99 | E101: 1 | F101: 1 | G101: 1 | H101: 1
D102: 100 | E102: 1 | F102: 1 | G102: 1 | H102: 1
D103: 101 | E103: 1 | F103: 1 | G103: 1 | H103: 1
D104: 102 | E104: 1 | F104: 1 | G104: 1 | H104: 1
D105: 103 | E105: 1 | F105: 1 | G105: 1 | H105: 1
D106: 104 | E106: 1 | F106: 1 | G106: 1 | H106: 1
D107: 105 | E107: 1 | F107: 1 | G107: 1 | H107: 1
D108: 106 | E108: 1 | F108: 1 | G108: 1 | H108: 1
D109: 107 | E109: 1 | F109: 1 | G109: 1 | H109: 1
